Workbook

Sheet Introduction
A2: COLORADO INTERSECTION CONTROL ASSESSMENT TOOL (ICAT)
C3: Developed and Maintained in Cooperation with Georgia DOT | H3: CDOT ICAT Version 1.0 | Release Date: 8/30/2021
A4: About the Colorado ICAT: | L4: ICAT Users Guide (Double Click to Open)
A5: Introduction: | C5: The Intersection Control Assessment Tool (ICAT) uses a data-driven, performance-based approach to objectively screen alternatives and identify an optimal geometric and control solution for an intersection. In 2015, Colorado Governor Hickenlooper announced Colorado's safety initiative to reduce transportation related deaths: Moving Colorado Towards Zero Deaths. Zero deaths and serious injuries is a core value of the state's Strategic Transportation Safety Plan, which provides innovative and data-driven approaches to improving highway safety. Colorado's ICAT was developed to ensure intersection investments across the state are prioritized and implemented with defensible benefits for safety and operations.
A6: Tool Goal: | C6: The goal of ICAT is to provide a simplified and consistent way of importing traffic, safety, cost, environmental impact and stakeholder data to assess and quantify intersection control improvement benefits. The tool supports Colorado's stated policies and procedures to provide traceability, transparency, consistency and accountability when identifying and selecting an intersection control solution that both meets project purpose and reflects overall best value in terms of specific performance-based criteria. Note that a PDF of the ICAT users guide is available on both this tab (right) and the IntersectionData tab.
A7: Requirements: | C7: Use of ICAT shall be required for any intersection or ramp termini improvement (new intersection, intersection modification, widening/reconstruction corridor project, or work requiring an access permit that affects an intersection) when: 1) The intersection includes at least one roadway designated as a State Highway or part of the NHS, 2) The intersection will be designed or constructed using State or Federal funding, 3) The intersection is included in Access Control Plans (ACP), Planning and Environmental Linkages (PEL), Corridor Planning Studies, or Traffic Impact Studies (TIS), or 4) Requested by the Regional Traffic Representative’s (RTR). Use of ICAT shall NOT be required when the proposed work does not include any geometric or capacity changes to the intersection design such as (but not limited to): resurfacing pavement projects, striping projects, routine maintenance projects, traffic signal retiming projects (that do not include adding a phase), a proposed RIRO intersection that meets the Colorado State Highway Access Code, or signal maintenance projects (to upgrade deficient equipment). A waiver eligibility form must be completed by the Project Manager and submitted to the RTR, and if approved, the project shall be exempt from ICAT requirements.
A8: Two-Stage Process: | C8: The assessment process consists of two stages: Stage 1, a Screening Analysis and Stage 2, Alternative Selection. The intent of Stage 1 is to eliminate any infeasible intersection types through a series of screening questions. The purpose of Stage 2 is to perform a detailed analysis to determine a preferred alternative selection. The ICAT forms are designed to minimize required data inputs using drop-down menu choices and limiting text entry. All fields shaded in orange require either data entry or drop-down menu choices, and data fields in all worksheets must be filled before any reliable results can be obtained. All non data-entry cells in worksheets are locked, and all worksheets are password protected.
A9: Stage 1: Screening Decision Record | C9: Stage 1 is intended to screen many different intersection types and select between 2 and 5 alternatives for detailed analysis in Stage 2. The purpose of Stage 1 is not to compare intersection alternatives against each other but to assess the different intersection types individually to determine if and to what extent they potentially meet the project purpose and need, strategic program goals and project context by answering a number of questions regarding intersection right-of-way, safety, context, operations and costs. After the Stage 1 analysis is complete, the ICAT Champion will review and verify the results prior to the user moving onto the Stage 2 alternative selection.
A10: Stage 2: Alternative Decision Record | C10: Stage 2 further analyzes intersection types selected from the Stage 1 screening and determines the best possible intersection type for the project needs. The Stage 2 analysis includes additional safety and operational analysis, environmental, utility, and right-of-way impacts, cost comparisons, and other factors specific to the context. Once all data is entered, each alternative is scored and ranked, and results provided inform on the best intersection control(s). Once determined, the user will collaborate with the ICAT Champion to recommend the final solution. The ICAT Champion will review and verify the analysis results and the RTR will approve.
A11: Roles and Responsibilities | C11: The ICAT Champion is responsible for reviewing and approving the Stage 1 and Stage 2 analysis. There shall be one Champion from each Region, who should have close collaboration with the ICAT user. The RTR is responsible for approving the waiver eligibility form and gives the final approval of the Stage 2 results for their region. The RTR may also request a Project Manager to use the ICAT for any non-required project type. The Project Manager (PM) is responsible for completing or designating ICAT use to another team member. The PM and/or ICAT analyst should have some familiarity with a variety of different intersection types, crash safety analysis, traffic operations analysis, and intersection cost estimates. The PM and/or ICAT analyst should also collaborate with other disciplines while completing the assessment form.
A12: Frequently Asked Questions
A13: Question 1: Several intersection control alternatives include multiple intersections. How is intersection delay compared to the base conditions of a singular intersection?
B14: ANS: Engineering judgement is required on a case-by-case basis, but the general principle is to add the delay incurred by vehicles with longer travel paths weighed by that number (or percentage of those vehicles making that movement).
A15: Question 2: Not all tools give overall intersection delay and V/C ratios. Which delay value should I choose?
B16: ANS: For unsignalized intersections where one or more movements are not required to stop and thus have zero delay) use the worst-case approach movement delay. If all intersection movements have some form of intersection control (yield, stop or signal), use a weighted average of each approach delay multiplied by the volume on each approach.
A17: Question 3: How do I analyze multiple intersections along a corridor?
B18: ANS: The Colorado ICAT is designed for individual intersection analyses, but use of the ICAT is required for all public street intersections and major driveways along a corridor (unless otherwise stipulated in the ICAT waiver section). Use engineering judgement in the recommendation of intersection control choices to ensure corridor continuity (as appropriate) and document control recommendations that are not ranked highest but best provide corridor continuity.
A19: For questions or comments about ICAT, contact Karol Miodonski (karol.miodonski@atkinsglobal.com)
C20: Tool Version Tracking
C21: Version | D21: Released | E21: Tool Updates:
C22: 1 | D22: 2021-03-25 | E22: Beta Version for Testing

Sheet Intersections
A2: INTERSECTION CONTROL DESCRIPTIONS
A3: Click on intersection images for additional resource publications
A5: Unsignalized At-Grade Intersections
B6: Conventional Minor Street or All-Way Stop: At minor-street stop (2-way stop) intersections, vehicles on minor street stop and give right-of-way to major street. At all-way stop (AWS) intersections, all vehicles must stop and take turns entering the intersection. Both (4-leg) intersection types have 32 baseline conflict points and have limited operational and safety benefits as traffic volumes become significant. | D6: Mini Roundabouts: Roundabout type characterized by a small diameter and traversable central island; offers most of the benefits of single-lane roundabouts with added benefit of a smaller footprint; best suited to lower-speed environments and where environmental constraints preclude use of a larger roundabout with a raised central island. Mini-roundabouts are emerging in U.S. in states including MD, MI and GA.
B7: Right-in/Right-out (RIRO) or 3/4 Movement Access: Right-in/right-out intersections are the safest intersection type, with only 2 conflict points, and 3/4 movement access) intersections add the left turn "in", from the main roadway onto the minor street. In both cases, the minor street is restricted to right turn "out" movements. | D7: Single-Lane Roundabouts: Form of circular intersection in which traffic travels counterclockwise around a central island and in which entering traffic must yield to circulating traffic. Circulating traffic has priority with entries controlled by yield. Geometry slows all traffic into and thru the roundabout. At a 4-leg roundabout there are 8 baseline conflict points. Also known as: Modern Roundabout
A8: (No web link available) | B8: RIRO w/Downstream U-Turn: Redirects minor street thru & left turn movements as right-turns followed by a U-turn via directional median crossover (+/- 500 feet from main intersection). Major street lefts are also made indirectly, passing the crossing street and using the same U-turn crossovers in the median. Minor street intersections are reduced to right-in/right-out movements making this the safest intersection type. | D8: Multilane Roundabouts: Share same circulatory travel and yield-at-entry in single-lane roundabouts, but include multiple entry and circulatory lanes for one or more approaches that must accommodate vehicles traveling side by side. Important design features include proper entry path alignment and geometry, signing and marking that allows entry to exit paths without forcing a lane change in the circle.
B9: Restricted Crossing U-Turn / J-Turn: Redirects minor street left turn movements as right-turns followed by a U-turn movement via a downstream directional crossover in the median (+/- 500 feet from the main intersection). An RCUT / J-Turn intersection has 14 conflict points and can provide substantial safety benefits with minor delay increases to some movements. | D9: Unsignalized High-T: Unsignalized 3-leg intersection features raised channelization to separate “top” thru movement from turning lanes at intersection, allowing the through movement to operate continuously. A high-T intersection has 9 baseline conflict points, the same as a conventional 3-leg. Also known as: “Seagull” intersection
A10: Signalized At-Grade Intersections
B11: Signalized Intersection: The most common type of signalized intersection with high driver familiarity. Signal could be simple two-phase or more complex 8-phase to serve vehicular demand. Left turns can be permitted or protected (or combination of both). At a conventional 4-leg intersection there are 32 baseline conflict points. | D11: Jughandle: Much like an at-grade diamond interchange, ramps on the major street diverge from the right side in advance of a cross street intersection, removing the left turn movement from directly at the cross-street intersection. Major street left turns are made at minor, stop-controlled intersections on the cross-street. Left turns from the cross-street remain as direct movements at the main intersection.
B12: Median U-Turn: Left turn movements otherwise occurring at the main intersection are made via U-turns in the median, preceding or following right turns. U-turns may be only on major roadway or on both major and minor roadways. A conventional MUT has 16 baseline conflict points and has shown significant operational and safety benefits. Also known as: Indirect Left, Michigan Left, MUT | D12: Continuous Green-T: Three-leg intersection that features raised channelization to allow the “top” through movement to operate under continual green. The opposite direction intersects with the major and minor street lefts at a signalized intersection (minor left turns merge with the continual through movement downstream). A Continuous Green-T has 9 baseline conflict points, the same as a conventional 3-leg.
B14: Superstreet / Reduced Conflict Intersection: Similar to the Median U-turn but features break in cross-street traffic that allows signals on opposite directions to operate independently. Left turns can make direct turns onto the minor road but minor road thru and left turn movements are made using the directional U-turn crossovers. A Superstreet / RCI has 14 baseline conflict points (over 3 intersections). | D14: Offset-T Intersection: The minor street is bifurcated at the major roadway at two T-intersections, whereas through movements on the minor roadway use a portion of the major street between intersections. The minor street can be either offset right (as pictured above) or offset left, and the intersections can be unsignalized or signalized. If signalized, proper signal coordination is essential for efficient intersection operations.
B15: Displaced Left-Turn / Continuous Flow Intersection: Left turn traffic crosses opposing lanes in advance of main intersection and are stored in additional lanes. At main intersection, thru and left turns can be made simultaneously during same signal phase. A full DLT (both routes) has 28 baseline conflict points; a partial DLT (one route) has 30 baseline conflict points. | D15: Split Intersection: A split intersection operates similar to a diamond interchange but without uninterrupted flow on the major roadway. The major roadway is split into separate carriageways separate by several hundred feet, allowing left turn lanes on the minor street to queue between intersections. On the minor street crossroad, the four leg intersection is being replaced by two intersections.
B16: Quadrant Roadway: Left turns are removed from the main intersection via an additional roadway in one intersection quadrant. Left-turn movements are routed from the arterial and cross-street (using unique turning paths for each approach) onto the quadrant roadway to complete the left turn movement at the quadrant roadway “minor” T-intersections. A Quadrant Roadway has 28 baseline conflict points (over 3 intersections). | D16: Bowtie Intersections: Left turns from both roadways are completed using roundabouts on the minor roadway several hundred feet before and after the major intersection. The roundabouts can have two to four legs, allowing for U-turns only (2 legs) or access to one or more intersection quadrants (3 to 4 legs). The roundabout lanes and diameter vary depending on speed, volume, vehicle size and number of legs.
B17: Offset-T Intersection: The minor street is bifurcated at the major roadway at two T-intersections, whereas through movements on the minor roadway use a portion of the major street between intersections. The minor street can be either offset right (as pictured above) or offset left, and the intersections can be unsignalized or signalized. If signalized, proper signal coordination is essential for efficient intersection operations.
A18: Conventional Diamond and Grade-Separated Intersections
A19: (No web link available) | B19: Diamond Interchange: Most common form of service intersection on U.S. interstates and freeways. Diamond interchanges can also exist in urban settings on two non-limited access facilities. The ramp terminal intersections are separated by several hundred feet, allowing left turns to be made from and onto the major roadway and operated as coordinated 3-phase signals. | D19: Echelon: A unique grade-separated intersection with no free-flow movements. It is a simple concept that uses retaining wall structures to elevate half of each of two divided roadways as they approach their point of intersection, while the other halves intersect at-grade. The result is a symmetrical but offset pair of two-phase intersections separated by grade.
B20: Single Quadrant Interchange: Grade separated intersection with one signal on each roadway. Uses a roadway in a single intersection quadrant to handle all turning movements between main and crossing roadways. More typical in rural locations but can be enhanced with multiple turning lanes in more urbanized locations. | D20: Center Turn Overpass: The CTO grade separates left turns from through and right-turning traffic by placing left-turns on a separate, elevated level. Both at-grade and elevated intersections are governed by two-phase signals.
B21: Cloverleaf Interchange: Used at the meeting of two limited access facilities, all movements can be made without stopping using loops in all four quadrants. Best used in rural and low volume settings, as weaving lanes between loop exist on both roadways. Some cloverleaf intersections include C-D roadways to separate the weaving areas from the through movements. | D21: Partial Cloverleaf. Similar to cloverleaf intersections but loops are used only in two quadrants, meaning there are intersections on minor (non-free flow) facility. There are three basic Parclo forms: Parclo A (loops leaving the minor roadway onto the major road, as pictured to right), Parclo B (loops leaving the major road onto the minor road, and Parclo C (both loops on one side of the major roadway).
B22: Single Roundabout Interchange: The major roadway is free flow over (or under) the minor roadway and the ramp movements intersect the minor roadway in a large, singular roundabout, as shown for a rural condition to the right; urbanize forms of this interchange exist in several places in the Washington DC area. | D22: Contraflow Left Interchange: Reduces the number of signal phases compared to a Tight Diamond interchange from four to three by allowing the two opposing left-turn movements to be made during the same signal phase. The greatest design benefit of the CFL is the reduction in the need for left-turn storage, as most left turns do not have to be stored in the area between the two interchange signals.
B23: Double Roundabout Interchange: Use of single or dual lane roundabouts at traditional diamond interchange ramp terminals. The use of roundabouts requires only through lanes on the bridge (no turn lane storage lanes) and the elimination of signal control at the ramp terminals. There are a total of 16 baseline conflict points (over two intersections). Also known as: Teardrop Interchange | D23: Single Point Urban Diamond (SPUI): Free-flow major street thru movements are provided by creating a separate, signalized intersection of major street turning movements with the cross-street on a separate grade, creating an intersection either under or over the priority thru roadway. Right turns are made at unsignalized ramps separated from the main intersection.
B24: Grade Separated T-Intersection: Used mostly as T-ramp intersection to access managed lane system in between freeway lanes, but can also be used on non-freeway facilities at T-intersections | D24: Diverging Diamond Interchange (DDI): All traffic crosses over to left side of road at first ramp terminal intersection before crossing back over at second ramp terminal. Crossover movements allow left turns to be made unopposed. A DDI has a total 14 baseline conflict points (over two intersections) and has shown both operational and safety benefits. Also known as: Double Crossover Diamond
A28: Publication Title / Links
A29: Alternative | B29: Publication Title | C29: Publication Link
A30: Minor Street Stop
A31: All-Way Stop
A32: Right-In/Right-out
A33: Right-in/Right-out/Left-in (3/4 access)
A34: RIRO w/downstream U-Turn
A35: Mini Roundabout | B35: FHWA Office of Safety Technical Summary | C35: https://safety.fhwa.dot.gov/intersection/innovative/roundabouts/fhwasa10007
A36: Single Lane Roundabout | B36: NCHRP 672 Roundabouts: Informational Guide | C36: https://nacto.org/docs/usdg/nchrprpt672.pdf
A37: Multilane Roundabout | B37: NCHRP 672 Roundabouts: Informational Guide | C37: https://nacto.org/docs/usdg/nchrprpt672.pdf
A38: RCUT / J-Turn (stop control) | B38: Missouri DOT Informational Website | C38: https://www.modot.org/j-turns
A39: High-T (unsignalized) | B39: FHWA-SA-09-016 Case Study | C39: https://safety.fhwa.dot.gov/intersection/innovative/others/casestudies/fhwasa09016/
A40: Offset-T Intersections
A41: Signalized Intersection
A42: Median U-Turn | B42: FHWA 2014 Informational Guide | C42: https://safety.fhwa.dot.gov/intersection/alter_design/pdf/fhwasa14069_mut_infoguide.pdf
A43: RCUT / Superstreet | B43: FHWA 2014 Informational Guide | C43: https://safety.fhwa.dot.gov/intersection/alter_design/pdf/fhwasa14070_rcut_infoguide.pdf
A44: Displaced Left-Turn / CFI | B44: FHWA 2014 Informational Guide | C44: https://safety.fhwa.dot.gov/intersection/alter_design/pdf/fhwasa14068_dlt_infoguide.pdf
A45: Continuous Green-T | B45: FHWA-SA-09-016 Case Study | C45: https://safety.fhwa.dot.gov/intersection/innovative/others/casestudies/fhwasa09016/
A46: Jughandle | B46: FHWA Office of Safety Technical Summary | C46: https://www.fhwa.dot.gov/publications/research/safety/07032
A47: Quadrant Roadway | B47: FHWA 2020 Informational Guide | C47: https://safety.fhwa.dot.gov/intersection/innovative/others/docs/fhwasa19029.pdf
A48: Split Intersection
A49: Bowtie Intersection
A50: Paired Intersections
A51: Echelon
A52: Center Turn Overpass
A53: Grade-Separated T-Interchange
A54: Conventional Diamond Interchange
A55: Cloverleaf Interchange
A56: Partial Cloverleaf (Parclo)
A57: Diverging Diamond | C57: https://safety.fhwa.dot.gov/intersection/alter_design/pdf/fhwasa14067_ddi_infoguide.pdf
A58: Single Point Interchange
A59: Contraflow Left
A60: Single Roundabout Interchange
A61: Double Roundabout Interchange
A62: Single Loop Interchange
A64: Other (not currently used)
A65: Turbo Roundabouts | C65: https://safety.fhwa.dot.gov/intersection/innovative/others/casestudies/fhwasa09016
A68: CDOT Blue RGB: 33/42/103
A69: CDOT Orange: 240/118/34

Sheet IntersectionData
AF1: Fill in ORANGE TEXT below to record Existing Year volumes, truck percentages and pedestrian count data (most recent count data collected & grown to existing year, if applicable) | AV1: Hide | AW1: Hide | AX1: Hide | AY1: Hide | AZ1: Hide | BA1: Hide | BB1: Hide | BC1: Hide | BD1: Hide | BE1: Hide | BF1: Hide | BG1: Hide | BH1: Hide | BI1: Hide | BJ1: Hide | BK1: Hide | BM1: =YEAR(ExistYr) -> 1905-03-19 | BO1: Data Entered? | BP1: =IF(SUM(AI7:AT10)<2,"N","Y") -> Y | BQ1: Hide
A2: INTERSECTION CONTROL ASSESSMENT TOOL (ICAT) INTERSECTION DATA | BP2: Drop Down Menus
AV3: =YEAR(TODAY()) -> 2021 | AY3: ADT's | BB3: Trucks | BF3: Year | BG3: --Area Type-- | BJ3: --ROW-- | BM3: County
C4: Developed and Maintained in Cooperation with Georgia DOT | V4: =Version -> CDOT ICAT Version 1.0 | Release Date: 8/30/2021 | AY4: =ExistYr -> 2021 | AZ4: =OpenYr -> 2023 | BA4: =DesignYr -> 2043 | BB4: =ExistYr -> 2021 | BC4: =OpenYr -> 2023 | BD4: =DesignYr -> 2043 | BF4: 2016 | BG4: Rural | BJ4: 50 | BM4: --select-- | BO4: Conventional Improvements
AF5: Existing Yr Volume Inputs | AI5: =Street1 -> EB Colorado Street | AL5: =Street2 -> WB Colorado Street | AO5: =Street3 -> NB 30th Street | AR5: =Street4 -> SB 30th Street | BF5: 2017 | BG5: Suburban | BJ5: 60 | BM5: Adams | BO5: LT Lanes
A6: CDOT Project No: | E6: 12345 | G6: Requested by: | J6: Regional Traffic Representitve | R6: =CONCATENATE(ExistYr," Existing Volumes") -> 2021 Existing Volumes | U6: =Street4 -> SB 30th Street | Y6: =AR12 -> 0.03 | AI6: LT | AJ6: TH | AK6: RT | AL6: LT | AM6: TH | AN6: RT | AO6: LT | AP6: TH | AQ6: RT | AR6: LT | AS6: TH | AT6: RT | AU6: Total | AV6: =AY38 -> West Intersection Leg | AY6: =IF(AI63<>0,AI63,IF(AU9>AU7,(SUM(AI9:AK10)+AM9+AO9+AT9)/E49)) -> 43900 | AZ6: =IF(AK63<>0,AK63,IF(AU7>AU9,(T43+T45+T47+V39+Z45+V51)/E49,(S43+S45+S47+V37+AA45+V53)/E49)) -> 45800 | BA6: =IF(AM63<>0,AM63,IF(AU7>AU9,(T70+T72+T74+V66+Z72+V78)/E49,(S70+S72+S74+V64+AA72+V80)/E49)) -> 68950 | BB6: =AY6*$AI$15 -> 1317 | BC6: =IF(AI40<>0,AZ6*AI40,AZ6*$AI$15) -> 1374 | BD6: =IF(AI54<>0,BA6*AI54,BA6*$AI$15) -> 2068.5 | BF6: 2018 | BG6: Urban | BJ6: 65 | BM6: Alamosa | BN6: 0 | BO6: --select--
AH7: AM Peak Hr | AI7: 280 | AJ7: 1800 | AK7: 100 | AL7: 310 | AM7: 1400 | AN7: 50 | AO7: 95 | AP7: 450 | AQ7: 45 | AR7: 60 | AS7: 400 | AT7: 170 | AU7: =SUM(AI7:AT8) -> 5160 | BF7: =BF6+1 -> 2019 | BG7: --Road Type-- | BJ7: 70 | BM7: Arapahoe | BN7: 1 | BO7: =CONCATENATE("Add LT Lanes on ",Road1) -> Add LT Lanes on Colorado Street
U8: =CONCATENATE(X12+W12+V12," (",X10+W10+V10,") [",AY12,"]") -> 630 (560) [15800] | AV8: =AY40 -> East Intersection Leg | AY8: =IF(AI65<>0,AI65,ROUND((MAX(Z16+Z18+Z20+X12+T18+X24,AA16+AA18+AA20+X26+S18+X10)/E49),-2)) -> 43200 | AZ8: =IF(AK65<>0,AK65,IF(AU7>AU9,(Z43+Z45+Z47+X39+T45+X51)/E49,(AA43+AA45+AA47+X53+S45+X37)/E49)) -> 45050 | BA8: =IF(AM65<>0,AM65,IF(AU7>AU9,(Z70+Z72+Z74+X66+T72+X78)/E49,(AA70+AA72+AA74+X80+S72+X64)/E49)) -> 67250 | BB8: =AY8*$AL$15 -> 1296 | BC8: =IF(AL40<>0,AZ8*AL40,AZ8*$AL$15) -> 1351.5 | BD8: =IF(AL54<>0,BA8*AL54,BA8*$AL$15) -> 2017.5 | BF8: 2020 | BG8: R-A Regional Hwy | BJ8: 75 | BM8: Archuleta | BN8: 2 | BO8: =CONCATENATE("Add LT Lanes on ",Road2) -> Add LT Lanes on 30th Street
A9: County: | E9: Boulder | J9: CDOTRegion: | M9: Region 1 | AH9: PM Peak Hr | AI9: 330 | AJ9: 1450 | AK9: 90 | AL9: 400 | AM9: 2250 | AN9: 110 | AO9: 120 | AP9: 580 | AQ9: 60 | AR9: 50 | AS9: 360 | AT9: 150 | AU9: =SUM(AI9:AT10) -> 5950 | BF9: 2021 | BG9: R-B Rural Hwy | BJ9: 80 | BM9: Baca | BN9: 3 | BO9: =CONCATENATE("Add one LT Lane on ",Road1) -> Add one LT Lane on Colorado Street
U10: =AS17 -> 40 | V10: =AT9 -> 150 | W10: =AS9 -> 360 | X10: =AR9 -> 50 | AV10: =AY42 -> South Intersection Leg | AY10: =IF(AI67<>0,AI67,ROUND((MAX(V24+W24+X24+Z20+W12+T20,V26+W26+X26+AA20+W10+S20)/E49),-2)) -> 16100 | AZ10: =IF(AK67<>0,AK67,IF(AU7>AU9,(V51+W51+X51+Z47+W39+T47)/E49,(V53+W53+X53+AA47+W37+S47)/E49)) -> 17100 | BA10: =IF(AM67<>0,AM67,IF(AU7>AU9,(V78+W78+X78+Z74+W66+T74)/E49,(V80+W80+X80+AA74+W64+S74)/E49)) -> 29100 | BB10: =AY10*$AO$15 -> 322 | BC10: =IF(AO40<>0,AZ10*AO40,AZ10*$AO$15) -> 342 | BD10: =IF(AO54<>0,BA10*AO54,BA10*$AO$15) -> 582 | BF10: 2022 | BG10: NR-A Regional Hwy | BJ10: 85 | BM10: Bent | BN10: 4 | BO10: =CONCATENATE("Add one LT Lane on ",Road2) -> Add one LT Lane on 30th Street
BF11: 2023 | BG11: NR-B Arterial | BJ11: 90 | BM11: Boulder | BN11: 5 | BO11: Add LT Lanes on Both Roads
A12: Major (State) Rd: | E12: Colorado Street | I12: 4-ln divided, 16' median | N12: 80 | U12: =AR17 -> 40 | V12: =AT7 -> 170 | W12: =AS7 -> 400 | X12: =AR7 -> 60 | AB12: =AL12 -> 0.02 | AF12: Annual Growth Rate (% per yr) | AI12: 0.02 | AL12: 0.02 | AO12: 0.03 | AR12: 0.03 | AV12: =AY44 -> North Intersection Leg | AY12: =IF(AI69<>0,AI69,ROUND((MAX(V12+W12+X12+Z16+W24+T16,V10+W10+X10+AA16+W26+S16)/E49),-2)) -> 15800 | AZ12: =IF(AK69<>0,AK69,IF(AU7>AU9,(V39+W39+X39+Z43+W51+T43)/E49,(V37+W37+X37+AA43+W53+S43)/E49)) -> 16750 | BA12: =IF(AM69<>0,AM69,IF(AU7>AU9,(V66+W66+X66+Z70+W78+T70)/E49,(V64+W64+X64+AA70+W80+S70)/E49)) -> 28700 | BB12: =AY12*$AR$15 -> 316 | BC12: =IF(AR40<>0,AZ12*AR40,AZ12*$AR$15) -> 335 | BD12: =IF(AR54<>0,BA12*AR54,BA12*$AR$15) -> 574 | BF12: 2024 | BG12: NR-C Arterial | BJ12: 95 | BM12: Broomfield | BO12: RT Lanes
BF13: 2025 | BG13: F-R Frontage Roads | BJ13: 100 | BM13: Chaffee | BO13: --select--
E14: NR-A Regional Hwy | I14: Dual LT, single RT lanes | N14: 50 | Q14: Critical Lane V/C: | T14: =BF52 -> 1.01875 | U14: Peds | V14: =CHAR(195) -> Ã | W14: =CHAR(242) -> ò | X14: =CHAR(196) -> Ä | Y14: Peds | Z14: =AL17 -> 30 | AA14: =AM17 -> 40 | AB14: =CONCATENATE(Z20+Z18+Z16," (",AA20+AA18+AA16,") [",AY8,"]") -> 1760 (2760) [43200] | AC14: =Street2 -> WB Colorado Street | AV14: Entering Int Volume | AY14: =SUM(AY6:AY13)/2 -> 59500 | AZ14: =SUM(AZ6:AZ13)/2 -> 62350 | BA14: =SUM(BA6:BA13)/2 -> 97000 | BB14: =SUM(BB6:BB13)/2/AY14 -> 0.02731932773 | BC14: =SUM(BC6:BC13)/2/AZ14 -> 0.02728548516 | BD14: =SUM(BD6:BD13)/2/BA14 -> 0.02702061856 | BF14: 2026 | BG14: Unclassified Road | BJ14: 105 | BM14: Cheyenne | BO14: =CONCATENATE("Add RT Lanes on ",Road1) -> Add RT Lanes on Colorado Street
AF15: Peak Hour Truck %: | AI15: 0.03 | AL15: 0.03 | AO15: 0.02 | AR15: 0.02 | BF15: 2027 | BG15: Other Local Road | BJ15: 110 | BM15: Clear Creek | BO15: =CONCATENATE("Add RT Lanes on ",Road2) -> Add RT Lanes on 30th Street
Q16: =Street1 -> EB Colorado Street | R16: =CONCATENATE(T16+T18+T20," (",S16+S18+S20,") [",AY6,"]") -> 2180 (1870) [43900] | S16: =AI9 -> 330 | T16: =AI7 -> 280 | U16: =CHAR(200) -> È | V16: =CONCATENATE(ExistYr," Intersection Daily Entering Volume (est):") -> 2021 Intersection Daily Entering Volume (est): | Y16: =CHAR(199) -> Ç | Z16: =AN7 -> 50 | AA16: =AN9 -> 110 | BF16: 2028 | BG16: --Terrain-- | BH16: % of Const | BJ16: 115 | BM16: Conejos | BO16: =CONCATENATE("Add one RT Lane on ",Road1) -> Add one RT Lane on Colorado Street
A17: Minor (Crossing) Rd: | E17: 30th Street | I17: 4-ln w/TWLTL | N17: 80 | AF17: AM (PM) Pedestrian Crossings: | AI17: 50 | AJ17: 80 | AL17: 30 | AM17: 40 | AO17: 80 | AP17: 60 | AR17: 40 | AS17: 40 | AY17: Cars | AZ17: Trucks | BF17: 2029 | BG17: Plains | BH17: 0.05 | BJ17: 120 | BM17: Costilla | BO17: =CONCATENATE("Add one RT Lane on ",Road2) -> Add one RT Lane on 30th Street
S18: =AJ9 -> 1450 | T18: =AJ7 -> 1800 | U18: =CHAR(240) -> ð | Y18: =CHAR(239) -> ï | Z18: =AM7 -> 1400 | AA18: =AM9 -> 2250 | BF18: 2030 | BG18: Rolling | BH18: 0.08 | BJ18: 130 | BM18: Crowley | BO18: Add RT Lanes on Both Roads
E19: NR-B Arterial | I19: Single LT and RT lanes | N19: 40 | AV19: Open Year AM IEV | AY19: =SUM(T43:T48)+SUM(Z43:Z48)+SUM(V39:X40)+SUM(V51:X52) -> 5415 | AZ19: =(SUM(T43:T48)*AI$15+SUM(Z43:Z48)*AL$15+SUM(V51:X52)*AO$15+SUM(V39:X40)*AR$15) -> 149.45 | BF19: 2031 | BG19: Mountainous | BH19: 0.15 | BJ19: 140 | BM19: Custer | BO19: Median Improvements
S20: =AK9 -> 90 | T20: =AK7 -> 100 | U20: =CHAR(202) -> Ê | V20: =AY14 -> 59500 | Y20: =CHAR(201) -> É | Z20: =AL7 -> 310 | AA20: =AL9 -> 400 | BF20: 2032 | BG20: Urban | BH20: 0.1 | BJ20: 150 | BM20: Delta | BO20: --select--
AF21: --- IMPORTANT NOTE --- ICAT is not an explicit Traffic Forecasting tool. Simple Open and Design Year volume projections are developed based on approach growth factors (entered above) and intersection K-factor**. If more detailed intersection volume forecasts are desired, tools such as TurnsW32 and/or NCHRP Report 255 methodology can be used independently and the results can be included using the Open and Design Year forecast override tables below. | AV21: Open Year PM IEV | AY21: =SUM(S43:S48)+SUM(AA43:AA48)+SUM(V37:X38)+SUM(V53:X54) -> 6235 | AZ21: =(SUM(S43:S48)*AI$15+SUM(AA43:AA48)*AL$15+SUM(V53:X54)*AO$15+SUM(V37:X38)*AR$15) -> 172.95 | BF21: 2033 | BG21: --Region-- | BM21: Denver | BO21: =CONCATENATE("Add Median on ",Road1) -> Add Median on Colorado Street
A22: Major Rd Direction: | E22: East/West | I22: Area Type: | L22: Suburban | S22: =AJ17 -> 80 | T22: =AI17 -> 50 | U22: Peds | V22: =CHAR(197) -> Å | W22: =CHAR(241) -> ñ | X22: =CHAR(198) -> Æ | Y22: Peds | Z22: Peak Hour % Trucks | BF22: 2034 | BG22: Region 1 | BJ22: Turn Lanes | BM22: Dolores | BO22: =CONCATENATE("Add Median on ",Road2) -> Add Median on 30th Street
AV23: Design Year AM IEV | AY23: =SUM(T70:T75)+SUM(Z70:Z75)+SUM(V66:X67)+SUM(V78:X79) -> 8450 | AZ23: =SUM(T70:T75)*AI$15+SUM(Z70:Z75)*AL$15+SUM(V78:X79)*AO$15+SUM(V66:X67)*AR$15 -> 230 | BF23: 2035 | BG23: Region 2 | BJ23: --Intersection Turn Lanes-- | BK23: LT | BL23: RT | BM23: Douglas | BO23: Add Median on Both Roads
Q24: =AI12 -> 0.02 | V24: =AO7 -> 95 | W24: =AP7 -> 450 | X24: =AQ7 -> 45 | Y24: =AO17 -> 80 | AA24: EB | AB24: =AI15 -> 0.03 | BF24: 2036 | BG24: Region 3 | BJ24: Shared LT/TH, RT/TH lanes | BK24: 0.75 | BL24: 0.75 | BM24: Eagle | BO24: Conventional Intersections
A25: Intersection Control: | E25: Conventional Minor Stop | K25: Terrain: | M25: Rolling | AV25: Design Year PM IEV | AY25: =SUM(S70:S75)+SUM(AA70:AA75)+SUM(V64:X65)+SUM(V80:X81) -> 9700 | AZ25: =SUM(S70:S75)*AI$15+SUM(AA70:AA75)*AL$15+SUM(V78:X79)*AO$15+SUM(V64:X65)*AR$15 -> 259.25 | BF25: 2037 | BG25: Region 4 | BJ25: Single LT, shared TH/RT | BK25: 1 | BL25: 0.75 | BM25: Elbert | BN25: 0 | BO25: -- select --
V26: =AO9 -> 120 | W26: =AP9 -> 580 | X26: =AQ9 -> 60 | Y26: =AP17 -> 60 | AA26: WB | AB26: =AL15 -> 0.03 | BF26: 2038 | BG26: Region 5 | BJ26: Single LT and RT lanes | BK26: 1 | BL26: 1 | BM26: El Paso | BN26: 1 | BO26: No Control Change
P27: Roadway Volume Splits | BF27: 2039 | BG27: Major Road Direction | BJ27: Dual LT, shared TH/RT | BK27: 2 | BL27: 0.75 | BM27: Fremont | BN27: 2 | BO27: Minor Stop
A28: Prepared By: | E28: Region Traffic Engineer | K28: Date: | M28: 2021-07-27 | U28: =AO12 -> 0.03 | V28: =CONCATENATE(V24+W24+X24," (",V26+W26+X26,") [",AY10,"]") -> 590 (760) [16100] | AA28: NB | AB28: =AO15 -> 0.02 | BF28: 2040 | BG28: -- select -- | BJ28: Dual LT, single RT lanes | BK28: 2 | BL28: 1 | BM28: Garfield | BN28: 3 | BO28: All Way Stop
P29: =CONCATENATE(Road1,":") -> Colorado Street: | T29: =SplitMaj -> 0.7319327731 | AF29: Fill in below BLUE TEXT below ONLY if additional data is available; otherwise Opening & Design Year volumes are auto calculated based growth rate, K and D factors | AV29: =IF(Data="N",0.5,IF(E22="East/West",((AY6/2)+(AY8/2))/((AY6/2)+(AY8/2)+(AY10/2)+(AY12/2)),((AY10/2)+(AY12/2))/((AY6/2)+(AY8/2)+(AY10/2)+(AY12/2)))) -> 0.7319327731 | BF29: 2041 | BG29: North/South | BM29: Gilpin | BN29: 4 | BO29: Signalize
V30: =Street3 -> NB 30th Street | AA30: SB | AB30: =AR15 -> 0.02 | BF30: 2042 | BG30: East/West | BM30: Grand | BN30: 5 | BO30: Add FYA
A31: Project Description: | E31: Project Case Study Example | P31: =CONCATENATE(Road2,":") -> 30th Street: | T31: =1-SplitMaj -> 0.2680672269 | AV31: =SUM(AI7:AT8)/(SUM(AI7:AT8)+SUM(AI9:AT10)) -> 0.4644464446 | BF31: 2043 | BG31: --SL-- | BM31: Gunnison | BN31: 6 | BO31: Question Responses
AF32: Open Yr Volume Override | BF32: 2044 | BG32: 25 | BH32: 0 | BM32: Hinsdale | BN32: 0 | BO32: Yes
R33: =CONCATENATE(OpenYr," Opening Year Volumes") -> 2023 Opening Year Volumes | U33: =Street4 -> SB 30th Street | AI33: =Street1 -> EB Colorado Street | AL33: =Street2 -> WB Colorado Street | AO33: =Street3 -> NB 30th Street | AR33: =Street4 -> SB 30th Street | BF33: 2045 | BG33: 30 | BH33: 0 | BM33: Huerfano | BO33: Somewhat
AI34: LT | AJ34: TH | AK34: RT | AL34: LT | AM34: TH | AN34: RT | AO34: LT | AP34: TH | AQ34: RT | AR34: LT | AS34: TH | AT34: RT | AV34: Street Names/Orientation | AY34: ADT Label | BF34: 2046 | BG34: 35 | BH34: 0 | BM34: Jackson | BO34: No
A35: Type of Project: | E35: Safety Improvement Project | U35: =CONCATENATE(X39+W39+V39," (",X37+W37+V37,") [",AZ12,"]") -> 670 (600) [16750] | AH35: =Peak1 -> AM Peak Hr | AI35: 0 | AJ35: 0 | AK35: 0 | AL35: 0 | AM35: 0 | AN35: 0 | AO35: 0 | AP35: 0 | AQ35: 0 | AR35: 0 | AS35: 0 | AT35: 0 | BC35: =CONCATENATE("Max ",ExistYr," LT Vols") -> Max 2021 LT Vols | BF35: 2047 | BG35: 40 | BH35: 1 | BM35: Jefferson
BB36: T-Int? | BF36: 2048 | BG36: 45 | BH36: 1 | BM36: Kiowa
U37: =IF(AS42<>0,AS42,(CEILING(TRUNC(U10*(1+GR_SB)^($E$44-$E$42),0),5))) -> 45 | V37: =IF(AT37<>0,AT37,(CEILING(TRUNC(V10*(1+GR_SB)^($E$44-$E$42),0),5))) -> 160 | W37: =IF(AS37<>0,AS37,(CEILING(TRUNC(W10*(1+GR_SB)^($E$44-$E$42),0),5))) -> 385 | X37: =IF(AR37<>0,AR37,(CEILING(TRUNC(X10*(1+GR_SB)^($E$44-$E$42),0),5))) -> 55 | AH37: =Peak2 -> PM Peak Hr | AI37: 0 | AJ37: 0 | AK37: 0 | AL37: 0 | AM37: 0 | AN37: 0 | AO37: 0 | AP37: 0 | AQ37: 0 | AR37: 0 | AS37: 0 | AT37: 0 | BF37: 2049 | BG37: 50 | BH37: 2 | BM37: Kit Carson
AV38: =IF(Directionality="East/West",CONCATENATE("EB ",E12),CONCATENATE("EB ",E17)) -> EB Colorado Street | AY38: West Intersection Leg | BB38: =SUM(S16:T21)+SUM(V10:V13)+SUM(Z18:AA19)+SUM(V24:V27) -> 8235 | BC38: =MAX(IntersectionData!S16,IntersectionData!T16,IntersectionData!V24,IntersectionData!V26,IntersectionData!Z20,IntersectionData!AA20,IntersectionData!X10,IntersectionData!X12) -> 400 | BF38: 2050 | BG38: 55 | BH38: 2 | BM38: Lake
L39: ICAT Users Guide (Double Click to Open) | U39: =IF(AR42<>0,AR42,(CEILING(TRUNC(U12*(1+GR_SB)^($E$44-$E$42),0),5))) -> 45 | V39: =IF(AT35<>0,AT35,(CEILING(TRUNC(V12*(1+GR_SB)^($E$44-$E$42),0),5))) -> 180 | W39: =IF(AS35<>0,AS35,(CEILING(TRUNC(W12*(1+GR_SB)^($E$44-$E$42),0),5))) -> 425 | X39: =IF(AR35<>0,AR35,(CEILING(TRUNC(X12*(1+GR_SB)^($E$44-$E$42),0),5))) -> 65 | BG39: 60 | BH39: 2 | BM39: La Plata
E40: VOLUME FACTOR DATA | AG40: Peak Hour Truck %: | AI40: 0 | AL40: 0 | AO40: 0 | AR40: 0 | AV40: =IF(Directionality="East/West",CONCATENATE("WB ",E12),CONCATENATE("WB ",E17)) -> WB Colorado Street | AY40: East Intersection Leg | BB40: =SUM(Z16:AA21)+SUM(X10:X13)+SUM(S18:T19)+SUM(X24:X27) -> 7985 | BG40: Existing Control Type | BM40: Larimer
Q41: Critical Lane V/C: | T41: =BF54 -> 1.06875 | U41: Peds | V41: =CHAR(195) -> Ã | W41: =CHAR(242) -> ò | X41: =CHAR(196) -> Ä | Y41: Peds | Z41: =IF(AL42<>0,AL42,(CEILING(TRUNC(Z14*(1+GR_WB)^($E$44-$E$42),0),5))) -> 35 | AA41: =IF(AM42<>0,AM42,(CEILING(TRUNC(AA14*(1+GR_WB)^($E$44-$E$42),0),5))) -> 45 | AB41: =CONCATENATE(Z47+Z45+Z43," (",AA47+AA45+AA43,") [",AZ8,"]") -> 1840 (2875) [45050] | AC41: =Street2 -> WB Colorado Street | BG41: --select one-- | BH41: 5 | BM41: Las Animas
E42: 2021 | G42: Existing Data Year * | AF42: AM (PM) Ped Crossings1: | AI42: 0 | AJ42: 0 | AL42: 0 | AM42: 0 | AO42: 0 | AP42: 0 | AR42: 0 | AS42: 0 | AV42: =IF(Directionality="East/West",CONCATENATE("NB ",E17),CONCATENATE("NB ",E12)) -> NB 30th Street | AY42: South Intersection Leg | BB42: =SUM(V24:X27)+SUM(S20:T21)+SUM(W10:W13)+SUM(Z20:AA21) -> 3010 | BG42: Conventional Minor Stop | BH42: 1 | BM42: Lincoln
Q43: =Street1 -> EB Colorado Street | R43: =CONCATENATE(T43+T45+T47," (",S43+S45+S47,") [",AZ6,"]") -> 2275 (1950) [45800] | S43: =IF(AI37<>0,AI37,(CEILING(TRUNC(S16*(1+GR_EB)^($E$44-$E$42),0),5))) -> 345 | T43: =IF(AI35<>0,AI35,(CEILING(TRUNC(T16*(1+GR_EB)^($E$44-$E$42),0),5))) -> 295 | U43: =CHAR(200) -> È | V43: =CONCATENATE(OpenYr," Intersection Daily Entering Volume (est):") -> 2023 Intersection Daily Entering Volume (est): | Y43: =CHAR(199) -> Ç | Z43: =IF(AN35<>0,AN35,(CEILING(TRUNC(Z16*(1+GR_WB)^($E$44-$E$42),0),5))) -> 55 | AA43: =IF(AN37<>0,AN37,(CEILING(TRUNC(AA16*(1+GR_WB)^($E$44-$E$42),0),5))) -> 115 | BG43: Conventional All Way Stop | BH43: 2 | BM43: Logan
E44: 2023 | G44: Project Open Year | AF44: 1 Note: AM and (PM) pedestrian volumes crossings of each intersection leg (EB, WB, NB and SB), regardless of direction | AV44: =IF(Directionality="East/West",CONCATENATE("SB ",E17),CONCATENATE("SB ",E12)) -> SB 30th Street | AY44: North Intersection Leg | BB44: =SUM(V10:X13)+SUM(S16:T17)+SUM(W24:W27)+SUM(Z16:AA17) -> 2990 | BG44: Signalized Intersection | BH44: 3 | BM44: Mesa
S45: =IF(AJ37<>0,AJ37,(CEILING(TRUNC(S18*(1+GR_EB)^($E$44-$E$42),0),5))) -> 1510 | T45: =IF(AJ35<>0,AJ35,(CEILING(TRUNC(T18*(1+GR_EB)^($E$44-$E$42),0),5))) -> 1875 | U45: =CHAR(240) -> ð | Y45: =CHAR(239) -> ï | Z45: =IF(AM35<>0,AM35,(CEILING(TRUNC(Z18*(1+GR_WB)^($E$44-$E$42),0),5))) -> 1460 | AA45: =IF(AM37<>0,AM37,(CEILING(TRUNC(AA18*(1+GR_WB)^($E$44-$E$42),0),5))) -> 2340 | BG45: Diamond Interchange | BH45: 4 | BM45: Mineral
E46: 2043 | G46: Project Design Year | AF46: Design Yr Volume Override | AY46: Is this a T-intersection? | BB46: =IF(COUNTIF(BB38:BB45,0),"Yes","No") -> No | BG46: New Intersection or Other | BH46: 5 | BM46: Moffat
S47: =IF(AK37<>0,AK37,(CEILING(TRUNC(S20*(1+GR_EB)^($E$44-$E$42),0),5))) -> 95 | T47: =IF(AK35<>0,AK35,(CEILING(TRUNC(T20*(1+GR_EB)^($E$44-$E$42),0),5))) -> 105 | U47: =CHAR(202) -> Ê | V47: =AZ14 -> 62350 | Y47: =CHAR(201) -> É | Z47: =IF(AL35<>0,AL35,(CEILING(TRUNC(Z20*(1+GR_WB)^($E$44-$E$42),0),5))) -> 325 | AA47: =IF(AL37<>0,AL37,(CEILING(TRUNC(AA20*(1+GR_WB)^($E$44-$E$42),0),5))) -> 420 | AI47: =Street1 -> EB Colorado Street | AL47: =Street2 -> WB Colorado Street | AO47: =Street3 -> NB 30th Street | AR47: =Street4 -> SB 30th Street | AV47: Roadway Lanes/Median | BG47: Typical Section | BM47: Montezuma
AI48: LT | AJ48: TH | AK48: RT | AL48: LT | AM48: TH | AN48: RT | AO48: LT | AP48: TH | AQ48: RT | AR48: LT | AS48: TH | AT48: RT | BA48: Critical Lane Volume Analysis | BG48: --typical section-- | BM48: Montrose
E49: 0.1 | G49: K Factor** | S49: =IF(AJ42<>0,AJ42,(CEILING(TRUNC(S22*(1+GR_EB)^($E$44-$E$42),0),5))) -> 85 | T49: =IF(AI42<>0,AI42,(CEILING(TRUNC(T22*(1+GR_EB)^($E$44-$E$42),0),5))) -> 55 | U49: Peds | V49: =CHAR(197) -> Å | W49: =CHAR(241) -> ñ | X49: =CHAR(198) -> Æ | Y49: Peds | AH49: =Peak1 -> AM Peak Hr | AI49: 0 | AJ49: 0 | AK49: 0 | AL49: 0 | AM49: 0 | AN49: 0 | AO49: 0 | AP49: 0 | AQ49: 0 | AR49: 0 | AS49: 0 | AT49: 0 | AV49: =VLOOKUP(I12,$BG$49:$BI$63,2,FALSE) -> 4 | AW49: Lanes on Major | BG49: 2-ln undivided | BH49: 2 | BI49: 0 | BM49: Morgan
AZ50: YEAR | BA50: CLV1_AM | BB50: CLV2_AM | BC50: CLV1_PM | BD50: CLV2_PM | BE50: Max CLV | BF50: Max V/C | BG50: 2-ln w/TWLTL | BH50: 2 | BI50: 12 | BM50: Otero
E51: * If current count data is older than 2016, collection of new (current) count data is recommended ** K Factor = proportion of average annual daily traffic occurring in the highest hour of the day | V51: =IF(AO35<>0,AO35,(CEILING(TRUNC(V24*(1+GR_NB)^($E$44-$E$42),0),5))) -> 100 | W51: =IF(AP35<>0,AP35,(CEILING(TRUNC(W24*(1+GR_NB)^($E$44-$E$42),0),5))) -> 480 | X51: =IF(AQ35<>0,AQ35,(CEILING(TRUNC(X24*(1+GR_NB)^($E$44-$E$42),0),5))) -> 50 | Y51: =IF(AO42<>0,AO42,(CEILING(TRUNC(Y24*(1+GR_NB)^($E$44-$E$42),0),5))) -> 85 | AH51: =Peak2 -> PM Peak Hr | AI51: 0 | AJ51: 0 | AK51: 0 | AL51: 0 | AM51: 0 | AN51: 0 | AO51: 0 | AP51: 0 | AQ51: 0 | AR51: 0 | AS51: 0 | AT51: 0 | AV51: =VLOOKUP(I12,$BG$49:$BI$63,3,FALSE) -> 16 | AW51: Median on Major | BG51: 4-ln undivided | BH51: 4 | BI51: 0 | BM51: Ouray
AZ52: =ExistYr -> 2021 | BA52: =(MAX(IntersectionData!T18/Lanes_maj*2+IntersectionData!Z20/LTL_maj,IntersectionData!Z18/Lanes_maj*2+IntersectionData!T16/LTL_maj)) -> 1055 | BB52: =(MAX(IntersectionData!W12/Lanes_min*2+IntersectionData!V24/LTL_min,IntersectionData!W24/Lanes_min*2+IntersectionData!X12/LTL_min)) -> 295 | BC52: =(MAX(IntersectionData!S18/Lanes_maj*2+IntersectionData!AA20/LTL_maj,IntersectionData!AA18/Lanes_maj*2+IntersectionData!S16/LTL_maj)) -> 1290 | BD52: =(MAX(IntersectionData!W10/Lanes_min*2+IntersectionData!V26/LTL_min,IntersectionData!W26/Lanes_min*2+IntersectionData!X10/LTL_min)) -> 340 | BE52: =ROUND(MAX(BA52+BB52,BC52+BD52),-1) -> 1630 | BF52: =IF(Data="N",0,BE52/1600) -> 1.01875 | BG52: 4-ln w/TWLTL | BH52: 4 | BI52: 12 | BM52: Park
V53: =IF(AO37<>0,AO37,(CEILING(TRUNC(V26*(1+GR_NB)^($E$44-$E$42),0),5))) -> 130 | W53: =IF(AP37<>0,AP37,(CEILING(TRUNC(W26*(1+GR_NB)^($E$44-$E$42),0),5))) -> 615 | X53: =IF(AQ37<>0,AQ37,(CEILING(TRUNC(X26*(1+GR_NB)^($E$44-$E$42),0),5))) -> 65 | Y53: =IF(AP42<>0,AP42,(CEILING(TRUNC(Y26*(1+GR_NB)^($E$44-$E$42),0),5))) -> 65 | AV53: =VLOOKUP(I17,$BG$49:$BI$63,2,FALSE) -> 4 | AW53: Lanes on Minor | BG53: 4-ln divided, 16' median | BH53: 4 | BI53: 16 | BM53: Phillips
AG54: Peak Hour Truck %: | AI54: 0 | AL54: 0 | AO54: 0 | AR54: 0 | AZ54: =OpenYr -> 2023 | BA54: =(MAX(IntersectionData!T45/Lanes_maj*2+IntersectionData!Z47/LTL_maj,IntersectionData!Z45/Lanes_maj*2+IntersectionData!T43/LTL_maj)) -> 1100 | BB54: =(MAX(IntersectionData!W39/Lanes_min*2+IntersectionData!V51/LTL_min,IntersectionData!W51/Lanes_min*2+IntersectionData!X39/LTL_min)) -> 312.5 | BC54: =(MAX(IntersectionData!S45/Lanes_maj*2+IntersectionData!AA47/LTL_maj,IntersectionData!AA45/Lanes_maj*2+IntersectionData!S43/LTL_maj)) -> 1342.5 | BD54: =(MAX(IntersectionData!W37/Lanes_min*2+IntersectionData!V53/LTL_min,IntersectionData!W53/Lanes_min*2+IntersectionData!X37/LTL_min)) -> 362.5 | BE54: =ROUND(MAX(BA54+BB54,BC54+BD54),-1) -> 1710 | BF54: =IF(Data="N",0,BE54/1600) -> 1.06875 | BG54: 4-ln divided, 20' median | BH54: 4 | BI54: 20 | BM54: Pitkin
V55: =CONCATENATE(V51+W51+X51," (",V53+W53+X53,") [",AZ10,"]") -> 630 (810) [17100] | AV55: =VLOOKUP(I17,$BG$49:$BI$63,3,FALSE) -> 12 | AW55: Median on Minor | BG55: 4-ln divided, 28' median | BH55: 4 | BI55: 28 | BM55: Prowers
AF56: AM (PM) Ped Crossings1: | AI56: 0 | AJ56: 0 | AL56: 0 | AM56: 0 | AO56: 0 | AP56: 0 | AR56: 0 | AS56: 0 | AZ56: =DesignYr -> 2043 | BA56: =(MAX(IntersectionData!T72/Lanes_maj*2+IntersectionData!Z74/LTL_maj,IntersectionData!Z72/Lanes_maj*2+IntersectionData!T70/LTL_maj)) -> 1632.5 | BB56: =(MAX(IntersectionData!W66/Lanes_min*2+IntersectionData!V78/LTL_min,IntersectionData!W78/Lanes_min*2+IntersectionData!X66/LTL_min)) -> 570 | BC56: =(MAX(IntersectionData!S72/Lanes_maj*2+IntersectionData!AA74/LTL_maj,IntersectionData!AA72/Lanes_maj*2+IntersectionData!S70/LTL_maj)) -> 1995 | BD56: =(MAX(IntersectionData!W64/Lanes_min*2+IntersectionData!V80/LTL_min,IntersectionData!W80/Lanes_min*2+IntersectionData!X64/LTL_min)) -> 652.5 | BE56: =ROUND(MAX(BA56+BB56,BC56+BD56),-1) -> 2650 | BF56: =IF(Data="N",0,TRUNC(Max_CLV/1600,2)) -> 1.65 | BG56: 4-ln divided, 40' median | BH56: 4 | BI56: 40 | BM56: Pueblo
E57: CRASH DATA: | V57: =Street3 -> NB 30th Street | AV57: =VLOOKUP(I14,BJ24:BL28,2,FALSE) -> 2 | AW57: LT Turn lanes on Major | BG57: 4-ln divided, 44' median | BH57: 4 | BI57: 44 | BM57: Rio Blanco
BG58: 6-ln w/TWLTL | BH58: 6 | BI58: 0 | BM58: Rio Grande
E59: Use DiExSys Data or LOSS Database to document number of PDO, injury, fatal crashes and LOSS at this intersection in past 5 years: | AV59: =VLOOKUP(I19,BJ24:BL28,3,FALSE) -> 1 | AW59: LT Turn lanes on Minor | BG59: 6-ln divided, 16' median | BH59: 6 | BI59: 16 | BM59: Routt
R60: =CONCATENATE(DesignYr," Design Year Volumes") -> 2043 Design Year Volumes | U60: =Street4 -> SB 30th Street | AG60: ADT Volume Override | AI60: Exist Year | AK60: Open Year | AM60: Design Year | BG60: 6-ln divided, 20' median | BH60: 6 | BI60: 20 | BM60: Saguache
BA61: Signal Warrants Analysis | BG61: 6-ln divided, 28' median | BH61: 6 | BI61: 28 | BM61: San Juan
U62: =CONCATENATE(X66+W66+V66," (",X64+W64+V64,") [",BA12,"]") -> 1210 (1075) [28700] | AV62: =IF(Lanes_maj>2,2,1) -> 2 | BG62: 6-ln divided, 40' median | BH62: 6 | BI62: 40 | BM62: San Miguel
AG63: =AY38 -> West Intersection Leg | AI63: 0 | AK63: 0 | AM63: 0 | AV63: =IF(Lanes_min>2,2,1) -> 2 | AX63: Volume Threshold | AY63: AM1 | AZ63: AM2 | BA63: AM3 | BB63: AM4 | BC63: PM1 | BD63: PM2 | BE63: PM3 | BF63: PM4 | BG63: 6-ln divided, 44' median | BH63: 6 | BI63: 44 | BM63: Sedgwick
E64: Use following link to access CDOT Crash Patterns/LOSS: | U64: =IF(AS56<>0,AS56,(CEILING(TRUNC(U10*(1+GR_SB)^($E$46-$E$42),0),5))) -> 80 | V64: =IF(AT51<>0,AT51,(CEILING(TRUNC(V10*(1+GR_SB)^($E$46-$E$42),0),5))) -> 290 | W64: =IF(AS51<>0,AS51,(CEILING(TRUNC(W10*(1+GR_SB)^($E$46-$E$42),0),5))) -> 690 | X64: =IF(AR51<>0,AR51,(CEILING(TRUNC(X10*(1+GR_SB)^($E$46-$E$42),0),5))) -> 95 | AV64: =CONCATENATE(Area,AV62,"-",AV63) -> Suburban2-2 | AY64: =AZ64*0.85 -> 0.085 | AZ64: =Kfactor -> 0.1 | BA64: =AZ64*0.9 -> 0.09 | BB64: =AZ64*0.8 -> 0.08 | BC64: =BE64*0.8 -> 0.08 | BD64: =BE64*0.9 -> 0.09 | BE64: =Kfactor -> 0.1 | BF64: =BE64*0.9 -> 0.09 | BM64: Summit
E65: https://cdot.maps.arcgis.com/apps/MapSeries/index.html?appid=3dd05bf3e7e746f5811f81ba6d13c5fe | AG65: =AY40 -> East Intersection Leg | AI65: 0 | AK65: 0 | AM65: 0 | AV65: Major Street ADT | AX65: =VLOOKUP(AV64,AV70:AX81,2,0) -> 600 | AY65: =IF(Directionality="East/West",AVERAGE($AZ$6,$AZ$8)*0.5*AY$64,AVERAGE($AZ$10,$AZ$12)*0.55*AY$64) -> 1930.5625 | AZ65: 2271.25 | BA65: 2044.125 | BB65: 1817 | BC65: 1817 | BD65: 2044.125 | BE65: 2271.25 | BF65: 2044.125 | BM65: Teller
U66: =IF(AR56<>0,AR56,(CEILING(TRUNC(U12*(1+GR_SB)^($E$46-$E$42),0),5))) -> 80 | V66: =IF(AT49<>0,AT49,(CEILING(TRUNC(V12*(1+GR_SB)^($E$46-$E$42),0),5))) -> 325 | W66: =IF(AS49<>0,AS49,(CEILING(TRUNC(W12*(1+GR_SB)^($E$46-$E$42),0),5))) -> 770 | X66: =IF(AR49<>0,AR49,(CEILING(TRUNC(X12*(1+GR_SB)^($E$46-$E$42),0),5))) -> 115 | AV66: Minor Street ADT | AX66: =VLOOKUP(AV64,AV70:AX81,3,0) -> 200 | AY66: =IF(Directionality="East/West",MAX($AZ$10,$AZ$12)*0.5*AY$64,MAX($AZ$6,$AZ$8)*0.55*AY$64) -> 726.75 | AZ66: 855 | BA66: 769.5 | BB66: 684 | BC66: 684 | BD66: 769.5 | BE66: 855 | BF66: 769.5 | BM66: Washington
AG67: =AY42 -> South Intersection Leg | AI67: 0 | AK67: 0 | AM67: 0 | AV67: Met Major? | AX67: =SUM(AY67:BF67) -> 8 | AY67: =IF(AY65>$AX65,1,0) -> 1 | AZ67: 1 | BA67: 1 | BB67: 1 | BC67: 1 | BD67: 1 | BE67: 1 | BF67: 1 | BM67: Weld
E68: 23 | G68: Number of PDO crashes in last 5 year period | Q68: Critical Lane V/C: | T68: =BF56 -> 1.65 | U68: Peds | V68: =CHAR(195) -> Ã | W68: =CHAR(242) -> ò | X68: =CHAR(196) -> Ä | Y68: Peds | Z68: =IF(AL56<>0,AL56,(CEILING(TRUNC(Z14*(1+GR_WB)^($E$46-$E$42),0),5))) -> 50 | AA68: =IF(AM56<>0,AM56,(CEILING(TRUNC(AA14*(1+GR_WB)^($E$46-$E$42),0),5))) -> 65 | AB68: =CONCATENATE(Z74+Z72+Z70," (",AA74+AA72+AA70,") [",BA8,"]") -> 2725 (4270) [67250] | AC68: =Street2 -> WB Colorado Street | AV68: Met Minor? | AX68: =SUM(AY68:BF68) -> 8 | AY68: 1 | AZ68: 1 | BA68: 1 | BB68: 1 | BC68: 1 | BD68: 1 | BE68: 1 | BF68: 1 | BM68: Yuma
AG69: =AY44 -> North Intersection Leg | AI69: 0 | AK69: 0 | AM69: 0 | AV69: 8-hr warrant met? | AX69: =IF(SUM(AX67:AX68)=16,"yes","no") -> yes
E70: 4 | G70: Number of Injury crashes in last 5 year period | Q70: =Street1 -> EB Colorado Street | R70: =CONCATENATE(T70+T72+T74," (",S70+S72+S74,") [",BA6,"]") -> 3375 (2895) [68950] | S70: =IF(AI51<>0,AI51,(CEILING(TRUNC(S16*(1+GR_EB)^($E$46-$E$42),0),5))) -> 510 | T70: =IF(AI49<>0,AI49,(CEILING(TRUNC(T16*(1+GR_EB)^($E$46-$E$42),0),5))) -> 435 | U70: =CHAR(200) -> È | V70: =CONCATENATE(DesignYr," Intersection Daily Entering Volume (est):") -> 2043 Intersection Daily Entering Volume (est): | Y70: =CHAR(199) -> Ç | Z70: =IF(AN49<>0,AN49,(CEILING(TRUNC(Z16*(1+GR_WB)^($E$46-$E$42),0),5))) -> 80 | AA70: =IF(AN51<>0,AN51,(CEILING(TRUNC(AA16*(1+GR_WB)^($E$46-$E$42),0),5))) -> 170 | AV70: Urban1-1 | AW70: 500 | AX70: 150
AV71: Urban2-1 | AW71: 600 | AX71: 150
E72: 1 | G72: Number of Fatal crashes in last 5 year period | S72: =IF(AJ51<>0,AJ51,(CEILING(TRUNC(S18*(1+GR_EB)^($E$46-$E$42),0),5))) -> 2245 | T72: =IF(AJ49<>0,AJ49,(CEILING(TRUNC(T18*(1+GR_EB)^($E$46-$E$42),0),5))) -> 2785 | U72: =CHAR(240) -> ð | Y72: =CHAR(239) -> ï | Z72: =IF(AM49<>0,AM49,(CEILING(TRUNC(Z18*(1+GR_WB)^($E$46-$E$42),0),5))) -> 2165 | AA72: =IF(AM51<>0,AM51,(CEILING(TRUNC(AA18*(1+GR_WB)^($E$46-$E$42),0),5))) -> 3480 | AG72: Note: Enter two-way ADT volume overrides on each intersection leg | AV72: Urban2-2 | AW72: 600 | AX72: 200
AV73: Urban1-2 | AW73: 500 | AX73: 200
E74: =SUM(E68:E73) -> 28 | G74: Total number of crashes in last 5 year period | S74: =IF(AK51<>0,AK51,(CEILING(TRUNC(S20*(1+GR_EB)^($E$46-$E$42),0),5))) -> 140 | T74: =IF(AK49<>0,AK49,(CEILING(TRUNC(T20*(1+GR_EB)^($E$46-$E$42),0),5))) -> 155 | U74: =CHAR(202) -> Ê | V74: =BA14 -> 97000 | Y74: =CHAR(201) -> É | Z74: =IF(AL49<>0,AL49,(CEILING(TRUNC(Z20*(1+GR_WB)^($E$46-$E$42),0),5))) -> 480 | AA74: =IF(AL51<>0,AL51,(CEILING(TRUNC(AA20*(1+GR_WB)^($E$46-$E$42),0),5))) -> 620 | AV74: Rural1-1 | AW74: 350 | AX74: 105
AV75: Rural2-1 | AW75: 420 | AX75: 105
S76: =IF(AJ56<>0,AJ56,(CEILING(TRUNC(S22*(1+GR_EB)^($E$46-$E$42),0),5))) -> 125 | T76: =IF(AI56<>0,AI56,(CEILING(TRUNC(T22*(1+GR_EB)^($E$46-$E$42),0),5))) -> 80 | U76: Peds | V76: =CHAR(197) -> Å | W76: =CHAR(241) -> ñ | X76: =CHAR(198) -> Æ | Y76: Peds | AV76: Rural2-2 | AW76: 420 | AX76: 140
E77: 4 | G77: LOSS Total | AV77: Rural1-2 | AW77: 350 | AX77: 105
V78: =IF(AO49<>0,AO49,(CEILING(TRUNC(V24*(1+GR_NB)^($E$46-$E$42),0),5))) -> 185 | W78: =IF(AP49<>0,AP49,(CEILING(TRUNC(W24*(1+GR_NB)^($E$46-$E$42),0),5))) -> 865 | X78: =IF(AQ49<>0,AQ49,(CEILING(TRUNC(X24*(1+GR_NB)^($E$46-$E$42),0),5))) -> 90 | Y78: =IF(AO56<>0,AO56,(CEILING(TRUNC(Y24*(1+GR_NB)^($E$46-$E$42),0),5))) -> 155 | AV78: Suburban1-1 | AW78: 500 | AX78: 150
E79: 4 | G79: LOSS Severe | AV79: Suburban2-1 | AW79: 600 | AX79: 150
V80: =IF(AO51<>0,AO51,(CEILING(TRUNC(V26*(1+GR_NB)^($E$46-$E$42),0),5))) -> 230 | W80: =IF(AP51<>0,AP51,(CEILING(TRUNC(W26*(1+GR_NB)^($E$46-$E$42),0),5))) -> 1115 | X80: =IF(AQ51<>0,AQ51,(CEILING(TRUNC(X26*(1+GR_NB)^($E$46-$E$42),0),5))) -> 115 | Y80: =IF(AP56<>0,AP56,(CEILING(TRUNC(Y26*(1+GR_NB)^($E$46-$E$42),0),5))) -> 115 | AV80: Suburban2-2 | AW80: 600 | AX80: 200
M81: =CONCATENATE("000 = ",Peak1," Movement/Approach Volume") -> 000 = AM Peak Hr Movement/Approach Volume | AV81: Suburban1-2 | AW81: 500 | AX81: 200
E82: Note Enter number of injury and fatal crashes, NOT number of persons injured or killed | V82: =CONCATENATE(V78+W78+X78," (",V80+W80+X80,") [",BA10,"]") -> 1140 (1460) [29100]
M83: =CONCATENATE("(000) = ",Peak2," Movement/Approach Volume") -> (000) = PM Peak Hr Movement/Approach Volume
V84: =Street3 -> NB 30th Street
M85: [0000]= ADT Approach Volume (Estimate)
M89: Legend:

Sheet Stage1
B2: ICAT STAGE 1: ALTERNATIVE SHORT-LIST DECISION RECORD
C3: Developed and Maintained in Cooperation with Georgia DOT | J3: Min | K3: Desired | L3: Diff | AB3: =Version -> CDOT ICAT Version 1.0 | Release Date: 8/30/2021
F4: Min | G4: Desired | H4: Diff | I4: Right of Way | O4: Safety | S4: Roadway Context | W4: Operations/Maintenance | AA4: Costs | AC4: Hide | AD4: Hide | AE4: Hide
B5: Project Number: | D5: =ProjNo -> 12345 | I5: Q1: Is ROW on major road constrained? (0=no, 1=somewhat, 2=highly) | M5: Q2: Is ROW on minor road constrained? (0=no, 1=somewhat, 2=highly) | N5: Q3: Intersection quadrants constrained? (0=no, 1=somewhat, 2=highly) | O5: Q4: Are there intersection safety issues? (0=low, 1=moderate, 2=crash hot spot) | P5: Q5: Are there significant pedestrian crossings? (0=none/low, 1=moderate, 2=high) | Q5: Q6: Is there significant bicycle activity? (0=none/low, 1=moderate, 2=high) | R5: Q7: Are one or more approach speeds high? (0=no, 1=moderate, 2=high) | S5: Q8:Do roadway contexts, characteristics transition at intersection? (0=no, 1yes) | T5: Q9: Are there numerous driveways near intersection? (0=no, 1=few, 2=many) | U5: Q10: What is adjacent intersection spacing? (0=isolated, 1=network, 2= dense network) | V5: Q11: Is this a T-intersection? Or can minor ST thru or left turns be eliminated? (0=No, 1=Yes) | W5: =CONCATENATE("Q12: Are design yr no-build volumes high? No-Build ",DesignYr, " V/C=",BuildVC,"; (0=low, 2=mod, 4=high)") -> Q12: Are design yr no-build volumes high? No-Build 2043 V/C=1.65; (0=low, 2=mod, 4=high) | X5: =CONCATENATE("Q13: Are exist LT volumes high? (Max ",ExistYr," LT =",MaxLT," vph) ; (0=no, 1=somewhat, 2=yes)") -> Q13: Are exist LT volumes high? (Max 2021 LT =400 vph) ; (0=no, 1=somewhat, 2=yes) | Y5: Q14: Could intersection become interchange in next 20 yrs? (0=no, 1=maybe, 2=probably) | Z5: Q15: Transit route / maintenance compatibility? (0=low, 2=favorable) | AA5: Q15: Are costs a primary decision factor? (0=no, 1=somewhat, 2=yes) | AB5: Total Stage 1 Screening Evaluation Score | AF5: Alternative choice override (justification required) | AG5: Use this Stage 1 assessment form to select 2 to 5 alternatives to be carried into Stage 2 evaluations; Intersection control alternatives with the highest total weighted scores will be highlighted in BLUE and automatically carried forward into the Stage 2 assessment worksheet. | AJ5: Note: If No-Build Condition is a desired alternative to evaluate, place a "Y" in the alternative choice override column for the No-Build alternative and Enter "No-Build Condition" in the Scoring Override Justification column.
B6: Project Location: | D6: =CONCATENATE(Road1, " @ ",Road2) -> Colorado Street @ 30th Street
B7: Existing Control: | D7: =ExistControl -> Conventional Minor Stop | AN7: Menu Items:
B8: Prepared by: | D8: =PreparedBy -> Region Traffic Engineer | AN8: 0 | AO8: 0 | AP8: 0 | AQ8: 2
B9: Date: | D9: =Date -> 2021-07-27 | AN9: 1 | AO9: 1 | AP9: 2 | AQ9: X
C10: Answer questions 1-16 with rating of 0, 1 or 2. | AN10: 2 | AP10: 4 | AQ10: Y
C11: Deselect or select any alternative by placing an X or Y (respectively) in column to right of score; Enter change justification in rightmost column | AC11: Adjusted Score | AD11: Score Rank | AE11: Unique Rank | AK11: No-Build Condition:
AG12: Number of Alternatives to be Evaluated in Stage 2: | AH12: 5 | AI12: Exclude from Selection? | AK12: =ExistControl -> Conventional Minor Stop | AN12: Yes
B13: Intersection Alternatives: (see Intersections tab for detailed description of intersection/interchange type) | F13: Major Road | I13: 2 | J13: Minor Road | M13: 1 | N13: 0 | O13: =IF(OR(LOSStotal=4,LOSSsevere=4),2,IF(OR(LOSStotal=3,LOSSsevere=3),1,0)) -> 2 | P13: 1 | Q13: 1 | R13: 0 | S13: 1 | T13: 1 | U13: 1 | V13: 1 | W13: =IF(BuildVC>1.2,4,IF(BuildVC>0.85,2,0)) -> 4 | X13: =IF(MaxLT>300,2,IF(MaxLT>200,1,0)) -> 2 | Y13: 0 | AA13: 2 | AG13: Scoring Override Justification: | AK13: No | AN13: No
A14: =AE14 -> 38 | B14: Conventional Improvements | C14: =IF(AND(AL14="",AL16="",AL18=""),"-- select --",IF(AND(AL16="",AL14<>""),CONCATENATE(AL14,AL18),IF(AND(AL14="",AL16<>""),CONCATENATE(AL16,,AL18),CONCATENATE(AL14,AL16,AL18)))) -> -- select -- | AC14: =IF(AF14="Y",99,IF(AF14="X",0,AB14)) -> 0 | AD14: =RANK(AB15,$AB$16:$AB$51) ->  | AE14: =RANK(AC14,$AC$14:$AC$51,0)+COUNTIF($AC14:AC$51,AC14)-1 -> 38 | AF14: =IF(C14<>"-- select --","Y","") ->  | AK14: Conventional Improvements 1 | AL14: =IF(AND(AL18="",AL16=""),IF(AND(AK15<>"--select--",AK16<>"--select--"),"Add Turn Lanes",IF(AND(AK16="--select--",AK15<>"--select--"),"Add LT Lanes",IF(AND(AK15="--select--",AK16<>"--select--"),"Add RT Lanes",""))), IF(AND(AK15<>"--select--",AK16<>"--select--"),"Add Turn Lanes,",IF(AND(AK16="--select--",AK15<>"--select--"),"Add LT Lanes,",IF(AND(AK15="--select--",AK16<>"--select--"),"Add RT Lanes,","")))) -> 
A15: =AE15 -> 37 | C15: =IF(AND(AL19="",AL21="",AL23=""),"-- select --",IF(AND(AL21="",AL19<>""),CONCATENATE(AL19,AL23),IF(AND(AL19="",AL21<>""),CONCATENATE(AL21,AL23),CONCATENATE(AL19,AL21,AL23)))) -> -- select -- | AC15: =IF(AF15="Y",99,IF(AF15="X",0,AB15)) -> 0 | AD15: =RANK(AB15,$AB$16:$AB$51) ->  | AE15: =RANK(AC15,$AC$14:$AC$51,0)+COUNTIF($AC15:AC$51,AC15)-1 -> 37 | AF15: =IF(C15<>"-- select --","Y","") ->  | AJ15: Left Lanes | AK15: --select--
A16: 17 | C16: Minor Street Stop | F16: =Lanes_maj*11+12+16 -> 72 | G16: =Lanes_maj*12+16+26 -> 90 | H16: =IF(G16-ROW_1<0,0,G16-ROW_1) -> 10 | I16: =IF(AND(ExistControl="Conventional Minor Stop",AK13="Yes"),0,MIN(TREND($AP$8:$AQ$8,F16:G16,ROW_1),2)) -> 0.8888888889 | J16: =Lanes_min*11+12+16 -> 72 | K16: =Lanes_min*12+16+26 -> 90 | L16: =IF(K16-ROW_2<0,0,K16-ROW_2) -> 10 | M16: =IF(AND(ExistControl="Conventional Minor Stop",AK13="Yes"),0,MIN(TREND($AP$8:$AQ$8,J16:K16,ROW_2),2)) -> 0.8888888889 | N16: =IF(AND(ExistControl="Conventional Minor Stop",AK13="Yes"),0,IF(AND(ExistControl="Conventional Minor Stop",AK13="Yes"),0,3)) -> 3 | O16: =IF(AND(ExistControl="Conventional Minor Stop",AK13="Yes"),0,1) -> 1 | P16: =IF(AND(ExistControl="Conventional Minor Stop",AK13="Yes"),0,1) -> 1 | Q16: =IF(AND(ExistControl="Conventional Minor Stop",AK13="Yes"),0,3) -> 3 | R16: =IF(AND(ExistControl="Conventional Minor Stop",AK13="Yes"),0,2) -> 2 | S16: =IF(AND(ExistControl="Conventional Minor Stop",AK13="Yes"),0,0) -> 0 | T16: =IF(AND(ExistControl="Conventional Minor Stop",AK13="Yes"),0,0) -> 0 | U16: =IF(AND(ExistControl="Conventional Minor Stop",AK13="Yes"),0,3) -> 3 | V16: =IF(AND(ExistControl="Conventional Minor Stop",AK13="Yes"),0,2) -> 2 | W16: =IF(AND(ExistControl="Conventional Minor Stop",AK13="Yes"),0,0) -> 0 | X16: =IF(AND(ExistControl="Conventional Minor Stop",AK13="Yes"),0,0) -> 0 | Y16: =IF(AND(ExistControl="Conventional Minor Stop",AK13="Yes"),0,0) -> 0 | AA16: =IF(AND(ExistControl="Conventional Minor Stop",AK13="Yes"),0,3) -> 3 | AB16: =I16*$I$13+M16*$M$13+N16*N$13+O16*O$13+P16*P$13+Q16*Q$13+S16*S$13+Y16*$Y$13+$V$13*V16+$AA$13*AA16+$X$13*X16+$U$13*U16+$W$13*W16+$R$13*R16+$T$13*T16 -> 19.66666667 | AC16: 19.66666667 | AD16: =RANK(AB16,$AC$16:$AC$51) -> 17 | AE16: =RANK(AC16,$AC$14:$AC$51,0)+COUNTIF($AC16:AC$51,AC16)-1 -> 17 | AJ16: Right Lanes | AK16: --select-- | AL16: =IF(AK17<>"--select--", "Medians","") -> 
A17: 15 | C17: All-Way Stop | F17: =Lanes_maj*11+12+16 -> 72 | G17: =Lanes_maj*12+16+26 -> 90 | H17: 10 | I17: =IF(AND(ExistControl="Conventional All Way Stop",AK13="Yes"),0,MIN(TREND($AP$8:$AQ$8,F17:G17,ROW_1),2)) -> 0.8888888889 | J17: 72 | K17: 90 | L17: 10 | M17: =IF(AND(ExistControl="Conventional All Way Stop",AK13="Yes"),0,MIN(TREND($AP$8:$AQ$8,J17:K17,ROW_2),2)) -> 0.8888888889 | N17: =IF(AND(ExistControl="Conventional All Way Stop",AK13="Yes"),0,3) -> 3 | O17: =IF(AND(ExistControl="Conventional All Way Stop",AK13="Yes"),0,3) -> 3 | P17: =IF(AND(ExistControl="Conventional All Way Stop",AK13="Yes"),0,1) -> 1 | Q17: =IF(AND(ExistControl="Conventional All Way Stop",AK13="Yes"),0,2) -> 2 | R17: =IF(AND(ExistControl="Conventional All Way Stop",AK13="Yes"),0,1) -> 1 | S17: =IF(AND(ExistControl="Conventional All Way Stop",AK13="Yes"),0,1) -> 1 | T17: =IF(AND(ExistControl="Conventional All Way Stop",AK13="Yes"),0,0) -> 0 | U17: =IF(AND(ExistControl="Conventional All Way Stop",AK13="Yes"),0,1) -> 1 | V17: =IF(AND(ExistControl="Conventional All Way Stop",AK13="Yes"),0,2) -> 2 | W17: =IF(AND(ExistControl="Conventional All Way Stop",AK13="Yes"),0,0) -> 0 | X17: =IF(AND(ExistControl="Conventional All Way Stop",AK13="Yes"),0,0) -> 0 | Y17: =IF(AND(ExistControl="Conventional All Way Stop",AK13="Yes"),0,0) -> 0 | AA17: =IF(AND(ExistControl="Conventional All Way Stop",AK13="Yes"),0,3) -> 3 | AB17: 21.66666667 | AC17: 21.66666667 | AD17: =RANK(AB17,$AB$16:$AB$51) -> 16 | AE17: =RANK(AC17,$AC$14:$AC$51,0)+COUNTIF($AC17:AC$51,AC17)-1 -> 15 | AJ17: Medians | AK17: --select--
A18: 10 | B18: Unsignalized Intersections | C18: Right-In/Right-out | F18: =Lanes_maj*11+12+16 -> 72 | G18: =Lanes_maj*12+16+26 -> 90 | H18: 10 | I18: =IF(V13=0,0,MIN(TREND($AP$8:$AQ$8,F18:G18,ROW_1),2)) -> 0.8888888889 | J18: 72 | K18: 90 | L18: 10 | M18: =IF(V13=0,0,MIN(TREND($AP$8:$AQ$8,J18:K18,ROW_2),2)) -> 0.8888888889 | N18: =IF(V13=0,0,3) -> 3 | O18: =IF(V13=0,0,3) -> 3 | P18: =IF(V13=0,0,2) -> 2 | Q18: =IF(V13=0,0,2) -> 2 | R18: =IF(V13=0,0,2) -> 2 | S18: =IF(V13=0,0,0) -> 0 | T18: =IF(V13=0,0,0) -> 0 | U18: =IF(V13=0,0,3) -> 3 | V18: =IF(V13=0,0,3) -> 3 | W18: =IF(V13=0,0,0) -> 0 | X18: =IF(V13=0,0,0) -> 0 | Y18: =IF(V13=0,0,0) -> 0 | AA18: =IF(V13=0,0,3) -> 3 | AB18: 24.66666667 | AC18: 24.66666667 | AD18: 11 | AE18: =RANK(AC18,$AC$14:$AC$51,0)+COUNTIF($AC18:AC$51,AC18)-1 -> 10 | AJ18: Control | AK18: -- select -- | AL18: =IF(AND(AL16="",AK18<>"-- select --"),AK18,IF(AK18<>"-- select --",","&AK18,"")) -> 
A19: 36 | C19: Right-in/Right-out/Left-in (3/4 access) | F19: =Lanes_maj*11+16+16 -> 76 | G19: =Lanes_maj*12+12+16+26 -> 102 | H19: 22 | I19: =IF(V13=0,0,MIN(TREND($AP$8:$AQ$8,F19:G19,ROW_1),2)) -> 0.3076923077 | J19: 72 | K19: 90 | L19: 10 | M19: =IF(V13=0,0,MIN(TREND($AP$8:$AQ$8,J19:K19,ROW_2),2)) -> 0.8888888889 | N19: =IF(V13=0,0,3) -> 3 | O19: =IF(V13=0,0,2) -> 2 | P19: =IF(V13=0,0,2) -> 2 | Q19: =IF(V13=0,0,2) -> 2 | R19: =IF(V13=0,0,2) -> 2 | S19: =IF(V13=0,0,1) -> 1 | T19: =IF(V13=0,0,0) -> 0 | U19: =IF(V13=0,0,3) -> 3 | V19: =IF(V13=0,0,3) -> 3 | W19: =IF(V13=0,0,1) -> 1 | X19: =IF(V13=0,0,2) -> 2 | Y19: =IF(V13=0,0,0) -> 0 | AA19: =IF(V13=0,0,3) -> 3 | AB19: 30.5042735 | AC19: 0 | AD19: 3 | AE19: =RANK(AC19,$AC$14:$AC$51,0)+COUNTIF($AC19:AC$51,AC19)-1 -> 36 | AF19: X | AG19: Does not address project needs | AK19: Conventional Improvements 2 | AL19: =IF(AND(AL23="",AL21=""),IF(AND(AK20<>"--select--",AK21<>"--select--"),"Add Turn Lanes",IF(AND(AK21="--select--",AK20<>"--select--"),"Add LT Lanes",IF(AND(AK20="--select--",AK21<>"--select--"),"Add RT Lanes",""))), IF(AND(AK20<>"--select--",AK21<>"--select--"),"Add Turn Lanes,",IF(AND(AK21="--select--",AK20<>"--select--"),"Add LT Lanes,",IF(AND(AK20="--select--",AK21<>"--select--"),"Add RT Lanes,","")))) -> 
A20: 11 | C20: RIRO w/downstream U-Turn | F20: =Lanes_maj*11+(48-Lanes_maj/2*12)+16 -> 84 | G20: =Lanes_maj*12+12+(86-Lanes_maj/2*12)+26 -> 148 | H20: 68 | I20: =MIN(TREND($AP$8:$AQ$8,F20:G20,ROW_1),2) -> -0.125 | J20: 72 | K20: 90 | L20: 10 | M20: =MIN(TREND($AP$8:$AQ$8,J20:K20,ROW_2),2) -> 0.8888888889 | N20: 1 | O20: 3 | P20: 2 | Q20: 2 | R20: 2 | S20: 1 | T20: -1 | U20: 2 | V20: 2 | W20: 1 | X20: 1 | Y20: 0 | AA20: 2 | AB20: 24.63888889 | AC20: 24.63888889 | AD20: 12 | AE20: =RANK(AC20,$AC$14:$AC$51,0)+COUNTIF($AC20:AC$51,AC20)-1 -> 11 | AJ20: Left Lanes | AK20: --select--
A21: 13 | C21: Mini Roundabout | F21: =Lanes_maj*11+8+16 -> 68 | G21: =Lanes_maj*12+16+26 -> 90 | H21: 10 | I21: 1.090909091 | J21: =Lanes_min*11+8+16 -> 68 | K21: 90 | L21: 10 | M21: 1.090909091 | N21: 3 | O21: 2 | P21: 1 | Q21: 2 | R21: 1 | S21: 2 | T21: -1 | U21: 2 | V21: 3 | W21: 0 | X21: 1 | Y21: 0 | AA21: 3 | AB21: 24.27272727 | AC21: 24.27272727 | AD21: 14 | AE21: =RANK(AC21,$AC$14:$AC$51,0)+COUNTIF($AC21:AC$51,AC21)-1 -> 13 | AJ21: Right Lanes | AK21: --select-- | AL21: =IF(AK22<>"--select--", "Medians","") -> 
A22: 35 | C22: Single Lane Roundabout | F22: =Lanes_maj*11+8+16 -> 68 | G22: =Lanes_maj*12+16+26 -> 90 | H22: 10 | I22: 1.090909091 | J22: =Lanes_min*11+8+16 -> 68 | K22: 90 | L22: 10 | M22: 1.090909091 | N22: 2 | O22: 3 | P22: 1 | Q22: 2 | R22: 2 | S22: 3 | T22: -1 | U22: 2 | V22: 3 | W22: 1 | X22: 2 | Y22: 0 | AA22: 2 | AB22: 31.27272727 | AC22: 0 | AD22: 2 | AE22: =RANK(AC22,$AC$14:$AC$51,0)+COUNTIF($AC22:AC$51,AC22)-1 -> 35 | AF22: X | AG22: Multi Lane Roads | AJ22: Medians | AK22: --select--
A23: 2 | C23: Multilane Roundabout | F23: =Lanes_maj*11+16+16 -> 76 | G23: =Lanes_maj*12+16+26 -> 90 | H23: 10 | I23: 0.5714285714 | J23: =Lanes_maj*11+12+16 -> 72 | K23: =Lanes_maj*12+16+26 -> 90 | L23: 10 | M23: 0.8888888889 | N23: 1 | O23: 2 | P23: 1 | Q23: 1 | R23: 1 | S23: 3 | T23: -2 | U23: 1 | V23: 2 | W23: 2 | X23: 3 | Y23: 1 | AA23: 1 | AB23: 28.03174603 | AC23: 99 | AD23: 8 | AE23: =RANK(AC23,$AC$14:$AC$51,0)+COUNTIF($AC23:AC$51,AC23)-1 -> 2 | AF23: Y | AG23: Public endorsed solution | AJ23: Control | AK23: -- select -- | AL23: =IF(AND(AL21="",AK23<>"-- select --"),AK23,IF(AK23<>"-- select --",","&AK23,"")) -> 
A24: 8 | C24: RCUT / J-Turn (stop control) | F24: =Lanes_maj*11+(48-Lanes_maj/2*12)+16 -> 84 | G24: =Lanes_maj*12+12+(86-Lanes_maj/2*12)+26 -> 148 | H24: 68 | I24: -0.125 | J24: 72 | K24: =Lanes_min*12+12+16+26 -> 102 | L24: 22 | M24: 0.5333333333 | N24: 1 | O24: 2 | P24: 2 | Q24: 2 | R24: 2 | S24: 2 | T24: -1 | U24: 2 | V24: 2 | W24: 1 | X24: 2 | Y24: 1 | AA24: 3 | AB24: 27.28333333 | AC24: 27.28333333 | AD24: =RANK(AC24,$AC$16:$AC$51) -> 8 | AE24: =RANK(AC24,$AC$14:$AC$51,0)+COUNTIF($AC24:AC$51,AC24)-1 -> 8
A25: 18 | C25: High-T (unsignalized) | F25: =Lanes_maj*11+16+16 -> 76 | G25: =Lanes_maj*12+12+20+26 -> 106 | H25: 26 | I25: =IF(V13=0,0,MIN(TREND($AP$8:$AQ$8,F25:G25,ROW_1),2)) -> 0.2666666667 | J25: =Lanes_min*11+16+16 -> 76 | K25: =Lanes_min*12+20+26 -> 94 | L25: 14 | M25: =IF(V13=0,0,MIN(TREND($AP$8:$AQ$8,J25:K25,ROW_2),2)) -> 0.4444444444 | N25: =IF(V13=0,0,3) -> 3 | O25: =IF(V13=0,0,1) -> 1 | P25: =IF(V13=0,0,0) -> 0 | Q25: =IF(V13=0,0,1) -> 1 | R25: =IF(V13=0,0,2) -> 2 | S25: =IF(V13=0,0,1) -> 1 | T25: =IF(V13=0,0,-2) -> -2 | U25: =IF(V13=0,0,0) -> 0 | V25: =IF(V13=0,0,4) -> 4 | W25: =IF(V13=0,0,1) -> 1 | X25: =IF(V13=0,0,2) -> 2 | Y25: =IF(V13=0,0,0) -> 0 | AA25: =IF(V13=0,0,2) -> 2 | AB25: 18.97777778 | AC25: 18.97777778 | AD25: =RANK(AB25,$AB$16:$AB$51) -> 19 | AE25: =RANK(AC25,$AC$14:$AC$51,0)+COUNTIF($AC25:AC$51,AC25)-1 -> 18 | AJ25: Note: Any conventional improvements entered in table above are automatically selected as an alternative to assess (without a score given); no scoring override justification is required; If "Other" signalized or unsignalized intersection is described (written in), user must manually select as alternative ("Y") to advance.
A26: 14 | C26: Unsignalized Offset-T Intersection | F26: =Lanes_maj*11+16+16 -> 76 | G26: =Lanes_maj*12+20+26 -> 94 | H26: 14 | I26: 0.4444444444 | J26: 72 | K26: =Lanes_min*12+16+26 -> 90 | L26: 10 | M26: 0.8888888889 | N26: 3 | O26: 1 | P26: 1 | Q26: 2 | R26: 2 | S26: 2 | T26: -1 | U26: 0 | V26: 4 | W26: 1 | X26: 1 | Y26: 0 | AA26: 2 | AB26: 21.77777778 | AC26: 21.77777778 | AD26: 15 | AE26: =RANK(AC26,$AC$14:$AC$51,0)+COUNTIF($AC26:AC$51,AC26)-1 -> 14
A27: 34 | C27: Other Signalized Intersection (Describe) | AC27: 0 | AE27: =RANK(AC27,$AC$14:$AC$51,0)+COUNTIF($AC27:AC$51,AC27)-1 -> 34
A28: 5 | B28: Signalized Intersections | C28: Signalized Intersection | F28: =Lanes_maj*11+12+16 -> 72 | G28: =Lanes_maj*12+12+20+26 -> 106 | H28: =IF(G28-ROW_1<0,0,G28-ROW_1) -> 26 | I28: =IF(AND(ExistControl="Signalized Intersection",AK13="Yes"),0,MIN(TREND($AP$8:$AQ$8,F28:G28,ROW_1),2)) -> 0.4705882353 | J28: 72 | K28: =Lanes_min*12+16+26 -> 90 | L28: =IF(K28-ROW_2<0,0,K28-ROW_2) -> 10 | M28: =IF(AND(ExistControl="Signalized Intersection",AK13="Yes"),0,MIN(TREND($AP$8:$AQ$8,J28:K28,ROW_2),2)) -> 0.8888888889 | N28: =IF(AND(ExistControl="Signalized Intersection",AK13="Yes"),0,3) -> 3 | O28: =IF(AND(ExistControl="Signalized Intersection",AK13="Yes"),0,2) -> 2 | P28: =IF(AND(ExistControl="Signalized Intersection",AK13="Yes"),0,2) -> 2 | Q28: =IF(AND(ExistControl="Signalized Intersection",AK13="Yes"),0,2) -> 2 | R28: =IF(AND(ExistControl="Signalized Intersection",AK13="Yes"),0,2) -> 2 | S28: =IF(AND(ExistControl="Signalized Intersection",AK13="Yes"),0,1) -> 1 | T28: =IF(AND(ExistControl="Signalized Intersection",AK13="Yes"),0,-1) -> -1 | U28: =IF(AND(ExistControl="Signalized Intersection",AK13="Yes"),0,2) -> 2 | V28: =IF(AND(ExistControl="Signalized Intersection",AK13="Yes"),0,2) -> 2 | W28: =IF(AND(ExistControl="Signalized Intersection",AK13="Yes"),0,2) -> 2 | X28: =IF(AND(ExistControl="Signalized Intersection",AK13="Yes"),0,2) -> 2 | Y28: =IF(AND(ExistControl="Signalized Intersection",AK13="Yes"),0,0) -> 0 | AA28: =IF(AND(ExistControl="Signalized Intersection",AK13="Yes"),0,2) -> 2 | AB28: =I28*$I$13+M28*$M$13+N28*N$13+O28*O$13+P28*P$13+Q28*Q$13+S28*S$13+Y28*$Y$13+$V$13*V28+$AA$13*AA28+$X$13*X28+$U$13*U28+$W$13*W28+$R$13*R28+$T$13*T28 -> 29.83006536 | AC28: 29.83006536 | AD28: 5 | AE28: =RANK(AC28,$AC$14:$AC$51,0)+COUNTIF($AC28:AC$51,AC28)-1 -> 5
A29: 7 | C29: Median U-Turn | F29: =Lanes_maj*11+(48-Lanes_maj/2*12)+16 -> 84 | G29: =Lanes_maj*12+12+(86-Lanes_maj/2*12)+26 -> 148 | H29: 68 | I29: =MIN(TREND($AP$8:$AQ$8,F29:G29,ROW_1),2) -> -0.125 | J29: 72 | K29: =Lanes_min*12+12+16+26 -> 102 | L29: 22 | M29: =MIN(TREND($AP$8:$AQ$8,J29:K29,ROW_2),2) -> 0.5333333333 | N29: 1 | O29: 2 | P29: 2 | Q29: 3 | R29: 3 | S29: 1 | T29: -1 | U29: 2 | V29: 1 | W29: 3 | X29: 1 | Y29: 3 | AA29: 1 | AB29: 28.28333333 | AC29: 28.28333333 | AD29: 7 | AE29: =RANK(AC29,$AC$14:$AC$51,0)+COUNTIF($AC29:AC$51,AC29)-1 -> 7
A30: 3 | C30: Superstreet / RCI | F30: =Lanes_maj*11+(48-Lanes_maj/2*12)+16 -> 84 | G30: =Lanes_maj*12+12+(86-Lanes_maj/2*12)+26 -> 148 | H30: 68 | I30: -0.125 | J30: 72 | K30: =Lanes_min*12+12+16+26 -> 102 | L30: 22 | M30: 0.5333333333 | N30: 1 | O30: 2 | P30: 2 | Q30: 3 | R30: 3 | S30: 1 | T30: -1 | U30: 2 | V30: 2 | W30: 3 | X30: 2 | Y30: 3 | AA30: 1 | AB30: 31.28333333 | AC30: 31.28333333 | AD30: 1 | AE30: =RANK(AC30,$AC$14:$AC$51,0)+COUNTIF($AC30:AC$51,AC30)-1 -> 3
A31: 1 | C31: Displaced Left-Turn / CFI | F31: =Lanes_maj*11+28+16+20 -> 108 | G31: =Lanes_maj*12+32+32+20+26 -> 158 | H31: 78 | I31: -1.12 | J31: =Lanes_min*11+28+20 -> 92 | K31: =Lanes_min*12+32+26 -> 106 | L31: 26 | M31: -1.714285714 | N31: 0 | O31: 1 | P31: 0 | Q31: 1 | R31: 2 | S31: 1 | T31: -2 | U31: 0 | V31: 1 | W31: 3 | X31: 3 | Y31: 0 | AA31: 0 | AB31: 17.04571429 | AC31: 99 | AD31: 20 | AE31: =RANK(AC31,$AC$14:$AC$51,0)+COUNTIF($AC31:AC$51,AC31)-1 -> 1 | AF31: Y | AG31: Locally Preferred Option
A32: 12 | C32: Continuous Green-T | F32: =Lanes_maj*11+16+16 -> 76 | G32: =Lanes_maj*12+20+26 -> 94 | H32: 14 | I32: =IF(V13=0,0,MIN(TREND($AP$8:$AQ$8,F32:G32,ROW_1),2)) -> 0.4444444444 | J32: =Lanes_min*11+12+16 -> 72 | K32: =Lanes_min*12+20+26 -> 94 | L32: 14 | M32: =IF(V13=0,0,MIN(TREND($AP$8:$AQ$8,J32:K32,ROW_2),2)) -> 0.7272727273 | N32: =IF(V13=0,0,2) -> 2 | O32: =IF(V13=0,0,1) -> 1 | P32: =IF(V13=0,0,0) -> 0 | Q32: =IF(V13=0,0,2) -> 2 | R32: =IF(V13=0,0,2) -> 2 | S32: =IF(V13=0,0,1) -> 1 | T32: =IF(V13=0,0,-2) -> -2 | U32: =IF(V13=0,0,0) -> 0 | V32: =IF(V13=0,0,4) -> 4 | W32: =IF(V13=0,0,2) -> 2 | X32: =IF(V13=0,0,2) -> 2 | Y32: =IF(V13=0,0,0) -> 0 | AA32: =IF(V13=0,0,2) -> 2 | AB32: 24.61616162 | AC32: 24.61616162 | AD32: 13 | AE32: =RANK(AC32,$AC$14:$AC$51,0)+COUNTIF($AC32:AC$51,AC32)-1 -> 12
A33: 6 | C33: Signalized Offset-T Intersection | F33: =Lanes_maj*11+16+16 -> 76 | G33: =Lanes_maj*12+20+26 -> 94 | H33: 14 | I33: 0.4444444444 | J33: 72 | K33: =Lanes_min*12+16+26 -> 90 | L33: 10 | M33: 0.8888888889 | N33: 3 | O33: 1 | P33: 1 | Q33: 2 | R33: 2 | S33: 2 | T33: -1 | U33: 3 | V33: 2 | W33: 2 | X33: 2 | Y33: 1 | AA33: 2 | AB33: 28.77777778 | AC33: =IF(AF33="Y",99,IF(AF33="X",0,AB33)) -> 28.77777778 | AD33: 6 | AE33: =RANK(AC33,$AC$14:$AC$51,0)+COUNTIF($AC33:AC$51,AC33)-1 -> 6
A34: 16 | C34: Jughandle | F34: =Lanes_maj*11+12+16 -> 72 | G34: =Lanes_maj*12+12+26 -> 86 | H34: 6 | I34: 1.142857143 | J34: 72 | K34: =Lanes_min*12+12+20+26 -> 106 | L34: 26 | M34: 0.4705882353 | N34: 0 | O34: 1 | P34: 1 | Q34: 2 | R34: 3 | S34: 1 | T34: -2 | U34: 0 | V34: 0 | W34: 3 | X34: 1 | Y34: 3 | AA34: 0 | AB34: 20.75630252 | AC34: 20.75630252 | AD34: 17 | AE34: =RANK(AC34,$AC$14:$AC$51,0)+COUNTIF($AC34:AC$51,AC34)-1 -> 16
A35: 9 | C35: Quadrant Roadway | F35: =Lanes_maj*11+12+16 -> 72 | G35: =Lanes_maj*12+20+26 -> 94 | H35: 14 | I35: 0.7272727273 | J35: 72 | K35: =Lanes_min*12+20+26 -> 94 | L35: 14 | M35: 0.7272727273 | N35: 1 | O35: 1 | P35: 3 | Q35: 2 | R35: 2 | S35: 2 | T35: -1 | U35: 2 | V35: 0 | W35: 2 | X35: 2 | Y35: 2 | AA35: 1 | AB35: 26.18181818 | AC35: 26.18181818 | AD35: 10 | AE35: =RANK(AC35,$AC$14:$AC$51,0)+COUNTIF($AC35:AC$51,AC35)-1 -> 9
A36: 19 | C36: Split Intersection | F36: =Lanes_maj*11+150+18 -> 212 | G36: =Lanes_maj*12+250+26 -> 324 | H36: 244 | I36: -2.357142857 | J36: 72 | K36: =Lanes_min*12+20+26 -> 94 | L36: 14 | M36: 0.7272727273 | N36: 0 | O36: 1 | P36: 1 | Q36: 2 | R36: 3 | S36: 1 | T36: -2 | U36: 0 | V36: 0 | W36: 3 | X36: 2 | Y36: 3 | AA36: 0 | AB36: 16.01298701 | AC36: 16.01298701 | AD36: 21 | AE36: =RANK(AC36,$AC$14:$AC$51,0)+COUNTIF($AC36:AC$51,AC36)-1 -> 19
A37: 4 | C37: Bowtie Intersection | F37: =Lanes_maj*11+8+16 -> 68 | G37: =Lanes_maj*12+16+26 -> 90 | H37: 10 | I37: 1.090909091 | J37: 72 | K37: =Lanes_min*12+20+26 -> 94 | L37: 14 | M37: 0.7272727273 | N37: 3 | O37: 2 | P37: 2 | Q37: 3 | R37: 1 | S37: 3 | T37: -1 | U37: 2 | V37: 0 | W37: 2 | X37: 1 | Y37: 0 | AA37: 2 | AB37: 29.90909091 | AC37: 29.90909091 | AD37: 4 | AE37: =RANK(AC37,$AC$14:$AC$51,0)+COUNTIF($AC37:AC$51,AC37)-1 -> 4
A38: 33 | C38: Other Unsignalized Intersection (Describe) | AC38: 0 | AE38: =RANK(AC38,$AC$14:$AC$51,0)+COUNTIF($AC38:AC$51,AC38)-1 -> 33
A39: 21 | B39: Grade-Separated Intersections | C39: Echelon | F39: 90 | G39: 100 | H39: =IF(G39-ROW_1<0,0,G39-ROW_1) -> 20 | I39: =MIN(TREND($AP$8:$AQ$8,F39:G39,ROW_1),2) -> -2 | J39: 90 | K39: 100 | L39: =IF(K39-ROW_2<0,0,K39-ROW_2) -> 20 | M39: =MIN(TREND($AP$8:$AQ$8,J39:K39,ROW_2),2) -> -2 | N39: 2 | O39: 2 | P39: 2 | Q39: 1 | R39: 2 | S39: 2 | T39: -1 | U39: 0 | V39: 0 | W39: 3 | X39: 3 | Y39: 0 | AA39: -3 | AB39: =I39*$I$13+M39*$M$13+N39*N$13+O39*O$13+P39*P$13+Q39*Q$13+S39*S$13+Y39*$Y$13+$V$13*V39+$AA$13*AA39+$X$13*X39+$U$13*U39+$W$13*W39+$R$13*R39+$T$13*T39 -> 14 | AC39: 14 | AD39: 22 | AE39: =RANK(AC39,$AC$14:$AC$51,0)+COUNTIF($AC39:AC$51,AC39)-1 -> 21
A40: 20 | C40: Center Turn Overpass | F40: 90 | G40: 100 | H40: 20 | I40: -2 | J40: 90 | K40: 100 | L40: 20 | M40: -2 | N40: 2 | O40: 2 | P40: 2 | Q40: 3 | R40: 2 | S40: 1 | T40: -2 | U40: 0 | V40: 0 | W40: 3 | X40: 3 | Y40: 0 | AA40: -3 | AB40: 14 | AC40: 14 | AD40: 22 | AE40: =RANK(AC40,$AC$14:$AC$51,0)+COUNTIF($AC40:AC$51,AC40)-1 -> 20
A41: 22 | C41: Grade-Separated T-Interchange | F41: 90 | G41: 100 | H41: 20 | I41: =IF(V13=0,0,MIN(TREND($AP$8:$AQ$8,F41:G41,ROW_1),2)) -> -2 | J41: 90 | K41: 100 | L41: 20 | M41: =IF(V13=0,0,MIN(TREND($AP$8:$AQ$8,J41:K41,ROW_2),2)) -> -2 | N41: =IF(V13=0,0,2) -> 2 | O41: =IF(V13=0,0,2) -> 2 | P41: =IF(V13=0,0,2) -> 2 | Q41: =IF(V13=0,0,2) -> 2 | R41: =IF(V13=0,0,2) -> 2 | S41: =IF(V13=0,0,1) -> 1 | T41: =IF(V13=0,0,-1) -> -1 | U41: =IF(V13=0,0,0) -> 0 | V41: =IF(V13=0,0,2) -> 2 | W41: =IF(V13=0,0,2) -> 2 | X41: =IF(V13=0,0,2) -> 2 | Y41: =IF(V13=0,0,0) -> 0 | AA41: =IF(V13=0,0,-2) -> -2 | AB41: =I41*$I$13+M41*$M$13+N41*N$13+O41*O$13+P41*P$13+Q41*Q$13+S41*S$13+Y41*$Y$13+$V$13*V41+$AA$13*AA41+$X$13*X41+$U$13*U41+$W$13*W41+$R$13*R41+$T$13*T41 -> 12 | AC41: 12 | AD41: 24 | AE41: =RANK(AC41,$AC$14:$AC$51,0)+COUNTIF($AC41:AC$51,AC41)-1 -> 22
A42: 23 | C42: Diamond Interchange | F42: 90 | G42: 100 | H42: 20 | I42: =IF(AND(ExistControl="Diamond Interchange",AK13="Yes"),0,MIN(TREND($AP$8:$AQ$8,F42:G42,ROW_1),2)) -> -2 | J42: 90 | K42: 100 | L42: 20 | M42: =IF(AND(ExistControl="Diamond Interchange",AK13="Yes"),0,MIN(TREND($AP$8:$AQ$8,J42:K42,ROW_2),2)) -> -2 | N42: =IF(AND(ExistControl="Diamond Interchange",AK13="Yes"),0,0) -> 0 | O42: =IF(AND(ExistControl="Diamond Interchange",AK13="Yes"),0,1) -> 1 | P42: =IF(AND(ExistControl="Diamond Interchange",AK13="Yes"),0,1) -> 1 | Q42: =IF(AND(ExistControl="Diamond Interchange",AK13="Yes"),0,1) -> 1 | R42: =IF(AND(ExistControl="Diamond Interchange",AK13="Yes"),0,3) -> 3 | S42: =IF(AND(ExistControl="Diamond Interchange",AK13="Yes"),0,1) -> 1 | T42: =IF(AND(ExistControl="Diamond Interchange",AK13="Yes"),0,-2) -> -2 | U42: =IF(AND(ExistControl="Diamond Interchange",AK13="Yes"),0,0) -> 0 | V42: =IF(AND(ExistControl="Diamond Interchange",AK13="Yes"),0,0) -> 0 | W42: =IF(AND(ExistControl="Diamond Interchange",AK13="Yes"),0,3) -> 3 | X42: =IF(AND(ExistControl="Diamond Interchange",AK13="Yes"),0,3) -> 3 | Y42: =IF(AND(ExistControl="Diamond Interchange",AK13="Yes"),0,0) -> 0 | AA42: =IF(AND(ExistControl="Diamond Interchange",AK13="Yes"),0,-2) -> -2 | AB42: 11 | AC42: 11 | AD42: 25 | AE42: =RANK(AC42,$AC$14:$AC$51,0)+COUNTIF($AC42:AC$51,AC42)-1 -> 23
A43: 32 | C43: Cloverleaf Interchange | F43: 90 | G43: 100 | H43: 20 | I43: -2 | J43: 90 | K43: 100 | L43: 20 | M43: -2 | AB43: -6 | AC43: 0 | AD43: 27 | AE43: =RANK(AC43,$AC$14:$AC$51,0)+COUNTIF($AC43:AC$51,AC43)-1 -> 32 | AF43: X
A44: 31 | C44: Partial Cloverleaf (Parclo) | F44: 90 | G44: 100 | H44: 20 | I44: -2 | J44: 90 | K44: 100 | L44: 20 | M44: -2 | AB44: -6 | AC44: 0 | AD44: 27 | AE44: =RANK(AC44,$AC$14:$AC$51,0)+COUNTIF($AC44:AC$51,AC44)-1 -> 31 | AF44: X
A45: 30 | C45: Diverging Diamond | F45: 90 | G45: 100 | H45: 20 | I45: -2 | J45: 90 | K45: 100 | L45: 20 | M45: -2 | AB45: -6 | AC45: 0 | AD45: 27 | AE45: =RANK(AC45,$AC$14:$AC$51,0)+COUNTIF($AC45:AC$51,AC45)-1 -> 30 | AF45: X
A46: 29 | C46: Single Point Interchange | F46: 90 | G46: 100 | H46: 20 | I46: -2 | J46: 90 | K46: 100 | L46: 20 | M46: -2 | AB46: -6 | AC46: 0 | AD46: 27 | AE46: =RANK(AC46,$AC$14:$AC$51,0)+COUNTIF($AC46:AC$51,AC46)-1 -> 29 | AF46: X
A47: 28 | C47: Contraflow Left | F47: 90 | G47: 100 | H47: 20 | I47: -2 | J47: 90 | K47: 100 | L47: 20 | M47: -2 | AB47: -6 | AC47: 0 | AD47: 27 | AE47: =RANK(AC47,$AC$14:$AC$51,0)+COUNTIF($AC47:AC$51,AC47)-1 -> 28 | AF47: X
A48: 27 | C48: Single Roundabout Interchange | F48: 90 | G48: 100 | H48: 20 | I48: -2 | J48: 90 | K48: 100 | L48: 20 | M48: -2 | AB48: -6 | AC48: 0 | AD48: 27 | AE48: =RANK(AC48,$AC$14:$AC$51,0)+COUNTIF($AC48:AC$51,AC48)-1 -> 27 | AF48: X
A49: 26 | C49: Double Roundabout Interchange | F49: 90 | G49: 100 | H49: 20 | I49: -2 | J49: 90 | K49: 100 | L49: 20 | M49: -2 | AB49: -6 | AC49: 0 | AD49: 27 | AE49: =RANK(AC49,$AC$14:$AC$51,0)+COUNTIF($AC49:AC$51,AC49)-1 -> 26 | AF49: X
A50: 24 | C50: Single Quadrant Interchange | F50: 90 | G50: 100 | H50: 20 | I50: -2 | J50: 90 | K50: 100 | L50: 20 | M50: -2 | N50: 0 | O50: 1 | P50: 2 | Q50: 2 | R50: 2 | S50: 2 | T50: -1 | U50: 1 | V50: 0 | W50: 2 | X50: 2 | Y50: 2 | AA50: -2 | AB50: 10 | AC50: 10 | AD50: 26 | AE50: =RANK(AC50,$AC$14:$AC$51,0)+COUNTIF($AC50:AC$51,AC50)-1 -> 24
A51: 25 | C51: Other Interchange (provide description): | AC51: 0 | AE51: =RANK(AC51,$AC$14:$AC$51,0)+COUNTIF($AC51:AC$51,AC51)-1 -> 25
C52: = Intersection type selected for more detailed analysis in Stage 2 Alternative Selection Decision Record

Sheet Costs
O1: Hide | P1: Hide | Q1: Hide | R1: Hide | S1: Hide | T1: Hide | U1: Hide | V1: Hide | W1: Hide | X1: Hide | Y1: Hide | Z1: Hide | AG1: Hide | AH1: Hide | AI1: Hide | AJ1: Hide | AK1: Hide | AL1: Hide | AM1: Hide | AN1: Hide | AO1: Hide | AP1: Hide | AQ1: Hide | AR1: Hide | AS1: Hide | AT1: Hide | AU1: Hide | AV1: Hide | AW1: Hide | AX1: Hide | AY1: Hide | AZ1: Hide | BA1: Hide | BB1: Hide | BC1: Hide | BD1: Hide | BE1: Hide | BF1: Hide | BG1: Hide | BH1: Hide | BI1: Hide | BJ1: Hide | BK1: Hide | BL1: Hide
A2: INTERSECTION CONTROL ASSESSMENT TOOL (ICAT): COST ESTIMATING AID | AA2: Enter project specific assumptions for Stage 2 alternatives using highlighted drop-down menus below | AG2: Roadway Cost | AH2: Lmajor | AI2: Lminor | AJ2: Sum of Turn Lanes | AK2: Additional Pavement | AL2: Pave Area | AM2: Resurfacing | AO2: Full Depth Pave | AQ2: Right of Way | AT2: Modify/New Signal | AV2: Structures | AX2: Retaining Wall | AZ2: Driveway Impacts | BB2: Sidewalk | BD2: MU Path | BF2: Urban C&G | BH2: Concrete Islands | BJ2: Landscape | BL2: Earthwork
M3: =Version -> CDOT ICAT Version 1.0 | Release Date: 8/30/2021 | AM3: Sqyd | AN3: Cost | AO3: Sqyd | AP3: Cost | AQ3: Acres | AR3: Add'l | AS3: Cost | AT3: Quant | AU3: Cost | AV3: SQFT | AW3: Cost | AX3: SQFT | AY3: Cost | AZ3: EA | BA3: Cost | BB3: LF | BC3: Cost | BD3: LF | BE3: Cost | BF3: LF | BG3: Cost | BH3: Sqyd | BI3: Cost | BJ3: Sqft | BK3: Cost
A4: Project Information | Z4: =IF(Stage1!A14<=Alts,1,0) -> 0 | AA4: =Stage1!C14 -> -- select -- | AB4: Cost estimate not available | AC4: provide own construction, ROW | AD4: utility impacts | AE4: and design/contingency costs using Cost Data Override table in Stage 2 | AF4: Pavement Area Override * | BN4: Turn Lanes | BO4: Thru Lanes
B5: Location: | C5: =CONCATENATE(Road1, " @ ",Road2) -> Colorado Street @ 30th Street | G5: County: | H5: =County -> Boulder | J5: Date: | K5: =Date -> 2021-07-27 | Z5: =IF(Stage1!A15<=Alts,1,0) -> 0 | AA5: =Stage1!C15 -> -- select -- | AB5: Cost estimate not available | AC5: provide own construction, ROW | AD5: utility impacts | AE5: and design/contingency costs using Cost Data Override table in Stage 2
B6: Existing Intersection Control: | C6: =ExistControl -> Conventional Minor Stop | G6: CDOT Region: | H6: =Region -> Region 1 | J6: Agency/Firm: | K6: =PreparedBy -> Region Traffic Engineer | Z6: =IF(Stage1!A16<=Alts,1,0) -> 0 | AA6: =Stage1!C16 -> Minor Street Stop | AB6: Add / improve signing & marking | AC6: No paving | AD6: No additional warnings | AE6: No LT lanes | AF6: 0 | AG6: =AN6+AP6+AS6+AU6+AW6+AY6+BA6+BC6+BG6+BI6+BK6+BL6 -> 18813.59045 | AH6: =IF(OR(AE6="No LT Lanes",AE6="LT Lanes on Minor"),200,1000) -> 200 | AI6: =IF(OR(AE6="No LT Lanes",AE6="LT Lanes on Major"),200,1000) -> 200 | AJ6: =IF(AE6="No LT Lanes",0,IF(AE6="LT lanes on both",4,2)) -> 0 | AK6: 0 | AL6: =IF(AF6<>0,AF6,AH6*Lanes_maj*12+AI6*Lanes_min*12+AJ6*250*18+AK6) -> 19200 | AM6: =IF(AC6="Resurface intersection",AL6/27,0) -> 0 | AN6: =AM6*Cost_repave -> 0 | AO6: =IF(AC6="New full depth pavement",AL6/27,0) -> 0 | AP6: =AO6*_xlfn.SINGLE(Cost_fulldepth) -> 0 | AQ6: =(VLOOKUP(AA6,Stage1!C14:L51,6,FALSE)*AH6+VLOOKUP(AA6,Stage1!C14:L51,10,FALSE)*AI6)/43560 -> 0.09182736455 | AR6: =IFERROR(VLOOKUP(AA6,$A$17:$G$21,7,FALSE),0) -> 0 | AS6: =AQ6*Cost_ROWac+AR6 -> 4591.368228 | AT6: 0 | AU6: =AT6*_xlfn.SINGLE(Cost_Signal) -> 0 | AV6: =IFERROR(VLOOKUP(AA6,$A$17:$G$21,7,FALSE),0) -> 0 | AW6: =AV6*Cost_bridge -> 0 | AX6: =IFERROR(VLOOKUP(AA6,$A$17:$G$21,5,FALSE),0) -> 0 | AY6: =AX6*Cost_retain -> 0 | AZ6: =IFERROR(VLOOKUP(AA6,$A$17:$G$21,4,FALSE),0) -> 0 | BA6: =AZ6*Cost_driveway -> 0 | BB6: =IF(VLOOKUP($K$22,$K$146:$M$150,3,FALSE)=1,AH6*2,IF(VLOOKUP($K$22,$K$146:$M$150,3,FALSE)=2,AH7*2,IF(VLOOKUP($K$22,$K$146:$M$150,3,FALSE)=3,(AH6+AH7)*2,0))) -> 0 | BC6: =BB6*_xlfn.SINGLE(Cost_sidewalk) -> 0 | BD6: =IF(VLOOKUP($K$23,$K$152:$M$158,3,FALSE)=1,AH6*4,IF(VLOOKUP($K$23,$K$152:$M$158,3,FALSE)=2,AI6*4,IF(VLOOKUP($K$23,$K$152:$M$158,3,FALSE)=3,(AH6+AI6)*4,IF(VLOOKUP($K$23,$K$152:$M$158,3,FALSE)=4,AH6*10,IF(VLOOKUP($K$23,$K$152:$M$158,3,FALSE)=5,AI6*10,IF(VLOOKUP($K$23,$K$152:$M$158,3,FALSE)=6,(AH6+AI6)*4,0)))))) -> 0 | BE6: =BD6*_xlfn.SINGLE(Cost_path) -> 0 | BF6: =IF($K$21="Curb&Gutter on Major",AH6*2,IF($K$21="Curb&Gutter on Both",AH6*2+AI6*2,0)) -> 0 | BG6: =BF6*_xlfn.SINGLE(Cost_curb) -> 0 | BI6: =BH6*Cost_concrete -> 0 | BJ6: 0 | BK6: =IFERROR(VLOOKUP(AA6,$A$17:$HU$21,8,FALSE),0) -> 0 | BL6: =VLOOKUP(Terrain,IntersectionData!$BG$17:$BH$20,2,FALSE)*AL6/27*Cost_fulldepth -> 14222.22222 | BN6: 0 | BO6: 0
B7: Type of Proejct: | C7: =AnalysisType -> Safety Improvement Project | G7: Area Type: | H7: =Area -> Suburban | J7: CDOT Proj No: | K7: =ProjNo -> 12345 | Z7: =IF(Stage1!A17<=Alts,1,0) -> 0 | AA7: =Stage1!C17 -> All-Way Stop | AB7: Add / improve signing & marking | AC7: No paving | AD7: No additional warnings | AE7: No LT lanes | AF7: 0 | AG7: 18813.59045 | AH7: =IF(OR(AE7="No LT Lanes",AE7="LT Lanes on Minor"),200,1000) -> 200 | AI7: =IF(OR(AE7="No LT Lanes",AE7="LT Lanes on Major"),200,1000) -> 200 | AJ7: =IF(AE7="No LT Lanes",0,IF(AE7="LT lanes on both",4,2)) -> 0 | AK7: 0 | AL7: =IF(AF7<>0,AF7,AH7*Lanes_maj*12+AI7*Lanes_min*12+AJ7*250*18+AK7) -> 19200 | AM7: =IF(AC7="Resurface intersection",AL7/27,0) -> 0 | AN7: =AM7*Cost_repave -> 0 | AO7: =IF(AC7="New full depth pavement",AL7/27,0) -> 0 | AP7: 0 | AQ7: =(VLOOKUP(AA7,Stage1!C15:L52,6,FALSE)*AH7+VLOOKUP(AA7,Stage1!C15:L52,10,FALSE)*AI7)/43560 -> 0.09182736455 | AR7: =IFERROR(VLOOKUP(AA7,$A$17:$G$21,7,FALSE),0) -> 0 | AS7: 4591.368228 | AT7: 0 | AU7: 0 | AV7: =IFERROR(VLOOKUP(AA7,$A$17:$G$21,6,FALSE),0) -> 0 | AW7: =AV7*_xlfn.SINGLE(Cost_bridge) -> 0 | AX7: =IFERROR(VLOOKUP(AA7,$A$17:$G$21,5,FALSE),0) -> 0 | AY7: 0 | AZ7: =IFERROR(VLOOKUP(AA7,$A$17:$G$21,4,FALSE),0) -> 0 | BA7: 0 | BB7: 0 | BC7: 0 | BD7: =IF(VLOOKUP($K$23,$K$152:$M$158,3,FALSE)=1,AH7*4,IF(VLOOKUP($K$23,$K$152:$M$158,3,FALSE)=2,AI7*4,IF(VLOOKUP($K$23,$K$152:$M$158,3,FALSE)=3,(AH7+AI7)*4,IF(VLOOKUP($K$23,$K$152:$M$158,3,FALSE)=4,AH7*10,IF(VLOOKUP($K$23,$K$152:$M$158,3,FALSE)=5,AI7*10,IF(VLOOKUP($K$23,$K$152:$M$158,3,FALSE)=6,(AH7+AI7)*4,0)))))) -> 0 | BE7: 0 | BF7: =IF($K$21="Curb&Gutter on Major",AH7*2,IF($K$21="Curb&Gutter on Both",AH7*2+AI7*2,0)) -> 0 | BG7: 0 | BI7: =BH7*Cost_concrete -> 0 | BJ7: 0 | BK7: 0 | BL7: =VLOOKUP(Terrain,IntersectionData!$BG$17:$BH$20,2,FALSE)*AL7/27*Cost_fulldepth -> 14222.22222 | BN7: 1 | BO7: 1
A8: Existing Conditions | Z8: =IF(Stage1!A18<=Alts,1,0) -> 0 | AA8: =Stage1!C18 -> Right-In/Right-out | AB8: Add / improve signing & marking to restrict access | AC8: No paving | AD8: No existing LT lane | AF8: 0 | AG8: 9406.795225 | AH8: 100 | AI8: 100 | AJ8: 0 | AK8: 0 | AL8: =IF(AF8<>0,AF8,AH8*Lanes_maj*12+AI8*Lanes_min*12+AJ8*250*18+AK8) -> 9600 | AM8: 0 | AN8: =AM8*Cost_repave -> 0 | AO8: 0 | AP8: 0 | AQ8: =(VLOOKUP(AA8,Stage1!C16:L53,6,FALSE)*AH8+VLOOKUP(AA8,Stage1!C16:L53,10,FALSE)*AI8)/43560 -> 0.04591368228 | AR8: 0 | AS8: 2295.684114 | AT8: 0 | AU8: 0 | AV8: 0 | AW8: 0 | AX8: 0 | AY8: 0 | AZ8: 0 | BA8: 0 | BB8: 0 | BC8: 0 | BD8: 0 | BE8: 0 | BF8: 0 | BG8: 0 | BI8: =BH8*Cost_concrete -> 0 | BJ8: 0 | BK8: 0 | BL8: =VLOOKUP(Terrain,IntersectionData!$BG$17:$BH$20,2,FALSE)*AL8/27*Cost_fulldepth -> 7111.111111 | BN8: 2 | BO8: 2
B9: =Street1 -> EB Colorado Street | E9: =Street2 -> WB Colorado Street | H9: =Street3 -> NB 30th Street | K9: =Street4 -> SB 30th Street | Z9: =IF(Stage1!A19<=Alts,1,0) -> 0 | AA9: =Stage1!C19 -> Right-in/Right-out/Left-in (3/4 access) | AB9: Add / improve signing & marking to restrict access | AC9: No paving | AD9: No channelization | AE9: No existing LT lane | AF9: 0 | AG9: 76881.5427 | AH9: 1000 | AI9: 200 | AJ9: 2 | AK9: 0 | AL9: =IF(AF9<>0,AF9,AH9*Lanes_maj*12+AI9*Lanes_min*12+AJ9*250*18+AK9) -> 66600 | AM9: 0 | AN9: =AM9*Cost_repave -> 0 | AO9: 0 | AP9: 0 | AQ9: =(VLOOKUP(AA9,Stage1!C17:L54,6,FALSE)*AH9+VLOOKUP(AA9,Stage1!C17:L54,10,FALSE)*AI9)/43560 -> 0.5509641873 | AR9: 0 | AS9: 27548.20937 | AT9: 0 | AU9: 0 | AV9: 0 | AW9: 0 | AX9: 0 | AY9: 0 | AZ9: 0 | BA9: 0 | BB9: 0 | BC9: 0 | BD9: 0 | BE9: 0 | BF9: 0 | BG9: 0 | BI9: =BH9*Cost_concrete -> 0 | BJ9: 0 | BK9: 0 | BL9: =VLOOKUP(Terrain,IntersectionData!$BG$17:$BH$20,2,FALSE)*AL9/27*Cost_fulldepth -> 49333.33333 | BN9: 3 | BO9: 3
A10: Movement | B10: Left Turn | C10: Thru | D10: Right Turn | E10: Left Turn | F10: Thru | G10: Right Turn | H10: Left Turn | I10: Thru | J10: Right Turn | K10: Left Turn | L10: Thru | M10: Right Turn | Z10: =IF(Stage1!A20<=Alts,1,0) -> 0 | AA10: =Stage1!C20 -> RIRO w/downstream U-Turn | AB10: Add directional U-turns; remove pavement at main intersection | AC10: New full depth pavement | AD10: Avg 400' U-turn spacing | AE10: Make median openings directional | AF10: 0 | AG10: 746348.944 | AH10: =VLOOKUP(AD10,$B$139:$C$142,2,FALSE) -> 1000 | AI10: 200 | AJ10: 2 | AK10: =IF(AE10="1 new directional opening",250,IF(AE10="2 new directional openings",500,0)) -> 0 | AL10: =IF(AF10<>0,AF10,AH10*Lanes_maj*12+AI10*Lanes_min*12+AJ10*250*18+AK10) -> 66600 | AM10: 0 | AN10: =AM10*Cost_repave -> 0 | AO10: 2466.666667 | AP10: 616666.6667 | AQ10: =(VLOOKUP(AA10,Stage1!C18:L55,6,FALSE)*AH10+VLOOKUP(AA10,Stage1!C18:L55,10,FALSE)*AI10)/43560 -> 1.60697888 | AR10: 0 | AS10: 80348.94399 | AT10: 0 | AU10: 0 | AV10: 0 | AW10: 0 | AX10: 0 | AY10: 0 | AZ10: 0 | BA10: 0 | BB10: 0 | BC10: 0 | BD10: 0 | BE10: 0 | BF10: 0 | BG10: 0 | BI10: =BH10*Cost_concrete -> 0 | BJ10: 0 | BK10: 0 | BL10: =VLOOKUP(Terrain,IntersectionData!$BG$17:$BH$20,2,FALSE)*AL10/27*Cost_fulldepth -> 49333.33333 | BO10: 4
A11: Number of Lanes | B11: 2 | C11: 2 | D11: 0 | E11: 2 | F11: 2 | G11: 0 | H11: 1 | I11: 2 | J11: 0 | K11: 1 | L11: 2 | M11: 0 | Z11: =IF(Stage1!A21<=Alts,1,0) -> 0 | AA11: =Stage1!C21 -> Mini Roundabout | AB11: New mini RND w/splitter islands, paved (traversable) center island | AC11: 70' Inscribed Dia (default mini) | AD11: 1 RT by-pass lane | AF11: 0 | AG11: =AN11+AP11+AS11+AU11+AW11+AY11+BA11+BC11+BG11+BI11+BK11+BL11 -> 363082.7497 | AH11: 200 | AI11: 200 | AJ11: 0 | AK11: =VLOOKUP(AD11,D127:F131,3,FALSE)*3600 -> 3600 | AL11: =IF(AF11<>0,AF11,AH11*Lanes_maj*12+AI11*Lanes_min*12+AJ11*250*18+AK11+L75) -> 23291.63352 | AO11: =AL11/27+L75 -> 1354.286612 | AP11: 338571.6529 | AQ11: =(VLOOKUP(AA11,Stage1!C19:L56,6,FALSE)*AH11+VLOOKUP(AA11,Stage1!C19:L56,10,FALSE)*AI11)/43560 -> 0.09182736455 | AR11: 0 | AS11: 4591.368228 | AT11: 0 | AU11: 0 | AV11: 0 | AW11: 0 | AX11: 0 | AY11: 0 | AZ11: 0 | BA11: 0 | BB11: 0 | BC11: 0 | BD11: 0 | BE11: 0 | BF11: 0 | BG11: 0 | BH11: =VLOOKUP(AD11,$D$127:$F$131,3,FALSE)*1200/27 -> 44.44444444 | BI11: =BH11*Cost_concrete -> 2666.666667 | BJ11: 0 | BK11: 0 | BL11: =VLOOKUP(Terrain,IntersectionData!$BG$17:$BH$20,2,FALSE)*AL11/27*Cost_fulldepth -> 17253.06187
A12: Bay Length** | B12: 300 | D12: 0 | E12: 300 | G12: 0 | H12: 250 | J12: 0 | K12: 250 | M12: 0 | Z12: =IF(Stage1!A22<=Alts,1,0) -> 0 | AA12: =Stage1!C22 -> Single Lane Roundabout | AB12: New single lane RND w/splitter islands, truck apron and landscaped median | AC12: 130' Inscribed Dia (default single) | AD12: No RT by-pass lanes | AF12: 0 | AG12: 734826.3324 | AH12: 350 | AI12: 350 | AJ12: 0 | AK12: =VLOOKUP(AD12,D127:F131,3,FALSE)*3600 -> 0 | AL12: =IF(AF12<>0,AF12,(AH12*Lanes_maj*12+AI12*Lanes_min*12+AJ12*250*18+AK12+L76)*1.5) -> 51661.08361 | AO12: =AL12/27+L76 -> 2754.095874 | AP12: 688523.9686 | AQ12: =(VLOOKUP(AA12,Stage1!C20:L57,6,FALSE)*AH12+VLOOKUP(AA12,Stage1!C20:L57,10,FALSE)*AI12)/43560 -> 0.160697888 | AR12: 0 | AS12: 8034.894399 | AT12: 0 | AU12: 0 | AV12: 0 | AW12: 0 | AX12: 0 | AY12: 0 | AZ12: 0 | BA12: 0 | BB12: 0 | BC12: 0 | BD12: 0 | BE12: 0 | BF12: 0 | BG12: 0 | BH12: =VLOOKUP(AD12,$D$127:$F$131,3,FALSE)*1200/27 -> 0 | BI12: =BH12*Cost_concrete -> 0 | BJ12: 0 | BK12: 0 | BL12: =VLOOKUP(Terrain,IntersectionData!$BG$17:$BH$20,2,FALSE)*AL12/27*Cost_fulldepth -> 38267.46934
A13: Median Width (if any) | C13: =Median_maj -> 16 | F13: =Median_maj -> 16 | I13: =Median_min -> 12 | L13: =Median_min -> 12 | Z13: =IF(Stage1!A23<=Alts,1,0) -> 1 | AA13: =Stage1!C23 -> Multilane Roundabout | AB13: New multi-lane RND w/splitter islands, truck apron and landscaped median | AC13: 200' Inscribed Diameter | AD13: No RT by-pass lanes | AE13: 2x1 Multilane RND | AF13: 0 | AG13: 1245519.487 | AH13: 500 | AI13: 500 | AJ13: 0 | AK13: =VLOOKUP(AD12,D127:F131,3,FALSE)*3600 -> 0 | AL13: =IF(AF13<>0,AF13,(AH13*Lanes_maj*12+AI13*Lanes_min*12+AJ13*250*18+AK13+L77)*1.5) -> 74513.44 | AO13: =AL13/27+L77 -> 4435.383704 | AP13: 1108845.926 | AQ13: =(VLOOKUP(AA13,Stage1!C21:L58,6,FALSE)*AH13+VLOOKUP(AA13,Stage1!C21:L58,10,FALSE)*AI13)/43560 -> 0.2295684114 | AR13: 50000 | AS13: 61478.42057 | AT13: 0 | AU13: 0 | AV13: 0 | AW13: 0 | AX13: 0 | AY13: 0 | AZ13: 2 | BA13: 20000 | BB13: 0 | BC13: 0 | BD13: 0 | BE13: 0 | BF13: 0 | BG13: 0 | BH13: =VLOOKUP(AD13,$D$127:$F$131,3,FALSE)*1200/27 -> 0 | BI13: =BH13*Cost_concrete -> 0 | BJ13: 0 | BK13: 0 | BL13: =VLOOKUP(Terrain,IntersectionData!$BG$17:$BH$20,2,FALSE)*AL13/27*Cost_fulldepth -> 55195.14074
A14: Right-of-Way | B14: =IF(Directionality="North/South",ROW_2,ROW_1) -> 80 | E14: =IF(Directionality="North/South",ROW_2,ROW_1) -> 80 | H14: =IF(Directionality="North/South",ROW_1,ROW_2) -> 80 | K14: =IF(Directionality="North/South",ROW_1,ROW_2) -> 80 | Z14: =IF(Stage1!A24<=Alts,1,0) -> 0 | AA14: =Stage1!C24 -> RCUT / J-Turn (stop control) | AB14: Add directional U-turns, left turn channelization; restrict thru/left turns from minor Street | AC14: New full depth pavement | AD14: Avg 600' U-turn spacing (Default) | AE14: 2 new directional openings | AF14: 0 | AG14: 305253.7496 | AH14: =VLOOKUP(AD18,G123:I129,3,FALSE) -> 200 | AI14: 200 | AJ14: 2 | AK14: 0 | AL14: =IF(AF14<>0,AF14,AH14*Lanes_maj*12+AI14*Lanes_min*12+AJ14*250*18+BH14) -> 28237.03704 | AM14: 0 | AN14: =AM14*Cost_repave -> 0 | AO14: 1045.816187 | AP14: 261454.0466 | AQ14: =(VLOOKUP(AA14,Stage1!C22:L59,6,FALSE)*AH14+VLOOKUP(AA14,Stage1!C22:L59,10,FALSE)*AI14)/43560 -> 0.4132231405 | AR14: 0 | AS14: 20661.15702 | AT14: 0 | AU14: 0 | AV14: 0 | AW14: 0 | AX14: 0 | AY14: 0 | AZ14: 0 | BA14: 0 | BB14: 0 | BC14: 0 | BD14: 0 | BE14: 0 | BF14: 0 | BG14: 0 | BH14: =IF(AE14="1 new directional opening",500,IF(AE14="2 new directional openings",1000,0))/27 -> 37.03703704 | BI14: =BH14*Cost_concrete -> 2222.222222 | BJ14: 0 | BK14: 0 | BL14: =VLOOKUP(Terrain,IntersectionData!$BG$17:$BH$20,2,FALSE)*AL14/27*Cost_fulldepth -> 20916.32373
B15: Pavement Area | C15: Utility Impacts: | D15: Driveways Impacted | E15: Retaining Wall (sqft) | F15: New/Widen Bridge(sqft) | G15: Add'l ROW/ Demolition | H15: Landscape Cost | Z15: =IF(Stage1!A25<=Alts,1,0) -> 0 | AA15: =Stage1!C25 -> High-T (unsignalized) | AB15: Separate through lane from left turn traffic w/downstream merge condition | AC15: Resurface intersection | AD15: 8' raised median separator | AE15: Convert existing LT lane | AF15: 0 | AG15: 269426.4928 | AH15: 1200 | AI15: 200 | AJ15: =IF(AE15="Convert existing LT lane",1,2) -> 1 | AK15: 0 | AL15: =IF(AF15<>0,AF15,AH15*Lanes_maj*12+AI15*Lanes_min*12+AJ15*250*18+BH15) -> 71774.07407 | AM15: 2658.29904 | AN15: =AM15*Cost_repave -> 172789.4376 | AO15: =IF(AC15="New full depth pavement",AL15/27,0) -> 0 | AP15: 0 | AQ15: =(VLOOKUP(AA15,Stage1!C23:L60,6,FALSE)*AH15+VLOOKUP(AA15,Stage1!C23:L60,10,FALSE)*AI15)/43560 -> 0.7805325987 | AR15: 0 | AS15: 39026.62994 | AT15: 0 | AU15: 0 | AV15: 0 | AW15: 0 | AX15: 0 | AY15: 0 | AZ15: 0 | BA15: 0 | BB15: 0 | BC15: 0 | BD15: 0 | BE15: 0 | BF15: 0 | BG15: 0 | BH15: =IF(AD15="4' raised median separator",1000,IF(AD15="8' raised median separator",2000,0))/27 -> 74.07407407 | BI15: =BH15*Cost_concrete -> 4444.444444 | BJ15: 0 | BK15: 0 | BL15: =VLOOKUP(Terrain,IntersectionData!$BG$17:$BH$20,2,FALSE)*AL15/27*Cost_fulldepth -> 53165.9808
A16: Alternative | K16: Site Conditions | Z16: =IF(Stage1!A26<=Alts,1,0) -> 0 | AA16: =Stage1!C26 -> Unsignalized Offset-T Intersection | AB16: Separate intersection legs into two T-intersections | AC16: New full depth pavement | AD16: Offset left / right intersection | AE16: 500' intersection spacing (Default) | AF16: 0 | AG16: 1325583.104 | AH16: =VLOOKUP(AE16,$K$122:$L$124,2,FALSE) -> 1500 | AI16: 1000 | AJ16: 2 | AK16: 0 | AL16: =IF(AF16<>0,AF16,AH16*Lanes_maj*12+AI16*Lanes_min*12+AJ16*250*18+BH16) -> 129000 | AM16: =IF(AD16="Resurface intersection",AL16/27,0) -> 0 | AN16: =AM16*Cost_repave -> 0 | AO16: =IF(AC16="New full depth pavement",AL16/27,0) -> 4777.777778 | AP16: 1194444.444 | AQ16: =(VLOOKUP(AA16,Stage1!C24:L61,6,FALSE)*AH16+VLOOKUP(AA16,Stage1!C24:L61,10,FALSE)*AI16)/43560 -> 0.7116620753 | AR16: 0 | AS16: 35583.10376 | AT16: 0 | AU16: 0 | AV16: 0 | AW16: 0 | AX16: 0 | AY16: 0 | AZ16: 0 | BA16: 0 | BB16: 0 | BC16: 0 | BD16: 0 | BE16: 0 | BF16: 0 | BG16: 0 | BI16: =BH16*Cost_concrete -> 0 | BJ16: 0 | BK16: 0 | BL16: =VLOOKUP(Terrain,IntersectionData!$BG$17:$BH$20,2,FALSE)*AL16/27*Cost_fulldepth -> 95555.55556
A17: =Alternative1 -> Displaced Left-Turn / CFI | B17: =VLOOKUP(A17,$AA$4:$BM$42,12,FALSE) -> 144000 | C17: Minimal | D17: 1 | E17: 100 | F17: 200 | G17: 0 | H17: 100000 | I17: Prevalent ROW Type | K17: Residential | Z17: =IF(Stage1!A27<=Alts,1,0) -> 0 | AA17: =Stage1!C27 -> Other Signalized Intersection (Describe) | AB17: Cost estimate not available | AC17: provide own construction, ROW | AD17: utility impacts | AE17: and design/contingency costs using Cost Data Override table in Stage 2 | AF17: 0 | AL17: =IF(AF17<>0,AF17,AH17*Lanes_maj*12+AI17*Lanes_min*12+AJ17*250*18+BH17) -> 0 | AQ17: =(VLOOKUP(AA17,Stage1!C25:L62,6,FALSE)*AH17+VLOOKUP(AA17,Stage1!C25:L62,10,FALSE)*AI17)/43560 -> 0 | AR17: 0 | AS17: 0 | AX17: 0 | AY17: 0 | AZ17: 0 | BA17: 0 | BB17: 0 | BD17: 0 | BE17: 0 | BK17: 0
A18: =Alternative2 -> Multilane Roundabout | B18: =VLOOKUP(A18,$AA$4:$BM$42,12,FALSE) -> 74513.44 | C18: Minimal | D18: 2 | E18: 0 | F18: 0 | G18: 50000 | H18: 0 | I18: ROW Cost/Acre | K18: =INDEX(B51:F114,MATCH(County,Costs!A51:A114,0),MATCH(K17,B49:F49,0)) -> 50000 | Z18: =IF(Stage1!A28<=Alts,1,0) -> 1 | AA18: =Stage1!C28 -> Signalized Intersection | AB18: Signalize existing intersection | AC18: Resurface intersection | AD18: No new left turn lanes | AE18: No new right turn lanes | AF18: 0 | AG18: =AN18+AP18+AS18+AU18+AW18+AY18+BA18+BC18+BG18+BI18+BK18+BL18 -> 168708.9073 | AH18: =VLOOKUP(AD18,G123:I129,2,FALSE) -> 200 | AI18: =VLOOKUP(AD18,G123:I129,3,FALSE) -> 200 | AJ18: =VLOOKUP(AD18,G123:J129,4,FALSE) -> 0 | AK18: 0 | AL18: =IF(AF18<>0,AF18,AH18*Lanes_maj*12+AI18*Lanes_min*12+AJ18*250*18+BH18) -> 19200 | AM18: 711.1111111 | AN18: =AM18*Cost_repave -> 46222.22222 | AO18: 0 | AP18: 0 | AQ18: =(VLOOKUP(AA18,Stage1!C26:L63,6,FALSE)*AH18+VLOOKUP(AA18,Stage1!C26:L63,10,FALSE)*AI18)/43560 -> 0.1652892562 | AR18: 0 | AS18: 8264.46281 | AT18: 1 | AU18: 80000 | AV18: 0 | AW18: 0 | AX18: 0 | AY18: 0 | AZ18: 2 | BA18: 20000 | BB18: 0 | BC18: 0 | BD18: 0 | BE18: 0 | BF18: 0 | BG18: =BF18*_xlfn.SINGLE(Cost_curb) -> 0 | BI18: =BH18*Cost_concrete -> 0 | BJ18: 0 | BK18: 0 | BL18: =VLOOKUP(Terrain,IntersectionData!$BG$17:$BH$20,2,FALSE)*AL18/27*Cost_fulldepth -> 14222.22222
A19: =Alternative3 -> Superstreet / RCI | B19: =VLOOKUP(A19,$AA$4:$BM$42,12,FALSE) -> 106000 | C19: Minimal | D19: 0 | E19: 0 | F19: 0 | G19: 0 | H19: 0 | I19: Topography | K19: =Terrain -> Rolling | Z19: =IF(Stage1!A29<=Alts,1,0) -> 0 | AA19: =Stage1!C29 -> Median U-Turn | AB19: Add directional U-turns on Main Road; signalize crossovers | AC19: New full depth pavement | AD19: Avg 600' U-turn spacing (Default) | AE19: 2 new directional openings | AF19: 0 | AG19: 1222325.069 | AH19: =VLOOKUP(AD19,$B$139:$C$142,2,FALSE) -> 1400 | AI19: 200 | AJ19: 2 | AK19: =IF(AE19="1 new directional opening",500,IF(AE19="2 new directional openings",1000,0)) -> 1000 | AL19: =IF(AF19<>0,AF19,AH19*Lanes_maj*12+AI19*Lanes_min*12+AJ19*250*18+AK19) -> 86800 | AM19: 0 | AN19: 0 | AO19: 3214.814815 | AP19: 803703.7037 | AQ19: =(VLOOKUP(AA19,Stage1!C27:L64,6,FALSE)*AH19+VLOOKUP(AA19,Stage1!C27:L64,10,FALSE)*AI19)/43560 -> 2.286501377 | AR19: 0 | AS19: 114325.0689 | AT19: 3 | AU19: 240000 | AV19: 0 | AW19: 0 | AX19: 0 | AY19: 0 | AZ19: 0 | BA19: 0 | BB19: 0 | BC19: 0 | BD19: 0 | BE19: 0 | BF19: 0 | BG19: 0 | BI19: =BH19*Cost_concrete -> 0 | BJ19: 0 | BK19: 0 | BL19: =VLOOKUP(Terrain,IntersectionData!$BG$17:$BH$20,2,FALSE)*AL19/27*Cost_fulldepth -> 64296.2963
A20: =Alternative4 -> Bowtie Intersection | B20: =VLOOKUP(A20,$AA$4:$BM$42,12,FALSE) -> 55440.72241 | C20: Minimal | D20: 4 | E20: 0 | F20: 0 | G20: 0 | H20: 0 | K20: Roadway | Z20: =IF(Stage1!A30<=Alts,1,0) -> 1 | AA20: =Stage1!C30 -> Superstreet / RCI | AB20: Add directional U-turns on Main Road; signalize main intersection and crossovers; RT only from Minor Road | AC20: Resurface intersection | AD20: Avg 800' U-turn spacing | AE20: 2 new directional openings | AF20: 0 | AG20: 719250.0765 | AH20: =VLOOKUP(AD20,$B$139:$C$142,2,FALSE) -> 1800 | AI20: 200 | AJ20: 2 | AK20: =IF(AE20="1 new directional opening",500,IF(AE20="2 new directional openings",1000,0)) -> 1000 | AL20: 106000 | AM20: 3925.925926 | AN20: 255185.1852 | AO20: 0 | AP20: 0 | AQ20: =(VLOOKUP(AA20,Stage1!C28:L65,6,FALSE)*AH20+VLOOKUP(AA20,Stage1!C28:L65,10,FALSE)*AI20)/43560 -> 2.910927456 | AR20: 0 | AS20: 145546.3728 | AT20: 3 | AU20: 240000 | AV20: 0 | AW20: 0 | AX20: 0 | AY20: 0 | AZ20: 0 | BA20: 0 | BB20: 0 | BC20: 0 | BD20: 0 | BE20: 0 | BF20: 0 | BG20: 0 | BI20: =BH20*Cost_concrete -> 0 | BJ20: 0 | BK20: 0 | BL20: =VLOOKUP(Terrain,IntersectionData!$BG$17:$BH$20,2,FALSE)*AL20/27*Cost_fulldepth -> 78518.51852
A21: =Alternative5 -> Signalized Intersection | B21: =VLOOKUP(A21,$AA$4:$BM$42,12,FALSE) -> 19200 | C21: Minimal | D21: 2 | E21: 0 | F21: 0 | G21: 0 | H21: 0 | J21: Drainage | K21: Standard ditch | Z21: =IF(Stage1!A31<=Alts,1,0) -> 1 | AA21: =Stage1!C31 -> Displaced Left-Turn / CFI | AB21: Right turn bypass lanes; signalized main and crossover intersections | AC21: Resurface intersection | AD21: Avg 600' crossover spacing (Default) | AE21: Two-leg CFI (crossovers on Main) | AF21: 0 | AG21: 984646.4646 | AH21: =VLOOKUP(AD21,G140:H143,2,FALSE) -> 1100 | AI21: =AH21 -> 1100 | AJ21: =IF(AE21="Four-leg CFI (crossovers on Both)",16,8) -> 8 | AK21: =IF(AE21="Four-leg CFI (crossovers on Both)",4800,2400) -> 2400 | AL21: 144000 | AM21: 5333.333333 | AN21: 346666.6667 | AO21: 0 | AP21: 0 | AQ21: =(VLOOKUP(AA21,Stage1!C29:L66,6,FALSE)*AH21+VLOOKUP(AA21,Stage1!C29:L66,10,FALSE)*AI21)/43560 -> 2.626262626 | AR21: 0 | AS21: 131313.1313 | AT21: 3 | AU21: 240000 | AV21: 200 | AW21: 40000 | AX21: 100 | AY21: 10000 | AZ21: 1 | BA21: 10000 | BB21: 0 | BC21: 0 | BD21: 0 | BE21: 0 | BF21: 0 | BG21: 0 | BI21: =BH21*Cost_concrete -> 0 | BJ21: 0 | BK21: 100000 | BL21: =VLOOKUP(Terrain,IntersectionData!$BG$17:$BH$20,2,FALSE)*AL21/27*Cost_fulldepth -> 106666.6667
B22: Environmental Impacts | D22: =Alternative1 -> Displaced Left-Turn / CFI | E22: =Alternative2 -> Multilane Roundabout | F22: =Alternative3 -> Superstreet / RCI | G22: =Alternative4 -> Bowtie Intersection | H22: =Alternative5 -> Signalized Intersection | J22: Sidewalks | K22: None | Z22: =IF(Stage1!A32<=Alts,1,0) -> 0 | AA22: =Stage1!C32 -> Continuous Green-T | AB22: Single through lane on high side | AC22: Resurface intersection | AD22: 4' raised median separator | AE22: Convert existing LT lane | AF22: 0 | AG22: 330442.1488 | AH22: 1200 | AI22: 200 | AJ22: =IF(AE22="Convert existing LT lane",1,2) -> 1 | AK22: 0 | AL22: 71700 | AM22: 2655.555556 | AN22: 172611.1111 | AO22: 0 | AP22: 0 | AQ22: =(VLOOKUP(AA22,Stage1!C30:L67,6,FALSE)*AH22+VLOOKUP(AA22,Stage1!C30:L67,10,FALSE)*AI22)/43560 -> 0.4499540863 | AR22: 0 | AS22: 22497.70432 | AT22: 1 | AU22: 80000 | AV22: 0 | AW22: 0 | AX22: 0 | AY22: 0 | AZ22: 0 | BA22: 0 | BB22: =IF(VLOOKUP($K$22,$K$146:$M$150,3,FALSE)=1,AH22*2,IF(VLOOKUP($K$22,$K$146:$M$150,3,FALSE)=2,AH24*2,IF(VLOOKUP($K$22,$K$146:$M$150,3,FALSE)=3,(AH22+AH24)*2,0))) -> 0 | BC22: 0 | BD22: 0 | BE22: 0 | BF22: 0 | BG22: 0 | BH22: =IF(AD22="4' raised median separator",1000,IF(AD22="8' raised median separator",2000,0))/27 -> 37.03703704 | BI22: =BH22*Cost_concrete -> 2222.222222 | BJ22: 0 | BK22: 0 | BL22: =VLOOKUP(Terrain,IntersectionData!$BG$17:$BH$20,2,FALSE)*AL22/27*Cost_fulldepth -> 53111.11111
I23: Bike Lanes / MU Paths | K23: None | P23: Environmental Impact Checks | Z23: =IF(Stage1!A33<=Alts,1,0) -> 0 | AA23: =Stage1!C33 -> Signalized Offset-T Intersection | AB23: Separate intersection legs into two T-intersections | AC23: New full depth pavement | AD23: Offset left / right intersection | AE23: 500' intersection spacing (Default) | AF23: 0 | AG23: 1485583.104 | AH23: =VLOOKUP(AE23,$K$122:$L$124,2,FALSE) -> 1500 | AI23: 1000 | AJ23: 2 | AK23: 0 | AL23: 129000 | AM23: =IF(AD23="Resurface intersection",AL23/27,0) -> 0 | AN23: =AM23*Cost_repave -> 0 | AO23: =IF(AC23="New full depth pavement",AL23/27,0) -> 4777.777778 | AP23: =AO23*_xlfn.SINGLE(Cost_fulldepth) -> 1194444.444 | AQ23: =(VLOOKUP(AA23,Stage1!C31:L68,6,FALSE)*AH23+VLOOKUP(AA23,Stage1!C31:L68,10,FALSE)*AI23)/43560 -> 0.7116620753 | AR23: =IFERROR(VLOOKUP(AA23,$A$17:$G$21,7,FALSE),0) -> 0 | AS23: =AQ23*Cost_ROWac+AR23 -> 35583.10376 | AT23: 2 | AU23: =AT23*_xlfn.SINGLE(Cost_Signal) -> 160000 | AV23: =IFERROR(VLOOKUP(AA23,$A$17:$G$21,6,FALSE),0) -> 0 | AW23: =AV23*_xlfn.SINGLE(Cost_bridge) -> 0 | AX23: =IFERROR(VLOOKUP(AA23,$A$17:$G$21,5,FALSE),0) -> 0 | AY23: =AX23*Cost_retain -> 0 | AZ23: =IFERROR(VLOOKUP(AA23,$A$17:$G$21,4,FALSE),0) -> 0 | BA23: =AZ23*Cost_driveway -> 0 | BB23: =IF(VLOOKUP($K$22,$K$146:$M$150,3,FALSE)=1,AH23*2,IF(VLOOKUP($K$22,$K$146:$M$150,3,FALSE)=2,AH24*2,IF(VLOOKUP($K$22,$K$146:$M$150,3,FALSE)=3,(AH23+AH24)*2,0))) -> 0 | BC23: =BB23*_xlfn.SINGLE(Cost_sidewalk) -> 0 | BD23: =IF(VLOOKUP($K$23,$K$152:$M$158,3,FALSE)=1,AH23*4,IF(VLOOKUP($K$23,$K$152:$M$158,3,FALSE)=2,AI23*4,IF(VLOOKUP($K$23,$K$152:$M$158,3,FALSE)=3,(AH23+AI23)*4,IF(VLOOKUP($K$23,$K$152:$M$158,3,FALSE)=4,AH23*10,IF(VLOOKUP($K$23,$K$152:$M$158,3,FALSE)=5,AI23*10,IF(VLOOKUP($K$23,$K$152:$M$158,3,FALSE)=6,(AH23+AI23)*4,0)))))) -> 0 | BE23: =BD23*_xlfn.SINGLE(Cost_path) -> 0 | BF23: =IF($K$21="Curb&Gutter on Major",AH23*2,IF($K$21="Curb&Gutter on Both",AH23*2+AI23*2,0)) -> 0 | BG23: 0 | BI23: =BH23*Cost_concrete -> 0 | BJ23: 0 | BK23: =IFERROR(VLOOKUP(AA23,$A$17:$HU$21,8,FALSE),0) -> 0 | BL23: =VLOOKUP(Terrain,IntersectionData!$BG$17:$BH$20,2,FALSE)*AL23/27*Cost_fulldepth -> 95555.55556
C24: Historic District/Property | D24: 0 | E24: 0 | F24: 0 | G24: 0 | H24: 0 | K24: Intersection | P24: =IF(Stage2!C39<>"None",1,0) -> 0 | Q24: =IF(Stage2!E39<>"None",1,0) -> 0 | R24: =IF(Stage2!G39<>"None",1,0) -> 0 | S24: =IF(Stage2!I39<>"None",1,0) -> 0 | T24: =IF(Stage2!K39<>"None",1,0) -> 0 | U24: =IF(AND(Stage2!C39="None",D24<>0),1,0) -> 0 | V24: =IF(AND(Stage2!E39="None",E24<>0),1,0) -> 0 | W24: =IF(AND(Stage2!G39="None",F24<>0),1,0) -> 0 | X24: =IF(AND(Stage2!I39="None",G24<>0),1,0) -> 0 | Y24: =IF(AND(Stage2!K39="None",H24<>0),1,0) -> 0 | Z24: =IF(Stage1!A34<=Alts,1,0) -> 0 | AA24: =Stage1!C34 -> Jughandle | AB24: Minimal ramp spacing (200-300') | AC24: New full depth pavement | AD24: Jughandle Type A (Diamond) | AE24: Signal ramp terminal control | AF24: 0 | AG24: 1817649.219 | AH24: 2000 | AI24: 800 | AJ24: 4 | AK24: =IF(AD24="Jughandle Type A (Diamond)",9600,28800) -> 9600 | AL24: 162000 | AM24: =IF(AC24="Resurface intersection",AL24/27,0) -> 0 | AN24: 0 | AO24: =IF(AC24="New full depth pavement",AL24/27,0) -> 6000 | AP24: 1500000 | AQ24: =(VLOOKUP(AA24,Stage1!C32:L69,6,FALSE)*AH24+VLOOKUP(AA24,Stage1!C32:L69,10,FALSE)*AI24)/43560 -> 0.7529843893 | AR24: =IFERROR(VLOOKUP(AA24,$A$17:$G$21,7,FALSE),0) -> 0 | AS24: 37649.21947 | AT24: 2 | AU24: 160000 | AV24: =IFERROR(VLOOKUP(AA24,$A$17:$G$21,6,FALSE),0) -> 0 | AW24: 0 | AX24: =IFERROR(VLOOKUP(AA24,$A$17:$G$21,5,FALSE),0) -> 0 | AY24: 0 | AZ24: =IFERROR(VLOOKUP(AA24,$A$17:$G$21,4,FALSE),0) -> 0 | BA24: 0 | BB24: 0 | BC24: 0 | BD24: 0 | BE24: 0 | BF24: 0 | BG24: 0 | BI24: =BH24*Cost_concrete -> 0 | BJ24: 0 | BK24: =IFERROR(VLOOKUP(AA24,$A$17:$HU$21,8,FALSE),0) -> 0 | BL24: =VLOOKUP(Terrain,IntersectionData!$BG$17:$BH$20,2,FALSE)*AL24/27*Cost_fulldepth -> 120000
A25: NOTES: | C25: Archaeology Resources | D25: 0 | E25: 0 | F25: 0 | G25: 0 | H25: 0 | J25: Signal Poles | K25: Strain Pole | P25: =IF(Stage2!C40<>"None",1,0) -> 0 | Q25: =IF(Stage2!E40<>"None",1,0) -> 0 | R25: =IF(Stage2!G40<>"None",1,0) -> 0 | S25: =IF(Stage2!I40<>"None",1,0) -> 0 | T25: =IF(Stage2!K40<>"None",1,0) -> 0 | U25: =IF(AND(Stage2!C40="None",D25<>0),1,0) -> 0 | V25: =IF(AND(Stage2!E40="None",E25<>0),1,0) -> 0 | W25: =IF(AND(Stage2!G40="None",F25<>0),1,0) -> 0 | X25: =IF(AND(Stage2!I40="None",G25<>0),1,0) -> 0 | Y25: =IF(AND(Stage2!K40="None",H25<>0),1,0) -> 0 | Z25: =IF(Stage1!A35<=Alts,1,0) -> 0 | AA25: =Stage1!C35 -> Quadrant Roadway | AB25: Two lanes in each direction on quadrant roadway with dual LT lanes | AC25: New full depth pave entire intersection | AD25: Avg 500' intersection spacing (Default) | AE25: New quadrant road in new ROW | AF25: 0 | AG25: 2276717.366 | AH25: =VLOOKUP(AD25,D155:E158,2,FALSE) -> 1500 | AI25: =VLOOKUP(AD25,D155:E158,2,FALSE) -> 1500 | AJ25: 8 | AK25: =IF(AE25="Existing roadway in one quadrant",0,(AH25-1000)/2*3.1418)*24 -> 18850.8 | AL25: 198850.8 | AM25: =IF(AC25="Resurface intersection",AL25/27,0) -> 0 | AN25: 0 | AO25: =IF(AC25="New full depth pave entire intersection",AL25/27,IF(AC25="New full depth pave on quadrant",AK25/27,0)) -> 7364.844444 | AP25: 1841211.111 | AQ25: =(VLOOKUP(AA25,Stage1!C33:L70,6,FALSE)*AH25+VLOOKUP(AA25,Stage1!C33:L70,10,FALSE)*AI25)/43560 -> 0.9641873278 | AR25: =IFERROR(VLOOKUP(AA25,$A$17:$G$21,7,FALSE),0) -> 0 | AS25: 48209.36639 | AT25: 3 | AU25: 240000 | AV25: =IFERROR(VLOOKUP(AA25,$A$17:$G$21,6,FALSE),0) -> 0 | AW25: 0 | AX25: =IFERROR(VLOOKUP(AA25,$A$17:$G$21,5,FALSE),0) -> 0 | AY25: 0 | AZ25: =IFERROR(VLOOKUP(AA25,$A$17:$G$21,4,FALSE),0) -> 0 | BA25: 0 | BB25: 0 | BC25: 0 | BD25: 0 | BE25: 0 | BF25: 0 | BG25: 0 | BI25: =BH25*Cost_concrete -> 0 | BJ25: 0 | BK25: =IFERROR(VLOOKUP(AA25,$A$17:$HU$21,8,FALSE),0) -> 0 | BL25: =VLOOKUP(Terrain,IntersectionData!$BG$17:$BH$20,2,FALSE)*AL25/27*Cost_fulldepth -> 147296.8889
A26: For minimal or significant environmental impacts identified in Stage 2 (highlighted in ORANGE), enter cost estimate to mitigate each impact. | C26: Graveyard | D26: 0 | E26: 0 | F26: 0 | G26: 0 | H26: 0 | J26: Project Size | K26: Single intersection | P26: =IF(Stage2!C41<>"None",1,0) -> 0 | Q26: =IF(Stage2!E41<>"None",1,0) -> 0 | R26: =IF(Stage2!G41<>"None",1,0) -> 0 | S26: =IF(Stage2!I41<>"None",1,0) -> 0 | T26: =IF(Stage2!K41<>"None",1,0) -> 0 | U26: =IF(AND(Stage2!C41="None",D26<>0),1,0) -> 0 | V26: =IF(AND(Stage2!E41="None",E26<>0),1,0) -> 0 | W26: =IF(AND(Stage2!G41="None",F26<>0),1,0) -> 0 | X26: =IF(AND(Stage2!I41="None",G26<>0),1,0) -> 0 | Y26: =IF(AND(Stage2!K41="None",H26<>0),1,0) -> 0 | Z26: =IF(Stage1!A36<=Alts,1,0) -> 0 | AA26: =Stage1!C36 -> Split Intersection | AB26: Divided main roadway; coordinated 3-phase signalized intersections; no structure impacts; widens only at intersection | AC26: 300' intersection spacing (default) | AF26: 0 | AG26: 2325209.366 | AH26: =VLOOKUP(AC26,G155:H157,2,FALSE) -> 1900 | AI26: 1000 | AJ26: 5 | AK26: 0 | AL26: 161700 | AM26: =IF(AC26="Resurface intersection",AL26/27,0) -> 0 | AN26: 0 | AO26: =AL26/27 -> 5988.888889 | AP26: 1497222.222 | AQ26: =(VLOOKUP(AA26,Stage1!C34:L71,6,FALSE)*AH26+VLOOKUP(AA26,Stage1!C34:L71,10,FALSE)*AI26)/43560 -> 10.96418733 | AR26: =IFERROR(VLOOKUP(AA26,$A$17:$G$21,7,FALSE),0) -> 0 | AS26: 548209.3664 | AT26: 2 | AU26: 160000 | AV26: =IFERROR(VLOOKUP(AA26,$A$17:$G$21,6,FALSE),0) -> 0 | AW26: 0 | AX26: =IFERROR(VLOOKUP(AA26,$A$17:$G$21,5,FALSE),0) -> 0 | AY26: 0 | AZ26: =IFERROR(VLOOKUP(AA26,$A$17:$G$21,4,FALSE),0) -> 0 | BA26: 0 | BB26: 0 | BC26: 0 | BD26: 0 | BE26: 0 | BF26: 0 | BG26: 0 | BI26: =BH26*Cost_concrete -> 0 | BJ26: 0 | BK26: =IFERROR(VLOOKUP(AA26,$A$17:$HU$21,8,FALSE),0) -> 0 | BL26: =VLOOKUP(Terrain,IntersectionData!$BG$17:$BH$20,2,FALSE)*AL26/27*Cost_fulldepth -> 119777.7778
C27: Stream | D27: 0 | E27: 0 | F27: 0 | G27: 0 | H27: 0 | I27: Traffic Management | K27: Maintain Traffic | P27: =IF(Stage2!C42<>"None",1,0) -> 0 | Q27: =IF(Stage2!E42<>"None",1,0) -> 0 | R27: =IF(Stage2!G42<>"None",1,0) -> 0 | S27: =IF(Stage2!I42<>"None",1,0) -> 0 | T27: =IF(Stage2!K42<>"None",1,0) -> 0 | U27: =IF(AND(Stage2!C42="None",D27<>0),1,0) -> 0 | V27: =IF(AND(Stage2!E42="None",E27<>0),1,0) -> 0 | W27: =IF(AND(Stage2!G42="None",F27<>0),1,0) -> 0 | X27: =IF(AND(Stage2!I42="None",G27<>0),1,0) -> 0 | Y27: =IF(AND(Stage2!K42="None",H27<>0),1,0) -> 0 | Z27: =IF(Stage1!A37<=Alts,1,0) -> 1 | AA27: =Stage1!C37 -> Bowtie Intersection | AB27: Signalized main intersection; Two 150' DIA roundabouts on cross street | AC27: 400' intersection spacing | AD27: Single lane roundabouts | AF27: 0 | AG27: 897099.3043 | AH27: 600 | AI27: 350 | AJ27: 2 | AK27: 0 | AL27: =IF(AF27<>0,AF27,AH27*Lanes_maj*12+AI27*Lanes_min*12+AJ27*250*18+AK27+L78) -> 55440.72241 | AO27: =AL27/27+AN64+L78 -> 2894.082497 | AP27: 723520.6241 | AQ27: =(VLOOKUP(AA27,Stage1!C35:L72,6,FALSE)*AH27+VLOOKUP(AA27,Stage1!C35:L72,10,FALSE)*AI27)/43560 -> 0.2502295684 | AR27: =IFERROR(VLOOKUP(AA27,$A$17:$G$21,7,FALSE),0) -> 0 | AS27: 12511.47842 | AT27: 1 | AU27: =AT27*_xlfn.SINGLE(Cost_Signal) -> 80000 | AV27: =IFERROR(VLOOKUP(AA27,$A$17:$G$21,6,FALSE),0) -> 0 | AW27: 0 | AX27: =IFERROR(VLOOKUP(AA27,$A$17:$G$21,5,FALSE),0) -> 0 | AY27: 0 | AZ27: =IFERROR(VLOOKUP(AA27,$A$17:$G$21,4,FALSE),0) -> 4 | BA27: 40000 | BB27: 0 | BC27: 0 | BD27: 0 | BE27: 0 | BF27: 0 | BG27: 0 | BI27: =BH27*Cost_concrete -> 0 | BJ27: 0 | BK27: =IFERROR(VLOOKUP(AA27,$A$17:$HU$21,8,FALSE),0) -> 0 | BL27: =VLOOKUP(Terrain,IntersectionData!$BG$17:$BH$20,2,FALSE)*AL27/27*Cost_fulldepth -> 41067.20178
C28: Underground Tank/Hazmat | D28: 0 | E28: 0 | F28: 0 | G28: 0 | H28: 0 | K28: Factors | P28: =IF(Stage2!C43<>"None",1,0) -> 0 | Q28: =IF(Stage2!E43<>"None",1,0) -> 0 | R28: =IF(Stage2!G43<>"None",1,0) -> 0 | S28: =IF(Stage2!I43<>"None",1,0) -> 0 | T28: =IF(Stage2!K43<>"None",1,0) -> 0 | U28: =IF(AND(Stage2!C43="None",D28<>0),1,0) -> 0 | V28: =IF(AND(Stage2!E43="None",E28<>0),1,0) -> 0 | W28: =IF(AND(Stage2!G43="None",F28<>0),1,0) -> 0 | X28: =IF(AND(Stage2!I43="None",G28<>0),1,0) -> 0 | Y28: =IF(AND(Stage2!K43="None",H28<>0),1,0) -> 0 | Z28: =IF(Stage1!A38<=Alts,1,0) -> 0
C29: Park Land | D29: 0 | E29: 0 | F29: 0 | G29: 0 | H29: 0 | I29: Engineering Design | K29: 0.2 | P29: =IF(Stage2!C44<>"None",1,0) -> 0 | Q29: =IF(Stage2!E44<>"None",1,0) -> 0 | R29: =IF(Stage2!G44<>"None",1,0) -> 0 | S29: =IF(Stage2!I44<>"None",1,0) -> 0 | T29: =IF(Stage2!K44<>"None",1,0) -> 0 | U29: =IF(AND(Stage2!C44="None",D29<>0),1,0) -> 0 | V29: =IF(AND(Stage2!E44="None",E29<>0),1,0) -> 0 | W29: =IF(AND(Stage2!G44="None",F29<>0),1,0) -> 0 | X29: =IF(AND(Stage2!I44="None",G29<>0),1,0) -> 0 | Y29: =IF(AND(Stage2!K44="None",H29<>0),1,0) -> 0 | Z29: =IF(Stage1!A39<=Alts,1,0) -> 0 | AA29: =Stage1!C39 -> Echelon | AF29: 0 | AL29: =IF(AF29<>0,AF29,0) -> 0
C30: EJ Community | D30: 0 | E30: 0 | F30: 0 | G30: 0 | H30: 0 | I30: Contingency | K30: 0.3 | P30: =IF(Stage2!C45<>"None",1,0) -> 0 | Q30: =IF(Stage2!E45<>"None",1,0) -> 0 | R30: =IF(Stage2!G45<>"None",1,0) -> 0 | S30: =IF(Stage2!I45<>"None",1,0) -> 0 | T30: =IF(Stage2!K45<>"None",1,0) -> 0 | U30: =IF(AND(Stage2!C45="None",D30<>0),1,0) -> 0 | V30: =IF(AND(Stage2!E45="None",E30<>0),1,0) -> 0 | W30: =IF(AND(Stage2!G45="None",F30<>0),1,0) -> 0 | X30: =IF(AND(Stage2!I45="None",G30<>0),1,0) -> 0 | Y30: =IF(AND(Stage2!K45="None",H30<>0),1,0) -> 0 | Z30: =IF(Stage1!A40<=Alts,1,0) -> 0 | AA30: =Stage1!C40 -> Center Turn Overpass | AF30: 0 | AL30: =IF(AF30<>0,AF30,0) -> 0
A31: =IF(SUM(U24:Y33)<>0,"Be sure to zero-out any cost inputs where there are no impacts specified (hightlighed in RED)","") ->  | C31: Floodplain | D31: 10000 | E31: 0 | F31: 0 | G31: 0 | H31: 0 | P31: =IF(Stage2!C46<>"None",1,0) -> 1 | Q31: =IF(Stage2!E46<>"None",1,0) -> 0 | R31: =IF(Stage2!G46<>"None",1,0) -> 0 | S31: =IF(Stage2!I46<>"None",1,0) -> 0 | T31: =IF(Stage2!K46<>"None",1,0) -> 0 | U31: =IF(AND(Stage2!C46="None",D31<>0),1,0) -> 0 | V31: =IF(AND(Stage2!E46="None",E31<>0),1,0) -> 0 | W31: =IF(AND(Stage2!G46="None",F31<>0),1,0) -> 0 | X31: =IF(AND(Stage2!I46="None",G31<>0),1,0) -> 0 | Y31: =IF(AND(Stage2!K46="None",H31<>0),1,0) -> 0 | Z31: =IF(Stage1!A41<=Alts,1,0) -> 0 | AA31: =Stage1!C41 -> Grade-Separated T-Interchange | AF31: 0 | AL31: 0
C32: Wetland | D32: 30000 | E32: 30000 | F32: 0 | G32: 0 | H32: 0 | P32: =IF(Stage2!C47<>"None",1,0) -> 1 | Q32: =IF(Stage2!E47<>"None",1,0) -> 1 | R32: =IF(Stage2!G47<>"None",1,0) -> 0 | S32: =IF(Stage2!I47<>"None",1,0) -> 0 | T32: =IF(Stage2!K47<>"None",1,0) -> 0 | U32: =IF(AND(Stage2!C47="None",D32<>0),1,0) -> 0 | V32: =IF(AND(Stage2!E47="None",E32<>0),1,0) -> 0 | W32: =IF(AND(Stage2!G47="None",F32<>0),1,0) -> 0 | X32: =IF(AND(Stage2!I47="None",G32<>0),1,0) -> 0 | Y32: =IF(AND(Stage2!K47="None",H32<>0),1,0) -> 0 | Z32: =IF(Stage1!A42<=Alts,1,0) -> 0 | AA32: =Stage1!C42 -> Diamond Interchange | AB32: Major roadway passes under or over crossing street; two ramp terminal intersections | AC32: 300' intersection spacing (default) | AF32: 0 | AL32: 0
C33: T&E Species Habitat | D33: 0 | E33: 0 | F33: 0 | G33: 0 | H33: 0 | P33: =IF(Stage2!C48<>"None",1,0) -> 0 | Q33: =IF(Stage2!E48<>"None",1,0) -> 0 | R33: =IF(Stage2!G48<>"None",1,0) -> 0 | S33: =IF(Stage2!I48<>"None",1,0) -> 0 | T33: =IF(Stage2!K48<>"None",1,0) -> 0 | U33: =IF(AND(Stage2!C48="None",D33<>0),1,0) -> 0 | V33: =IF(AND(Stage2!E48="None",E33<>0),1,0) -> 0 | W33: =IF(AND(Stage2!G48="None",F33<>0),1,0) -> 0 | X33: =IF(AND(Stage2!I48="None",G33<>0),1,0) -> 0 | Y33: =IF(AND(Stage2!K48="None",H33<>0),1,0) -> 0 | Z33: =IF(Stage1!A43<=Alts,1,0) -> 0 | AA33: =Stage1!C43 -> Cloverleaf Interchange | AF33: 0 | AL33: 0
C34: Totals: | D34: =SUM(D24:D33) -> 40000 | E34: =SUM(E24:E33) -> 30000 | F34: 0 | G34: 0 | H34: 0 | Z34: =IF(Stage1!A44<=Alts,1,0) -> 0 | AA34: =Stage1!C44 -> Partial Cloverleaf (Parclo) | AF34: 0 | AL34: 0
Z35: =IF(Stage1!A45<=Alts,1,0) -> 0 | AA35: =Stage1!C45 -> Diverging Diamond | AF35: 0 | AL35: 0
A36: Alternative | B36: Assumptions | H36: Construction Cost | I36: Right-of-Way Costs | J36: Environment Impacts | K36: Utility Impacts | L36: Design & Contingency | M36: TOTAL COST | Z36: =IF(Stage1!A46<=Alts,1,0) -> 0 | AA36: =Stage1!C46 -> Single Point Interchange | AF36: 0 | AL36: 0
A37: =Alternative1 -> Displaced Left-Turn / CFI | B37: =IF(A37="","",CONCATENATE(VLOOKUP(A37,$AA$4:$AE$43,2,FALSE),"; ",,CONCATENATE(VLOOKUP(A37,$AA$4:$AE$43,3,FALSE),", ",(VLOOKUP(A37,$AA$4:$AE$43,4,FALSE)),", ",(VLOOKUP(A37,$AA$4:$AE$43,5,FALSE))))) -> Right turn bypass lanes; signalized main and crossover intersections; Resurface intersection, Avg 600' crossover spacing (Default), Two-leg CFI (crossovers on Main) | H37: =VLOOKUP(A37,$AA$4:$BL$42,7,FALSE)*VLOOKUP($K$27,$K$138:$M$140,3,FALSE)*VLOOKUP($K$26,$G$159:$I$161,3,FALSE) -> 1083111.111 | I37: =VLOOKUP(A37,$AA4:$BL42,19,FALSE) -> 131313.1313 | J37: =EnvCost1 -> 40000 | K37: =H37*VLOOKUP(C17,$K$126:$L$128,2) -> 32493.33333 | L37: =H37*($K$29+$K$30) -> 541555.5556 | M37: =ROUND(SUM(H37:L38),-3) -> 1828000 | Z37: =IF(Stage1!A47<=Alts,1,0) -> 0 | AA37: =Stage1!C47 -> Contraflow Left | AF37: 0 | AL37: 0
Z38: =IF(Stage1!A48<=Alts,1,0) -> 0 | AA38: =Stage1!C48 -> Single Roundabout Interchange | AF38: 0 | AL38: 0
A39: =Alternative2 -> Multilane Roundabout | B39: =IF(A39="","",CONCATENATE(VLOOKUP(A39,$AA$4:$AE$43,2,FALSE),"; ",,CONCATENATE(VLOOKUP(A39,$AA$4:$AE$43,3,FALSE),", ",(VLOOKUP(A39,$AA$4:$AE$43,4,FALSE)),", ",(VLOOKUP(A39,$AA$4:$AE$43,5,FALSE))))) -> New multi-lane RND w/splitter islands, truck apron and landscaped median; 200' Inscribed Diameter, No RT by-pass lanes, 2x1 Multilane RND | H39: =IF(A39="","",VLOOKUP(A39,$AA$4:$BL$42,7,FALSE)*VLOOKUP($K$27,$K$138:$M$140,3,FALSE)*VLOOKUP($K$26,$G$159:$I$161,3,FALSE)) -> 1370071.436 | I39: =IF(A39="","",VLOOKUP(A39,$AA6:$BL44,19,FALSE)) -> 61478.42057 | J39: =EnvCost2 -> 30000 | K39: =IF(A39="","",H39*VLOOKUP(C18,$K$126:$L$128,2)) -> 41102.14308 | L39: =IF(A39="","",H39*($K$29+$K$30)) -> 685035.718 | M39: =IF(A39="","",ROUND(SUM(H39:L40),-3)) -> 2188000 | Z39: =IF(Stage1!A49<=Alts,1,0) -> 0 | AA39: =Stage1!C49 -> Double Roundabout Interchange | AF39: 0 | AL39: 0
Z40: =IF(Stage1!A50<=Alts,1,0) -> 0 | AA40: =Stage1!C50 -> Single Quadrant Interchange | AF40: 0 | AL40: 0
A41: =Alternative3 -> Superstreet / RCI | B41: =IF(A41="","",CONCATENATE(VLOOKUP(A41,$AA$4:$AE$43,2,FALSE),"; ",,CONCATENATE(VLOOKUP(A41,$AA$4:$AE$43,3,FALSE),", ",(VLOOKUP(A41,$AA$4:$AE$43,4,FALSE)),", ",(VLOOKUP(A41,$AA$4:$AE$43,5,FALSE))))) -> Add directional U-turns on Main Road; signalize main intersection and crossovers; RT only from Minor Road; Resurface intersection, Avg 800' U-turn spacing, 2 new directional openings | H41: =IF(A41="","",VLOOKUP(A41,$AA$4:$BL$42,7,FALSE)*VLOOKUP($K$27,$K$138:$M$140,3,FALSE)*VLOOKUP($K$26,$G$159:$I$161,3,FALSE)) -> 791175.0842 | I41: =IF(A41="","",VLOOKUP(A41,$AA8:$BL46,19,FALSE)) -> 145546.3728 | J41: =IF(A41="","",EnvCost3) -> 0 | K41: =IF(A41="","",H41*VLOOKUP(C19,$K$126:$L$128,2)) -> 23735.25253 | L41: =IF(A41="","",H41*($K$29+$K$30)) -> 395587.5421 | M41: =IF(A41="","",ROUND(SUM(H41:L42),-3)) -> 1356000 | Z41: =IF(Stage1!A51<=Alts,1,0) -> 0 | AA41: =Stage1!C51 -> Other Interchange (provide description): | AF41: 0 | AL41: 0
AF42: * Pavement Area must be set to zero in order for the worksheet to calculate pavement area
A43: =Alternative4 -> Bowtie Intersection | B43: =IF(A43="","",CONCATENATE(VLOOKUP(A43,$AA$4:$AE$43,2,FALSE),"; ",,CONCATENATE(VLOOKUP(A43,$AA$4:$AE$43,3,FALSE),", ",(VLOOKUP(A43,$AA$4:$AE$43,4,FALSE)),", ",(VLOOKUP(A43,$AA$4:$AE$43,5,FALSE))))) -> Signalized main intersection; Two 150' DIA roundabouts on cross street; 400' intersection spacing, Single lane roundabouts , | H43: =IF(A43="","",VLOOKUP(A43,$AA$4:$BL$42,7,FALSE)*VLOOKUP($K$27,$K$138:$M$140,3,FALSE)*VLOOKUP($K$26,$G$159:$I$161,3,FALSE)) -> 986809.2348 | I43: =IF(A43="","",VLOOKUP(A43,$AA10:$BL48,19,FALSE)) -> 12511.47842 | J43: =IF(A43="","",EnvCost4) -> 0 | K43: =IF(A43="","",H43*VLOOKUP(C20,$K$126:$L$128,2)) -> 29604.27704 | L43: =IF(A43="","",H43*($K$29+$K$30)) -> 493404.6174 | M43: =IF(A43="","",ROUND(SUM(H43:L44),-3)) -> 1522000
A45: =Alternative5 -> Signalized Intersection | B45: =IF(A45="","",CONCATENATE(VLOOKUP(A45,$AA$4:$AE$43,2,FALSE),"; ",,CONCATENATE(VLOOKUP(A45,$AA$4:$AE$43,3,FALSE),", ",(VLOOKUP(A45,$AA$4:$AE$43,4,FALSE)),", ",(VLOOKUP(A45,$AA$4:$AE$43,5,FALSE))))) -> Signalize existing intersection; Resurface intersection, No new left turn lanes, No new right turn lanes | H45: =IF(A45="","",VLOOKUP(A45,$AA$4:$BL$42,7,FALSE)*VLOOKUP($K$27,$K$138:$M$140,3,FALSE)*VLOOKUP($K$26,$G$159:$I$161,3,FALSE)) -> 185579.798 | I45: =IF(A45="","",VLOOKUP(A45,$AA12:$BL50,19,FALSE)) -> 8264.46281 | J45: =IF(A45="","",EnvCost5) -> 0 | K45: =IF(A45="","",H45*VLOOKUP(C21,$K$126:$L$128,2)) -> 5567.393939 | L45: =IF(A45="","",H45*($K$29+$K$30)) -> 92789.89899 | M45: =IF(A45="","",ROUND(SUM(H45:L46),-3)) -> 292000
A48: ROW Factor: | B48: 1 | D48: Cost of ROW by ACRE | N48: Hide
A49: County: | B49: Commercial | C49: Residential | D49: Agriculture | E49: Industrial | F49: Average | N49: Hide
A50: =IntersectionData!BM4 -> --select-- | B50: 0 | C50: 0 | D50: 0 | E50: 0 | F50: 0 | I50: Area Cost Items | N50: Hide
A51: =IntersectionData!BM5 -> Adams | B51: 250000 | C51: 50000 | D51: 20000 | E51: 55000 | F51: 90000 | I51: Repaving cost, sqyd: | J51: 65 | K51: [Cost_repave] | N51: Hide
A52: =IntersectionData!BM6 -> Alamosa | B52: 250000 | C52: 50000 | D52: 20000 | E52: 55000 | F52: 90000 | I52: New full depth pavement, sqyd: | J52: 250 | K52: [Cost_fulldepth] | N52: Hide
A53: =IntersectionData!BM7 -> Arapahoe | B53: 250000 | C53: 50000 | D53: 20000 | E53: 55000 | F53: 90000 | I53: New bridge, sqft: | J53: 200 | K53: [Cost_bridge] | N53: Hide
A54: =IntersectionData!BM8 -> Archuleta | B54: 250000 | C54: 50000 | D54: 20000 | E54: 55000 | F54: 90000 | I54: Retaining Wall, sqft: | J54: 100 | K54: [Cost_retain] | N54: Hide
A55: =IntersectionData!BM9 -> Baca | B55: 250000 | C55: 50000 | D55: 20000 | E55: 55000 | F55: 90000 | I55: Driveway Impacts, ea | J55: 10000 | K55: [Cost_driveway] | N55: Hide
A56: =IntersectionData!BM10 -> Bent | B56: 250000 | C56: 50000 | D56: 20000 | E56: 55000 | F56: 90000 | I56: Sidewalk, LF: | J56: 50 | K56: [Cost_sidewalk] | N56: Hide | AN56: `
A57: =IntersectionData!BM11 -> Boulder | B57: 250000 | C57: 50000 | D57: 20000 | E57: 55000 | F57: 90000 | I57: Path, LF: | J57: 75 | K57: [Cost_path] | N57: Hide
A58: =IntersectionData!BM12 -> Broomfield | B58: 250000 | C58: 50000 | D58: 20000 | E58: 55000 | F58: 90000 | I58: Urban Curb and Gutter, LF: | J58: 70 | K58: [Cost_curb] | N58: Hide
A59: =IntersectionData!BM13 -> Chaffee | B59: 250000 | C59: 50000 | D59: 20000 | E59: 55000 | F59: 90000 | I59: Concrete Island/Medians, sqft: | J59: 60 | K59: [Cost_concrete] | N59: Hide
A60: =IntersectionData!BM14 -> Cheyenne | B60: 250000 | C60: 50000 | D60: 20000 | E60: 55000 | F60: 90000 | I60: Landscaping, LF | J60: 20 | K60: [Cost_landscape] | N60: Hide
A61: =IntersectionData!BM15 -> Clear Creek | B61: 250000 | C61: 50000 | D61: 20000 | E61: 55000 | F61: 90000 | N61: Hide
A62: =IntersectionData!BM16 -> Conejos | B62: 250000 | C62: 50000 | D62: 20000 | E62: 55000 | F62: 90000 | I62: Signal Installation Costs | N62: Hide
A63: =IntersectionData!BM17 -> Costilla | B63: 250000 | C63: 50000 | D63: 20000 | E63: 55000 | F63: 90000 | I63: Wood Pole | J63: 40000 | N63: Hide
A64: =IntersectionData!BM18 -> Crowley | B64: 250000 | C64: 50000 | D64: 20000 | E64: 55000 | F64: 90000 | I64: Strain Pole | J64: 80000 | N64: Hide
A65: =IntersectionData!BM19 -> Custer | B65: 250000 | C65: 50000 | D65: 20000 | E65: 55000 | F65: 90000 | I65: Mast Arm | J65: 150000 | N65: Hide
A66: =IntersectionData!BM20 -> Delta | B66: 250000 | C66: 50000 | D66: 20000 | E66: 55000 | F66: 90000 | I66: SignalCost | J66: =VLOOKUP(K25,I63:J65,2,FALSE) -> 80000 | K66: [Cost_signal] | N66: Hide
A67: =IntersectionData!BM21 -> Denver | B67: 250000 | C67: 50000 | D67: 20000 | E67: 55000 | F67: 90000 | N67: Hide
A68: =IntersectionData!BM22 -> Dolores | B68: 250000 | C68: 50000 | D68: 20000 | E68: 55000 | F68: 90000 | I68: Percentage items | N68: Hide
A69: =IntersectionData!BM23 -> Douglas | B69: 250000 | C69: 50000 | D69: 20000 | E69: 55000 | F69: 90000 | I69: Driveway impacts, LS: | J69: 25000 | K69: [Cost_driveway] | N69: Hide
A70: =IntersectionData!BM24 -> Eagle | B70: 250000 | C70: 50000 | D70: 20000 | E70: 55000 | F70: 90000 | N70: Hide
A71: =IntersectionData!BM25 -> Elbert | B71: 250000 | C71: 50000 | D71: 20000 | E71: 55000 | F71: 90000 | N71: Hide
A72: =IntersectionData!BM26 -> El Paso | B72: 250000 | C72: 50000 | D72: 20000 | E72: 55000 | F72: 90000 | N72: Hide
A73: =IntersectionData!BM27 -> Fremont | B73: 250000 | C73: 50000 | D73: 20000 | E73: 55000 | F73: 90000 | M73: 40 | N73: Hide
A74: =IntersectionData!BM28 -> Garfield | B74: 250000 | C74: 50000 | D74: 20000 | E74: 55000 | F74: 90000 | H74: Roundabout Calculations: | J74: Int Box | K74: RAB DIA | L74: RAB area | M74: Diff Acres | N74: Hide
A75: =IntersectionData!BM29 -> Gilpin | B75: 250000 | C75: 50000 | D75: 20000 | E75: 55000 | F75: 90000 | H75: =AA11 -> Mini Roundabout | J75: =ROW_1*ROW_2/27 -> 237.037037 | K75: =VLOOKUP(AC11,D117:F126,3,FALSE) -> 70 | L75: =3.1418*(K75/2+30)^2/27 -> 491.6335185 | M75: =IF(L75>J75,L75-J75,0)/43560*$M$73 -> 0.2337892392 | N75: Hide
A76: =IntersectionData!BM30 -> Grand | B76: 250000 | C76: 50000 | D76: 20000 | E76: 55000 | F76: 90000 | H76: =AA12 -> Single Lane Roundabout | J76: =ROW_1*ROW_2/27 -> 237.037037 | K76: =VLOOKUP(AC12,D117:F126,3,FALSE) -> 130 | L76: =3.1418*(K76/2+20)^2/27 -> 840.7224074 | M76: =IF(L76>J76,L76-J76,0)/43560*$M$73 -> 0.5543483658 | N76: Hide
A77: =IntersectionData!BM31 -> Gunnison | B77: 250000 | C77: 50000 | D77: 20000 | E77: 55000 | F77: 90000 | H77: =AA13 -> Multilane Roundabout | J77: =ROW_1*ROW_2/27 -> 237.037037 | K77: =VLOOKUP(AC13,D117:F126,3,FALSE) -> 200 | L77: =3.1418*(K77/2+20)^2/27 -> 1675.626667 | M77: =IF(L77>J77,L77-J77,0)/43560*$M$73 -> 1.321018944 | N77: Hide
A78: =IntersectionData!BM32 -> Hinsdale | B78: 250000 | C78: 50000 | D78: 20000 | E78: 55000 | F78: 90000 | H78: =AA27 -> Bowtie Intersection | J78: =K78*ROW_2/27 -> 385.1851852 | K78: =VLOOKUP(AD27,D145:F146,3,FALSE) -> 130 | L78: =3.1418*(K78/2+20)^2/27 -> 840.7224074 | M78: =IF(L78>J78,L78-J78,0)/43560*2*M73 -> 0.8366156515 | N78: Hide
A79: =IntersectionData!BM33 -> Huerfano | B79: 250000 | C79: 50000 | D79: 20000 | E79: 55000 | F79: 90000 | N79: Hide
A80: =IntersectionData!BM34 -> Jackson | B80: 250000 | C80: 50000 | D80: 20000 | E80: 55000 | F80: 90000 | N80: Hide
A81: =IntersectionData!BM35 -> Jefferson | B81: 250000 | C81: 50000 | D81: 20000 | E81: 55000 | F81: 90000 | N81: Hide
A82: =IntersectionData!BM36 -> Kiowa | B82: 250000 | C82: 50000 | D82: 20000 | E82: 55000 | F82: 90000 | N82: Hide
A83: =IntersectionData!BM37 -> Kit Carson | B83: 250000 | C83: 50000 | D83: 20000 | E83: 55000 | F83: 90000 | N83: Hide
A84: =IntersectionData!BM38 -> Lake | B84: 250000 | C84: 50000 | D84: 20000 | E84: 55000 | F84: 90000 | N84: Hide
A85: =IntersectionData!BM39 -> La Plata | B85: 250000 | C85: 50000 | D85: 20000 | E85: 55000 | F85: 90000 | N85: Hide
A86: =IntersectionData!BM40 -> Larimer | B86: 250000 | C86: 50000 | D86: 20000 | E86: 55000 | F86: 90000 | N86: Hide
A87: =IntersectionData!BM41 -> Las Animas | B87: 250000 | C87: 50000 | D87: 20000 | E87: 55000 | F87: 90000 | N87: Hide
A88: =IntersectionData!BM42 -> Lincoln | B88: 250000 | C88: 50000 | D88: 20000 | E88: 55000 | F88: 90000 | N88: Hide
A89: =IntersectionData!BM43 -> Logan | B89: 250000 | C89: 50000 | D89: 20000 | E89: 55000 | F89: 90000 | N89: Hide
A90: =IntersectionData!BM44 -> Mesa | B90: 250000 | C90: 50000 | D90: 20000 | E90: 55000 | F90: 90000 | N90: Hide
A91: =IntersectionData!BM45 -> Mineral | B91: 250000 | C91: 50000 | D91: 20000 | E91: 55000 | F91: 90000 | N91: Hide
A92: =IntersectionData!BM46 -> Moffat | B92: 250000 | C92: 50000 | D92: 20000 | E92: 55000 | F92: 90000 | N92: Hide
A93: =IntersectionData!BM47 -> Montezuma | B93: 250000 | C93: 50000 | D93: 20000 | E93: 55000 | F93: 90000 | N93: Hide
A94: =IntersectionData!BM48 -> Montrose | B94: 250000 | C94: 50000 | D94: 20000 | E94: 55000 | F94: 90000 | N94: Hide
A95: =IntersectionData!BM49 -> Morgan | B95: 250000 | C95: 50000 | D95: 20000 | E95: 55000 | F95: 90000 | N95: Hide
A96: =IntersectionData!BM50 -> Otero | B96: 250000 | C96: 50000 | D96: 20000 | E96: 55000 | F96: 90000 | N96: Hide
A97: =IntersectionData!BM51 -> Ouray | B97: 250000 | C97: 50000 | D97: 20000 | E97: 55000 | F97: 90000 | N97: Hide
A98: =IntersectionData!BM52 -> Park | B98: 250000 | C98: 50000 | D98: 20000 | E98: 55000 | F98: 90000 | N98: Hide
A99: =IntersectionData!BM53 -> Phillips | B99: 250000 | C99: 50000 | D99: 20000 | E99: 55000 | F99: 90000 | N99: Hide
A100: =IntersectionData!BM54 -> Pitkin | B100: 250000 | C100: 50000 | D100: 20000 | E100: 55000 | F100: 90000 | N100: Hide
A101: =IntersectionData!BM55 -> Prowers | B101: 250000 | C101: 50000 | D101: 20000 | E101: 55000 | F101: 90000 | N101: Hide
A102: =IntersectionData!BM56 -> Pueblo | B102: 250000 | C102: 50000 | D102: 20000 | E102: 55000 | F102: 90000 | N102: Hide
A103: =IntersectionData!BM57 -> Rio Blanco | B103: 250000 | C103: 50000 | D103: 20000 | E103: 55000 | F103: 90000 | N103: Hide
A104: =IntersectionData!BM58 -> Rio Grande | B104: 250000 | C104: 50000 | D104: 20000 | E104: 55000 | F104: 90000 | N104: Hide
A105: =IntersectionData!BM59 -> Routt | B105: 250000 | C105: 50000 | D105: 20000 | E105: 55000 | F105: 90000 | N105: Hide
A106: =IntersectionData!BM60 -> Saguache | B106: 250000 | C106: 50000 | D106: 20000 | E106: 55000 | F106: 90000 | N106: Hide
A107: =IntersectionData!BM61 -> San Juan | B107: 250000 | C107: 50000 | D107: 20000 | E107: 55000 | F107: 90000 | N107: Hide
A108: =IntersectionData!BM62 -> San Miguel | B108: 250000 | C108: 50000 | D108: 20000 | E108: 55000 | F108: 90000 | N108: Hide
A109: =IntersectionData!BM63 -> Sedgwick | B109: 250000 | C109: 50000 | D109: 20000 | E109: 55000 | F109: 90000 | N109: Hide
A110: =IntersectionData!BM64 -> Summit | B110: 250000 | C110: 50000 | D110: 20000 | E110: 55000 | F110: 90000 | N110: Hide
A111: =IntersectionData!BM65 -> Teller | B111: 250000 | C111: 50000 | D111: 20000 | E111: 55000 | F111: 90000 | N111: Hide
A112: =IntersectionData!BM66 -> Washington | B112: 250000 | C112: 50000 | D112: 20000 | E112: 55000 | F112: 90000 | N112: Hide
A113: =IntersectionData!BM67 -> Weld | B113: 250000 | C113: 50000 | D113: 20000 | E113: 55000 | F113: 90000 | N113: Hide
A114: =IntersectionData!BM68 -> Yuma | B114: 250000 | C114: 50000 | D114: 20000 | E114: 55000 | F114: 90000 | N114: Hide
N115: Hide
B116: AWS / Minor Street Stop | D116: Roundabouts | N116: Hide
B117: No paving | D117: 50' Inscribed Diameter | F117: 50 | N117: Hide
B118: Resurface intersection | D118: 70' Inscribed Dia (default mini) | F118: 70 | N118: Hide
B119: New full depth pavement | D119: 90' Inscribed Diameter | F119: 90 | G119: Signalize Intersection | K119: Offset T-intersections | N119: Hide
B120: No additional warnings | D120: 110' Inscribed Diameter | F120: 110 | G120: No paving | K120: Offset left / right intersection | N120: Hide
B121: Add solar advance warning signs | D121: 130' Inscribed Dia (default single) | F121: 130 | G121: Resurface intersection | K121: Symmetrical realignment | N121: Hide
B122: Add flashing beacon | D122: 150' Inscribed Diameter | F122: 150 | G122: New full depth pavement | K122: 300' intersection spacing | L122: 1300 | N122: Hide
B123: RIRO / 3/4 Access | D123: 180' Inscribed Dia (default multi) | F123: 180 | G123: No new left turn lanes | H123: 200 | I123: 200 | J123: 0 | K123: 500' intersection spacing (Default) | L123: 1500 | N123: Hide
B124: No paving | D124: 200' Inscribed Diameter | F124: 200 | G124: Add left lanes on Major Rd | H124: 1000 | I124: 200 | J124: 2 | K124: 700' intersection spacing | L124: 1700 | N124: Hide
B125: Resurface intersection | D125: 2x1 Multilane RND | G125: Add left lanes on Minor Rd | H125: 200 | I125: 1000 | J125: 2 | K125: Impacts | N125: Hide
B126: New full depth pavement | D126: 2x2 Multilane RND | G126: Add left lanes on Both | H126: 1000 | I126: 1000 | J126: 4 | K126: Minimal | L126: 0.03 | N126: Hide
B127: No channelization | D127: No RT by-pass lanes | F127: 0 | G127: Add dual left lanes on Major Rd | H127: 1000 | I127: 1000 | J127: 4 | K127: Moderate | L127: 0.05 | N127: Hide
B128: Add stanchion barriers | D128: 1 RT by-pass lane | F128: 1 | G128: Add dual left lanes on Minor Rd | H128: 1000 | I128: 1000 | J128: 4 | K128: Significant | L128: 0.08 | N128: Hide
B129: Add channelizing island | D129: 2 RT by-pass lanes | F129: 2 | G129: Add dual left lanes on Both | H129: 1000 | I129: 1000 | J129: 8 | K129: Yes | N129: Hide
B130: Add raised median | D130: 3 RT by-pass lanes | F130: 3 | G130: No new right turn lanes | J130: 0 | K130: No | N130: Hide
B131: No existing LT lane | D131: 4 RT by-pass lanes | F131: 4 | G131: Add right lanes on Major Rd | J131: 2 | K131: --ROW Type-- | N131: Hide
B132: Remove existing LT lane | D132: High-T / Green-T | G132: Add right lanes on Minor Rd | J132: 2 | K132: Mixed (Average) | N132: Hide
B133: RIRO w/Turns, RCUTs / MUT | D133: No paving | G133: Add right lanes on Both | J133: 4 | K133: Commercial | N133: Hide
B134: No paving | D134: Resurface intersection | G134: CFI | K134: Residential | N134: Hide
B135: Resurface turn lanes, U-turns | D135: New full depth pavement | G135: No paving | K135: Agricultural | N135: Hide
B136: Resurface full intersection | D136: Stanchion median separator | G136: Resurface turn lanes, crossovers | K136: Industrial | N136: Hide
B137: Full depth pave turn lanes, U-turns | D137: 4' raised median separator | G137: Resurface full intersection | K137: --Maintenance of Traffic-- | N137: Hide
B138: Full depth pave full intersection | D138: 8' raised median separator | G138: Full depth pave turn lanes, crossovers | K138: Close Intersection | M138: 1 | N138: Hide
B139: Avg 400' U-turn spacing | C139: 1000 | D139: Convert existing LT lane | G139: Full depth pave full intersection | K139: Maintain Traffic | M139: 1.1 | N139: Hide
B140: Avg 600' U-turn spacing (Default) | C140: 1400 | D140: Construct new LT lane | G140: Avg 400' crossover spacing | H140: 900 | K140: Traffic Shifts | M140: 1.2 | N140: Hide
B141: Avg 800' U-turn spacing | C141: 1800 | D141: Construct 2 new LT lanes | G141: Avg 600' crossover spacing (Default) | H141: 1100 | K141: --Signal Poles'' | N141: Hide
B142: Avg 1000' U-turn spacing | C142: 2200 | D142: No resurfacing | G142: Avg 800' crossover spacing | H142: 1300 | K142: Wood Pole | N142: Hide
B143: Make median openings directional | D143: Resurface intersection | G143: Avg 1000' crossover spacing | H143: 1500 | K143: Strain Pole | N143: Hide
B144: 1 new directional opening | D144: Bowtie | G144: Two-leg CFI (crossovers on Main) | K144: Mast Arm | N144: Hide
B145: 2 new directional openings | D145: Single lane roundabouts | F145: 130 | G145: Four-leg CFI (crossovers on Both) | K145: Sidewalks | N145: Hide
B146: 16' median width (min) | D146: Multi-lane roundabouts | F146: 180 | G146: Paired Intersections | K146: None | M146: 0 | N146: Hide
B147: 20' median width | D147: Quadrant Roadway | G147: No paving | K147: SW on major (both sides) | M147: 1 | N147: Hide
B148: 28' median width | D148: Resurface only quadrant roadway | G148: Resurface turn lanes | K148: SW on minor (both sides) | M148: 2 | N148: Hide
B149: 40' median width | D149: Resurface entire intersection | G149: Resurface full intersection | K149: SW on Maj & Min (both) | M149: 3 | N149: Hide
B150: 48' median width (or more) | D150: New full depth pave on quadrant | G150: 400' intersection spacing | H150: 1400 | N150: Hide
B151: Jughandle | D151: New full depth pave entire intersection | G151: 600' intersection spacing (Default) | H151: 1500 | K151: Bicycle Facilities | N151: Hide
B152: Pave only new ramps | D152: Existing roadway in one quadrant | G152: 800' intersection spacing | H152: 1600 | K152: None | N152: Hide
B153: Resurface intersection | D153: New quadrant road in existing ROW | G153: 1000' intersection spacing | H153: 1800 | K153: Bike in-street on major | M153: 1 | N153: Hide
B154: New full depth pavement | D154: New quadrant road in new ROW | G154: Split intersections | K154: Bike in-street on minor | M154: 2 | N154: Hide
B155: Jughandle Type A (Diamond) | D155: Avg 400' intersection spacing | E155: 1400 | G155: 200' intersection spacing | H155: 1800 | K155: Bike in-street on both | M155: 3 | N155: Hide
B156: Jughandle Type C (Loops) | D156: Avg 500' intersection spacing (Default) | E156: 1500 | G156: 300' intersection spacing (default) | H156: 1900 | K156: 10' MU path on major | M156: 4 | N156: Hide
B157: Yield ramp terminal control | D157: Avg 600' intersection spacing | E157: 1600 | G157: 400' intersection spacing | H157: 2000 | K157: 10' MU path on minor | M157: 5 | N157: Hide
B158: Signal ramp terminal control | D158: Avg 800' intersection spacing | E158: 1800 | G158: --Project Size-- | K158: 10' MU path on both | M158: 6 | N158: Hide
G159: Single intersection | I159: 1 | K159: Turn Lanes | N159: Hide
G160: Short corridor | I160: 0.92 | K160: No LT lanes | N160: Hide
G161: Long corridor | I161: 0.85 | K161: LT lanes on major | N161: Hide
G162: --ROW Type-- | K162: LT lanes on minor | N162: Hide
G163: Commercial | K163: LT lanes on both | N163: Hide
G164: Residential | K164: Proposed Thru Lanes | N164: Hide
G165: Agriculture | K165: 2 | N165: Hide
G166: Industrial | K166: 4 | N166: Hide
G167: Average | K167: 6 | N167: Hide
G168: --Drainage-- | K168: 8 | N168: Hide
G169: Standard ditch | K169: --Safety B/C:-- | N169: Hide
G170: Curb&Gutter on Major | K170: Safety B/C: PDO only | N170: Hide
G171: Curb&Gutter on Both | K171: Safety B/C: Fat/Inj only | N171: Hide
K172: Safety B/C: PDO & Fat/Inj | N172: Hide
N173: Hide
N174: Hide

Sheet Stage2
N1: Fill in BLUE data boxes or text below to change default assessment criteria scoring or override default cost and safety data:
A2: ICAT STAGE 2: ALTERNATIVE SELECTION DECISION RECORD | Z2: Menu Items
A3: Developed and Maintained in Cooperation with Georgia DOT | I3: =CONCATENATE(" ",Version) -> CDOT ICAT Version 1.0 | Release Date: 8/30/2021 | O3: Assessment Criteria Scoring | Z3: Analysis Type
A4: CDOT Project Number: | B4: =ProjNo -> 12345 | F4: Existing / Design Year No-Build Traffic Operations | Z4: --select one--
Z5: Safety Improvement Project
A6: Project Location: | B6: =CONCATENATE(Road1, " @ ",Road2) -> Colorado Street @ 30th Street | F6: Traffic Analysis Measure of Effectiveness | J6: Intersection Delay | O6: Criteria | P6: Default | Q6: Override (%) | R6: Value Used | Z6: Operational Improvement Project
A7: Existing Intersection Control: | B7: =ExistControl -> Conventional Minor Stop | F7: Traffic Analysis Software Used | J7: Synchro 10 | O7: Cost Estimate | P7: 0.2 | R7: =IF(Q7="",P7,Q7) -> 0.2
A8: County/Region: | B8: =CONCATENATE(County," / CDOT ",Region) -> Boulder / CDOT Region 1 | F8: Analysis Time Period | J8: =Peak1 -> AM Peak Hr | K8: =Peak2 -> PM Peak Hr | O8: Operations | P8: =IF(AnalysisType=Stage2!Z5,0.25,0.3) -> 0.25 | R8: =IF(Q8="",P8,Q8) -> 0.25 | Z8: Analysis Type | AA8: Political Support
A9: Area Type: | B9: =Area -> Suburban | F9: =IF(J6="Network Delay",CONCATENATE(ExistYr," Existing No-Build Peak Hr Network Delay"), CONCATENATE(ExistYr," Existing No-Build Peak Hr Intersection Delay")) -> 2021 Existing No-Build Peak Hr Intersection Delay | J9: 48 | K9: 53 | O9: Safety | P9: =IF(AnalysisType=Stage2!Z5,0.35,0.3) -> 0.35 | R9: =IF(Q9="",P9,Q9) -> 0.35 | Z9: Intersection Delay | AA9: Strong
A10: Prepared by: | B10: =PreparedBy -> Region Traffic Engineer | F10: =CONCATENATE(ExistYr," Existing No-Build Peak Hr Intersection V/C ratio") -> 2021 Existing No-Build Peak Hr Intersection V/C ratio | J10: 0.85 | K10: 0.95 | O10: Environmental | P10: 0.1 | R10: =IF(Q10="",P10,Q10) -> 0.1 | Z10: Network Delay | AA10: Supportive
A11: Date: | B11: =Date -> 2021-07-27 | F11: =IF(J6="Network Delay",CONCATENATE(IntersectionData!E46," Design Yr No-Build Peak Hr Network Delay"), CONCATENATE(IntersectionData!E46," Design Yr No-Build Peak Hr Intersection Delay")) -> 2043 Design Yr No-Build Peak Hr Intersection Delay | J11: 80 | K11: 115 | O11: Project Support | P11: =1-SUM(P7:P10) -> 0.1 | R11: =IF(Q11="",P11,Q11) -> 0.1 | Z11: Warrants | AA11: Neutral
A12: Type of Project: | B12: =AnalysisType -> Safety Improvement Project | F12: =CONCATENATE(IntersectionData!E46," Design Yr No-Build Peak Hr Intersection V/C ratio") -> 2043 Design Yr No-Build Peak Hr Intersection V/C ratio | J12: 1.14 | K12: 1.3 | R12: =SUM(R7:R11) -> 1 | S12: =IF(R12<>1," Warning: scoring criteria must total to 100%","") ->  | Z12: None | AA12: Negative
N13: Cost Data Override (if generated independent of CostEst Tool) | Z13: Meets AWS only | AA13: Opposition
A14: Alternatives Analysis | C14: Alternative 1 | E14: Alternative 2 | G14: Alternative 3 | I14: Alternative 4 | K14: Alternative 5 | Z14: Meets Signal Warrants | AA14: Unknown
A15: Proposed Control Type Improvement: | C15: =IF(Alternative1="","N/A",Alternative1) -> Displaced Left-Turn / CFI | E15: =IF(Alternative2="","N/A",Alternative2) -> Multilane Roundabout | G15: =IF(Alternative3="","N/A",Alternative3) -> Superstreet / RCI | I15: =IF(Alternative4="","N/A",Alternative4) -> Bowtie Intersection | K15: =IF(Alternative5="","N/A",Alternative5) -> Signalized Intersection | O15: =Alternative1 -> Displaced Left-Turn / CFI | P15: =Alternative2 -> Multilane Roundabout | Q15: =Alternative3 -> Superstreet / RCI | R15: =Alternative4 -> Bowtie Intersection | S15: =Alternative5 -> Signalized Intersection | Z15: Analysis Tools | AA15: Environmental Impacts
A16: Project Cost (From Cost Worksheet) | C16: Add addt'l description here | E16: Add addt'l description here | G16: Add addt'l description here | I16: Add addt'l description here | K16: Add addt'l description here | Z16: --select one-- | AA16: None
A17: Construction Cost | C17: =IF(O17<>0,O17,C70) -> 1083111.111 | E17: =IF(P17<>0,P17,D70) -> 1370071.436 | G17: =IF(Q17<>0,Q17,E70) -> 791175.0842 | I17: =IF(R17<>0,R17,F70) -> 986809.2348 | K17: =IF(S17<>0,S17,G70) -> 231974.7475 | N17: Construction Cost | O17: 0 | P17: 0 | Q17: 0 | R17: 0 | S17: 0 | Z17: HCS7 | AA17: Minimal
A18: ROW Cost | C18: =IF(O18<>0,O18,C71) -> 131313.1313 | E18: =IF(P18<>0,P18,D71) -> 61478.42057 | G18: =IF(Q18<>0,Q18,E71) -> 145546.3728 | I18: =IF(R18<>0,R18,F71) -> 12511.47842 | K18: =IF(S18<>0,S18,G71) -> 10330.57851 | N18: ROW Cost | O18: 0 | P18: 0 | Q18: 0 | R18: 0 | S18: 0 | Z18: HCS 2010 | AA18: Significant
A19: Environmental Cost | C19: =IF(O19<>0,O19,C72) -> 40000 | E19: =IF(P19<>0,P19,D72) -> 30000 | G19: =IF(Q19<>0,Q19,E72) -> 0 | I19: =IF(R19<>0,R19,F72) -> 0 | K19: =IF(S19<>0,S19,G72) -> 0 | N19: Environmental Cost | O19: 0 | P19: 0 | Q19: 0 | R19: 0 | S19: 0 | Z19: SIDRA 6 | AA19: 10000
A20: Reimbursable Utility Cost | C20: =IF(O20<>0,O20,C73) -> 32493.33333 | E20: =IF(P20<>0,P20,D73) -> 41102.14308 | G20: =IF(Q20<>0,Q20,E73) -> 23735.25253 | I20: =IF(R20<>0,R20,F73) -> 29604.27704 | K20: =IF(S20<>0,S20,G73) -> 6959.242424 | N20: Reimbursable Utility Cost | O20: 0 | P20: 0 | Q20: 0 | R20: 0 | S20: 0 | Z20: SIDRA 7 | AA20: 25000
A21: Design & Contingency Cost | C21: =IF(O21<>0,O21,C74) -> 541555.5556 | E21: =IF(P21<>0,P21,D74) -> 685035.718 | G21: =IF(Q21<>0,Q21,E74) -> 395587.5421 | I21: =IF(R21<>0,R21,F74) -> 493404.6174 | K21: =IF(S21<>0,S21,G74) -> 115987.3737 | N21: Design/Contingency Cost | O21: 0 | P21: 0 | Q21: 0 | R21: 0 | S21: 0 | Z21: Rodel | AA21: 50000
A22: Cost Adjustment (justification req'd) | C22: =O22 -> 0 | E22: =P22 -> 0 | G22: =Q22 -> 0 | I22: =R22 -> 0 | K22: =S22 -> 0.25 | N22: Cost Adjustment (justification required) | O22: 0 | P22: 0 | Q22: 0 | R22: 0 | S22: 0.25 | Z22: Synchro 8 | AA22: 75000
A23: Total Cost | C23: =SUM(C17:C21) -> 1828473.131 | E23: =SUM(E17:E21) -> 2187687.718 | G23: =SUM(G17:G21) -> 1356044.252 | I23: =SUM(I17:I21) -> 1522329.608 | K23: =SUM(K17:K21) -> 365251.9421 | Z23: Synchro 9 | AA23: 100000
A24: Traffic Operations | Z24: Synchro 10 | AA24: 150000
A25: Traffic Analysis Software Used | C25: Synchro 10 | E25: Synchro 10 | G25: SIDRA 7 | I25: Synchro 10 | K25: Synchro 10 | Z25: VISSIM 6.0 | AA25: 200000
A26: Analysis Period | C26: =Peak1 -> AM Peak Hr | D26: =Peak2 -> PM Peak Hr | E26: =Peak1 -> AM Peak Hr | F26: =Peak2 -> PM Peak Hr | G26: =Peak1 -> AM Peak Hr | H26: =Peak2 -> PM Peak Hr | I26: =Peak1 -> AM Peak Hr | J26: =Peak2 -> PM Peak Hr | K26: =Peak1 -> AM Peak Hr | L26: =Peak2 -> PM Peak Hr | Z26: VISSIM 7.0 | AA26: 250000
A27: =IF(J6="Network Delay",CONCATENATE(IntersectionData!E46," Design Yr Build Network Delay"), CONCATENATE(IntersectionData!E46," Design Yr Build Intersection Delay")) -> 2043 Design Yr Build Intersection Delay | C27: 40 | D27: 5 | E27: 95 | F27: 120 | G27: 40 | H27: 52 | I27: 45 | J27: 80 | K27: 65 | L27: 79 | Z27: VISSIM 8.0 | AA27: 300000
C28: =IF(C27=0,D27,IF(D27=0,C27,(C27*SplitMin+D27*(1-SplitMin)))) -> 21.25562556 | E28: =IF(E27=0,F27,IF(F27=0,E27,(E27*SplitMin+F27*(1-SplitMin)))) -> 108.3888389 | G28: =IF(G27=0,H27,IF(H27=0,G27,(G27*SplitMin+H27*(1-SplitMin)))) -> 46.42664266 | I28: =IF(I27=0,J27,IF(J27=0,I27,(I27*SplitMin+J27*(1-SplitMin)))) -> 63.74437444 | K28: =IF(K27=0,L27,IF(L27=0,K27,(K27*SplitMin+L27*(1-SplitMin)))) -> 72.49774977 | Z28: VISSIM 9.0 | AA28: 400000
A29: =IF(J6="Network Delay","",CONCATENATE(IntersectionData!E46," Design Yr Build Intersection V/C")) -> 2043 Design Yr Build Intersection V/C | C29: 0.7 | D29: 0.85 | E29: 1.1 | F29: 1.4 | G29: 0.55 | H29: 0.75 | I29: 0.75 | J29: 1.05 | K29: 0.9 | L29: 1.05 | Z29: VISSIM 10.0 | AA29: 500000
C30: =IF(C29=0,D29,IF(D29=0,C29,(C29*SplitMin+D29*(1-SplitMin)))) -> 0.7803330333 | E30: =IF(E29=0,F29,IF(F29=0,E29,(E29*SplitMin+F29*(1-SplitMin)))) -> 1.260666067 | G30: =IF(G29=0,H29,IF(H29=0,G29,(G29*SplitMin+H29*(1-SplitMin)))) -> 0.6571107111 | I30: =IF(I29=0,J29,IF(J29=0,I29,(I29*SplitMin+J29*(1-SplitMin)))) -> 0.9106660666 | K30: =IF(K29=0,L29,IF(L29=0,K29,(K29*SplitMin+L29*(1-SplitMin)))) -> 0.9803330333 | Z30: Other (explain below)
A31: Safety Analysis | C31: =IF(C25="Other","Write in other tool here","") ->  | E31: =IF(E25="Other","Write in other tool here","") ->  | G31: =IF(G25="Other","Write in other tool here","") ->  | I31: =IF(I25="Other","Write in other tool here","") ->  | K31: =IF(K25="Other","Write in other tool here","") ->  | O31: Safety Data Override (if independently generated CMFs)
A32: Predefined CRF: PDO | C32: =Scoring!M46 -> 0 | E32: =Scoring!M47 -> 0.32 | G32: =Scoring!M48 -> 0.223 | I32: =Scoring!M49 -> 0 | J32: =IF(Scoring!#REF!=0,"",Scoring!#REF!) ->  | K32: =Scoring!M50 -> 0.386 | L32: =IF(#REF!=0,"",Scoring!#REF!) -> 
A33: Predefined CRF: Fatal/Inj | C33: =Scoring!N46 -> 0 | E33: =Scoring!N47 -> 0.71 | G33: =Scoring!N48 -> 0.415 | I33: =Scoring!N49 -> 0 | K33: =Scoring!N50 -> 0.399 | L33: =IF(#REF!=0,"",Scoring!#REF!) ->  | O33: =Alternative1 -> Displaced Left-Turn / CFI | P33: =Alternative2 -> Multilane Roundabout | Q33: =Alternative3 -> Superstreet / RCI | R33: =Alternative4 -> Bowtie Intersection | S33: =Alternative5 -> Signalized Intersection
A34: Predefined CRF Source: | C34: =Scoring!W46 -> - | E34: =Scoring!W47 -> FHWA Clearinghouse IDs: 236 / 237 | G34: =Scoring!W48 -> FHWA Clearinghouse IDs: 10059 / 10058 | I34: =Scoring!W49 -> - | K34: =Scoring!W50 -> FHWA Clearinghouse IDs: 7982 / 7984
A35: User Defined CRF: PDO | C35: 0.2 | E35: =IF(P35=0,"",P35) ->  | I35: 0.24 | K35: =IF(S35=0,"",S35) ->  | N35: User Defined CRF: PDO
A36: User Defined CRF: Fatal/Inj | C36: 0.2 | E36: =IF(P36=0,"",P36) ->  | I36: 0.38 | K36: =IF(S36=0,"",S36) ->  | N36: User Defined CRF: Fatal/Inj
A37: User Defined CRF Source (write in if applicable): | C37: FHWA CFI Guide | E37: =IF(OR(P37="--Source--",P37=""),"",P37) ->  | I37: NCHRP Report on Bowtie Intersections | K37: =IF(OR(S37="--Source--",S37=""),"",S37) ->  | N37: User Defined CRF Source
A38: Environmental Impacts | O38: NOTE: For interchange alternatives, safety Crash Reduction Factors are not generated; safety CRF data must be determined and entered using the Safety Data Override table
A39: Historic District/Property | C39: None | E39: None | G39: None | I39: None | K39: None
A40: Archaeology Resources | C40: None | E40: None | G40: None | I40: None | K40: None
A41: Graveyard | C41: None | E41: None | G41: None | I41: None | K41: None | N41: Environmental Impact Notes:
A42: Stream | C42: None | E42: None | G42: None | I42: None | K42: None | N42: If environmental impact is expected to be significant, provide justification impact won't jeopardize project delivery using "Env" worksheet; Environmental impacts are only preliminary estimates; detailed environmental impact documentation will be included with project concept report
A43: Underground Tank/Hazmat | C43: None | E43: None | G43: None | I43: None | K43: None
A44: Park Land | C44: None | E44: None | G44: None | I44: None | K44: None
A45: EJ Community | C45: None | E45: None | G45: None | I45: None | K45: None
A46: Floodplain | C46: Minimal | E46: None | G46: None | I46: None | K46: None
A47: Wetland | C47: Minimal | E47: Minimal | G47: None | I47: None | K47: None
A48: T&E Species Habitat | C48: None | E48: None | G48: None | I48: None | K48: None
A49: Stakeholder Support: | C49: Note: Be sure to go back to Costs worksheet to enter mitigation costs for each noted impact
A50: Local Community Support | C50: Neutral | E50: Strong | G50: Supportive | I50: Unknown | K50: Neutral
A51: CDOT Region Support | C51: Supportive | E51: Supportive | G51: Neutral | I51: Unknown | K51: Negative
A53: Final ICAT Stage 2 Score: | C53: =Score1 -> 4.345100509 | E53: =Score2 -> 4.036728337 | G53: =Score3 -> 5.533214299 | I53: =Score4 -> 4.486133865 | K53: =Score5 -> 5.119712369
A54: Rank of Control Type Alternatives: | C54: =RANK(C53,$C$53:$L$53) -> 4 | E54: =RANK(E53,$C$53:$L$53) -> 5 | G54: =RANK(G53,$C$53:$L$53) -> 1 | I54: =RANK(I53,$C$53:$L$53) -> 3 | K54: =RANK(K53,$C$53:$L$53) -> 2
C55: =IF(Warrant="no","Note: Based on extrapolated volumes from peak hr data, this intersection MAY not meet MUTCD 8-hour signal warrants; a detailed warrant analysis should be conducted prior to recommending an alternative that assumes signal control","") ->  | N55: <-- Note: Warning will appear to right if intersection MAY not meet MUTCD signal warrants in the opening year.
A56: Provide additional comments and/or explain any unique analysis inputs, or results (as necessary):
U62: `
C63: =Costs!H$37 -> 1083111.111 | D63: =Costs!H$39 -> 1370071.436 | E63: =Costs!H$41 -> 791175.0842 | F63: =Costs!H$43 -> 986809.2348 | G63: =Costs!H$45 -> 185579.798 | H63: Construction Cost
C64: =ROWcost1 -> 131313.1313 | D64: =ROWcost2 -> 61478.42057 | E64: =ROWcost3 -> 145546.3728 | F64: =ROWcost4 -> 12511.47842 | G64: =ROWcost5 -> 8264.46281 | H64: ROW Cost
C65: =EnvCost1 -> 40000 | D65: =EnvCost2 -> 30000 | E65: =EnvCost3 -> 0 | F65: =EnvCost4 -> 0 | G65: =EnvCost5 -> 0 | H65: Environmental Cost
C66: =Costs!K$37 -> 32493.33333 | D66: =Costs!K$39 -> 41102.14308 | E66: =Costs!K$41 -> 23735.25253 | F66: =Costs!K$43 -> 29604.27704 | G66: =Costs!K$45 -> 5567.393939 | H66: Reimbursable Utility Cost
C67: =Costs!L$37 -> 541555.5556 | D67: =Costs!L$39 -> 685035.718 | E67: =Costs!L$41 -> 395587.5421 | F67: =Costs!L$43 -> 493404.6174 | G67: =Costs!L$45 -> 92789.89899 | H67: Design & Contingency Cost
C68: =O22 -> 0 | D68: =P22 -> 0 | E68: =Q22 -> 0 | F68: =R22 -> 0 | G68: =S22 -> 0.25 | H68: Adjustment Percentage
C69: =SUM(C63:C67) -> 1828473.131 | D69: =SUM(D63:D67) -> 2187687.718 | E69: =SUM(E63:E67) -> 1356044.252 | F69: =SUM(F63:F67) -> 1522329.608 | G69: =SUM(G63:G67) -> 292201.5537 | H69: Total Cost
B70: Adjusted Costs | C70: =C63*(1+C$68) -> 1083111.111 | D70: =D63*(1+D$68) -> 1370071.436 | E70: 791175.0842 | F70: 986809.2348 | G70: 231974.7475 | H70: New Construction Cost
C71: =C64*(1+C$68) -> 131313.1313 | D71: 61478.42057 | E71: 145546.3728 | F71: 12511.47842 | G71: 10330.57851 | H71: New ROW Cost
C72: 40000 | D72: 30000 | E72: 0 | F72: 0 | G72: 0 | H72: New Environmental Cost
C73: 32493.33333 | D73: 41102.14308 | E73: 23735.25253 | F73: 29604.27704 | G73: 6959.242424 | H73: New Reimbursable Utility Cost
C74: 541555.5556 | D74: 685035.718 | E74: 395587.5421 | F74: 493404.6174 | G74: 115987.3737 | H74: New Design & Contingency Cost
C75: =SUM(C70:C74) -> 1828473.131 | D75: =SUM(D70:D74) -> 2187687.718 | E75: 1356044.252 | F75: 1522329.608 | G75: 365251.9421 | H75: New Total Cost

Sheet Scoring (hidden)
A1: CDOT Intersection Control Evaluation (ICE) Stage 2 Analysis Computation Sheet | X1: CMF PreInt: | Y1: =VLOOKUP(ExistControl,IntersectionData!BG41:BH46,2,FALSE) -> 1 | AA1: CMF Type: | AB1: =IF(Area="Rural",0,IF(Area="Small Urban",2,4)) -> 4 | AG1: CMF Column: | AH1: =7+(Y1*8)+AB1 -> 19
A2: =Version -> CDOT ICAT Version 1.0 | Release Date: 8/30/2021 | W2: Existing Intersection Control
H3: Stage 1 Rank | I3: Alternatives Selection | W3: =IntersectionData!BG42 -> Conventional Minor Stop | AE3: =IntersectionData!BG43 -> Conventional All Way Stop | AM3: =IntersectionData!BG44 -> Signalized Intersection | AU3: =IntersectionData!BG45 -> Diamond Interchange | BC3: =IntersectionData!BG46 -> New Intersection or Other
B4: =Alternative1 -> Displaced Left-Turn / CFI | C4: =Alternative2 -> Multilane Roundabout | D4: =Alternative3 -> Superstreet / RCI | E4: =Alternative4 -> Bowtie Intersection | F4: =Alternative5 -> Signalized Intersection | I4: Proposed Control Type | W4: Rural (All) | X4: Rural (F/Inj) | Y4: Suburb (All) | Z4: Suburb (F/Inj) | AA4: Urban (All) | AB4: Urban (F/Inj) | AE4: Rural (All) | AF4: Rural (F/Inj) | AG4: Suburb (All) | AH4: Suburb (F/Inj) | AI4: Urban (All) | AJ4: Urban (F/Inj) | AM4: Rural (All) | AN4: Rural (F/Inj) | AO4: Suburb (All) | AP4: Suburb (F/Inj) | AQ4: Urban (All) | AR4: Urban (F/Inj) | AU4: Rural (All) | AV4: Rural (F/Inj) | AW4: Suburb (All) | AX4: Suburb (F/Inj) | AY4: Urban (All) | AZ4: Urban (F/Inj) | BC4: Rural (All) | BD4: Rural (F/Inj) | BE4: Suburb (All) | BF4: Suburb (F/Inj) | BG4: Urban (All) | BH4: Urban (F/Inj) | BI4: Source
A5: Cost Estimates | H5: =Stage1!AE14 -> 38 | I5: =Stage1!C14 -> -- select -- | BI5: FHWA Clearinghouse
B6: =Stage2!C23 -> 1828473.131 | C6: =Stage2!E23 -> 2187687.718 | D6: =IF(D4="",0,Stage2!G23) -> 1356044.252 | E6: =IF(E4="",0,Stage2!I23) -> 1522329.608 | F6: =IF(F4="",0,Stage2!K23) -> 365251.9421 | H6: =Stage1!AE15 -> 37 | I6: =Stage1!C15 -> -- select -- | BI6: FHWA Clearinghouse
A7: Avg of Cost Estimates: | B7: =IF(SUM(B6:F6)=0,0,AVERAGEIF(B6:F6,"<>0")) -> 1451957.33 | H7: =Stage1!AE16 -> 17 | I7: =Stage1!C16 -> Minor Street Stop | BI7: FHWA Clearinghouse
A8: <50% of Avg Costs: | B8: =B7/2 -> 725978.665 | C8: 10 | H8: =Stage1!AE17 -> 15 | I8: =Stage1!C17 -> All-Way Stop | W8: 315 | X8: 3128 | Y8: 3127 | Z8: 3128 | AA8: 310 | AB8: 314 | BI8: FHWA Clearinghouse
A9: >200% of Avg Costs: | B9: =B7*2 -> 2903914.66 | C9: 0 | H9: =Stage1!AE18 -> 10 | I9: =Stage1!C18 -> Right-In/Right-out | BI9: FHWA Clearinghouse
A10: Cost Score: | B10: =IF(B6>$B7*2,0,IF(B6=0,10,MIN(TREND($C8:$C9,$B8:$B9,B6),10))) -> 4.937893176 | C10: =IF(C6>$B7*2,0,IF(C6=0,0,MIN(TREND($C8:$C9,$B8:$B9,C6),10))) -> 3.288558269 | D10: =IF(D6>$B7*2,0,IF(D6=0,0,MIN(TREND($C8:$C9,$B8:$B9,D6),10))) -> 7.107051869 | E10: =IF(E6>$B7*2,0,IF(E6=0,0,MIN(TREND($C8:$C9,$B8:$B9,E6),10))) -> 6.343552132 | F10: =IF(F6>$B7*2,0,IF(F6=0,0,MIN(TREND($C8:$C9,$B8:$B9,F6),10))) -> 10 | H10: =Stage1!AE19 -> 36 | I10: =Stage1!C19 -> Right-in/Right-out/Left-in (3/4 access) | W10: 2070 | X10: 2069 | Y10: 2070 | Z10: 2069 | AA10: 2070 | AB10: 2069 | BI10: FHWA Clearinghouse
A11: Operations | H11: =Stage1!AE20 -> 11 | I11: =Stage1!C20 -> RIRO w/downstream U-Turn | W11: 5555 | X11: 5556 | Y11: 5555 | Z11: 5556 | AA11: 5555 | AB11: 5556 | AE11: 351 | AF11: 353 | AG11: 351 | AH11: 353 | AI11: 351 | AJ11: 353 | BI11: FHWA Clearinghouse
A12: Delay & V/C | B12: Intersection Delay (50%) | E12: V/C Ratio (50%) | H12: =Stage1!AE21 -> 13 | I12: =Stage1!C21 -> Mini Roundabout | W12: 5227 | X12: 5228 | Y12: 5227 | Z12: 5228 | AA12: 5227 | AB12: 5228 | AE12: 242 | AF12: 211 | AG12: 242 | AH12: 210 | AI12: 242 | AJ12: 210 | AM12: 225 | AN12: 4225 | AO12: 4192 | AP12: 4259 | AQ12: 4192 | AR12: 4259 | BI12: FHWA Clearinghouse
A13: Min Delay: | B13: 0 | C13: 10 | D13: Min V/C: | E13: 0.25 | F13: 10 | H13: =Stage1!AE22 -> 35 | I13: =Stage1!C22 -> Single Lane Roundabout | W13: 229 | X13: 230 | Y13: 233 | Z13: 234 | AA13: 233 | AB13: 234 | AE13: 242 | AF13: 211 | AG13: 242 | AH13: 210 | AI13: 242 | AJ13: 210 | AM13: 225 | AN13: 4225 | AO13: 4192 | AP13: 4259 | AQ13: 4192 | AR13: 4259 | BI13: FHWA Clearinghouse
A14: Worst Operations: | B14: =IF(IntersectionData!L22="Rural",55,80) -> 80 | C14: 0 | D14: Max Capacity | E14: =IF(IntersectionData!L22="Rural",0.85,1) -> 1 | F14: 0 | H14: =Stage1!AE23 -> 2 | I14: =Stage1!C23 -> Multilane Roundabout | W14: 236 | X14: 237 | Y14: 236 | Z14: 237 | AA14: 236 | AB14: 237 | AE14: 6158 | AF14: 6159 | AG14: 6158 | AH14: 6159 | AI14: 6158 | AJ14: 6159 | AM14: 4196 | AN14: 4195 | AO14: 4196 | AP14: 4195 | AQ14: 4196 | AR14: 4195 | BI14: FHWA Clearinghouse
A15: Max Delay: | B15: =IF(IntersectionData!L22="Rural",180,240) -> 240 | C15: -10 | D15: Max V/C: | E15: 2 | F15: -10 | H15: =Stage1!AE24 -> 8 | I15: =Stage1!C24 -> RCUT / J-Turn (stop control) | W15: 2070 | X15: 2069 | Y15: 2070 | Z15: 2069 | AA15: 2070 | AB15: 2069 | AE15: 2753 | AF15: 2755 | AG15: 2753 | AH15: 2755 | AI15: 2753 | AJ15: 2755 | BI15: FHWA Clearinghouse
A16: Delay Score (Avg AM/PM): | B16: =IF(Stage2!C28=0,0,IF(Stage2!C28>$B$14,TREND($C$14:$C$15,$B$14:$B$15,Stage2!C28),TREND($C$13:$C$14,$B$13:$B$14,Stage2!C28))) -> 7.343046805 | C16: =IF(Stage2!E28=0,0,IF(Stage2!E28>$B$14,TREND($C$14:$C$15,$B$14:$B$15,Stage2!E28),TREND($C$13:$C$14,$B$13:$B$14,Stage2!E28))) -> -1.77430243 | D16: =IF(Stage2!G28=0,0,IF(Stage2!G28>$B$14,TREND($C$14:$C$15,$B$14:$B$15,Stage2!G28),TREND($C$13:$C$14,$B$13:$B$14,Stage2!G28))) -> 4.196669667 | E16: =IF(Stage2!I28=0,0,IF(Stage2!I28>$B$14,TREND($C$14:$C$15,$B$14:$B$15,Stage2!I28),TREND($C$13:$C$14,$B$13:$B$14,Stage2!I28))) -> 2.031953195 | F16: =IF(Stage2!K28=0,0,IF(Stage2!K28>$B$14,TREND($C$14:$C$15,$B$14:$B$15,Stage2!K28),TREND($C$13:$C$14,$B$13:$B$14,Stage2!K28))) -> 0.9377812781 | H16: =Stage1!AE25 -> 18 | I16: =Stage1!C25 -> High-T (unsignalized) | W16: 2753 | X16: 2755 | Y16: 2753 | Z16: 2755 | AA16: 2753 | AB16: 2755 | BI16: FHWA Clearinghouse
A17: V/C Score (Avg AM/PM): | B17: =IF(MOEs="Network Delay",0,IF(Stage2!C30=0,0,IF(Stage2!C30>$E$14,TREND($F$14:$F$15,$E$14:$E$15,Stage2!C30),TREND($F$13:$F$14,$E$13:$E$14,Stage2!C30)))) -> 2.928892889 | C17: =IF(MOEs="Network Delay",0,IF(Stage2!E30=0,0,IF(Stage2!E30>$E$14,TREND($F$14:$F$15,$E$14:$E$15,Stage2!E30),TREND($F$13:$F$14,$E$13:$E$14,Stage2!E30)))) -> -2.606660666 | D17: =IF(MOEs="Network Delay",0,IF(Stage2!G30=0,0,IF(Stage2!G30>$E$14,TREND($F$14:$F$15,$E$14:$E$15,Stage2!G30),TREND($F$13:$F$14,$E$13:$E$14,Stage2!G30)))) -> 4.571857186 | E17: =IF(MOEs="Network Delay",0,IF(Stage2!I30=0,0,IF(Stage2!I30>$E$14,TREND($F$14:$F$15,$E$14:$E$15,Stage2!I30),TREND($F$13:$F$14,$E$13:$E$14,Stage2!I30)))) -> 1.191119112 | F17: =IF(MOEs="Network Delay",0,IF(Stage2!K30=0,0,IF(Stage2!K30>$E$14,TREND($F$14:$F$15,$E$14:$E$15,Stage2!K30),TREND($F$13:$F$14,$E$13:$E$14,Stage2!K30)))) -> 0.2622262226 | H17: =Stage1!AE26 -> 14 | I17: =Stage1!C26 -> Unsignalized Offset-T Intersection | W17: 12100 | X17: 12101 | Y17: 12100 | Z17: 12101 | AA17: 12100 | AB17: 12101 | BI17: CalTrans Study
A18: Delay, V/C Ops Score: | B18: =IF(B4="N/A",0,B16*0.5+B17*0.5) -> 5.135969847 | C18: =IF(C4="N/A",0,C16*0.5+C17*0.5) -> -2.190481548 | D18: =IF(D4="N/A",0,D16*0.5+D17*0.5) -> 4.384263426 | E18: =IF(E4="N/A",0,E16*0.5+E17*0.5) -> 1.611536154 | F18: =IF(F4="N/A",0,F16*0.5+F17*0.5) -> 0.6000037504 | H18: =Stage1!AE27 -> 34 | I18: =Stage1!C27 -> Other Signalized Intersection (Describe) | BI18: FHWA Clearinghouse
A19: Network Delay (avg AM/PM) | B19: =Stage2!C28 -> 21.25562556 | C19: =Stage2!E28 -> 108.3888389 | D19: =Stage2!G28 -> 46.42664266 | E19: =Stage2!I28 -> 63.74437444 | F19: =Stage2!K28 -> 72.49774977 | H19: =Stage1!AE28 -> 5 | I19: =Stage1!C28 -> Signalized Intersection | W19: 325 | X19: 7984 | Y19: 7982 | Z19: 7984 | AA19: 7982 | AB19: 7984 | AE19: 325 | AF19: 325 | AG19: 9145 | AH19: 9145 | AI19: 9145 | AJ19: 9145 | BI19: FHWA Clearinghouse
A20: Average of Network Delay: | B20: =AVERAGEIF(B19:F19,"<>0") -> 62.46264626 | H20: =Stage1!AE29 -> 7 | I20: =Stage1!C29 -> Median U-Turn | AM20: 5231 | AN20: 5231 | AO20: 5231 | AP20: 5231 | AQ20: 5231 | AR20: 5231 | BI20: FHWA Clearinghouse
A21: <50% of Avg Network Delay: | B21: =B20/2 -> 31.23132313 | C21: 10 | H21: =Stage1!AE30 -> 3 | I21: =Stage1!C30 -> Superstreet / RCI | W21: 10059 | X21: 10058 | Y21: 10059 | Z21: 10058 | AA21: 10059 | AB21: 10058 | AM21: 9984 | AN21: 9984 | AO21: 9984 | AP21: 9984 | AQ21: 9984 | AR21: 9984 | BI21: FHWA Clearinghouse
A22: >200% of Avg Network Delay: | B22: =B20*2 -> 124.9252925 | C22: 0 | H22: =Stage1!AE31 -> 1 | I22: =Stage1!C31 -> Displaced Left-Turn / CFI | AM22: 10301 | AN22: 10301 | AO22: 10301 | AP22: 10301 | AQ22: 10301 | AR22: 10301 | BI22: FHWA Clearinghouse
A23: Network Ops Score: | B23: =IF(B19>$B$20*2,0,IF(B19=0,0,MIN(TREND($C$21:$C$22,$B$21:$B$22,B19),10))) -> 10 | C23: =IF(C19>$B$20*2,0,IF(C19=0,0,MIN(TREND($C$21:$C$22,$B$21:$B$22,C19),10))) -> 1.764943224 | D23: =IF(D19>$B$20*2,0,IF(D19=0,0,MIN(TREND($C$21:$C$22,$B$21:$B$22,D19),10))) -> 8.37819663 | E23: =IF(E19>$B$20*2,0,IF(E19=0,0,MIN(TREND($C$21:$C$22,$B$21:$B$22,E19),10))) -> 6.529867235 | F23: =IF(F19>$B$20*2,0,IF(F19=0,0,MIN(TREND($C$21:$C$22,$B$21:$B$22,F19),10))) -> 5.595615501 | H23: =Stage1!AE32 -> 12 | I23: =Stage1!C32 -> Continuous Green-T | W23: 12110 | X23: 12111 | Y23: 12112 | Z23: 12113 | AA23: 12112 | AB23: 12113 | AE23: 10110 | AF23: 10110 | AG23: 10110 | AH23: 10110 | AI23: 10110 | AJ23: 10110 | AM23: 8655 | AN23: 8655 | AO23: 8655 | AP23: 8655 | AQ23: 8655 | AR23: 8655 | BI23: Combination of UNS to SIG+ SIG to High-T
A24: Safety | H24: =Stage1!AE33 -> 6 | I24: =Stage1!C33 -> Signalized Offset-T Intersection | W24: 12100 | X24: 12101 | Y24: 12100 | Z24: 12101 | AA24: 12100 | AB24: 12101
A25: CRFPDO | B25: =IF(Stage2!C35<>"",Stage2!C35,Stage2!C32) -> 0.2 | C25: =IF(Stage2!E35<>"",Stage2!E35,Stage2!E32) -> 0.32 | D25: =IF(Stage2!G35<>"",Stage2!G35,Stage2!G32) -> 0.223 | E25: =IF(Stage2!I35<>"",Stage2!I35,Stage2!I32) -> 0.24 | F25: =IF(Stage2!K35<>"",Stage2!K35,Stage2!K32) -> 0.386 | H25: =Stage1!AE34 -> 16 | I25: =Stage1!C34 -> Jughandle | BI25: FHWA Clearinghouse
A26: CRFFATAL/INJ | B26: =IF(Stage2!C36<>"",Stage2!C36,Stage2!C33) -> 0.2 | C26: =IF(Stage2!E36<>"",Stage2!E36,Stage2!E33) -> 0.71 | D26: =IF(Stage2!G36<>"",Stage2!G36,Stage2!G33) -> 0.415 | E26: =IF(Stage2!I36<>"",Stage2!I36,Stage2!I33) -> 0.38 | F26: =IF(Stage2!K36<>"",Stage2!K36,Stage2!K33) -> 0.399 | H26: =Stage1!AE35 -> 9 | I26: =Stage1!C35 -> Quadrant Roadway | BI26: FHWA Clearinghouse
A27: Weighted Crash Remain: | B27: =IF(B25="",0,($B$28-(B26*(CrashFatal*10+CrashInj*5)+B25*(CrashPDO)))) -> 34.45 | C27: =IF(C25="",0,($B$28-(C26*(CrashFatal*10+CrashInj*5)+C25*(CrashPDO)))) -> 16.39 | D27: =IF(D25="",0,($B$28-(D26*(CrashFatal*10+CrashInj*5)+D25*(CrashPDO)))) -> 27.471 | E27: =IF(E25="",0,($B$28-(E26*(CrashFatal*10+CrashInj*5)+E25*(CrashPDO)))) -> 28.13 | F27: =IF(F25="",0,($B$28-(F26*(CrashFatal*10+CrashInj*5)+F25*(CrashPDO)))) -> 24.202 | H27: =Stage1!AE36 -> 19 | I27: =Stage1!C36 -> Split Intersection | BI27: FHWA Clearinghouse
A28: Total Weighted Crashes: | B28: =(CrashPDO+CrashInj*5+CrashFatal*10)*0.85 -> 45.05 | C28: 0 | H28: =Stage1!AE37 -> 4 | I28: =Stage1!C37 -> Bowtie Intersection | BI28: FHWA Clearinghouse
A29: No crashes: | B29: 0 | C29: 10 | H29: =Stage1!AE38 -> 33 | I29: =Stage1!C38 -> Other Unsignalized Intersection (Describe) | BI29: FHWA Clearinghouse
A30: Safety Score: | B30: =IF(Alternative1="",0,IF(B27=0,0,TREND($C$28:$C$29,$B$28:$B$29,B27))) -> 2.352941176 | C30: =IF(Alternative2="",0,IF(C27="",0,IF(C27=0,0,TREND($C$28:$C$29,$B$28:$B$29,C27)))) -> 6.3618202 | D30: =IF(Alternative3="",0,IF(D27="",0,IF(D27=0,0,TREND($C$28:$C$29,$B$28:$B$29,D27)))) -> 3.902108768 | E30: =IF(Alternative4="",0,IF(E27="",0,IF(E27=0,0,TREND($C$28:$C$29,$B$28:$B$29,E27)))) -> 3.755826859 | F30: =IF(Alternative5="",0,IF(F27="",0,IF(F27=0,0,TREND($C$28:$C$29,$B$28:$B$29,F27)))) -> 4.627746948 | H30: =Stage1!AE39 -> 21 | I30: =Stage1!C39 -> Echelon | BI30: FHWA Clearinghouse
A31: Environmental | H31: =Stage1!AE40 -> 20 | I31: =Stage1!C40 -> Center Turn Overpass | BI31: FHWA Clearinghouse
A32: Historic District/Property | B32: =IF(Stage2!C39="significant",5,IF(Stage2!C39="Minimal",2,0)) -> 0 | C32: =IF(Stage2!E39="significant",5,IF(Stage2!E39="Minimal",2,0)) -> 0 | D32: =IF(Stage2!G39="significant",5,IF(Stage2!G39="Minimal",2,0)) -> 0 | E32: =IF(Stage2!I39="significant",5,IF(Stage2!I39="Minimal",2,0)) -> 0 | F32: =IF(Stage2!K39="significant",5,IF(Stage2!K39="Minimal",2,0)) -> 0 | H32: =Stage1!AE41 -> 22 | I32: =Stage1!C41 -> Grade-Separated T-Interchange | BI32: FHWA Clearinghouse
A33: Archaeology Resources | B33: =IF(Stage2!C40="significant",5,IF(Stage2!C40="Minimal",2,0)) -> 0 | C33: =IF(Stage2!E40="significant",5,IF(Stage2!E40="Minimal",2,0)) -> 0 | D33: =IF(Stage2!G40="significant",5,IF(Stage2!G40="Minimal",2,0)) -> 0 | E33: =IF(Stage2!I40="significant",5,IF(Stage2!I40="Minimal",2,0)) -> 0 | F33: =IF(Stage2!K40="significant",5,IF(Stage2!K40="Minimal",2,0)) -> 0 | H33: =Stage1!AE42 -> 23 | I33: =Stage1!C42 -> Diamond Interchange | W33: 466 | X33: 466 | Y33: 466 | Z33: 466 | AA33: 472 | AB33: 472 | AE33: 466 | AF33: 466 | AG33: 466 | AH33: 466 | AI33: 472 | AJ33: 472 | AM33: 466 | AN33: 466 | AO33: 466 | AP33: 466 | AQ33: 472 | AR33: 472 | BI33: FHWA Clearinghouse
A34: Graveyard | B34: =IF(Stage2!C41="significant",5,IF(Stage2!C41="Minimal",2,0)) -> 0 | C34: =IF(Stage2!E41="significant",5,IF(Stage2!E41="Minimal",2,0)) -> 0 | D34: =IF(Stage2!G41="significant",5,IF(Stage2!G41="Minimal",2,0)) -> 0 | E34: =IF(Stage2!I41="significant",5,IF(Stage2!I41="Minimal",2,0)) -> 0 | F34: =IF(Stage2!K41="significant",5,IF(Stage2!K41="Minimal",2,0)) -> 0 | H34: =Stage1!AE43 -> 32 | I34: =Stage1!C43 -> Cloverleaf Interchange | W34: 473 | X34: 473 | Y34: 473 | Z34: 473 | AA34: 473 | AB34: 473 | BI34: FHWA Clearinghouse
A35: Stream | B35: =IF(Stage2!C42="significant",5,IF(Stage2!C42="Minimal",2,0)) -> 0 | C35: =IF(Stage2!E42="significant",5,IF(Stage2!E42="Minimal",2,0)) -> 0 | D35: =IF(Stage2!G42="significant",5,IF(Stage2!G42="Minimal",2,0)) -> 0 | E35: =IF(Stage2!I42="significant",5,IF(Stage2!I42="Minimal",2,0)) -> 0 | F35: =IF(Stage2!K42="significant",5,IF(Stage2!K42="Minimal",2,0)) -> 0 | H35: =Stage1!AE44 -> 31 | I35: =Stage1!C44 -> Partial Cloverleaf (Parclo) | BI35: FHWA Clearinghouse
A36: Underground Tank/Hazmat | B36: =IF(Stage2!C43="significant",5,IF(Stage2!C43="Minimal",2,0)) -> 0 | C36: =IF(Stage2!E43="significant",5,IF(Stage2!E43="Minimal",2,0)) -> 0 | D36: =IF(Stage2!G43="significant",5,IF(Stage2!G43="Minimal",2,0)) -> 0 | E36: =IF(Stage2!I43="significant",5,IF(Stage2!I43="Minimal",2,0)) -> 0 | F36: =IF(Stage2!K43="significant",5,IF(Stage2!K43="Minimal",2,0)) -> 0 | H36: =Stage1!AE45 -> 30 | I36: =Stage1!C45 -> Diverging Diamond | AM36: 9658 | AN36: 9658 | AO36: 9658 | AP36: 9658 | AQ36: 9658 | AR36: 9658 | AS36: 9658 | AT36: 9658 | AU36: 10300 | AV36: 10300 | AW36: 8258 | AX36: 8258 | AY36: 9013 | AZ36: 9013 | BI36: FHWA Clearinghouse
A37: Park Land | B37: =IF(Stage2!C44="significant",5,IF(Stage2!C44="Minimal",2,0)) -> 0 | C37: =IF(Stage2!E44="significant",5,IF(Stage2!E44="Minimal",2,0)) -> 0 | D37: =IF(Stage2!G44="significant",5,IF(Stage2!G44="Minimal",2,0)) -> 0 | E37: =IF(Stage2!I44="significant",5,IF(Stage2!I44="Minimal",2,0)) -> 0 | F37: =IF(Stage2!K44="significant",5,IF(Stage2!K44="Minimal",2,0)) -> 0 | H37: =Stage1!AE46 -> 29 | I37: =Stage1!C46 -> Single Point Interchange | BI37: FHWA Clearinghouse
A38: EJ Community | B38: =IF(Stage2!C45="significant",5,IF(Stage2!C45="Minimal",2,0)) -> 0 | C38: =IF(Stage2!E45="significant",5,IF(Stage2!E45="Minimal",2,0)) -> 0 | D38: =IF(Stage2!G45="significant",5,IF(Stage2!G45="Minimal",2,0)) -> 0 | E38: =IF(Stage2!I45="significant",5,IF(Stage2!I45="Minimal",2,0)) -> 0 | F38: =IF(Stage2!K45="significant",5,IF(Stage2!K45="Minimal",2,0)) -> 0 | H38: =Stage1!AE47 -> 28 | I38: =Stage1!C47 -> Contraflow Left | BI38: FHWA Clearinghouse
A39: Wooded Area | B39: =IF(Stage2!C46="significant",5,IF(Stage2!C46="Minimal",2,0)) -> 2 | C39: =IF(Stage2!E46="significant",5,IF(Stage2!E46="Minimal",2,0)) -> 0 | D39: =IF(Stage2!G46="significant",5,IF(Stage2!G46="Minimal",2,0)) -> 0 | E39: =IF(Stage2!I46="significant",5,IF(Stage2!I46="Minimal",2,0)) -> 0 | F39: =IF(Stage2!K46="significant",5,IF(Stage2!K46="Minimal",2,0)) -> 0 | H39: =Stage1!AE48 -> 27 | I39: =Stage1!C48 -> Single Roundabout Interchange | BI39: FHWA Clearinghouse
A40: Wetland | B40: =IF(Stage2!C47="significant",5,IF(Stage2!C47="Minimal",2,0)) -> 2 | C40: =IF(Stage2!E47="significant",5,IF(Stage2!E47="Minimal",2,0)) -> 2 | D40: =IF(Stage2!G47="significant",5,IF(Stage2!G47="Minimal",2,0)) -> 0 | E40: =IF(Stage2!I47="significant",5,IF(Stage2!I47="Minimal",2,0)) -> 0 | F40: =IF(Stage2!K47="significant",5,IF(Stage2!K47="Minimal",2,0)) -> 0 | H40: =Stage1!AE49 -> 26 | I40: =Stage1!C49 -> Double Roundabout Interchange | AU40: 229 | AV40: 230 | AW40: 233 | AX40: 234 | AY40: 233 | AZ40: 234 | BI40: FHWA Clearinghouse
A41: T&E Species Habitat | B41: =IF(Stage2!C48="significant",5,IF(Stage2!C48="Minimal",2,0)) -> 0 | C41: =IF(Stage2!E48="significant",5,IF(Stage2!E48="Minimal",2,0)) -> 0 | D41: =IF(Stage2!G48="significant",5,IF(Stage2!G48="Minimal",2,0)) -> 0 | E41: =IF(Stage2!I48="significant",5,IF(Stage2!I48="Minimal",2,0)) -> 0 | F41: =IF(Stage2!K48="significant",5,IF(Stage2!K48="Minimal",2,0)) -> 0 | H41: =Stage1!AE50 -> 24 | I41: =Stage1!C50 -> Single Quadrant Interchange | BI41: FHWA Clearinghouse
A42: Environmental Score: | B42: =IF(Stage2!C15="N/A",0,MAX(0,10-SUM(B32:B41))) -> 6 | C42: =IF(Stage2!E15="N/A",0,MAX(0,10-SUM(C32:C41))) -> 8 | D42: =IF(Stage2!G15="N/A",0,MAX(0,10-SUM(D32:D41))) -> 10 | E42: =IF(Stage2!I15="N/A",0,MAX(0,10-SUM(E32:E41))) -> 10 | F42: =IF(Stage2!K15="N/A",0,MAX(0,10-SUM(F32:F41))) -> 10 | H42: =Stage1!AE51 -> 25 | I42: =Stage1!C51 -> Other Interchange (provide description): | BI42: FHWA Clearinghouse
A43: Project Support | K43: Clearinghouse ID | M43: Clearinghouse CRF
A44: Local Support | B44: =IF(Stage2!C50="Strong",10,IF(Stage2!C50="Supportive",8,IF(Stage2!C50="Neutral",5,IF(Stage2!C50="Negative",2,0)))) -> 5 | C44: =IF(Stage2!E50="strong",10,IF(Stage2!E50="Supportive",8,IF(Stage2!E50="Neutral",5,IF(Stage2!E50="Negative",2,0)))) -> 10 | D44: =IF(Stage2!G50="strong",10,IF(Stage2!G50="Supportive",8,IF(Stage2!G50="Neutral",5,IF(Stage2!G50="Negative",2,0)))) -> 8 | E44: =IF(Stage2!I50="strong",10,IF(Stage2!I50="Supportive",8,IF(Stage2!I50="Neutral",5,IF(Stage2!I50="Negative",2,0)))) -> 0 | F44: =IF(Stage2!K50="strong",10,IF(Stage2!K50="Supportive",8,IF(Stage2!K50="Neutral",5,IF(Stage2!K50="Negative",2,0)))) -> 5
A45: CDOT Region Support | B45: =IF(Stage2!C51="strong",10,IF(Stage2!C51="Supportive",8,IF(Stage2!C51="Neutral",5,IF(Stage2!C51="Negative",2,0)))) -> 8 | C45: =IF(Stage2!E51="strong",10,IF(Stage2!E51="Supportive",8,IF(Stage2!E51="Neutral",5,IF(Stage2!E51="Negative",2,0)))) -> 8 | D45: =IF(Stage2!G51="strong",10,IF(Stage2!G51="Supportive",8,IF(Stage2!G51="Neutral",5,IF(Stage2!G51="Negative",2,0)))) -> 5 | E45: =IF(Stage2!I51="strong",10,IF(Stage2!I51="Supportive",8,IF(Stage2!I51="Neutral",5,IF(Stage2!I51="Negative",2,0)))) -> 0 | F45: =IF(Stage2!K51="strong",10,IF(Stage2!K51="Supportive",8,IF(Stage2!K51="Neutral",5,IF(Stage2!K51="Negative",2,0)))) -> 2 | I45: Control Type | K45: All | L45: Fat/Inj | M45: All | N45: Fat/Inj | P45: Source | W45: Source:
A46: Project Support Score: | B46: =IF(Stage2!C15="N/A",0,IF(AND(Stage2!C50="Unknown",Stage2!C51="Unknown"),5,IF(OR(Stage2!C50="Unknown",Stage2!C51="Unknown"),MAX(Scoring!B44:B45),SUM(B44:B45)/2))) -> 6.5 | C46: =IF(Stage2!E15="N/A",0,IF(AND(Stage2!E50="Unknown",Stage2!E51="Unknown"),5,IF(OR(Stage2!E50="Unknown",Stage2!E51="Unknown"),MAX(Scoring!C44:C45),SUM(C44:C45)/2))) -> 9 | D46: =IF(Stage2!G15="N/A",0,IF(AND(Stage2!G50="Unknown",Stage2!G51="Unknown"),5,IF(OR(Stage2!G50="Unknown",Stage2!G51="Unknown"),MAX(Scoring!D44:D45),SUM(D44:D45)/2))) -> 6.5 | E46: =IF(Stage2!I15="N/A",0,IF(AND(Stage2!I50="Unknown",Stage2!I51="Unknown"),5,IF(OR(Stage2!I50="Unknown",Stage2!I51="Unknown"),MAX(Scoring!E44:E45),SUM(E44:E45)/2))) -> 5 | F46: =IF(Stage2!K15="N/A",0,IF(AND(Stage2!K50="Unknown",Stage2!K51="Unknown"),5,IF(OR(Stage2!K50="Unknown",Stage2!K51="Unknown"),MAX(Scoring!F44:F45),SUM(F44:F45)/2))) -> 3.5 | H46: 1 | I46: =IF(H46<=Alts,VLOOKUP(H46,Stage1!$A$14:$C$53,3,FALSE),"") -> Displaced Left-Turn / CFI | K46: =VLOOKUP(Alternative1,$I$5:$BH$42,CMFid,FALSE) -> 0 | L46: =VLOOKUP(Alternative1,$I$5:$BH$42,CMFid+1,FALSE) -> 0 | M46: =IF(K46=0,0,IFERROR(VLOOKUP(Scoring!K46,Clearinghouse!$A$1:$F$8000,6,FALSE),"-"))/100 -> 0 | N46: =IF(L46=0,0,IFERROR(VLOOKUP(Scoring!L46,Clearinghouse!$A$1:$F$8000,6,FALSE),"-"))/100 -> 0 | P46: =IF(M46=0,"-",VLOOKUP(Alternative1,$I$5:$BI$42,53)) -> - | W46: =IF(M46=0,"-",IF(M46=N46,CONCATENATE(P46," ID:",K46),CONCATENATE(P46," IDs: ",K46," / ",L46))) -> -
A47: Evaluation Criteria Totals | H47: 2 | I47: =IF(H47<=Alts,VLOOKUP(H47,Stage1!$A$14:$C$53,3,FALSE),"") -> Multilane Roundabout | K47: =VLOOKUP(Alternative2,$I$5:$BH$42,CMFid,FALSE) -> 236 | L47: =VLOOKUP(Alternative2,$I$5:$BH$42,CMFid+1,FALSE) -> 237 | M47: =IF(K47=0,0,IFERROR(VLOOKUP(Scoring!K47,Clearinghouse!$A$1:$F$8000,6,FALSE),"-"))/100 -> 0.32 | N47: =IF(L47=0,0,IFERROR(VLOOKUP(Scoring!L47,Clearinghouse!$A$1:$F$8000,6,FALSE),"-"))/100 -> 0.71 | P47: =IF(M47=0,"-",VLOOKUP(Alternative1,$I$5:$BI$42,53)) -> FHWA Clearinghouse | W47: =IF(M47=0,"-",IF(M47=N47,CONCATENATE(P47," ID:",K47),CONCATENATE(P47," IDs: ",K47," / ",L47))) -> FHWA Clearinghouse IDs: 236 / 237
A48: =Stage2!R7 -> 0.2 | B48: =B10*$A48 -> 0.9875786352 | C48: =C10*$A48 -> 0.6577116537 | D48: =D10*$A48 -> 1.421410374 | E48: =E10*$A48 -> 1.268710426 | F48: =F10*$A48 -> 2 | H48: 3 | I48: =IF(H48<=Alts,VLOOKUP(H48,Stage1!$A$14:$C$53,3,FALSE),"") -> Superstreet / RCI | K48: =VLOOKUP(Alternative3,$I$5:$BH$42,CMFid,FALSE) -> 10059 | L48: =VLOOKUP(Alternative3,$I$5:$BH$42,CMFid+1,FALSE) -> 10058 | M48: =IF(K48=0,0,IFERROR(VLOOKUP(Scoring!K48,Clearinghouse!$A$1:$F$8000,6,FALSE),"-"))/100 -> 0.223 | N48: =IF(L48=0,0,IFERROR(VLOOKUP(Scoring!L48,Clearinghouse!$A$1:$F$8000,6,FALSE),"-"))/100 -> 0.415 | P48: =IF(M48=0,"-",VLOOKUP(Alternative1,$I$5:$BI$42,53)) -> FHWA Clearinghouse | W48: =IF(M48=0,"-",IF(M48=N48,CONCATENATE(P48," ID:",K48),CONCATENATE(P48," IDs: ",K48," / ",L48))) -> FHWA Clearinghouse IDs: 10059 / 10058
A49: =Stage2!R8 -> 0.25 | B49: =IF(Stage2!J6="Intersection Delay",MAX(-10,B18*$A49),MAX(-10,B23*$A49)) -> 1.283992462 | C49: =IF(Stage2!J6="Intersection Delay",MAX(-10,C18*$A49),MAX(-10,C23*$A49)) -> -0.547620387 | D49: =IF(Stage2!J6="Intersection Delay",MAX(-10,D18*$A49),MAX(-10,D23*$A49)) -> 1.096065857 | E49: =IF(Stage2!J6="Intersection Delay",MAX(-10,E18*$A49),MAX(-10,E23*$A49)) -> 0.4028840384 | F49: =IF(Stage2!J6="Intersection Delay",MAX(-10,F18*$A49),MAX(-10,F23*$A49)) -> 0.1500009376 | H49: 4 | I49: =IF(H49<=Alts,VLOOKUP(H49,Stage1!$A$14:$C$53,3,FALSE),"") -> Bowtie Intersection | K49: =VLOOKUP(Alternative4,$I$5:$BH$42,CMFid,FALSE) -> 0 | L49: =VLOOKUP(Alternative4,$I$5:$BH$42,CMFid+1,FALSE) -> 0 | M49: =IF(K49=0,0,IFERROR(VLOOKUP(Scoring!K49,Clearinghouse!$A$1:$F$8000,6,FALSE),"-"))/100 -> 0 | N49: =IF(L49=0,0,IFERROR(VLOOKUP(Scoring!L49,Clearinghouse!$A$1:$F$8000,6,FALSE),"-"))/100 -> 0 | P49: =IF(M49=0,"-",VLOOKUP(Alternative1,$I$5:$BI$42,53)) -> - | W49: =IF(M49=0,"-",IF(M49=N49,CONCATENATE(P49," ID:",K49),CONCATENATE(P49," IDs: ",K49," / ",L49))) -> -
A50: =Stage2!P9 -> 0.35 | B50: =B30*$A$50 -> 0.8235294118 | C50: =C30*$A$50 -> 2.22663707 | D50: =D30*$A$50 -> 1.365738069 | E50: =E30*$A$50 -> 1.314539401 | F50: =F30*$A$50 -> 1.619711432 | H50: 5 | I50: =IF(H50<=Alts,VLOOKUP(H50,Stage1!$A$14:$C$53,3,FALSE),"") -> Signalized Intersection | K50: =VLOOKUP(Alternative5,$I$5:$BH$42,CMFid,FALSE) -> 7982 | L50: =VLOOKUP(Alternative5,$I$5:$BH$42,CMFid+1,FALSE) -> 7984 | M50: =IF(K50=0,0,IFERROR(VLOOKUP(Scoring!K50,Clearinghouse!$A$1:$F$8000,6,FALSE),"-"))/100 -> 0.386 | N50: =IF(L50=0,0,IFERROR(VLOOKUP(Scoring!L50,Clearinghouse!$A$1:$F$8000,6,FALSE),"-"))/100 -> 0.399 | P50: =IF(M50=0,"-",VLOOKUP(Alternative1,$I$5:$BI$42,53)) -> FHWA Clearinghouse | W50: =IF(M50=0,"-",IF(M50=N50,CONCATENATE(P50," ID:",K50),CONCATENATE(P50," IDs: ",K50," / ",L50))) -> FHWA Clearinghouse IDs: 7982 / 7984
A51: =Stage2!R10 -> 0.1 | B51: =B42*$A51 -> 0.6 | C51: =C42*$A51 -> 0.8 | D51: =D42*$A51 -> 1 | E51: =E42*$A51 -> 1 | F51: =F42*$A51 -> 1
A52: =Stage2!R11 -> 0.1 | B52: =B46*$A52 -> 0.65 | C52: =C46*$A52 -> 0.9 | D52: =D46*$A52 -> 0.65 | E52: =E46*$A52 -> 0.5 | F52: =F46*$A52 -> 0.35
A53: Total Score: | B53: =IF(SUM(B48:B52)=0,0,SUM(B48:B52)) -> 4.345100509 | C53: =IF(SUM(C48:C52)=0,0,SUM(C48:C52)) -> 4.036728337 | D53: =IF(SUM(D48:D52)=0,0,SUM(D48:D52)) -> 5.533214299 | E53: =IF(SUM(E48:E52)=0,0,SUM(E48:E52)) -> 4.486133865 | F53: =IF(SUM(F48:F52)=0,0,SUM(F48:F52)) -> 5.119712369
A55: Total Crashes by Severity: | B55: Correctable Crashes by Alternative
A56: =CONCATENATE("PDO: ",CrashPDO) -> PDO: 23 | B56: =CrashPDO -> 23 | C56: =CrashPDO -> 23 | D56: =CrashPDO -> 23 | E56: =CrashPDO -> 23 | F56: =CrashPDO -> 23
A57: =CONCATENATE("Injury: ",CrashInj) -> Injury: 4 | B57: =CrashInj -> 4 | C57: =CrashInj -> 4 | D57: =CrashInj -> 4 | E57: =CrashInj -> 4 | F57: =CrashInj -> 4
A58: =CONCATENATE("Fatal: ",CrashFatal) -> Fatal: 1 | B58: =CrashFatal -> 1 | C58: =CrashFatal -> 1 | D58: =CrashFatal -> 1 | E58: =CrashFatal -> 1 | F58: =CrashFatal -> 1
A59: Benefit / Cost:
A60: Annual Cost | B60: =IF(OR(B$25="",B$26=""),0,B6*$B$71+$B$72) -> 179077.1624 | C60: =IF(OR(C$25="",C$26=""),0,C6*$B$71+$B$72) -> 210328.8314 | D60: =IF(OR(D$25="",D$26=""),0,D6*$B$71+$B$72) -> 137975.8499 | E60: =IF(OR(E$25="",E$26=""),0,E6*$B$71+$B$72) -> 152442.6759 | F60: =IF(OR(F$25="",F$26=""),0,F6*$B$71+$B$72) -> 51776.91897
A61: Annual Operations Benefit | B61: =IF(B60=0,0,IF(AnalysisType="safety funded project","N/A",B92)) -> 1846787.308 | C61: =IF(C60=0,0,IF(AnalysisType="safety funded project","N/A",D92)) -> -850238.9155 | D61: =IF(D60=0,0,IF(AnalysisType="safety funded project","N/A",F92)) -> 1066562.272 | E61: =IF(E60=0,0,IF(AnalysisType="safety funded project","N/A",H92)) -> 560450.739 | F61: =IF(F60=0,0,IF(AnalysisType="safety funded project","N/A",J92)) -> 191711.5017
A62: Annual Safety Benefit: | B62: =IF(OR(B$25="",B$26=""),0,(B$25*$B$56/5*$B$68)+(B$26*$B$57/5*$B$69)+B$26*$B$58/5*$B$70) -> 541996 | C62: =IF(OR(C$25="",C$26=""),0,(C$25*$C$56/5*$B$68)+(C$26*$C$57/5*$B$69)+C$26*$C$58/5*$B$70) -> 1875109.6 | D62: =IF(OR(D$25="",D$26=""),0,(D$25*$D$56/5*$B$68)+(D$26*$D$57/5*$B$69)+D$26*$D$58/5*$B$70) -> 1100530.34 | E62: =IF(OR(E$25="",E$26=""),0,(E$25*$E$56/5*$B$68)+(E$26*$E$57/5*$B$69)+E$26*$E$58/5*$B$70) -> 1012211.2 | F62: =IF(OR(F$25="",F$26=""),0,(F$25*$F$56/5*$B$68)+(F$26*$F$57/5*$B$69)+F$26*$F$58/5*$B$70) -> 1079649.48
A63: Operations B/C Ratio: | B63: =IF(B60=0,"-",B61/B60) -> 10.31280194 | C63: =IF(C60=0,"-",C61/C60) -> -4.04242685 | D63: =IF(D60=0,"-",D61/D60) -> 7.730064884 | E63: =IF(E60=0,"-",E61/E60) -> 3.676468783 | F63: =IF(F60=0,"-",F61/F60) -> 3.702644065
A64: Safety B/C Ratio: | B64: =IF(B60=0,"-",IF(B6="error","",B62/B60)) -> 3.02660592 | C64: =IF(C60=0,"-",IF(C6="error","",C62/C60)) -> 8.915133447 | D64: =IF(D60=0,"-",IF(D6="error","",D62/D60)) -> 7.976253387 | E64: =IF(E60=0,"-",IF(E6="error","",E62/E60)) -> 6.639946421 | F64: =IF(F60=0,"-",IF(F6="error","",F62/F60)) -> 20.85194526
A65: 0.5 | B65: =IF(B63="-","-",B64*$A$65+B63*(1-$A$65)) -> 6.66970393 | C65: =IF(C63="-","-",C64*$A$65+C63*(1-$A$65)) -> 2.436353299 | D65: =IF(D63="-","-",D64*$A$65+D63*(1-$A$65)) -> 7.853159135 | E65: =IF(E63="-","-",E64*$A$65+E63*(1-$A$65)) -> 5.158207602 | F65: =IF(F63="-","-",F64*$A$65+F63*(1-$A$65)) -> 12.27729466
A67: Accident Data | B67: $/Crash | C67: Crash/yr | E67: Parameters | F67: Default
A68: PDO (Pc) | B68: 27300 | C68: =CrashPDO/5 -> 4.6 | E68: Discount rate | F68: 0.07
A69: Injuries (Ic) | B69: =9100000*0.105 -> 955500 | C69: =CrashInj/5 -> 0.8 | E69: AM peak period (hr) | F69: 2
A70: Fatalities (Fc) | B70: 9100000 | C70: =CrashFatal/5 -> 0.2 | E70: PM peak period (hr) | F70: 3
A71: Capital Recovery Factor, Ek | B71: 0.087 | E71: Value of auto travel ($/hr) | F71: 13.75
A72: Maint/Op Cost,Cm | B72: 20000 | E72: Value of truck travel ($/hr) | F72: 72.65
A74: Operations Benefits | B74: Opening Year NB Hrs of Delay | D74: Design Year NB Hrs of Delay | F74: Rate of Change
B75: AM Peak | C75: PM Peak | D75: AM Peak | E75: PM Peak | F75: AM Peak | G75: PM Peak
A76: Auto Delay, Veh Hrs | B76: =Stage2!J9*IntersectionData!AY19/3600 -> 72.2 | C76: =Stage2!K9*IntersectionData!AY21/3600 -> 91.79305556 | D76: =Stage2!J11*IntersectionData!$AY$19/3600 -> 120.3333333 | E76: =Stage2!K11*IntersectionData!$AY$21/3600 -> 199.1736111 | F76: =1+(D76-B76)/B76 -> 1.666666667 | G76: =1+(E76-C76)/C76 -> 2.169811321
A77: Truck Delay, Veh Hrs | B77: =Stage2!J9*IntersectionData!AZ19/3600 -> 1.992666667 | C77: =Stage2!K9*IntersectionData!AZ21/3600 -> 2.546208333 | D77: =Stage2!J11*IntersectionData!$AZ$19/3600 -> 3.321111111 | E77: =Stage2!K11*IntersectionData!$AZ$21/3600 -> 5.524791667 | F77: =1+(D77-B77)/B77 -> 1.666666667 | G77: =1+(E77-C77)/C77 -> 2.169811321
A78: Annual Delay Cost | B78: =250*(B76*$F$69*$F$71+B77*$F$69*$F$72) -> 568758.6167 | C78: =250*(C76*$F$69*$F$71+C77*$F$69*$F$72) -> 723568.2747 | D78: =250*(D76*$F$69*$F$71+D77*$F$69*$F$72) -> 947931.0278 | E78: =250*(E76*$F$70*$F$71+E77*$F$70*$F$72) -> 2355009.951
B80: Alternative 1 | D80: Alternative 2 | F80: Alternative 3 | H80: Alternative 4 | J80: Alternative 5
A81: =CONCATENATE("Opening Year (",IntersectionData!E44,") Benefits") -> Opening Year (2023) Benefits | B81: AM Peak | C81: PM Peak | D81: AM Peak | E81: PM Peak | F81: AM Peak | G81: PM Peak | H81: AM Peak | I81: PM Peak | J81: AM Peak | K81: PM Peak
A82: Auto Delay Hr | B82: =B87/$F$76 -> 36.1 | C82: 5.195833333 | D82: 85.7375 | E82: 124.7 | F82: 36.1 | G82: 54.03666667 | H82: 40.6125 | I82: 83.13333333 | J82: 58.6625 | K82: =K87/$G$76 -> 63.05783816
A83: Truck Delay Hr | B83: =B88/$F$77 -> 0.9963333333 | C83: 0.144125 | D83: 2.366291667 | E83: 3.459 | F83: 0.9963333333 | G83: 1.4989 | H83: 1.120875 | I83: 2.306 | J83: 1.619041667 | K83: =K88/$G$77 -> 1.74913442
A84: Annual Delay Cost | B84: =250*(B82*$F$69*$F$71+B83*$F$69*$F$72) -> 284379.3083 | C84: =250*(C82*$F$69*$F$71+C83*$F$69*$F$72) -> 40956.69479 | D84: =250*(D82*$F$69*$F$71+D83*$F$69*$F$72) -> 675400.8573 | E84: =250*(E82*$F$70*$F$71+E83*$F$70*$F$72) -> 1474441.012 | F84: =250*(F82*$F$69*$F$71+F83*$F$69*$F$72) -> 284379.3083 | G84: =250*(G82*$F$70*$F$71+G83*$F$70*$F$72) -> 638924.4388 | H84: =250*(H82*$F$69*$F$71+H83*$F$69*$F$72) -> 319926.7219 | I84: =250*(I82*$F$70*$F$71+I83*$F$70*$F$72) -> 982960.675 | J84: =250*(J82*$F$70*$F$71+J83*$F$70*$F$72) -> 693174.5641 | K84: =250*(K82*$F$70*$F$71+K83*$F$70*$F$72) -> 745589.9178
A85: =CONCATENATE("Opening Year (",IntersectionData!E44,") Benefits") -> Opening Year (2023) Benefits | B85: =($B$78-B84)+($C$78-C84) -> 966990.8882 | D85: =($B$78-D84)+($C$78-E84) -> -857514.9785 | F85: =($B$78-F84)+($C$78-G84) -> 369023.1442 | H85: =($B$78-H84)+($C$78-I84) -> -10560.50556 | J85: =($B$78-J84)+($C$78-K84) -> -146437.5905
A86: =CONCATENATE("Design Year (",IntersectionData!E46,") Benefits") -> Design Year (2043) Benefits | B86: AM Peak | C86: PM Peak | D86: AM Peak | E86: PM Peak | F86: AM Peak | G86: PM Peak | H86: AM Peak | I86: PM Peak | J86: AM Peak | K86: PM Peak
A87: Auto Delay Hr | B87: =Stage2!C27*IntersectionData!$AY$19/3600 -> 60.16666667 | C87: =Stage2!D27*IntersectionData!$AY$21/3600 -> 8.659722222 | D87: =Stage2!E27*IntersectionData!$AY$19/3600 -> 142.8958333 | E87: =Stage2!F27*IntersectionData!$AY$21/3600 -> 207.8333333 | F87: =Stage2!G27*IntersectionData!$AY$19/3600 -> 60.16666667 | G87: =Stage2!H27*IntersectionData!$AY$21/3600 -> 90.06111111 | H87: =Stage2!I27*IntersectionData!$AY$19/3600 -> 67.6875 | I87: =Stage2!J27*IntersectionData!$AY$21/3600 -> 138.5555556 | J87: =Stage2!K27*IntersectionData!$AY$19/3600 -> 97.77083333 | K87: =Stage2!L27*IntersectionData!$AY$21/3600 -> 136.8236111
A88: Truck Delay Hr | B88: =Stage2!C27*IntersectionData!$AZ$19/3600 -> 1.660555556 | C88: =Stage2!D27*IntersectionData!$AZ$21/3600 -> 0.2402083333 | D88: =Stage2!E27*IntersectionData!$AZ$19/3600 -> 3.943819444 | E88: =Stage2!F27*IntersectionData!$AZ$21/3600 -> 5.765 | F88: =Stage2!G27*IntersectionData!$AZ$19/3600 -> 1.660555556 | G88: =Stage2!H27*IntersectionData!$AZ$21/3600 -> 2.498166667 | H88: =Stage2!I27*IntersectionData!$AZ$19/3600 -> 1.868125 | I88: =Stage2!J27*IntersectionData!$AZ$21/3600 -> 3.843333333 | J88: =Stage2!K27*IntersectionData!$AZ$19/3600 -> 2.698402778 | K88: =Stage2!L27*IntersectionData!$AZ$21/3600 -> 3.795291667
A89: Annual Delay Cost | B89: =250*(B87*$F$69*$F$71+B88*$F$69*$F$72) -> 473965.5139 | C89: =250*(C87*$F$70*$F$71+C88*$F$70*$F$72) -> 102391.737 | D89: =250*(D87*$F$70*$F$71+D88*$F$70*$F$72) -> 1688502.143 | E89: =250*(E87*$F$70*$F$71+E88*$F$70*$F$72) -> 2457401.687 | F89: =250*(F87*$F$69*$F$71+F88*$F$69*$F$72) -> 473965.5139 | G89: =250*(G87*$F$70*$F$71+G88*$F$70*$F$72) -> 1064874.065 | H89: =250*(H87*$F$69*$F$71+H88*$F$69*$F$72) -> 533211.2031 | I89: =250*(I87*$F$70*$F$71+I88*$F$70*$F$72) -> 1638267.792 | J89: =250*(J87*$F$70*$F$71+J88*$F$70*$F$72) -> 1155290.94 | K89: =250*(K87*$F$70*$F$71+K88*$F$70*$F$72) -> 1617789.444
A90: =CONCATENATE("Design Year (",IntersectionData!E46,") Benefits") -> Design Year (2043) Benefits | B90: =($D$78-B89)+($E$78-C89) -> 2726583.727 | D90: =($D$78-D89)+($E$78-E89) -> -842962.8524 | F90: =($D$78-F89)+($E$78-G89) -> 1764101.4 | H90: =($D$78-H89)+($E$78-I89) -> 1131461.984 | J90: =($D$78-J89)+($E$78-K89) -> 529860.5939
A92: Total Operations Benefit | B92: =(B85+B90)/2 -> 1846787.308 | D92: =(D85+D90)/2 -> -850238.9155 | F92: =(F85+F90)/2 -> 1066562.272 | H92: =(H85+H90)/2 -> 560450.739 | J92: =(J85+J90)/2 -> 191711.5017

Sheet Clearinghouse (hidden)
A1: 1 | B1: 2 | C1: 3 | D1: 4 | E1: 5 | F1: 6 | G1: 7 | H1: 8 | I1: 9 | J1: 10 | K1: 11 | L1: 12 | M1: 13 | N1: 14 | O1: 15 | P1: 16 | Q1: 17 | R1: 18 | S1: 19 | T1: 20 | U1: 21 | V1: 22 | W1: 23 | X1: 24 | Y1: 25 | Z1: 26 | AA1: 27 | AB1: 28 | AC1: 29 | AD1: 30 | AE1: 31 | AF1: 32 | AG1: 33 | AH1: 34 | AI1: 35 | AJ1: 36 | AK1: 37 | AL1: 38 | AM1: 39 | AN1: 40 | AO1: 41 | AP1: 42 | AQ1: 43 | AR1: 44 | AS1: 45 | AT1: 46 | AU1: 47 | AV1: 48 | AW1: 49 | AX1: 50 | AY1: 51 | AZ1: 52 | BA1: 53 | BB1: 54 | BC1: 55 | BD1: 56 | BE1: 57 | BF1: 58 | BG1: 59 | BH1: 60
A2: CMF ID | B2: Study Title | C2: Countermeasure Category | D2: Countermeasure Subcategory | E2: Countermeasure | F2: CRF | G2: CMF | H2: Crash Type | I2: KABCO Crash Severity | J2: Roadway Type | K2: Area Type | L2: Publication Year | M2: Star Quality Rating | N2: Prior Condition | O2: Adjusted Standard Error of CRF | P2: Unadjusted Standard Error of CRF | Q2: Adjusted Standard Error of CMF | R2: Unadjusted Standard Error of CMF | S2: Included in First Edition of Highway Safety Manual | T2: Type of Study Methodology | U2: State | V2: Municipality | W2: Sample Size Sites | X2: Before Sample Size Sites | Y2: After Sample Size Sites | Z2: Sample Size Miles | AA2: Before Sample Size Miles | AB2: After Sample Size Miles | AC2: Sample Size Crashes | AD2: Before Sample Size Crashes | AE2: After Sample Size Crashes | AF2: Sample Size Mile Years | AG2: Before Sample Size Mile Years | AH2: After Sample Size Mile Years | AI2: Sample Size Site Years | AJ2: Before Sample Size Site Years | AK2: After Sample Size Site Years | AL2: Begin Year of Data | AM2: End Year of Data | AN2: Intersection Related | AO2: Traffic Volume Unit | AP2: Minimum Traffic Volume (non-intersection) | AQ2: Maximum Traffic Volume (non-intersection) | AR2: Average Traffic Volume (non-intersection) | AS2: Minimum Major Road Traffic Volume (intersection) | AT2: Maximum Major Road Traffic Volume (intersection) | AU2: Average Major Road Traffic Volume (intersection) | AV2: Minimum Minor Road Traffic Volume (intersection) | AW2: Maximum Minor Road Traffic Volume (intersection) | AX2: Average Minor Road Traffic Volume (intersection) | AY2: Number of Lanes | AZ2: Intersection Type | BA2: Intersection Geometry | BB2: Traffic Control Type | BC2: Speed Limit (mph) | BD2: Crash Time of Day | BE2: Roadway Division Type | BF2: Date CMF Added to Clearinghouse | BG2: Public Comments
A3: 1 | B3: Lane Width and Safety | C3: Roadway | D3: Lane width | E3: Decrease lane width from 11 feet to 9 feet | F3: -21 | G3: 1.21 | H3: All | I3: All | J3: Not specified | K3: Rural | L3: 2000 | M3: 3 | O3: 12 | P3: 4 | Q3: 0.12 | R3: 0.04 | S3: no | T3: Meta-analysis | AN3: no | AY3: 2 | BF3: 2009-12-01
A4: 2 | B4: Lane Width and Safety | C4: Roadway | D4: Lane width | E4: Decrease lane width from 11 feet to 10 feet | F4: -9 | G4: 1.09 | H4: All | I4: All | J4: Not specified | K4: Rural | L4: 2000 | M4: 3 | O4: 8 | P4: 3 | Q4: 0.08 | R4: 0.03 | S4: no | T4: Meta-analysis | AN4: no | AY4: 2 | BF4: 2009-12-01
A5: 3 | B5: Lane Width and Safety | C5: Roadway | D5: Lane width | E5: Increase lane width from 11 feet to 12 feet | F5: 5 | G5: 0.95 | H5: All | I5: All | J5: Not specified | K5: Rural | L5: 2000 | M5: 3 | O5: 32 | P5: 11 | Q5: 0.32 | R5: 0.11 | S5: no | T5: Meta-analysis | AN5: no | AY5: 2 | BF5: 2009-12-01
A6: 4 | B6: Safety Effects of Using Narrow Lanes and Shoulder-Use Lanes to Increase the Capacity of Urban Freeways | C6: Roadway | D6: Number of lanes | E6: Four to five lane conversion | F6: -11 | G6: 1.11 | H6: All | I6: All | J6: Principal Arterial Other Freeways and Expressways | K6: Urban | L6: 2004 | M6: 4 | P6: 3 | R6: 0.03 | S6: bold | T6: Before/after using empirical Bayes or full Bayes | AN6: no | AO6: Average Daily Traffic (ADT) | AP6: 79000 | AQ6: 128000 | AY6: 4 (one direction) | BF6: 2009-12-01 | BG6: AADT is one direction
A7: 5 | B7: Safety Effects of Using Narrow Lanes and Shoulder-Use Lanes to Increase the Capacity of Urban Freeways | C7: Roadway | D7: Number of lanes | E7: Four to five lane conversion | F7: -10 | G7: 1.1 | H7: All | I7: A (serious injury),B (minor injury),C (possible injury),O (property damage only) | J7: Principal Arterial Other Freeways and Expressways | K7: Urban | L7: 2004 | M7: 3 | P7: 4 | R7: 0.04 | S7: bold star | T7: Before/after using empirical Bayes or full Bayes | AN7: no | AO7: Average Daily Traffic (ADT) | AP7: 79000 | AQ7: 128000 | AY7: 4 (one direction) | BF7: 2009-12-01 | BG7: AADT is one direction
A8: 6 | B8: Safety Effects of Using Narrow Lanes and Shoulder-Use Lanes to Increase the Capacity of Urban Freeways | C8: Roadway | D8: Number of lanes | E8: Four to five lane conversion | F8: -11 | G8: 1.11 | H8: All | I8: K (fatal),A (serious injury),B (minor injury),C (possible injury) | J8: Principal Arterial Other Freeways and Expressways | K8: Urban | L8: 2004 | M8: 3 | P8: 5 | R8: 0.05 | S8: bold | T8: Before/after using empirical Bayes or full Bayes | AN8: no | AO8: Average Daily Traffic (ADT) | AP8: 79000 | AQ8: 128000 | AY8: 4 (one direction) | BF8: 2009-12-01 | BG8: AADT is one direction
A9: 7 | B9: Safety Effects of Using Narrow Lanes and Shoulder-Use Lanes to Increase the Capacity of Urban Freeways | C9: Roadway | D9: Number of lanes | E9: Five to six lane conversion | F9: -3 | G9: 1.03 | H9: All | I9: All | J9: Principal Arterial Other Freeways and Expressways | K9: Urban | L9: 2004 | M9: 3 | P9: 5 | R9: 0.05 | S9: bold star | T9: Before/after using empirical Bayes or full Bayes | AN9: no | AO9: Average Daily Traffic (ADT) | AP9: 77000 | AQ9: 126000 | AY9: 5 (one way) | BF9: 2009-12-01 | BG9: AADT is one direction
A10: 8 | B10: Safety Effects of Using Narrow Lanes and Shoulder-Use Lanes to Increase the Capacity of Urban Freeways | C10: Roadway | D10: Number of lanes | E10: Five to six lane conversion | F10: -4 | G10: 1.04 | H10: All | I10: A (serious injury),B (minor injury),C (possible injury),O (property damage only) | J10: Principal Arterial Other Freeways and Expressways | K10: Urban | L10: 2004 | M10: 3 | P10: 6 | R10: 0.06 | S10: bold star | T10: Before/after using empirical Bayes or full Bayes | AN10: no | AO10: Average Daily Traffic (ADT) | AP10: 77000 | AQ10: 126000 | AY10: 5 (one way) | BF10: 2009-12-01 | BG10: AADT is one direction
A11: 9 | B11: Safety Effects of Using Narrow Lanes and Shoulder-Use Lanes to Increase the Capacity of Urban Freeways | C11: Roadway | D11: Number of lanes | E11: Five to six lane conversion | F11: -7 | G11: 1.07 | H11: All | I11: K (fatal),A (serious injury),B (minor injury),C (possible injury) | J11: Principal Arterial Other Freeways and Expressways | K11: Urban | L11: 2004 | M11: 3 | P11: 7 | R11: 0.07 | S11: bold star | T11: Before/after using empirical Bayes or full Bayes | AN11: no | AO11: Average Daily Traffic (ADT) | AP11: 77000 | AQ11: 126000 | AY11: 5 (one way) | BF11: 2009-12-01 | BG11: AADT is one direction
A12: 10 | B12: Highway Safety Manual Knowledge Document | C12: Shoulder treatments | D12: Shoulder width | E12: Widen paved shoulder from 3 ft to 4 ft | F12: 3 | G12: 0.97 | H12: All | I12: All | J12: Not specified | K12: Rural | L12: 2009 | M12: 3 | O12: 7 | P12: 2 | Q12: 0.07 | R12: 0.02 | S12: no | T12: Meta-analysis | AN12: no | AP12: All | AQ12: All | AY12: 2 | BF12: 2009-12-01
A13: 11 | B13: Highway Safety Manual Knowledge Document | C13: Shoulder treatments | D13: Shoulder width | E13: Widen paved shoulder from 3 ft to 5 ft | F13: 5 | G13: 0.95 | H13: All | I13: All | J13: Not specified | K13: Rural | L13: 2009 | M13: 3 | O13: 13 | P13: 4 | Q13: 0.13 | R13: 0.04 | S13: no | T13: Meta-analysis | AN13: no | AP13: All | AQ13: All | AY13: 2 | BF13: 2009-12-01
A14: 12 | B14: Highway Safety Manual Knowledge Document | C14: Shoulder treatments | D14: Shoulder width | E14: Widen paved shoulder from 3 ft to 6 ft | F14: 7 | G14: 0.93 | H14: All | I14: All | J14: Not specified | K14: Rural | L14: 2009 | M14: 3 | O14: 20 | P14: 7 | Q14: 0.2 | R14: 0.07 | S14: no | T14: Meta-analysis | AN14: no | AP14: All | AQ14: All | AY14: 2 | BF14: 2009-12-01
A15: 13 | B15: Highway Safety Manual Knowledge Document | C15: Shoulder treatments | D15: Shoulder width | E15: Widen paved shoulder from 3 ft to 7 ft | F15: 10 | G15: 0.9 | H15: All | I15: All | J15: Not specified | K15: Rural | L15: 2009 | M15: 3 | O15: 26 | P15: 9 | Q15: 0.26 | R15: 0.09 | S15: no | T15: Meta-analysis | AN15: no | AP15: All | AQ15: All | AY15: 2 | BF15: 2009-12-01
A16: 14 | B16: Highway Safety Manual Knowledge Document | C16: Shoulder treatments | D16: Shoulder width | E16: Widen paved shoulder from 3 ft to 8 ft | F16: 12 | G16: 0.88 | H16: All | I16: All | J16: Not specified | K16: Rural | L16: 2009 | M16: 3 | O16: 32 | P16: 11 | Q16: 0.32 | R16: 0.11 | S16: no | T16: Meta-analysis | AN16: no | AP16: All | AQ16: All | AY16: 2 | BF16: 2009-12-01
A17: 15 | B17: Paved Highway Shoulders and Accident Experience | C17: Shoulder treatments | D17: Shoulder type | E17: Pave a 3 to 4 ft sod shoulder | F17: 14 | G17: 0.86 | H17: All | I17: K (fatal) | J17: Not specified | K17: Rural | L17: 1974 | M17: 1 | O17: 57 | P17: 19 | Q17: 0.57 | R17: 0.19 | S17: no | T17: Simple before/after | AN17: no | AY17: 2 | BF17: 2009-12-01
A18: 16 | B18: Paved Highway Shoulders and Accident Experience | C18: Shoulder treatments | D18: Shoulder type | E18: Pave a 3 to 4 ft sod shoulder | F18: 14 | G18: 0.86 | H18: All | I18: A (serious injury),B (minor injury),C (possible injury) | J18: Not specified | K18: Rural | L18: 1974 | M18: 3 | O18: 18 | P18: 6 | Q18: 0.18 | R18: 0.06 | S18: no | T18: Simple before/after | AN18: no | AY18: 2 | BF18: 2009-12-01
A19: 17 | B19: Paved Highway Shoulders and Accident Experience | C19: Shoulder treatments | D19: Shoulder type | E19: Pave a 3 to 4 ft sod shoulder | F19: 22 | G19: 0.78 | H19: All | I19: O (property damage only) | J19: Not specified | K19: Rural | L19: 1974 | M19: 4 | O19: 12 | P19: 4 | Q19: 0.12 | R19: 0.04 | S19: no | T19: Simple before/after | AN19: no | AY19: 2 | BF19: 2009-12-01
A20: 18 | B20: Paved Highway Shoulders and Accident Experience | C20: Shoulder treatments | D20: Shoulder type | E20: Pave a 3 to 4 ft sod shoulder | F20: 19 | G20: 0.81 | H20: All | I20: All | J20: Not specified | K20: Rural | L20: 1974 | M20: 4 | O20: 9 | P20: 3 | Q20: 0.09 | R20: 0.03 | S20: no | T20: Simple before/after | AN20: no | AY20: 2 | BF20: 2009-12-01
A21: 19 | B21: Handbook of Road Safety Measures | C21: Access management | D21: None | E21: Provide a raised median | F21: -94 | G21: 1.94 | H21: All | I21: K (fatal),A (serious injury),B (minor injury),C (possible injury) | J21: Not specified | K21: Rural | L21: 2004 | M21: 1 | O21: 56 | P21: 31 | Q21: 0.56 | R21: 0.31 | S21: no | T21: Meta-analysis | AN21: no | AY21: 2 | BF21: 2009-12-01 | BG21: Countermeasure name has been slightly modified for consistency across Clearinghouse
A22: 20 | B22: Handbook of Road Safety Measures | C22: Access management | D22: None | E22: Provide a raised median | F22: -128 | G22: 2.28 | H22: All | I22: O (property damage only) | J22: Not specified | K22: Rural | L22: 2004 | M22: 2 | O22: 55 | P22: 31 | Q22: 0.55 | R22: 0.31 | S22: no | T22: Meta-analysis | AN22: no | AY22: 2 | BF22: 2009-12-01 | BG22: Countermeasure name has been slightly modified for consistency across Clearinghouse
A23: 21 | B23: Handbook of Road Safety Measures | C23: Access management | D23: None | E23: Provide a raised median | F23: 39 | G23: 0.61 | H23: All | I23: K (fatal),A (serious injury),B (minor injury),C (possible injury) | J23: Not Specified | K23: Urban | L23: 2004 | M23: 4 | O23: 10 | P23: 6 | Q23: 0.1 | R23: 0.06 | S23: bold | T23: Meta-analysis | AN23: no | AY23: 2 | BF23: 2009-12-01 | BG23: Countermeasure name changed from "provide a median" in order to match the HSM
A24: 22 | B24: Handbook of Road Safety Measures | C24: Access management | D24: None | E24: Provide a raised median | F24: 22 | G24: 0.78 | H24: All | I24: A (serious injury),B (minor injury),C (possible injury) | J24: Principal Arterial Other | K24: Urban | L24: 2004 | M24: 5 | O24: 2 | P24: 1 | Q24: 0.02 | R24: 0.01 | S24: bold | T24: Meta-analysis | AN24: no | AY24: Multilane | BF24: 2009-12-01
A25: 23 | B25: Handbook of Road Safety Measures | C25: Access management | D25: None | E25: Provide a raised median | F25: -9 | G25: 1.09 | H25: All | I25: O (property damage only) | J25: Principal Arterial Other | K25: Urban | L25: 2004 | M25: 5 | O25: 2 | P25: 1 | Q25: 0.02 | R25: 0.01 | S25: bold | T25: Meta-analysis | AN25: no | AY25: Multilane | BF25: 2009-12-01
A26: 24 | B26: Handbook of Road Safety Measures | C26: Access management | D26: None | E26: Provide a raised median | F26: 12 | G26: 0.88 | H26: All | I26: A (serious injury),B (minor injury),C (possible injury) | J26: Principal Arterial Other | K26: Rural | L26: 2004 | M26: 5 | O26: 3 | P26: 2 | Q26: 0.03 | R26: 0.02 | S26: bold | T26: Meta-analysis | AN26: no | AY26: Multilane | BF26: 2009-12-01
A27: 25 | B27: Handbook of Road Safety Measures | C27: Access management | D27: None | E27: Provide a raised median | F27: 18 | G27: 0.82 | H27: All | I27: O (property damage only) | J27: Principal Arterial Other | K27: Rural | L27: 2004 | M27: 5 | O27: 3 | P27: 2 | Q27: 0.03 | R27: 0.02 | S27: bold | T27: Meta-analysis | AN27: no | AY27: Multilane | BF27: 2009-12-01
A28: 26 | B28: Handbook of Road Safety Measures | C28: Roadside | D28: Clear zone | E28: Flatten sideslope from 1V:3H to 1V:4H | F28: 42 | G28: 0.58 | H28: All | I28: A (serious injury),B (minor injury),C (possible injury) | J28: Not specified | K28: Rural | L28: 2004 | M28: 5 | O28: 4 | P28: 2 | Q28: 0.04 | R28: 0.02 | S28: no | T28: Meta-analysis | AN28: no | AY28: 2 | BF28: 2009-12-01
A29: 27 | B29: Handbook of Road Safety Measures | C29: Roadside | D29: Clear zone | E29: Flatten sideslope from 1V:3H to 1V:4H | F29: 29 | G29: 0.71 | H29: All | I29: O (property damage only) | J29: Not specified | K29: Rural | L29: 2004 | M29: 5 | O29: 4 | P29: 2 | Q29: 0.04 | R29: 0.02 | S29: no | T29: Meta-analysis | AN29: no | AY29: 2 | BF29: 2009-12-01
A30: 28 | B30: Measuring the Goodness of Fit of Accident Prediction Models | C30: Roadside | D30: Clear zone | E30: Flatten sideslope from 1V:3H to 1V:4H | F30: 18 | G30: 0.82 | H30: Run off road | I30: All | J30: Not specified | K30: Rural | L30: 1996 | M30: 3 | O30: 16 | P30: 11 | Q30: 0.16 | R30: 0.11 | S30: no | T30: Regression cross-section | AN30: no | AY30: 2 | BF30: 2009-12-01
A31: 29 | B31: Handbook of Road Safety Measures | C31: Roadside | D31: Clear zone | E31: Flatten sideslope from 1V:4H to 1V:6H | F31: 22 | G31: 0.78 | H31: All | I31: A (serious injury),B (minor injury),C (possible injury) | J31: Not specified | K31: Rural | L31: 2004 | M31: 5 | O31: 4 | P31: 2 | Q31: 0.04 | R31: 0.02 | S31: no | T31: Meta-analysis | AN31: no | AY31: 2 | BF31: 2009-12-01
A32: 30 | B32: Handbook of Road Safety Measures | C32: Roadside | D32: Clear zone | E32: Flatten sideslope from 1V:4H to 1V:6H | F32: 24 | G32: 0.76 | H32: All | I32: O (property damage only) | J32: Not specified | K32: Rural | L32: 2004 | M32: 5 | O32: 2 | P32: 1 | Q32: 0.02 | R32: 0.01 | S32: no | T32: Meta-analysis | AN32: no | AY32: 2 | BF32: 2009-12-01
A33: 31 | B33: Measuring the Goodness of Fit of Accident Prediction Models | C33: Roadside | D33: Clear zone | E33: Flatten sideslope from 1V:4H to 1V:6H | F33: 24 | G33: 0.76 | H33: Run off road | I33: All | J33: Not specified | K33: Rural | L33: 1996 | M33: 3 | O33: 21 | P33: 14 | Q33: 0.21 | R33: 0.14 | S33: no | T33: Regression cross-section | AN33: no | AY33: 2 | BF33: 2009-12-01
A34: 32 | B34: Safety Effect of Barrier Curb on High Speed Suburban MultiLane Highways | C34: Shoulder treatments | D34: Shoulder type | E34: Barrier curb on the road edge | F34: -9 | G34: 1.09 | H34: All | I34: All | J34: Principal Arterial Other | K34: Suburban | L34: 1996 | M34: 1 | O34: 126 | P34: 42 | Q34: 1.26 | R34: 0.42 | S34: no | T34: Simple before/after | AN34: no | AO34: Average Daily Traffic (ADT) | BF34: 2009-12-01
A35: 33 | B35: Safety Effect of Barrier Curb on High Speed Suburban MultiLane Highways | C35: Shoulder treatments | D35: Shoulder type | E35: Barrier curb on the road edge | F35: -257 | G35: 3.57 | H35: All | I35: All | J35: Principal Arterial Other | K35: Suburban | L35: 1996 | M35: 1 | O35: 2648 | P35: 883 | Q35: 26.48 | R35: 8.83 | S35: no | T35: Simple before/after | AN35: no | AO35: Average Daily Traffic (ADT) | BF35: 2009-12-01
A36: 34 | B36: Safety Effect of Barrier Curb on High Speed Suburban MultiLane Highways | C36: Shoulder treatments | D36: Shoulder type | E36: Barrier curb on the road edge | F36: 36 | G36: 0.64 | H36: All | I36: All | J36: Principal Arterial Other | K36: Suburban | L36: 1996 | M36: 1 | O36: 164 | P36: 55 | Q36: 1.64 | R36: 0.55 | S36: no | T36: Simple before/after | AN36: no | AO36: Average Daily Traffic (ADT) | BF36: 2009-12-01
A37: 35 | B37: Handbook of Road Safety Measures | C37: Roadside | D37: Fixed object | E37: Increase distance to roadside features from 3.3 ft to 16.7 ft | F37: 22 | G37: 0.78 | H37: All | I37: All | J37: All | K37: Rural | L37: 2004 | M37: 5 | O37: 2 | P37: 1 | Q37: 0.02 | R37: 0.01 | S37: bold | T37: Meta-analysis | AN37: no | AY37: 2 | BF37: 2009-12-01 | BG37: Countermeasure name changed - converted meters to feet
A38: 36 | B38: Handbook of Road Safety Measures | C38: Roadside | D38: Fixed object | E38: Increase distance to roadside features from 16.7 ft to 30 ft | F38: 44 | G38: 0.56 | H38: All | I38: All | J38: All | K38: Rural | L38: 2004 | M38: 5 | O38: 1 | P38: 1 | Q38: 0.01 | R38: 0.01 | S38: bold | T38: Meta-analysis | AN38: no | AY38: 2 | BF38: 2009-12-01 | BG38: Countermeasure name changed - converted meters to feet
A39: 37 | B39: Handbook of Road Safety Measures | C39: Roadside | D39: Roadside barriers | E39: New guardrail along embankment | F39: 44 | G39: 0.56 | H39: Run off road | I39: K (fatal) | J39: Not specified | K39: Not specified | L39: 2004 | M39: 4 | O39: 10 | P39: 6 | Q39: 0.1 | R39: 0.06 | S39: no | T39: Meta-analysis | AN39: no | BF39: 2009-12-01
A40: 38 | B40: Handbook of Road Safety Measures | C40: Roadside | D40: Roadside barriers | E40: New guardrail along embankment | F40: 47 | G40: 0.53 | H40: Run off road | I40: A (serious injury),B (minor injury),C (possible injury) | J40: Not specified | K40: Not specified | L40: 2004 | M40: 5 | O40: 5 | P40: 3 | Q40: 0.05 | R40: 0.03 | S40: no | T40: Meta-analysis | AN40: no | BF40: 2009-12-01
A41: 39 | B41: Handbook of Road Safety Measures | C41: Roadside | D41: Roadside barriers | E41: New guardrail along embankment | F41: 7 | G41: 0.93 | H41: Run off road | I41: All | J41: Not specified | K41: Not specified | L41: 2004 | M41: 3 | O41: 31 | P41: 17 | Q41: 0.31 | R41: 0.17 | S41: no | T41: Meta-analysis | AN41: no | BF41: 2009-12-01
A42: 40 | B42: Handbook of Road Safety Measures | C42: Roadside | D42: Roadside barriers | E42: Change barrier along embankment to less rigid type | F42: 41 | G42: 0.59 | H42: Run off road | I42: K (fatal) | J42: Not specified | K42: Not specified | L42: 2004 | M42: 3 | O42: 31 | P42: 17 | Q42: 0.31 | R42: 0.17 | S42: italics | T42: Meta-analysis | AN42: no | BF42: 2009-12-01
A43: 41 | B43: Handbook of Road Safety Measures | C43: Roadside | D43: Roadside barriers | E43: Change barrier along embankment to less rigid type | F43: 32 | G43: 0.68 | H43: Run off road | I43: A (serious injury),B (minor injury),C (possible injury) | J43: Not specified | K43: Not specified | L43: 2004 | M43: 4 | O43: 10 | P43: 6 | Q43: 0.1 | R43: 0.06 | S43: bold | T43: Meta-analysis | AN43: no | BF43: 2009-12-01
A44: 42 | B44: Handbook of Road Safety Measures | C44: Roadside | D44: Median barriers | E44: Install any type of median barrier | F44: 43 | G44: 0.57 | H44: All | I44: K (fatal) | J44: Principal Arterial Other | K44: Rural | L44: 2004 | M44: 4 | O44: 10 | P44: 6 | Q44: 0.1 | R44: 0.06 | S44: bold | T44: Meta-analysis | AN44: no | AP44: 20000 | AQ44: 60000 | AY44: Multilane | BE44: Divided | BF44: 2009-12-01 | BG44: Countermeasure name changed from "install median guardrails on divided highways" to match HSM
A45: 43 | B45: Handbook of Road Safety Measures | C45: Roadside | D45: Median barriers | E45: Install any type of median barrier | F45: 30 | G45: 0.7 | H45: All | I45: A (serious injury),B (minor injury),C (possible injury) | J45: Principal Arterial Other | K45: Rural | L45: 2004 | M45: 4 | O45: 6 | P45: 3 | Q45: 0.06 | R45: 0.03 | S45: bold | T45: Meta-analysis | AN45: no | AP45: 20000 | AQ45: 60000 | AY45: Mulitlane | BE45: Divided | BF45: 2009-12-01 | BG45: Countermeasure name changed from "install median guardrails on head on and opposing direction sideswipes" to match HSM
A46: 44 | B46: Handbook of Road Safety Measures | C46: Roadside | D46: Median barriers | E46: Install any type of median barrier | F46: -24 | G46: 1.24 | H46: All | I46: All | J46: Principal Arterial Other | K46: Rural | L46: 2004 | M46: 5 | O46: 3 | P46: 2 | Q46: 0.03 | R46: 0.02 | S46: bold | T46: Meta-analysis | AN46: no | AP46: 20000 | AQ46: 60000 | AY46: Multilane | BE46: Divided | BF46: 2009-12-01 | BG46: Countermeasure name changed from "install median guardrails on divided highways" to match HSM
A47: 45 | B47: Handbook of Road Safety Measures | C47: Roadside | D47: Median barriers | E47: Install concrete guardrail in median | F47: -15 | G47: 1.15 | H47: All | I47: A (serious injury),B (minor injury),C (possible injury) | J47: Principal Arterial Other | K47: Not specified | L47: 2004 | M47: 3 | O47: 36 | P47: 20 | Q47: 0.36 | R47: 0.2 | S47: no | T47: Meta-analysis | AN47: no | BF47: 2009-12-01
A48: 46 | B48: Handbook of Road Safety Measures | C48: Roadside | D48: Median barriers | E48: Install steel median barrier | F48: 35 | G48: 0.65 | H48: All | I48: A (serious injury),B (minor injury),C (possible injury) | J48: Principal Arterial Other | K48: Rural | L48: 2004 | M48: 4 | O48: 8 | P48: 4 | Q48: 0.08 | R48: 0.04 | S48: bold | T48: Meta-analysis | AN48: no | AP48: 20000 | AQ48: 60000 | AY48: Multilane | BE48: Divided | BF48: 2009-12-01 | BG48: Countermeasure name changed from "install concrete guardrail in median" to match HSM
A49: 47 | B49: Handbook of Road Safety Measures | C49: Roadside | D49: Median barriers | E49: Install cable median barrier | F49: 29 | G49: 0.71 | H49: All | I49: A (serious injury),B (minor injury),C (possible injury) | J49: Principal Arterial Other | K49: Rural | L49: 2004 | M49: 4 | O49: 11 | P49: 6 | Q49: 0.11 | R49: 0.06 | S49: bold | T49: Meta-analysis | AN49: no | AP49: 20000 | AQ49: 60000 | AY49: Multilane | BE49: Divided | BF49: 2009-12-01 | BG49: Countermeasure name changed from "install concrete guardrail in median" to match HSM
A50: 48 | B50: The Median and Safety | C50: Roadside | D50: Median barriers | E50: Install beam guardrails on median of divided highway | F50: 87 | G50: 0.13 | H50: All | I50: K (fatal) | J50: Principal Arterial Other Freeways and Expressways | K50: Not specified | L50: 2000 | M50: 3 | O50: 41 | P50: 14 | Q50: 0.41 | R50: 0.14 | S50: no | T50: Simple before/after | AN50: no | AO50: Average Daily Traffic (ADT) | BF50: 2009-12-01
A51: 49 | B51: The Median and Safety | C51: Roadside | D51: Median barriers | E51: Install beam guardrails on median of divided highway | F51: -18 | G51: 1.18 | H51: All | I51: A (serious injury),B (minor injury),C (possible injury) | J51: Principal Arterial Other Freeways and Expressways | K51: Not specified | L51: 2000 | M51: 2 | O51: 46 | P51: 15 | Q51: 0.46 | R51: 0.15 | S51: no | T51: Simple before/after | AN51: no | AO51: Average Daily Traffic (ADT) | BF51: 2009-12-01
A52: 50 | B52: The Median and Safety | C52: Roadside | D52: Median barriers | E52: Install beam guardrails on median of divided highway | F52: -40 | G52: 1.4 | H52: All | I52: O (property damage only) | J52: Principal Arterial Other Freeways and Expressways | K52: Not specified | L52: 2000 | M52: 3 | O52: 34 | P52: 11 | Q52: 0.34 | R52: 0.11 | S52: no | T52: Simple before/after | AN52: no | AO52: Average Daily Traffic (ADT) | BF52: 2009-12-01
A53: 51 | B53: The Median and Safety | C53: Roadside | D53: Median barriers | E53: Install beam guardrails on median of divided highway | F53: 78 | G53: 0.22 | H53: Cross median | I53: All | J53: Principal Arterial Other Freeways and Expressways | K53: Not specified | L53: 2000 | M53: 4 | O53: 19 | P53: 6 | Q53: 0.19 | R53: 0.06 | S53: no | T53: Simple before/after | AN53: no | AO53: Average Daily Traffic (ADT) | BF53: 2009-12-01
A54: 52 | B54: Handbook of Road Safety Measures | C54: Roadside | D54: Median barriers | E54: Install wire guardrails between lanes of opposing traffic | F54: 100 | G54: 0 | H54: All | I54: K (fatal) | J54: Principal Arterial Other | K54: Not specified | L54: 2004 | M54: 1 | O54: 254 | P54: 51 | Q54: 2.54 | R54: 0.51 | S54: no | T54: Meta-analysis | AN54: no | AO54: Average Daily Traffic (ADT) | AY54: 3 | BF54: 2009-12-01
A55: 53 | B55: Handbook of Road Safety Measures | C55: Roadside | D55: Median barriers | E55: Install wire guardrails between lanes of opposing traffic | F55: 26 | G55: 0.74 | H55: All | I55: A (serious injury),B (minor injury),C (possible injury) | J55: Principal Arterial Other | K55: Not specified | L55: 2004 | M55: 1 | O55: 84 | P55: 17 | Q55: 0.84 | R55: 0.17 | S55: no | T55: Meta-analysis | AN55: no | AO55: Average Daily Traffic (ADT) | AY55: 3 | BF55: 2009-12-01
A56: 54 | B56: Handbook of Road Safety Measures | C56: Roadside | D56: Median barriers | E56: Install wire guardrails between lanes of opposing traffic | F56: -34 | G56: 1.34 | H56: All | I56: All | J56: Principal Arterial Other | K56: Not specified | L56: 2004 | M56: 1 | O56: 74 | P56: 15 | Q56: 0.74 | R56: 0.15 | S56: no | T56: Meta-analysis | AN56: no | AO56: Average Daily Traffic (ADT) | AY56: 3 | BF56: 2009-12-01
A57: 55 | B57: Handbook of Road Safety Measures | C57: Roadside | D57: Fixed object | E57: Install crash cushions at fixed roadside features | F57: 69 | G57: 0.31 | H57: Fixed object | I57: K (fatal) | J57: Not Specified | K57: Not Specified | L57: 2004 | M57: 3 | O57: 28 | P57: 9 | Q57: 0.28 | R57: 0.09 | S57: italics | T57: Meta-analysis | AN57: no | BF57: 2009-12-01 | BG57: Countermeasure name changed to match HSM
A58: 56 | B58: Handbook of Road Safety Measures | C58: Roadside | D58: Fixed object | E58: Install crash cushions at fixed roadside features | F58: 69 | G58: 0.31 | H58: Fixed object | I58: A (serious injury),B (minor injury),C (possible injury) | J58: Not Specified | K58: Not Specified | L58: 2004 | M58: 4 | O58: 10 | P58: 3 | Q58: 0.1 | R58: 0.03 | S58: bold | T58: Meta-analysis | AN58: no | BF58: 2009-12-01 | BG58: Countermeasure name changed to match HSM
A59: 57 | B59: Handbook of Road Safety Measures | C59: Roadside | D59: Fixed object | E59: Install crash cushions at fixed roadside features | F59: 46 | G59: 0.54 | H59: Fixed object | I59: O (property damage only) | J59: Not Specified | K59: Not Specified | L59: 2004 | M59: 3 | O59: 30 | P59: 10 | Q59: 0.3 | R59: 0.1 | S59: italics | T59: Meta-analysis | AN59: no | BF59: 2009-12-01 | BG59: Countermeasure name changed to match HSM
A60: 58 | B60: Safety Models for Urban Four-Lane Undivided Road Segments | C60: Alignment | D60: None | E60: Increase in horizontal curvature by one degree | F60: -4 | G60: 1.04 | H60: Run off road | I60: O (property damage only) | J60: Not specified | K60: Urban and Suburban | L60: 2004 | M60: 5 | O60: 1 | P60: 1 | Q60: 0.01 | R60: 0.01 | S60: no | T60: Regression cross-section | AN60: no | BF60: 2009-12-01
A61: 59 | B61: Safety Models for Urban Four-Lane Undivided Road Segments | C61: Alignment | D61: None | E61: Increase in horizontal curvature by one degree | F61: -6 | G61: 1.06 | H61: Run off road | I61: K (fatal),A (serious injury),B (minor injury),C (possible injury) | J61: Not specified | K61: Urban and Suburban | L61: 2004 | M61: 5 | O61: 1 | P61: 1 | Q61: 0.01 | R61: 0.01 | S61: no | T61: Regression cross-section | AN61: no | BF61: 2009-12-01
A62: 60 | B62: Safety Models for Urban Four-Lane Undivided Road Segments | C62: Alignment | D62: None | E62: Increase in horizontal curvature by one degree | F62: -5 | G62: 1.05 | H62: Run off road | I62: All | J62: Not specified | K62: Urban and Suburban | L62: 2004 | M62: 5 | O62: 1 | P62: 1 | Q62: 0.01 | R62: 0.01 | S62: no | T62: Regression cross-section | AN62: no | BF62: 2009-12-01
A63: 61 | B63: Development of Adjustment Factors for Single Vehicle Run-off-the-road Accident Rates by Horizontal Curvature and Vertical Grade | C63: Alignment | D63: None | E63: Increase vertical grade by 1% | F63: -4 | G63: 1.04 | H63: Run off road,Single vehicle | I63: All | J63: Not Specified | K63: Rural | L63: 1995 | M63: 3 | O63: 2 | P63: 2 | Q63: 0.02 | R63: 0.02 | S63: bold caret | T63: Regression cross-section | AN63: no | AY63: 2 | BF63: 2009-12-01
A64: 62 | B64: Handbook of Road Safety Measures | C64: Signs | D64: None | E64: Install signs to conform to MUTCD | F64: 15 | G64: 0.85 | H64: All | I64: A (serious injury),B (minor injury),C (possible injury) | J64: Local | K64: Urban | L64: 2004 | M64: 3 | O64: 10 | P64: 6 | Q64: 0.1 | R64: 0.06 | S64: no | T64: Meta-analysis | AN64: no | BF64: 2009-12-01
A65: 63 | B65: Handbook of Road Safety Measures | C65: Signs | D65: None | E65: Install signs to conform to MUTCD | F65: 7 | G65: 0.93 | H65: All | I65: O (property damage only) | J65: Local | K65: Urban | L65: 2004 | M65: 3 | O65: 6 | P65: 3 | Q65: 0.06 | R65: 0.03 | S65: no | T65: Meta-analysis | AN65: no | BF65: 2009-12-01
A66: 64 | B66: Handbook of Road Safety Measures | C66: Advanced technology and ITS | D66: None | E66: Provide active close-following warning signs | F66: 6 | G66: 0.94 | H66: Rear end | I66: Not specified | J66: Not specified | K66: Not specified | L66: 2004 | M66: 1 | O66: 72 | P66: 40 | Q66: 0.72 | R66: 0.4 | S66: no | T66: Meta-analysis | AN66: no | BF66: 2009-12-01
A67: 65 | B67: Synthesis of Safety for Traffic Operations: Final Report | C67: Advanced technology and ITS | D67: None | E67: Provide limited sight distance (LSD) warning signs | F67: -7 | G67: 1.07 | H67: All | I67: All | J67: Not specified | K67: Rural | L67: 2003 | M67: 1 | O67: 67 | P67: 37 | Q67: 0.67 | R67: 0.37 | S67: no | T67: Simple before/after | AN67: no | AY67: 2 | BF67: 2009-12-01
A68: 66 | B68: An Evaluation of Dynamic Curve Warning Systems in the Sacramento River Canyon | C68: Advanced technology and ITS | D68: None | E68: Changeable Curve Speed Warning signs | F68: -13 | G68: 1.13 | H68: All | I68: All | J68: Principal Arterial Other | K68: Rural | L68: 2000 | M68: 1 | O68: 119 | P68: 40 | Q68: 1.19 | R68: 0.4 | S68: no | T68: Simple before/after | AN68: no | AO68: Average Daily Traffic (ADT) | BF68: 2009-12-01
A69: 67 | B69: An Evaluation of Dynamic Curve Warning Systems in the Sacramento River Canyon | C69: Advanced technology and ITS | D69: None | E69: Changeable Curve Speed Warning signs | F69: -47 | G69: 1.47 | H69: All | I69: A (serious injury),B (minor injury),C (possible injury) | J69: Principal Arterial Other | K69: Rural | L69: 2000 | M69: 1 | O69: 235 | P69: 78 | Q69: 2.35 | R69: 0.78 | S69: no | T69: Simple before/after | AN69: no | AO69: Average Daily Traffic (ADT) | BF69: 2009-12-01
A70: 68 | B70: An Evaluation of Dynamic Curve Warning Systems in the Sacramento River Canyon | C70: Advanced technology and ITS | D70: None | E70: Changeable Curve Speed Warning signs | F70: 2 | G70: 0.98 | H70: All | I70: O (property damage only) | J70: Principal Arterial Other | K70: Rural | L70: 2000 | M70: 1 | O70: 138 | P70: 46 | Q70: 1.38 | R70: 0.46 | S70: no | T70: Simple before/after | AN70: no | AO70: Average Daily Traffic (ADT) | BF70: 2009-12-01
A71: 69 | B71: An Evaluation of Dynamic Curve Warning Systems in the Sacramento River Canyon | C71: Advanced technology and ITS | D71: None | E71: Changeable Curve Speed Warning signs | F71: -31 | G71: 1.31 | H71: Speed related | I71: All | J71: Principal Arterial Other | K71: Rural | L71: 2000 | M71: 1 | O71: 187 | P71: 62 | Q71: 1.87 | R71: 0.62 | S71: no | T71: Simple before/after | AN71: no | AO71: Average Daily Traffic (ADT) | BF71: 2009-12-01
A72: 70 | B72: An Evaluation of Dynamic Curve Warning Systems in the Sacramento River Canyon | C72: Advanced technology and ITS | D72: None | E72: Changeable Curve Speed Warning signs | F72: 71 | G72: 0.29 | H72: Truck related | I72: All | J72: Principal Arterial Other | K72: Rural | L72: 2000 | M72: 1 | O72: 96 | P72: 32 | Q72: 0.96 | R72: 0.32 | S72: no | T72: Simple before/after | AN72: no | AO72: Average Daily Traffic (ADT) | BF72: 2009-12-01
A73: 71 | B73: Handbook of Road Safety Measures | C73: Signs | D73: None | E73: Advance static curve warning signs | F73: 30 | G73: 0.7 | H73: All | I73: A (serious injury),B (minor injury),C (possible injury) | J73: Not specified | K73: Not specified | L73: 2004 | M73: 1 | O73: 71 | P73: 39 | Q73: 0.71 | R73: 0.39 | S73: no | T73: Meta-analysis | AN73: no | BF73: 2009-12-01
A74: 72 | B74: Handbook of Road Safety Measures | C74: Signs | D74: None | E74: Advance static curve warning signs | F74: 8 | G74: 0.92 | H74: All | I74: O (property damage only) | J74: Not specified | K74: Not specified | L74: 2004 | M74: 1 | O74: 76 | P74: 42 | Q74: 0.76 | R74: 0.42 | S74: no | T74: Meta-analysis | AN74: no | BF74: 2009-12-01
A75: 73 | B75: Handbook of Road Safety Measures | C75: Signs | D75: None | E75: Install combination horizontal alignment/ advisory speed signs | F75: 13 | G75: 0.87 | H75: All | I75: A (serious injury),B (minor injury),C (possible injury) | J75: Not Specified | K75: Not Specified | L75: 2004 | M75: 3 | O75: 9 | P75: 5 | Q75: 0.09 | R75: 0.05 | S75: bold | T75: Meta-analysis | AN75: no | BF75: 2009-12-01 | BG75: Countermeasure name changed to match HSM
A76: 74 | B76: Handbook of Road Safety Measures | C76: Signs | D76: None | E76: Install combination horizontal alignment/ advisory speed signs | F76: 29 | G76: 0.71 | H76: All | I76: O (property damage only) | J76: Not Specified | K76: Not Specified | L76: 2004 | M76: 3 | O76: 23 | P76: 13 | Q76: 0.23 | R76: 0.13 | S76: italics | T76: Meta-analysis | AN76: no | BF76: 2009-12-01 | BG76: Countermeasure name changed to match HSM
A77: 75 | B77: Handbook of Road Safety Measures | C77: Advanced technology and ITS | D77: None | E77: Install changeable crash ahead warning signs | F77: 44 | G77: 0.56 | H77: All | I77: A (serious injury),B (minor injury),C (possible injury) | J77: Principal Arterial Other Freeways and Expressways | K77: Urban | L77: 2004 | M77: 4 | P77: 9 | R77: 0.09 | S77: italics | T77: Meta-analysis | AN77: no | BF77: 2009-12-01 | BG77: Countermeasure name changed to match HSM
A78: 76 | B78: Handbook of Road Safety Measures | C78: Advanced technology and ITS | D78: None | E78: Install changeable "Queue Ahead" warning signs | F78: 16 | G78: 0.84 | H78: Rear end | I78: A (serious injury),B (minor injury),C (possible injury) | J78: Principal Arterial Other Freeways and Expressways | K78: Urban | L78: 2004 | M78: 3 | P78: 6 | R78: 0.06 | S78: bold | T78: Meta-analysis | AN78: no | BF78: 2009-12-01 | BG78: Countermeasure name changed to match HSM
A79: 77 | B79: Handbook of Road Safety Measures | C79: Advanced technology and ITS | D79: None | E79: Install changeable "Queue Ahead" warning signs | F79: -16 | G79: 1.16 | H79: Rear end | I79: O (property damage only) | J79: Principal Arterial Other Freeways and Expressways | K79: Urban | L79: 2004 | M79: 3 | P79: 8 | R79: 0.08 | S79: italics | T79: Meta-analysis | AN79: no | BF79: 2009-12-01 | BG79: Countermeasure name changed to match HSM
A80: 78 | B80: Handbook of Road Safety Measures | C80: Advanced technology and ITS | D80: None | E80: Install changeable speed warning signs for individual drivers | F80: 46 | G80: 0.54 | H80: All | I80: All | J80: Not specified | K80: Not specified | L80: 2004 | M80: 4 | P80: 10 | R80: 0.1 | S80: italics | T80: Meta-analysis | AN80: no | BF80: 2009-12-01
A81: 79 | B81: Handbook of Road Safety Measures | C81: Advanced technology and ITS | D81: None | E81: Individual changeable speed warning signs | F81: 41 | G81: 0.59 | H81: All | I81: A (serious injury),B (minor injury),C (possible injury) | J81: Not specified | K81: Not specified | L81: 2004 | M81: 1 | O81: 62 | P81: 34 | Q81: 0.62 | R81: 0.34 | S81: no | T81: Meta-analysis | AN81: no | BF81: 2009-12-01
A82: 80 | B82: Handbook of Road Safety Measures | C82: Delineation | D82: Supplemental delineation | E82: Install post-mounted delineators | F82: -4 | G82: 1.04 | H82: All | I82: A (serious injury),B (minor injury),C (possible injury) | J82: Not Specified | K82: Rural | L82: 2004 | M82: 3 | O82: 10 | P82: 6 | Q82: 0.1 | R82: 0.06 | S82: bold star | T82: Meta-analysis | AN82: no | AY82: 2 | BE82: Undivided | BF82: 2009-12-01
A83: 81 | B83: Handbook of Road Safety Measures | C83: Delineation | D83: Supplemental delineation | E83: Install post-mounted delineators | F83: -5 | G83: 1.05 | H83: All | I83: O (property damage only) | J83: Not Specified | K83: Rural | L83: 2004 | M83: 3 | O83: 7 | P83: 4 | Q83: 0.07 | R83: 0.04 | S83: bold star | T83: Meta-analysis | AN83: no | AY83: 2 | BE83: Undivided | BF83: 2009-12-01
A84: 82 | B84: Comprehensive Safety Program Produces Dramatic Results | C84: Signs | D84: None | E84: Install chevron signs on horizontal curves | F84: 64 | G84: 0.36 | H84: All | I84: All | J84: Minor Arterial | K84: Urban | L84: 1991 | M84: 2 | O84: 48 | P84: 16 | Q84: 0.48 | R84: 0.16 | S84: no | T84: Simple before/after | AN84: no | BF84: 2009-12-01
A85: 83 | B85: Handbook of Road Safety Measures | C85: Delineation | D85: On-pavement markings | E85: Place standard edgeline marking (4-6 in) | F85: 3 | G85: 0.97 | H85: All | I85: A (serious injury),B (minor injury),C (possible injury) | J85: Not Specified | K85: Rural | L85: 2004 | M85: 3 | O85: 4 | P85: 2 | Q85: 0.04 | R85: 0.02 | S85: bold star | T85: Meta-analysis | AN85: no | AY85: 2 | BF85: 2009-12-01 | BG85: Countermeasure name changed to match HSM
A86: 84 | B86: Handbook of Road Safety Measures | C86: Delineation | D86: On-pavement markings | E86: Place standard edgeline marking (4-6 in) | F86: 3 | G86: 0.97 | H86: All | I86: O (property damage only) | J86: Not Specified | K86: Rural | L86: 2004 | M86: 3 | O86: 11 | P86: 6 | Q86: 0.11 | R86: 0.06 | S86: bold star | T86: Meta-analysis | AN86: no | AY86: 2 | BF86: 2009-12-01 | BG86: Countermeasure name changed to match HSM
A87: 85 | B87: Handbook of Road Safety Measures | C87: Delineation | D87: On-pavement markings | E87: Place wide (8 inches) edgeline markings | F87: -5 | G87: 1.05 | H87: All | I87: A (serious injury),B (minor injury),C (possible injury) | J87: Not Specified | K87: Rural | L87: 2004 | M87: 3 | O87: 8 | P87: 5 | Q87: 0.08 | R87: 0.05 | S87: bold star | T87: Meta-analysis | AN87: no | AY87: 2 | BF87: 2009-12-01 | BG87: Countermeasure name changed to match HSM
A88: 86 | B88: Handbook of Road Safety Measures | C88: Delineation | D88: On-pavement markings | E88: Place wide (8 inches) edgeline markings | F88: 1 | G88: 0.99 | H88: All | I88: O (property damage only) | J88: Not Specified | K88: Rural | L88: 2004 | M88: 3 | O88: 15 | P88: 8 | Q88: 0.15 | R88: 0.08 | S88: italics star | T88: Meta-analysis | AN88: no | AY88: 2 | BF88: 2009-12-01 | BG88: Countermeasure name changed to match HSM
A89: 87 | B89: Handbook of Road Safety Measures | C89: Delineation | D89: On-pavement markings | E89: Place centerline markings | F89: 1 | G89: 0.99 | H89: All | I89: A (serious injury),B (minor injury),C (possible injury) | J89: Not Specified | K89: Rural | L89: 2004 | M89: 3 | O89: 6 | P89: 4 | Q89: 0.06 | R89: 0.04 | S89: bold star | T89: Meta-analysis | AN89: no | AY89: 2 | BF89: 2009-12-01 | BG89: Countermeasure name changed to match HSM
A90: 88 | B90: Handbook of Road Safety Measures | C90: Delineation | D90: On-pavement markings | E90: Place centerline markings | F90: -1 | G90: 1.01 | H90: All | I90: O (property damage only) | J90: Not Specified | K90: Rural | L90: 2004 | M90: 3 | O90: 5 | P90: 3 | Q90: 0.05 | R90: 0.03 | S90: bold star | T90: Meta-analysis | AN90: no | AY90: 2 | BF90: 2009-12-01 | BG90: Countermeasure name changed to match HSM
A91: 89 | B91: Handbook of Road Safety Measures | C91: Delineation | D91: On-pavement markings | E91: Add lane lines on multilane roadway segments | F91: 18 | G91: 0.82 | H91: All | I91: All | J91: Principal Arterial Other | K91: Urban | L91: 2004 | M91: 3 | O91: 39 | P91: 22 | Q91: 0.39 | R91: 0.22 | S91: no | T91: Meta-analysis | AN91: no | BF91: 2009-12-01
A92: 90 | B92: Handbook of Road Safety Measures | C92: Delineation | D92: Other | E92: Install distance markers (angle symbols) on roadway segments | F92: 56 | G92: 0.44 | H92: All | I92: A (serious injury),B (minor injury),C (possible injury) | J92: Principal Arterial Other Freeways and Expressways | K92: Not specified | L92: 2004 | M92: 3 | O92: 26 | P92: 14 | Q92: 0.26 | R92: 0.14 | S92: no | T92: Meta-analysis | AN92: no | BF92: 2009-12-01
A93: 91 | B93: Handbook of Road Safety Measures | C93: Delineation | D93: Supplemental delineation | E93: Placing edgelines and background/ directional markings on horizontal curves | F93: 19 | G93: 0.81 | H93: Run off road | I93: A (serious injury),B (minor injury),C (possible injury) | J93: Not specified | K93: Rural | L93: 2004 | M93: 3 | O93: 31 | P93: 17 | Q93: 0.31 | R93: 0.17 | S93: no | T93: Meta-analysis | AN93: no | AY93: 2 | BF93: 2009-12-01
A94: 92 | B94: Delineation of Horizontal Curves | C94: Delineation | D94: Supplemental delineation | E94: Install transverse rumble strips, raised pavement markers, and transverse markings | F94: -10 | G94: 1.1 | H94: All | I94: All | J94: Not specified | K94: Rural | L94: 1986 | M94: 1 | O94: 126 | P94: 42 | Q94: 1.26 | R94: 0.42 | S94: no | T94: Simple before/after | AN94: no | AY94: 2 | BF94: 2009-12-01
A95: 93 | B95: Delineation of Horizontal Curves | C95: Delineation | D95: Supplemental delineation | E95: Install transverse rumble strips, raised pavement markers, and transverse markings | F95: 9 | G95: 0.91 | H95: Wet road | I95: All | J95: Not specified | K95: Rural | L95: 1986 | M95: 1 | O95: 116 | P95: 39 | Q95: 1.16 | R95: 0.39 | S95: no | T95: Simple before/after | AN95: no | AY95: 2 | BF95: 2009-12-01
A96: 94 | B96: Delineation of Horizontal Curves | C96: Delineation | D96: Supplemental delineation | E96: Install transverse rumble strips, raised pavement markers, and transverse markings | F96: 18 | G96: 0.83 | H96: Nighttime | I96: All | J96: Not specified | K96: Rural | L96: 1986 | M96: 1 | O96: 188 | P96: 63 | Q96: 1.88 | R96: 0.63 | S96: no | T96: Simple before/after | AN96: no | AY96: 2 | BF96: 2009-12-01
A97: 95 | B97: Delineation of Horizontal Curves | C97: Delineation | D97: Supplemental delineation | E97: Install transverse rumble strips and raised pavement markers | F97: 53 | G97: 0.47 | H97: All | I97: All | J97: Not specified | K97: Rural | L97: 1986 | M97: 2 | O97: 50 | P97: 17 | Q97: 0.5 | R97: 0.17 | S97: no | T97: Simple before/after | AN97: no | AY97: 2 | BF97: 2009-12-01
A98: 96 | B98: Delineation of Horizontal Curves | C98: Delineation | D98: Supplemental delineation | E98: Install transverse rumble strips and raised pavement markers | F98: 49 | G98: 0.51 | H98: Wet road | I98: All | J98: Not specified | K98: Rural | L98: 1986 | M98: 1 | O98: 55 | P98: 18 | Q98: 0.55 | R98: 0.18 | S98: no | T98: Simple before/after | AN98: no | AY98: 2 | BF98: 2009-12-01
A99: 97 | B99: Delineation of Horizontal Curves | C99: Delineation | D99: Supplemental delineation | E99: Install transverse rumble strips and raised pavement markers | F99: 64 | G99: 0.36 | H99: Nighttime | I99: All | J99: Not specified | K99: Rural | L99: 1986 | M99: 1 | O99: 137 | P99: 46 | Q99: 1.37 | R99: 0.46 | S99: no | T99: Simple before/after | AN99: no | AY99: 2 | BF99: 2009-12-01
A100: 98 | B100: Handbook of Road Safety Measures | C100: Delineation | D100: Supplemental delineation | E100: Install raised pavement markers and transverse rumble strips on approach to horizontal curves | F100: 6 | G100: 0.94 | H100: Run off road | I100: A (serious injury),B (minor injury),C (possible injury) | J100: Not specified | K100: Rural | L100: 2004 | M100: 2 | O100: 49 | P100: 27 | Q100: 0.49 | R100: 0.27 | S100: no | T100: Meta-analysis | AN100: no | AY100: 2 | BF100: 2009-12-01
A101: 99 | B101: An Analysis of Accident Reduction Potentials of Pavement Marking | C101: Delineation | D101: On-pavement markings | E101: Place edgeline and centerline markings | F101: -3 | G101: 1.03 | H101: All | I101: All | J101: Minor Collector | K101: Rural | L101: 1993 | M101: 1 | O101: 63 | P101: 21 | Q101: 0.63 | R101: 0.21 | S101: no | T101: Before/after using empirical Bayes or full Bayes | AN101: no | AO101: Average Daily Traffic (ADT) | BF101: 2009-12-01 | BG101: Countermeasure name has been slightly modified for consistency across Clearinghouse
A102: 100 | B102: An Analysis of Accident Reduction Potentials of Pavement Marking | C102: Delineation | D102: On-pavement markings | E102: Install edgelines and centerlines at sites with higher incidences of crashes | F102: 14 | G102: 0.87 | H102: All | I102: All | J102: Minor Collector | K102: Rural | L102: 1993 | M102: 3 | O102: 14 | P102: 5 | Q102: 0.14 | R102: 0.05 | S102: no | T102: Before/after using empirical Bayes or full Bayes | AN102: no | AO102: Average Daily Traffic (ADT) | BF102: 2009-12-01
A103: 101 | B103: Handbook of Road Safety Measures | C103: Delineation | D103: On-pavement markings | E103: Place edgeline and centerline markings | F103: 24 | G103: 0.76 | H103: All | I103: A (serious injury),B (minor injury),C (possible injury) | J103: Not Specified | K103: Rural | L103: 2004 | M103: 4 | O103: 11 | P103: 6 | Q103: 0.11 | R103: 0.06 | S103: bold | T103: Meta-analysis | AN103: no | AY103: 2+ | BE103: Undivided | BF103: 2009-12-01 | BG103: Countermeasure name changed to match HSM
A104: 102 | B104: Handbook of Road Safety Measures | C104: Delineation | D104: On-pavement markings | E104: Install edgelines, centerlines, and post-mounted delineators | F104: 45 | G104: 0.55 | H104: All | I104: A (serious injury),B (minor injury),C (possible injury) | J104: Not Specified | K104: All | L104: 2004 | M104: 4 | O104: 11 | P104: 6 | Q104: 0.11 | R104: 0.06 | S104: bold | T104: Meta-analysis | AN104: no | AY104: 2+ | BE104: Undivided | BF104: 2009-12-01 | BG104: Countermeasure name changed to match HSM
A105: 103 | B105: NCHRP Report 518: Safety Evaluation of Permanent Raised Pavement Markers | C105: Delineation | D105: Supplemental delineation | E105: Install snowplowable, permanent raised pavement markers (Radius greater than 1640 ft) | F105: -16 | G105: 1.16 | H105: Nighttime | I105: All | J105: Not Specified | K105: Rural | L105: 2004 | M105: 5 | O105: 3 | P105: 3 | Q105: 0.03 | R105: 0.03 | S105: bold | T105: Before/after using empirical Bayes or full Bayes | AN105: no | AO105: Annual Average Daily Traffic (AADT) | AP105: 0 | AQ105: 5000 | AY105: 2 | BF105: 2009-12-01 | BG105: Countermeasure name changed to include radius measurement
A106: 104 | B106: NCHRP Report 518: Safety Evaluation of Permanent Raised Pavement Markers | C106: Delineation | D106: Supplemental delineation | E106: Install snowplowable, permanent raised pavement markers (Radius less than or equal to 1640 ft) | F106: -43 | G106: 1.43 | H106: Nighttime | I106: All | J106: Not Specified | K106: Rural | L106: 2004 | M106: 4 | O106: 10 | P106: 9 | Q106: 0.1 | R106: 0.09 | S106: bold | T106: Before/after using empirical Bayes or full Bayes | AN106: no | AO106: Annual Average Daily Traffic (AADT) | AP106: 0 | AQ106: 5000 | AY106: 2 | BF106: 2009-12-01 | BG106: Countermeasure name changed to include radius measurement
A107: 105 | B107: NCHRP Report 518: Safety Evaluation of Permanent Raised Pavement Markers | C107: Delineation | D107: Supplemental delineation | E107: Install snowplowable, permanent raised pavement markers (Radius greater than 1640 ft) | F107: 1 | G107: 0.99 | H107: Nighttime | I107: All | J107: Not Specified | K107: Rural | L107: 2004 | M107: 3 | O107: 6 | P107: 5 | Q107: 0.06 | R107: 0.05 | S107: bold star | T107: Before/after using empirical Bayes or full Bayes | AN107: no | AO107: Annual Average Daily Traffic (AADT) | AP107: 5001 | AQ107: 15000 | AY107: 2 | BF107: 2009-12-01 | BG107: Countermeasure name changed to include radius measurement
A108: 106 | B108: NCHRP Report 518: Safety Evaluation of Permanent Raised Pavement Markers | C108: Delineation | D108: Supplemental delineation | E108: Install snowplowable, permanent raised pavement markers (Radius less than or equal to 1640 ft) | F108: -26 | G108: 1.26 | H108: Nighttime | I108: All | J108: Not Specified | K108: Rural | L108: 2004 | M108: 4 | O108: 11 | P108: 10 | Q108: 0.11 | R108: 0.1 | S108: bold | T108: Before/after using empirical Bayes or full Bayes | AN108: no | AO108: Annual Average Daily Traffic (AADT) | AP108: 5001 | AQ108: 15000 | AY108: 2 | BF108: 2009-12-01 | BG108: Countermeasure name changed to include radius measurement
A109: 107 | B109: NCHRP Report 518: Safety Evaluation of Permanent Raised Pavement Markers | C109: Delineation | D109: Supplemental delineation | E109: Install snowplowable, permanent raised pavement markers (Radius greater than 1640 ft) | F109: 24 | G109: 0.76 | H109: Nighttime | I109: All | J109: Not Specified | K109: Rural | L109: 2004 | M109: 4 | O109: 8 | P109: 7 | Q109: 0.08 | R109: 0.07 | S109: bold | T109: Before/after using empirical Bayes or full Bayes | AN109: no | AO109: Annual Average Daily Traffic (AADT) | AP109: 15001 | AQ109: 20000 | AY109: 2 | BF109: 2009-12-01 | BG109: Countermeasure name changed to include radius measurement
A110: 108 | B110: NCHRP Report 518: Safety Evaluation of Permanent Raised Pavement Markers | C110: Delineation | D110: Supplemental delineation | E110: Install snowplowable, permanent raised pavement markers (Radius less than or equal to 1640 ft) | F110: -3 | G110: 1.03 | H110: Nighttime | I110: All | J110: Not Specified | K110: Rural | L110: 2004 | M110: 3 | O110: 13 | P110: 11 | Q110: 0.13 | R110: 0.11 | S110: bold star | T110: Before/after using empirical Bayes or full Bayes | AN110: no | AO110: Annual Average Daily Traffic (AADT) | AP110: 15001 | AQ110: 20000 | AY110: 2 | BF110: 2009-12-01 | BG110: Countermeasure name changed to include radius measurement
A111: 109 | B111: NCHRP Report 518: Safety Evaluation of Permanent Raised Pavement Markers | C111: Delineation | D111: Supplemental delineation | E111: Install snowplowable, permanent raised pavement markers | F111: -13 | G111: 1.13 | H111: Nighttime | I111: All | J111: Principal Arterial Other Freeways and Expressways | K111: Rural | L111: 2004 | M111: 3 | O111: 16 | P111: 14 | Q111: 0.16 | R111: 0.14 | S111: italics star | T111: Before/after using empirical Bayes or full Bayes | AN111: no | AO111: Annual Average Daily Traffic (AADT) | AP111: 0 | AQ111: 20000 | AY111: 4 | BF111: 2009-12-01 | BG111: Countermeasure name changed to match HSM
A112: 110 | B112: NCHRP Report 518: Safety Evaluation of Permanent Raised Pavement Markers | C112: Delineation | D112: Supplemental delineation | E112: Install snowplowable, permanent raised pavement markers | F112: 6 | G112: 0.94 | H112: Nighttime | I112: All | J112: Principal Arterial Other Freeways and Expressways | K112: Rural | L112: 2004 | M112: 3 | O112: 25 | P112: 21 | Q112: 0.25 | R112: 0.21 | S112: italics star | T112: Before/after using empirical Bayes or full Bayes | AN112: no | AO112: Annual Average Daily Traffic (AADT) | AP112: 20001 | AQ112: 60000 | AY112: 4 | BF112: 2009-12-01 | BG112: Countermeasure name changed to match HSM
A113: 111 | B113: NCHRP Report 518: Safety Evaluation of Permanent Raised Pavement Markers | C113: Delineation | D113: Supplemental delineation | E113: Install snowplowable, permanent raised pavement markers | F113: 33 | G113: 0.67 | H113: Nighttime | I113: All | J113: Principal Arterial Other Freeways and Expressways | K113: Rural | L113: 2004 | M113: 3 | O113: 25 | P113: 21 | Q113: 0.25 | R113: 0.21 | S113: italics | T113: Before/after using empirical Bayes or full Bayes | AN113: no | AO113: Annual Average Daily Traffic (AADT) | AP113: 60001 | AY113: 4 | BF113: 2009-12-01 | BG113: Countermeasure name changed to match HSM
A114: 112 | B114: A Review of Two Innovative Pavement Patterns that Have Been Developed to Reduce Traffic Speeds and Crashes | C114: Speed management | D114: None | E114: Apply converging chevron pattern markings on roadway segments | F114: 32 | G114: 0.68 | H114: All | I114: All | J114: Not specified | K114: Urban | L114: 1996 | M114: 3 | O114: 19 | P114: 6 | Q114: 0.19 | R114: 0.06 | S114: no | T114: Simple before/after | AN114: no | BF114: 2009-12-01
A115: 113 | B115: Evaluation of the Effectiveness of Shoulder Rumble Strips on Rural Multi-lane Divided Highways In Minnesota | C115: Shoulder treatments | D115: Shoulder rumble strips | E115: Install continuous milled-in shoulder rumble strips | F115: 10 | G115: 0.9 | H115: Run off road,Single vehicle | I115: All | J115: Not Specified | K115: Rural | L115: 2004 | M115: 3 | O115: 25 | P115: 11 | Q115: 0.25 | R115: 0.11 | S115: italics star | T115: Simple before/after | AN115: no | AO115: Annual Average Daily Traffic (AADT) | AP115: 2000 | AQ115: 50000 | AY115: Multi-lane | BE115: Divided | BF115: 2009-12-01 | BG115: Countermeasure name changed to match HSM
A116: 114 | B116: Evaluation of the Effectiveness of Shoulder Rumble Strips on Rural Multi-lane Divided Highways In Minnesota | C116: Shoulder treatments | D116: Shoulder rumble strips | E116: Install continuous milled-in shoulder rumble strips | F116: 22 | G116: 0.78 | H116: Run off road,Single vehicle | I116: A (serious injury),B (minor injury),C (possible injury) | J116: Not Specified | K116: Rural | L116: 2004 | M116: 3 | O116: 33 | P116: 15 | Q116: 0.33 | R116: 0.15 | S116: italics star | T116: Simple before/after | AN116: no | AO116: Annual Average Daily Traffic (AADT) | AP116: 2000 | AQ116: 50000 | AY116: Multi-lane | BE116: Divided | BF116: 2009-12-01 | BG116: Countermeasure name changed to match HSM
A117: 115 | B117: Evaluation of the Effectiveness of Shoulder Rumble Strips on Rural Multi-lane Divided Highways In Minnesota | C117: Shoulder treatments | D117: Shoulder rumble strips | E117: Install continuous milled-in shoulder rumble strips | F117: 16 | G117: 0.84 | H117: All | I117: All | J117: Not Specified | K117: Rural | L117: 2004 | M117: 3 | O117: 13 | P117: 6 | Q117: 0.13 | R117: 0.06 | S117: bold | T117: Simple before/after | AN117: no | AO117: Annual Average Daily Traffic (AADT) | AP117: 2000 | AQ117: 50000 | AY117: Multi-lane | BE117: Divided | BF117: 2009-12-01 | BG117: Countermeasure name changed to match HSM
A118: 116 | B118: Evaluation of the Effectiveness of Shoulder Rumble Strips on Rural Multi-lane Divided Highways In Minnesota | C118: Shoulder treatments | D118: Shoulder rumble strips | E118: Install continuous milled-in shoulder rumble strips | F118: 17 | G118: 0.83 | H118: All | I118: A (serious injury),B (minor injury),C (possible injury) | J118: Not Specified | K118: Rural | L118: 2004 | M118: 3 | O118: 19 | P118: 9 | Q118: 0.19 | R118: 0.09 | S118: italics | T118: Simple before/after | AN118: no | AO118: Annual Average Daily Traffic (AADT) | AP118: 2000 | AQ118: 50000 | AY118: Multi-lane | BE118: Divided | BF118: 2009-12-01 | BG118: Countermeasure name changed to match HSM
A119: 117 | B119: Safety Evaluation of Rolled-In Continuous Shoulder Rumble Strips Installed on Freeways | C119: Shoulder treatments | D119: Shoulder rumble strips | E119: Install continuous, rolled-in shoulder rumble strips | F119: 21 | G119: 0.79 | H119: Run off road,Single vehicle | I119: All | J119: Principal Arterial Other Freeways and Expressways | K119: Rural | L119: 1999 | M119: 3 | O119: 18 | P119: 10 | Q119: 0.18 | R119: 0.1 | S119: italics | T119: Before/after using empirical Bayes or full Bayes | AN119: no | BF119: 2009-12-01 | BG119: Countermeasure name changed to match HSM
A120: 118 | B120: Safety Evaluation of Rolled-In Continuous Shoulder Rumble Strips Installed on Freeways | C120: Shoulder treatments | D120: Shoulder rumble strips | E120: Install continuous, rolled-in shoulder rumble strips | F120: 18 | G120: 0.82 | H120: Run off road,Single vehicle | I120: All | J120: Principal Arterial Other Freeways and Expressways | K120: All | L120: 1999 | M120: 3 | O120: 12 | P120: 7 | Q120: 0.12 | R120: 0.07 | S120: bold | T120: Before/after using empirical Bayes or full Bayes | AN120: no | BF120: 2009-12-01 | BG120: Countermeasure name changed to match HSM
A121: 119 | B121: Safety Evaluation of Rolled-In Continuous Shoulder Rumble Strips Installed on Freeways | C121: Shoulder treatments | D121: Shoulder rumble strips | E121: Install continuous, rolled-in shoulder rumble strips | F121: 7 | G121: 0.93 | H121: Run off road,Single vehicle | I121: A (serious injury),B (minor injury),C (possible injury) | J121: Principal Arterial Other Freeways and Expressways | K121: Rural | L121: 1999 | M121: 3 | O121: 28 | P121: 16 | Q121: 0.28 | R121: 0.16 | S121: italics star | T121: Before/after using empirical Bayes or full Bayes | AN121: no | BF121: 2009-12-01 | BG121: Countermeasure name changed to match HSM
A122: 120 | B122: Safety Evaluation of Rolled-In Continuous Shoulder Rumble Strips Installed on Freeways | C122: Shoulder treatments | D122: Shoulder rumble strips | E122: Install continuous, rolled-in shoulder rumble strips | F122: 13 | G122: 0.87 | H122: Run off road,Single vehicle | I122: A (serious injury),B (minor injury),C (possible injury) | J122: Principal Arterial Other Freeways and Expressways | K122: All | L122: 1999 | M122: 3 | O122: 21 | P122: 12 | Q122: 0.21 | R122: 0.12 | S122: italics | T122: Before/after using empirical Bayes or full Bayes | AN122: no | BF122: 2009-12-01 | BG122: Countermeasure name changed to match HSM
A123: 121 | B123: The Effectiveness and Use of Continuous Shoulder Rumble Strips | C123: Shoulder treatments | D123: Shoulder rumble strips | E123: Install continuous milled-in shoulder rumble strips | F123: 79 | G123: 0.21 | H123: Run off road,Single vehicle | I123: All | J123: Principal Arterial Other Freeways and Expressways | K123: All | L123: 1998 | M123: 4 | O123: 7 | P123: 2 | Q123: 0.07 | R123: 0.02 | S123: bold | T123: Simple before/after | AN123: no | BF123: 2009-12-01 | BG123: Countermeasure name changed to match HSM
A124: 122 | B124: Analysis of Accident Reduction Factors on California State Highways | C124: Shoulder treatments | D124: Other | E124: Implement shoulder widening in conjunction with shoulder rumble strip installation on freeways | F124: 19 | G124: 0.81 | H124: All | I124: All | J124: Principal Arterial Other Freeways and Expressways | K124: Not specified | L124: 2000 | M124: 3 | O124: 20 | P124: 11 | Q124: 0.2 | R124: 0.11 | S124: no | T124: Simple before/after | AN124: no | BF124: 2009-12-01
A125: 123 | B125: Analysis of Accident Reduction Factors on California State Highways | C125: Shoulder treatments | D125: Other | E125: Implement shoulder widening in conjunction with shoulder rumble strip installation on freeways | F125: 13 | G125: 0.87 | H125: Run off road | I125: All | J125: Principal Arterial Other Freeways and Expressways | K125: Not specified | L125: 2000 | M125: 3 | O125: 24 | P125: 13 | Q125: 0.24 | R125: 0.13 | S125: no | T125: Simple before/after | AN125: no | BF125: 2009-12-01
A126: 124 | B126: Crash Reduction Following Installation of Centerline Rumble Strips on Rural Two-Lane Roads | C126: Roadway | D126: Roadway rumble strips | E126: Install centerline rumble strips | F126: 14 | G126: 0.86 | H126: All | I126: All | J126: Principle Arterial Other | K126: Rural | L126: 2003 | M126: 4 | O126: 5 | P126: 3 | Q126: 0.05 | R126: 0.03 | S126: bold | T126: Before/after using empirical Bayes or full Bayes | AN126: no | AO126: Average Daily Traffic (ADT) | AP126: 5000 | AQ126: 22000 | AY126: 2 | BF126: 2009-12-01
A127: 125 | B127: Crash Reduction Following Installation of Centerline Rumble Strips on Rural Two-Lane Roads | C127: Roadway | D127: Roadway rumble strips | E127: Install centerline rumble strips | F127: 15 | G127: 0.85 | H127: All | I127: A (serious injury),B (minor injury),C (possible injury) | J127: Principle Arterial Other | K127: Rural | L127: 2003 | M127: 3 | O127: 8 | P127: 4 | Q127: 0.08 | R127: 0.04 | S127: bold | T127: Before/after using empirical Bayes or full Bayes | AN127: no | AO127: Average Daily Traffic (ADT) | AP127: 5000 | AQ127: 22000 | AY127: 2 | BF127: 2009-12-01
A128: 126 | B128: Crash Reduction Following Installation of Centerline Rumble Strips on Rural Two-Lane Roads | C128: Roadway | D128: Roadway rumble strips | E128: Install centerline rumble strips | F128: 21 | G128: 0.79 | H128: Head on,Sideswipe | I128: All | J128: Principle Arterial Other | K128: Rural | L128: 2003 | M128: 4 | O128: 14 | P128: 8 | Q128: 0.14 | R128: 0.08 | S128: bold | T128: Before/after using empirical Bayes or full Bayes | AN128: no | AO128: Average Daily Traffic (ADT) | AP128: 5000 | AQ128: 22000 | AY128: 2 | BF128: 2009-12-01
A129: 127 | B129: Crash Reduction Following Installation of Centerline Rumble Strips on Rural Two-Lane Roads | C129: Roadway | D129: Roadway rumble strips | E129: Install centerline rumble strips | F129: 25 | G129: 0.75 | H129: Head on,Sideswipe | I129: A (serious injury),B (minor injury),C (possible injury) | J129: Principle Arterial Other | K129: Rural | L129: 2003 | M129: 3 | O129: 18 | P129: 10 | Q129: 0.18 | R129: 0.1 | S129: italics | T129: Before/after using empirical Bayes or full Bayes | AN129: no | AO129: Average Daily Traffic (ADT) | AP129: 5000 | AQ129: 22000 | AY129: 2 | BF129: 2009-12-01
A130: 128 | B130: Handbook of Road Safety Measures | C130: Speed management | D130: None | E130: Traffic calming | F130: 32 | G130: 0.68 | H130: All | I130: All | J130: Minor Collector | K130: Urban | L130: 2004 | M130: 4 | O130: 8 | Q130: 0.08 | S130: no | T130: Meta-analysis | AN130: no | AO130: Average Daily Traffic (ADT) | AY130: 2 | BF130: 2009-12-01
A131: 129 | B131: Handbook of Road Safety Measures | C131: Speed management | D131: None | E131: Traffic calming | F131: 33 | G131: 0.67 | H131: All | I131: A (serious injury),B (minor injury),C (possible injury) | J131: Minor Collector | K131: Urban | L131: 2004 | M131: 4 | O131: 9 | Q131: 0.09 | S131: no | T131: Meta-analysis | AN131: no | AO131: Average Daily Traffic (ADT) | AY131: 2 | BF131: 2009-12-01
A132: 130 | B132: Handbook of Road Safety Measures | C132: Speed management | D132: None | E132: Traffic calming | F132: 25 | G132: 0.75 | H132: All | I132: O (property damage only) | J132: Minor Collector | K132: Urban | L132: 2004 | M132: 3 | O132: 19 | Q132: 0.19 | S132: no | T132: Meta-analysis | AN132: no | AO132: Average Daily Traffic (ADT) | AY132: 2 | BF132: 2009-12-01
A133: 131 | B133: Handbook of Road Safety Measures | C133: Speed management | D133: None | E133: Traffic calming | F133: 33 | G133: 0.67 | H133: All | I133: A (serious injury),B (minor injury),C (possible injury) | J133: Minor Collector | K133: Urban | L133: 2004 | M133: 4 | O133: 9 | Q133: 0.09 | S133: no | T133: Meta-analysis | AN133: no | AO133: Average Daily Traffic (ADT) | AY133: 2 | BF133: 2009-12-01
A134: 132 | B134: Handbook of Road Safety Measures | C134: Speed management | D134: None | E134: Install speed humps | F134: 40 | G134: 0.6 | H134: All | I134: A (serious injury),B (minor injury),C (possible injury) | J134: Local | K134: Urban and Suburban | L134: 2004 | M134: 4 | O134: 16 | Q134: 0.16 | S134: italics | T134: Meta-analysis | AN134: no | AY134: 2 | BF134: 2009-12-01
A135: 133 | B135: Handbook of Road Safety Measures | C135: Speed management | D135: None | E135: Adjacent to roads with speed humps | F135: 5 | G135: 0.95 | H135: All | I135: A (serious injury),B (minor injury),C (possible injury) | J135: Local | K135: Urban and Suburban | L135: 2004 | M135: 3 | O135: 6 | Q135: 0.06 | S135: bold star | T135: Meta-analysis | AN135: no | AY135: 2 | BF135: 2009-12-01 | BG135: Countermeasure name changed to match HSM
A136: 134 | B136: Handbook of Road Safety Measures | C136: Speed management | D136: None | E136: Install speed humps | F136: 50 | G136: 0.5 | H136: All | I136: A (serious injury),B (minor injury),C (possible injury) | J136: Local | K136: Urban and Suburban | L136: 2004 | M136: 4 | O136: 13 | Q136: 0.13 | S136: no | T136: Meta-analysis | AN136: no | AY136: 2 | BF136: 2009-12-01
A137: 135 | B137: Handbook of Road Safety Measures | C137: Pedestrians | D137: None | E137: Install raised pedestrian crosswalks | F137: 36 | G137: 0.64 | H137: All | I137: A (serious injury),B (minor injury),C (possible injury) | J137: Local | K137: Urban and Suburban | L137: 2004 | M137: 1 | O137: 54 | Q137: 0.54 | S137: no | T137: Meta-analysis | AN137: no | AY137: 2 | BF137: 2009-12-01
A138: 136 | B138: Handbook of Road Safety Measures | C138: Pedestrians | D138: None | E138: Install raised pedestrian crosswalks | F138: 46 | G138: 0.55 | H138: Vehicle/pedestrian | I138: A (serious injury),B (minor injury),C (possible injury) | J138: Local | K138: Urban and Suburban | L138: 2004 | M138: 1 | O138: 94 | Q138: 0.94 | S138: no | T138: Meta-analysis | AN138: no | AY138: 2 | BF138: 2009-12-01
A139: 137 | B139: Handbook of Road Safety Measures | C139: Pedestrians | D139: None | E139: Install raised pedestrian crosswalks | F139: 30 | G139: 0.7 | H139: All | I139: A (serious injury),B (minor injury),C (possible injury) | J139: Local | K139: Urban and Suburban | L139: 2004 | M139: 1 | O139: 67 | Q139: 0.67 | S139: no | T139: Meta-analysis | AN139: no | AY139: 2 | BF139: 2009-12-01
A140: 138 | B140: Handbook of Road Safety Measures | C140: Speed management | D140: None | E140: Install transverse rumble strips as traffic calming device | F140: 34 | G140: 0.66 | H140: All | I140: All | J140: Local | K140: Urban and Suburban | L140: 2004 | M140: 4 | O140: 11 | Q140: 0.11 | S140: no | T140: Meta-analysis | AN140: no | AY140: 2 | BF140: 2009-12-01
A141: 139 | B141: Handbook of Road Safety Measures | C141: Speed management | D141: None | E141: Install transverse rumble strips as traffic calming device | F141: 36 | G141: 0.64 | H141: All | I141: A (serious injury),B (minor injury),C (possible injury) | J141: Local | K141: Urban and Suburban | L141: 2004 | M141: 4 | O141: 12 | Q141: 0.12 | S141: no | T141: Meta-analysis | AN141: no | AY141: 2 | BF141: 2009-12-01
A142: 140 | B142: Handbook of Road Safety Measures | C142: Speed management | D142: None | E142: Install transverse rumble strips as traffic calming device | F142: 28 | G142: 0.73 | H142: All | I142: O (property damage only) | J142: Local | K142: Urban and Suburban | L142: 2004 | M142: 2 | O142: 41 | Q142: 0.41 | S142: no | T142: Meta-analysis | AN142: no | AY142: 2 | BF142: 2009-12-01
A143: 141 | B143: Speed and Road Accidents An Evaluation of the Power Model | C143: Speed management | D143: None | E143: 5% reduction in mean speed | F143: 17 | G143: 0.83 | H143: All | I143: K (fatal) | J143: All | K143: All | L143: 2004 | M143: 5 | O143: 5 | Q143: 0.05 | S143: no | T143: Meta-analysis | AN143: no | AP143: All | AQ143: All | BF143: 2009-12-01
A144: 142 | B144: Speed and Road Accidents An Evaluation of the Power Model | C144: Speed management | D144: None | E144: 5% reduction in mean speed | F144: 7 | G144: 0.93 | H144: All | I144: A (serious injury),B (minor injury),C (possible injury) | J144: All | K144: All | L144: 2004 | M144: 5 | O144: 3 | Q144: 0.03 | S144: no | T144: Meta-analysis | AN144: no | AP144: All | AQ144: All | BF144: 2009-12-01
A145: 143 | B145: Speed and Road Accidents An Evaluation of the Power Model | C145: Speed management | D145: None | E145: 5% reduction in mean speed | F145: 5 | G145: 0.95 | H145: All | I145: O (property damage only) | J145: All | K145: All | L145: 2004 | M145: 3 | O145: 4 | Q145: 0.04 | S145: no | T145: Meta-analysis | AN145: no | AP145: All | AQ145: All | BF145: 2009-12-01
A146: 144 | B146: Speed and Road Accidents An Evaluation of the Power Model | C146: Speed management | D146: None | E146: 10% reduction in mean speed | F146: 32 | G146: 0.68 | H146: All | I146: K (fatal) | J146: All | K146: All | L146: 2004 | M146: 4 | O146: 9 | Q146: 0.09 | S146: no | T146: Meta-analysis | AN146: no | AP146: All | AQ146: All | BF146: 2009-12-01
A147: 145 | B147: Speed and Road Accidents An Evaluation of the Power Model | C147: Speed management | D147: None | E147: 10% reduction in mean speed | F147: 15 | G147: 0.85 | H147: All | I147: A (serious injury),B (minor injury),C (possible injury) | J147: All | K147: All | L147: 2004 | M147: 5 | O147: 5 | Q147: 0.05 | S147: no | T147: Meta-analysis | AN147: no | AP147: All | AQ147: All | BF147: 2009-12-01
A148: 146 | B148: Speed and Road Accidents An Evaluation of the Power Model | C148: Speed management | D148: None | E148: 10% reduction in mean speed | F148: 10 | G148: 0.9 | H148: All | I148: O (property damage only) | J148: All | K148: All | L148: 2004 | M148: 3 | O148: 8 | Q148: 0.08 | S148: no | T148: Meta-analysis | AN148: no | AP148: All | AQ148: All | BF148: 2009-12-01
A149: 147 | B149: Speed and Road Accidents An Evaluation of the Power Model | C149: Speed management | D149: None | E149: 15% reduction in mean speed | F149: 44 | G149: 0.56 | H149: All | I149: K (fatal) | J149: All | K149: All | L149: 2004 | M149: 4 | O149: 14 | Q149: 0.14 | S149: no | T149: Meta-analysis | AN149: no | AP149: All | AQ149: All | BF149: 2009-12-01
A150: 148 | B150: Speed and Road Accidents An Evaluation of the Power Model | C150: Speed management | D150: None | E150: 15% reduction in mean speed | F150: 22 | G150: 0.78 | H150: All | I150: A (serious injury),B (minor injury),C (possible injury) | J150: All | K150: All | L150: 2004 | M150: 4 | O150: 8 | Q150: 0.08 | S150: no | T150: Meta-analysis | AN150: no | AP150: All | AQ150: All | BF150: 2009-12-01
A151: 149 | B151: Speed and Road Accidents An Evaluation of the Power Model | C151: Speed management | D151: None | E151: 15% reduction in mean speed | F151: 15 | G151: 0.85 | H151: All | I151: O (property damage only) | J151: All | K151: All | L151: 2004 | M151: 3 | O151: 12 | Q151: 0.12 | S151: no | T151: Meta-analysis | AN151: no | AP151: All | AQ151: All | BF151: 2009-12-01
A152: 150 | B152: Speed and Road Accidents An Evaluation of the Power Model | C152: Speed management | D152: None | E152: 5% increase in mean speed | F152: -19 | G152: 1.19 | H152: All | I152: K (fatal) | J152: All | K152: All | L152: 2004 | M152: 5 | O152: 4 | Q152: 0.04 | S152: no | T152: Meta-analysis | AN152: no | AP152: All | AQ152: All | BF152: 2009-12-01
A153: 151 | B153: Speed and Road Accidents An Evaluation of the Power Model | C153: Speed management | D153: None | E153: 5% increase in mean speed | F153: -8 | G153: 1.08 | H153: All | I153: A (serious injury),B (minor injury),C (possible injury) | J153: All | K153: All | L153: 2004 | M153: 5 | O153: 3 | Q153: 0.03 | S153: no | T153: Meta-analysis | AN153: no | AP153: All | AQ153: All | BF153: 2009-12-01
A154: 152 | B154: Speed and Road Accidents An Evaluation of the Power Model | C154: Speed management | D154: None | E154: 5% increase in mean speed | F154: -5 | G154: 1.05 | H154: All | I154: O (property damage only) | J154: All | K154: All | L154: 2004 | M154: 3 | O154: 4 | Q154: 0.04 | S154: no | T154: Meta-analysis | AN154: no | AP154: All | AQ154: All | BF154: 2009-12-01
A155: 153 | B155: Handbook of Road Safety Measures | C155: On-street parking | D155: None | E155: Prohibit on-street parking | F155: 20 | G155: 0.8 | H155: All | I155: A (serious injury),B (minor injury),C (possible injury) | J155: Minor Arterial | K155: Urban | L155: 2004 | M155: 5 | O155: 5 | P155: 3 | Q155: 0.05 | R155: 0.03 | S155: no | T155: Meta-analysis | AN155: no | BF155: 2009-12-01
A156: 154 | B156: Handbook of Road Safety Measures | C156: On-street parking | D156: None | E156: Prohibit on-street parking | F156: 27 | G156: 0.73 | H156: All | I156: O (property damage only) | J156: Minor Arterial | K156: Urban | L156: 2004 | M156: 5 | O156: 2 | P156: 1 | Q156: 0.02 | R156: 0.01 | S156: no | T156: Meta-analysis | AN156: no | BF156: 2009-12-01
A157: 155 | B157: Synthesis of Safety Research Related to Traffic Control and Roadway Elements Volume 1 | C157: On-street parking | D157: None | E157: Prohibit on-street parking | F157: 42 | G157: 0.58 | H157: All | I157: All | J157: Principal Arterial Other | K157: Urban | L157: 1982 | M157: 4 | O157: 8 | P157: 4 | Q157: 0.08 | R157: 0.04 | S157: bold | T157: Simple before/after | AN157: no | AO157: Annual Average Daily Traffic (AADT) | BF157: 2009-12-01
A158: 156 | B158: Synthesis of Safety Research Related to Traffic Control and Roadway Elements Volume 1 | C158: On-street parking | D158: None | E158: Prohibit on-street parking | F158: 35 | G158: 0.65 | H158: All | I158: A (serious injury),B (minor injury),C (possible injury) | J158: Principal Arterial Other | K158: Urban | L158: 1982 | M158: 4 | O158: 14 | P158: 6 | Q158: 0.14 | R158: 0.06 | S158: no | T158: Simple before/after | AN158: no | AO158: Annual Average Daily Traffic (AADT) | BF158: 2009-12-01
A159: 157 | B159: Synthesis of Safety Research Related to Traffic Control and Roadway Elements Volume 1 | C159: On-street parking | D159: None | E159: Prohibit on-street parking | F159: 48 | G159: 0.52 | H159: All | I159: O (property damage only) | J159: Principal Arterial Other | K159: Urban | L159: 1982 | M159: 4 | O159: 10 | P159: 5 | Q159: 0.1 | R159: 0.05 | S159: no | T159: Simple before/after | AN159: no | AO159: Annual Average Daily Traffic (AADT) | BF159: 2009-12-01
A160: 158 | B160: Handbook of Road Safety Measures | C160: On-street parking | D160: None | E160: Prohibit parking on one side of road | F160: -49 | G160: 1.49 | H160: All | I160: A (serious injury),B (minor injury),C (possible injury) | J160: Not specified | K160: Urban | L160: 2004 | M160: 1 | O160: 78 | P160: 44 | Q160: 0.78 | R160: 0.44 | S160: no | T160: Meta-analysis | AN160: no | BF160: 2009-12-01
A161: 159 | B161: Handbook of Road Safety Measures | C161: On-street parking | D161: None | E161: Convert free to regulated parking | F161: 6 | G161: 0.94 | H161: All | I161: A (serious injury),B (minor injury),C (possible injury) | J161: Minor Arterial | K161: Urban | L161: 2004 | M161: 3 | O161: 8 | P161: 4 | Q161: 0.08 | R161: 0.04 | S161: bold star | T161: Meta-analysis | AN161: no | BF161: 2009-12-01 | BG161: Countermeasure name changed to match HSM
A162: 160 | B162: Handbook of Road Safety Measures | C162: On-street parking | D162: None | E162: Convert free to regulated parking | F162: -19 | G162: 1.19 | H162: All | I162: O (property damage only) | J162: Minor Arterial | K162: Urban | L162: 2004 | M162: 5 | O162: 5 | P162: 3 | Q162: 0.05 | R162: 0.03 | S162: bold | T162: Meta-analysis | AN162: no | BF162: 2009-12-01 | BG162: Countermeasure name changed to match HSM
A163: 161 | B163: Handbook of Road Safety Measures | C163: On-street parking | D163: None | E163: Implement time-limited parking restrictions | F163: 11 | G163: 0.89 | H163: All | I163: All | J163: Minor Arterial,Major Collector,Minor Collector | K163: Urban | L163: 2004 | M163: 3 | O163: 6 | P163: 3 | Q163: 0.06 | R163: 0.03 | S163: bold | T163: Meta-analysis | AN163: no | BF163: 2009-12-01 | BG163: Countermeasure name changed to match HSM
A164: 162 | B164: Handbook of Road Safety Measures | C164: On-street parking | D164: None | E164: Implement time-limited parking restrictions | F164: 79 | G164: 0.21 | H164: Parking related | I164: All | J164: Minor Arterial,Major Collector,Minor Collector | K164: Urban | L164: 2004 | M164: 4 | O164: 9 | P164: 5 | Q164: 0.09 | R164: 0.05 | S164: bold | T164: Meta-analysis | AN164: no | BF164: 2009-12-01 | BG164: Countermeasure name changed to match HSM
A165: 163 | B165: Handbook of Road Safety Measures | C165: On-street parking | D165: None | E165: Convert angle parking to parallel parking | F165: 35 | G165: 0.65 | H165: All | I165: All | J165: Local | K165: Urban | L165: 2004 | M165: 4 | O165: 7 | P165: 4 | Q165: 0.07 | R165: 0.04 | S165: no | T165: Meta-analysis | AN165: no | BF165: 2009-12-01
A166: 164 | B166: Handbook of Road Safety Measures | C166: On-street parking | D166: None | E166: Convert angle parking to parallel parking | F166: 63 | G166: 0.37 | H166: Parking related | I166: All | J166: Local | K166: Urban | L166: 2004 | M166: 4 | O166: 7 | P166: 4 | Q166: 0.07 | R166: 0.04 | S166: no | T166: Meta-analysis | AN166: no | BF166: 2009-12-01
A167: 165 | B167: Synthesis of Safety Research Related to Traffic Control and Roadway Elements Volume 1 | C167: On-street parking | D167: None | E167: Convert angle parking to parallel parking | F167: 28 | G167: 0.72 | H167: All | I167: All | J167: Not specified | K167: Urban | L167: 1982 | M167: 4 | O167: 11 | P167: 5 | Q167: 0.11 | R167: 0.05 | S167: no | T167: Simple before/after | AN167: no | BF167: 2009-12-01
A168: 166 | B168: Synthesis of Safety Research Related to Traffic Control and Roadway Elements Volume 1 | C168: On-street parking | D168: None | E168: Convert angle parking to parallel parking | F168: 53 | G168: 0.47 | H168: All | I168: All | J168: Principal Arterial Other | K168: Urban | L168: 1982 | M168: 2 | O168: 47 | P168: 9 | Q168: 0.47 | R168: 0.09 | S168: no | T168: Regression cross-section | AN168: no | AO168: Annual Average Daily Traffic (AADT) | BF168: 2009-12-01
A169: 167 | B169: Synthesis of Safety Research Related to Traffic Control and Roadway Elements Volume 1 | C169: On-street parking | D169: None | E169: Convert angle parking to parallel parking | F169: 57 | G169: 0.43 | H169: Parking related | I169: All | J169: Not specified | K169: Urban | L169: 1982 | M169: 4 | O169: 18 | P169: 8 | Q169: 0.18 | R169: 0.08 | S169: no | T169: Simple before/after | AN169: no | BF169: 2009-12-01
A170: 168 | B170: Synthesis of Safety Research Related to Traffic Control and Roadway Elements Volume 1 | C170: On-street parking | D170: None | E170: Convert angle parking to parallel parking | F170: 65 | G170: 0.35 | H170: Parking related | I170: All | J170: Principal Arterial Other | K170: Urban | L170: 1982 | M170: 2 | O170: 46 | P170: 9 | Q170: 0.46 | R170: 0.09 | S170: no | T170: Regression cross-section | AN170: no | AO170: Annual Average Daily Traffic (AADT) | BF170: 2009-12-01
A171: 169 | B171: Synthesis of Safety Research Related to Traffic Control and Roadway Elements Volume 1 | C171: On-street parking | D171: None | E171: Convert angle parking to parallel parking | F171: 41 | G171: 0.59 | H171: All | I171: K (fatal),A (serious injury),B (minor injury),C (possible injury) | J171: Not specified | K171: Urban | L171: 1982 | M171: 3 | O171: 27 | P171: 12 | Q171: 0.27 | R171: 0.12 | S171: no | T171: Simple before/after | AN171: no | BF171: 2009-12-01
A172: 170 | B172: Synthesis of Safety Research Related to Traffic Control and Roadway Elements Volume 1 | C172: On-street parking | D172: None | E172: Convert angle parking to parallel parking | F172: 20 | G172: 0.8 | H172: All | I172: K (fatal),A (serious injury),B (minor injury),C (possible injury) | J172: Principal Arterial Other | K172: Urban | L172: 1982 | M172: 1 | O172: 134 | P172: 27 | Q172: 1.34 | R172: 0.27 | S172: no | T172: Regression cross-section | AN172: no | AO172: Annual Average Daily Traffic (AADT) | BF172: 2009-12-01
A173: 171 | B173: Angle Parking Issues Revisited, 2001 | C173: On-street parking | D173: None | E173: Convert parallel parking to angle parking | F173: -111 | G173: 2.11 | H173: All | I173: All | J173: Minor Arterial | K173: Urban | L173: 2002 | M173: 1 | O173: 256 | P173: 85 | Q173: 2.56 | R173: 0.85 | S173: no | T173: Simple before/after | AN173: no | BF173: 2009-12-01
A174: 172 | B174: Angle Parking Issues Revisited, 2001 | C174: On-street parking | D174: None | E174: Convert parallel parking to angle parking | F174: -18 | G174: 1.18 | H174: Parking related | I174: All | J174: Minor Arterial | K174: Urban | L174: 2002 | M174: 1 | O174: 73 | P174: 24 | Q174: 0.73 | R174: 0.24 | S174: no | T174: Simple before/after | AN174: no | BF174: 2009-12-01
A175: 173 | B175: Handbook of Road Safety Measures | C175: On-street parking | D175: None | E175: Mark parking stalls | F175: -51 | G175: 1.51 | H175: All | I175: All | J175: Local | K175: Urban | L175: 2004 | M175: 4 | O175: 20 | P175: 11 | Q175: 0.2 | R175: 0.11 | S175: no | T175: Meta-analysis | AN175: no | BF175: 2009-12-01
A176: 174 | B176: Handbook of Road Safety Measures | C176: On-street parking | D176: None | E176: Mark parking stalls | F176: -128 | G176: 2.28 | H176: Parking related | I176: All | J176: Local | K176: Urban | L176: 2004 | M176: 2 | O176: 53 | P176: 29 | Q176: 0.53 | R176: 0.29 | S176: no | T176: Meta-analysis | AN176: no | BF176: 2009-12-01
A177: 175 | B177: Safety Effects of Marked Versus Unmarked Crosswalks at Uncontrolled Locations: Executive Summary and Recommended Guidelines | C177: Pedestrians | D177: None | E177: Install raised median with marked crosswalk (uncontrolled) | F177: 46 | G177: 0.54 | H177: Vehicle/pedestrian | I177: All | J177: Principal Arterial Other | K177: Urban and Suburban | L177: 2002 | M177: 3 | N177: Marked crosswalk with no raised median at an uncontrolled pedestrian crossing. | O177: 48 | P177: 10 | Q177: 0.48 | R177: 0.1 | S177: no | T177: Non-regression cross-section | U177: AZ,CA,FL,KS,LA,MD,MA,MO,NC,OH,OR,PA,TX,UT,WA,WI | AC177: 111 | AL177: 1994 | AM177: 1998 | AN177: no | AO177: Average Daily Traffic (ADT) | AP177: 15000 | AY177: 3 to 8 | BD177: All | BF177: 2009-12-01 | BG177: The study design was a simple comparison of crash rates, controlling for pedestrian and traffic volume.
A178: 176 | B178: Safety Effects of Marked Versus Unmarked Crosswalks at Uncontrolled Locations: Executive Summary and Recommended Guidelines | C178: Pedestrians | D178: None | E178: Install raised median with unmarked crosswalk (uncontrolled) | F178: 39 | G178: 0.61 | H178: Vehicle/pedestrian | I178: All | J178: Principal Arterial Other | K178: Urban and Suburban | L178: 2002 | M178: 2 | N178: Unmarked crosswalk with no raised median at an uncontrolled pedestrian crossing. | O178: 202 | P178: 40 | Q178: 2.02 | R178: 0.4 | S178: no | T178: Non-regression cross-section | U178: AZ,CA,FL,KS,LA,MD,MA,MO,NC,OH,OR,PA,TX,UT,WA,WI | AC178: 9 | AL178: 1994 | AM178: 1998 | AN178: no | AO178: Average Daily Traffic (ADT) | AP178: 15000 | AY178: 3 to 8 | BD178: All | BF178: 2009-12-01 | BG178: The study design was a simple comparison of crash rates, controlling for pedestrian and traffic volume.
A179: 177 | B179: Handbook of Road Safety Measures | C179: Access management | D179: None | E179: Reduce driveways from 48 to 26-48 per mile | F179: 29 | G179: 0.71 | H179: All | I179: A (serious injury),B (minor injury),C (possible injury) | J179: Minor Arterial | K179: Urban and suburban | L179: 2004 | M179: 5 | O179: 4 | P179: 2 | Q179: 0.04 | R179: 0.02 | S179: bold | T179: Meta-analysis | AN179: no | BF179: 2009-12-01
A180: 178 | B180: Handbook of Road Safety Measures | C180: Access management | D180: None | E180: Reduce driveways from 26-48 to 10-24 per mile | F180: 31 | G180: 0.69 | H180: All | I180: A (serious injury),B (minor injury),C (possible injury) | J180: Minor Arterial | K180: Urban and suburban | L180: 2004 | M180: 5 | O180: 2 | P180: 1 | Q180: 0.02 | R180: 0.01 | S180: bold | T180: Meta-analysis | AN180: no | BF180: 2009-12-01
A181: 179 | B181: Handbook of Road Safety Measures | C181: Access management | D181: None | E181: Reduce driveways from 10-24 to less than 10 per mile | F181: 25 | G181: 0.75 | H181: All | I181: A (serious injury),B (minor injury),C (possible injury) | J181: Minor Arterial | K181: Urban and suburban | L181: 2004 | M181: 5 | O181: 3 | P181: 2 | Q181: 0.03 | R181: 0.02 | S181: bold | T181: Meta-analysis | AN181: no | BF181: 2009-12-01
A182: 180 | B182: Handbook of Road Safety Measures | C182: Roadway | D182: Winter weather treatment | E182: Short-term effects of all measures to control snow, slush or ice | F182: 50 | G182: 0.5 | H182: All | I182: Not specified | J182: All | K182: All | L182: 2004 | M182: 4 | O182: 20 | Q182: 0.2 | S182: no | T182: Meta-analysis | AN182: no | AP182: All | AQ182: All | BF182: 2009-12-01
A183: 181 | B183: Handbook of Road Safety Measures | C183: Roadway | D183: Winter weather treatment | E183: Short-term effects of all measures to control snow, slush or ice | F183: 29 | G183: 0.71 | H183: All | I183: Not specified | J183: All | K183: All | L183: 2004 | M183: 3 | O183: 24 | Q183: 0.24 | S183: no | T183: Meta-analysis | AN183: no | AP183: All | AQ183: All | BF183: 2009-12-01
A184: 182 | B184: Handbook of Road Safety Measures | C184: Roadway | D184: Winter weather treatment | E184: Short-term effects of all measures to control snow, slush or ice | F184: 5 | G184: 0.96 | H184: All | I184: Not specified | J184: All | K184: All | L184: 2004 | M184: 3 | O184: 19 | Q184: 0.19 | S184: no | T184: Meta-analysis | AN184: no | AP184: All | AQ184: All | BF184: 2009-12-01
A185: 183 | B185: Handbook of Road Safety Measures | C185: Roadway | D185: Winter weather treatment | E185: Raise standard by one class for winter maintenance | F185: 11 | G185: 0.89 | H185: All | I185: A (serious injury),B (minor injury),C (possible injury) | J185: All | K185: All | L185: 2004 | M185: 5 | O185: 2 | Q185: 0.02 | S185: bold | T185: Meta-analysis | AN185: no | BF185: 2009-12-01 | BG185: Countermeasure name changed to match HSM
A186: 184 | B186: Handbook of Road Safety Measures | C186: Roadway | D186: Winter weather treatment | E186: Raise standard by one class for winter maintenance | F186: 27 | G186: 0.73 | H186: All | I186: O (property damage only) | J186: All | K186: All | L186: 2004 | M186: 5 | O186: 2 | Q186: 0.02 | S186: bold | T186: Meta-analysis | AN186: no | BF186: 2009-12-01 | BG186: Countermeasure name changed to match HSM
A187: 185 | B187: Handbook of Road Safety Measures | C187: Roadway | D187: Winter weather treatment | E187: Effects of use of salt (chemical de-icing) during the whole winter season (baseline = no salt) | F187: 15 | G187: 0.85 | H187: All | I187: A (serious injury),B (minor injury),C (possible injury) | J187: All | K187: All | L187: 2004 | M187: 3 | O187: 9 | Q187: 0.09 | S187: no | T187: Meta-analysis | AN187: no | AP187: All | AQ187: All | BF187: 2009-12-01
A188: 186 | B188: Handbook of Road Safety Measures | C188: Roadway | D188: Winter weather treatment | E188: Effects of use of salt (chemical de-icing) during the whole winter season (baseline = no salt) | F188: 8 | G188: 0.92 | H188: All | I188: O (property damage only) | J188: All | K188: All | L188: 2004 | M188: 3 | O188: 8 | Q188: 0.08 | S188: no | T188: Meta-analysis | AN188: no | AP188: All | AQ188: All | BF188: 2009-12-01
A189: 187 | B189: Handbook of Road Safety Measures | C189: Roadway | D189: Winter weather treatment | E189: Effects of use of salt (chemical de-icing) during the whole winter season (baseline = no salt) | F189: -12 | G189: 1.12 | H189: All | I189: A (serious injury),B (minor injury),C (possible injury) | J189: All | K189: All | L189: 2004 | M189: 3 | O189: 14 | Q189: 0.14 | S189: no | T189: Meta-analysis | AN189: no | AP189: All | AQ189: All | BF189: 2009-12-01
A190: 188 | B190: Handbook of Road Safety Measures | C190: Roadway | D190: Winter weather treatment | E190: Effects of use of salt (chemical de-icing) during the whole winter season (baseline = no salt) | F190: 0 | G190: 1 | H190: All | I190: O (property damage only) | J190: All | K190: All | L190: 2004 | M190: 3 | O190: 12 | Q190: 0.12 | S190: no | T190: Meta-analysis | AN190: no | AP190: All | AQ190: All | BF190: 2009-12-01
A191: 189 | B191: Handbook of Road Safety Measures | C191: Roadway | D191: Winter weather treatment | E191: Effects of snow fences and higher state of preparedness for the whole winter season | F191: 11 | G191: 0.89 | H191: All | I191: All | J191: All | K191: All | L191: 2004 | M191: 3 | O191: 26 | Q191: 0.26 | S191: no | T191: Meta-analysis | AN191: no | AP191: All | AQ191: All | BF191: 2009-12-01
A192: 190 | B192: Handbook of Road Safety Measures | C192: Roadway | D192: Winter weather treatment | E192: Effects of snow fences and higher state of preparedness for the whole winter season | F192: 8 | G192: 0.92 | H192: All | I192: All | J192: All | K192: All | L192: 2004 | M192: 3 | O192: 7 | Q192: 0.07 | S192: no | T192: Meta-analysis | AN192: no | AP192: All | AQ192: All | BF192: 2009-12-01
A193: 191 | B193: Handbook of Road Safety Measures | C193: Highway lighting | D193: None | E193: Provide highway lighting | F193: 69 | G193: 0.31 | H193: All | I193: K (fatal) | J193: All | K193: All | L193: 2004 | M193: 3 | O193: 36 | Q193: 0.36 | S193: no | T193: Meta-analysis | AN193: no | AP193: All | AQ193: All | BF193: 2009-12-01
A194: 192 | B194: Handbook of Road Safety Measures | C194: Highway lighting | D194: None | E194: Provide highway lighting | F194: 28 | G194: 0.72 | H194: Nighttime | I194: A (serious injury),B (minor injury),C (possible injury) | J194: All | K194: All | L194: 2004 | M194: 4 | O194: 6 | Q194: 0.06 | S194: bold | T194: Meta-analysis | AN194: no | BF194: 2009-12-01
A195: 193 | B195: Handbook of Road Safety Measures | C195: Highway lighting | D195: None | E195: Provide highway lighting | F195: 18 | G195: 0.83 | H195: Nighttime | I195: O (property damage only) | J195: All | K195: All | L195: 2004 | M195: 4 | O195: 7 | Q195: 0.07 | S195: bold | T195: Meta-analysis | AN195: no | BF195: 2009-12-01
A196: 194 | B196: Crash Reduction Factors for Traffic Engineering and ITS Improvements | C196: Roadway | D196: Pavement condition and friction | E196: Increased pavement friction | F196: 24 | G196: 0.76 | H196: All | I196: All | J196: All | K196: All | L196: 2008 | M196: 5 | S196: no | T196: Before/after using empirical Bayes or full Bayes | AN196: no | BF196: 2009-12-01 | BG196: This CMF is for high friction treatment applied principally on the major road approaches at intersections, but oftenextended some distance away from the intersection as well.
A197: 195 | B197: Crash Reduction Factors for Traffic Engineering and ITS Improvements | C197: Roadway | D197: Pavement condition and friction | E197: Increased pavement friction | F197: 57 | G197: 0.43 | H197: Wet road | I197: All | J197: All | K197: All | L197: 2008 | M197: 5 | S197: no | T197: Before/after using empirical Bayes or full Bayes | AN197: no | BF197: 2009-12-01 | BG197: This CMF is for high friction treatment applied principally on the major road approaches at intersections, but oftenextended some distance away from the intersection as well.
A198: 196 | B198: Crash Reduction Factors for Traffic Engineering and ITS Improvements | C198: Roadway | D198: Pavement condition and friction | E198: Increased pavement friction | F198: 17 | G198: 0.83 | H198: Rear end | I198: All | J198: All | K198: All | L198: 2008 | M198: 5 | S198: no | T198: Before/after using empirical Bayes or full Bayes | AN198: no | BF198: 2009-12-01 | BG198: This CMF is for high friction treatment applied principally on the major road approaches at intersections, but oftenextended some distance away from the intersection as well.
A199: 197 | B199: Crash Reduction Factors for Traffic Engineering and ITS Improvements | C199: Roadway | D199: Pavement condition and friction | E199: Increased pavement friction | F199: 42 | G199: 0.58 | H199: Rear end | I199: All | J199: All | K199: All | L199: 2008 | M199: 4 | S199: no | T199: Before/after using empirical Bayes or full Bayes | AN199: no | BF199: 2009-12-01 | BG199: This CMF is for high friction treatment applied principally on the major road approaches at intersections, but oftenextended some distance away from the intersection as well.
A200: 198 | B200: Crash Reduction Factors for Traffic Engineering and ITS Improvements | C200: Roadway | D200: Pavement condition and friction | E200: Increased pavement friction | F200: 30 | G200: 0.7 | H200: Single vehicle | I200: All | J200: All | K200: All | L200: 2008 | M200: 5 | S200: no | T200: Before/after using empirical Bayes or full Bayes | AN200: no | BF200: 2009-12-01 | BG200: This CMF is for high friction treatment applied principally on the major road approaches at intersections, but oftenextended some distance away from the intersection as well.
... 925 more rows

Sheet CMFs (hidden)
A1: CMF ID | B1: Prior condition | C1: Catergory | D1: Counter measure | E1: New group | F1: Area | G1: Star Rating | H1: CRF | I1: CMF | J1: Crash | K1: KABCO
A2: 200 | C2: Intersection geometry | D2: Convert four-leg intersection into two three-leg intersections | E2: 4leg to 3 leg | F2: Urban | G2: 3 | H2: -35 | I2: 1.35 | J2: =VLOOKUP(A2,Clearinghouse!A:H,8,FALSE) -> All | K2: =VLOOKUP(A2,Clearinghouse!A:I,9,FALSE) -> A (serious injury),B (minor injury),C (possible injury)
A3: 201 | C3: Intersection geometry | D3: Convert four-leg intersection into two three-leg intersections | E3: 4leg to 3 leg | F3: Urban | G3: 4 | H3: 25 | I3: 0.75 | J3: =VLOOKUP(A3,Clearinghouse!A:H,8,FALSE) -> All | K3: =VLOOKUP(A3,Clearinghouse!A:I,9,FALSE) -> A (serious injury),B (minor injury),C (possible injury)
A4: 202 | C4: Intersection geometry | D4: Convert four-leg intersection into two three-leg intersections | E4: 4leg to 3 leg | F4: Urban | G4: 4 | H4: 33 | I4: 0.67 | J4: =VLOOKUP(A4,Clearinghouse!A:H,8,FALSE) -> All | K4: =VLOOKUP(A4,Clearinghouse!A:I,9,FALSE) -> A (serious injury),B (minor injury),C (possible injury)
A5: 203 | C5: Intersection geometry | D5: Convert four-leg intersection into two three-leg intersections | E5: 4leg to 3 leg | F5: Urban | G5: 3 | H5: -15 | I5: 1.15 | J5: =VLOOKUP(A5,Clearinghouse!A:H,8,FALSE) -> All | K5: =VLOOKUP(A5,Clearinghouse!A:I,9,FALSE) -> O (property damage only)
A6: 204 | C6: Intersection geometry | D6: Convert four-leg intersection into two three-leg intersections | E6: 4leg to 3 leg | F6: Urban | G6: 3 | H6: 0 | I6: 1 | J6: =VLOOKUP(A6,Clearinghouse!A:H,8,FALSE) -> All | K6: =VLOOKUP(A6,Clearinghouse!A:I,9,FALSE) -> O (property damage only)
A7: 205 | C7: Intersection geometry | D7: Convert four-leg intersection into two three-leg intersections | E7: 4leg to 3 leg | F7: Urban | G7: 3 | H7: 10 | I7: 0.9 | J7: =VLOOKUP(A7,Clearinghouse!A:H,8,FALSE) -> All | K7: =VLOOKUP(A7,Clearinghouse!A:I,9,FALSE) -> O (property damage only)
A8: 206 | C8: Intersection geometry | D8: Conversion of stop-controlled intersection into single-lane roundabout | E8: stop to SL RAB | F8: Urban | G8: 4 | H8: 72 | I8: 0.28 | J8: =VLOOKUP(A8,Clearinghouse!A:H,8,FALSE) -> All | K8: =VLOOKUP(A8,Clearinghouse!A:I,9,FALSE) -> All
A9: 207 | C9: Intersection geometry | D9: Conversion of stop-controlled intersection into single-lane roundabout | E9: stop to SL RAB | F9: Rural | G9: 4 | H9: 58 | I9: 0.42 | J9: =VLOOKUP(A9,Clearinghouse!A:H,8,FALSE) -> All | K9: =VLOOKUP(A9,Clearinghouse!A:I,9,FALSE) -> All
A10: 208 | C10: Intersection geometry | D10: Conversion of stop-controlled intersection into multi-lane roundabout | E10: stop to ML RAB | F10: Urban | G10: 3 | H10: 5 | I10: 0.95 | J10: =VLOOKUP(A10,Clearinghouse!A:H,8,FALSE) -> All | K10: =VLOOKUP(A10,Clearinghouse!A:I,9,FALSE) -> All
A11: 209 | C11: Intersection geometry | D11: Conversion of signalized intersection into single- or multi-lane roundabout | E11: signalized int to RAB | F11: Urban | G11: 3 | H11: 35 | I11: 0.65 | J11: =VLOOKUP(A11,Clearinghouse!A:H,8,FALSE) -> All | K11: =VLOOKUP(A11,Clearinghouse!A:I,9,FALSE) -> All
A12: 210 | C12: Intersection geometry | D12: Conversion of stop-controlled intersection into single-lane roundabout | E12: stop to SL RAB | F12: Urban | G12: 4 | H12: 88 | I12: 0.12 | J12: =VLOOKUP(A12,Clearinghouse!A:H,8,FALSE) -> All | K12: =VLOOKUP(A12,Clearinghouse!A:I,9,FALSE) -> A (serious injury),B (minor injury),C (possible injury)
A13: 211 | C13: Intersection geometry | D13: Conversion of stop-controlled intersection into single-lane roundabout | E13: stop to SL RAB | F13: Rural | G13: 4 | H13: 82 | I13: 0.18 | J13: =VLOOKUP(A13,Clearinghouse!A:H,8,FALSE) -> All | K13: =VLOOKUP(A13,Clearinghouse!A:I,9,FALSE) -> A (serious injury),B (minor injury),C (possible injury)
A14: 212 | C14: Intersection geometry | D14: Conversion of signalized intersection into single- or multi-lane roundabout | E14: signalized int to RAB | F14: Urban | G14: 3 | H14: 74 | I14: 0.26 | J14: =VLOOKUP(A14,Clearinghouse!A:H,8,FALSE) -> All | K14: =VLOOKUP(A14,Clearinghouse!A:I,9,FALSE) -> A (serious injury),B (minor injury),C (possible injury)
A15: 213 | C15: Intersection geometry | D15: Convert to roundabout | E15: RAB | F15: Not specified | G15: 4 | H15: 39 | I15: 0.61 | J15: =VLOOKUP(A15,Clearinghouse!A:H,8,FALSE) -> All | K15: =VLOOKUP(A15,Clearinghouse!A:I,9,FALSE) -> A (serious injury),B (minor injury),C (possible injury)
A16: 214 | C16: Intersection geometry | D16: Convert signalized intersection to modern roundabout | E16: signal to Modern RAB | F16: Not specified | G16: 4 | H16: 32 | I16: 0.68 | J16: =VLOOKUP(A16,Clearinghouse!A:H,8,FALSE) -> All | K16: =VLOOKUP(A16,Clearinghouse!A:I,9,FALSE) -> A (serious injury),B (minor injury),C (possible injury)
A17: 215 | C17: Intersection geometry | D17: Convert unsignalized intersection to roundabout | E17: RAB | F17: Not specified | G17: 4 | H17: 44 | I17: 0.56 | J17: =VLOOKUP(A17,Clearinghouse!A:H,8,FALSE) -> All | K17: =VLOOKUP(A17,Clearinghouse!A:I,9,FALSE) -> A (serious injury),B (minor injury),C (possible injury)
A18: 216 | C18: Intersection geometry | D18: Convert to roundabout | E18: RAB | F18: Not specified | G18: 3 | H18: 17 | I18: 0.83 | J18: =VLOOKUP(A18,Clearinghouse!A:H,8,FALSE) -> All | K18: =VLOOKUP(A18,Clearinghouse!A:I,9,FALSE) -> A (serious injury)
A19: 217 | C19: Intersection geometry | D19: Convert signalized intersection to modern roundabout | E19: signal to Modern RAB | F19: Not specified | G19: 3 | H19: 13 | I19: 0.87 | J19: =VLOOKUP(A19,Clearinghouse!A:H,8,FALSE) -> All | K19: =VLOOKUP(A19,Clearinghouse!A:I,9,FALSE) -> A (serious injury)
A20: 218 | C20: Intersection geometry | D20: Convert unsignalized intersection to roundabout | E20: RAB | F20: Not specified | G20: 3 | H20: 20 | I20: 0.8 | J20: =VLOOKUP(A20,Clearinghouse!A:H,8,FALSE) -> All | K20: =VLOOKUP(A20,Clearinghouse!A:I,9,FALSE) -> A (serious injury)
A21: 219 | C21: Intersection geometry | D21: Convert to roundabout | E21: RAB | F21: Not specified | G21: 4 | H21: 38 | I21: 0.62 | J21: =VLOOKUP(A21,Clearinghouse!A:H,8,FALSE) -> All | K21: =VLOOKUP(A21,Clearinghouse!A:I,9,FALSE) -> B (minor injury)
A22: 220 | C22: Intersection geometry | D22: Convert signalized intersection to modern roundabout | E22: signal to Modern RAB | F22: Not specified | G22: 3 | H22: 31 | I22: 0.69 | J22: =VLOOKUP(A22,Clearinghouse!A:H,8,FALSE) -> All | K22: =VLOOKUP(A22,Clearinghouse!A:I,9,FALSE) -> B (minor injury)
A23: 221 | C23: Intersection geometry | D23: Convert unsignalized intersection to roundabout | E23: RAB | F23: Not specified | G23: 4 | H23: 46 | I23: 0.54 | J23: =VLOOKUP(A23,Clearinghouse!A:H,8,FALSE) -> All | K23: =VLOOKUP(A23,Clearinghouse!A:I,9,FALSE) -> B (minor injury)
A24: 222 | C24: Intersection geometry | D24: Convert signalized intersection to modern roundabout | E24: signal to Modern RAB | F24: Urban | G24: 3 | H24: 1 | I24: 0.99 | J24: =VLOOKUP(A24,Clearinghouse!A:H,8,FALSE) -> All | K24: =VLOOKUP(A24,Clearinghouse!A:I,9,FALSE) -> All
A25: 223 | C25: Intersection geometry | D25: Convert signalized intersection to modern roundabout | E25: signal to Modern RAB | F25: Urban | G25: 4 | H25: 60 | I25: 0.4 | J25: =VLOOKUP(A25,Clearinghouse!A:H,8,FALSE) -> All | K25: =VLOOKUP(A25,Clearinghouse!A:I,9,FALSE) -> A (serious injury),B (minor injury),C (possible injury)
A26: 224 | C26: Intersection geometry | D26: Convert signalized intersection to modern roundabout | E26: signal to Modern RAB | F26: Suburban | G26: 4 | H26: 67 | I26: 0.33 | J26: =VLOOKUP(A26,Clearinghouse!A:H,8,FALSE) -> All | K26: =VLOOKUP(A26,Clearinghouse!A:I,9,FALSE) -> All
A27: 225 | C27: Intersection geometry | D27: Convert signalized intersection to modern roundabout | E27: signal to Modern RAB | F27: All | G27: 4 | H27: 48 | I27: 0.52 | J27: =VLOOKUP(A27,Clearinghouse!A:H,8,FALSE) -> All | K27: =VLOOKUP(A27,Clearinghouse!A:I,9,FALSE) -> All
A28: 226 | C28: Intersection geometry | D28: Convert signalized intersection to modern roundabout | E28: signal to Modern RAB | F28: All | G28: 4 | H28: 78 | I28: 0.22 | J28: =VLOOKUP(A28,Clearinghouse!A:H,8,FALSE) -> All | K28: =VLOOKUP(A28,Clearinghouse!A:I,9,FALSE) -> A (serious injury),B (minor injury),C (possible injury)
A29: 227 | C29: Intersection geometry | D29: Convert intersection with minor-road stop control to modern roundabout | E29: minor stop to RAB | F29: All | G29: 5 | H29: 44 | I29: 0.56 | J29: =VLOOKUP(A29,Clearinghouse!A:H,8,FALSE) -> All | K29: =VLOOKUP(A29,Clearinghouse!A:I,9,FALSE) -> All
A30: 228 | C30: Intersection geometry | D30: Convert intersection with minor-road stop control to modern roundabout | E30: minor stop to RAB | F30: All | G30: 5 | H30: 82 | I30: 0.18 | J30: =VLOOKUP(A30,Clearinghouse!A:H,8,FALSE) -> All | K30: =VLOOKUP(A30,Clearinghouse!A:I,9,FALSE) -> A (serious injury),B (minor injury),C (possible injury)
A31: 229 | C31: Intersection geometry | D31: Convert intersection with minor-road stop control to modern roundabout | E31: minor stop to RAB | F31: Rural | G31: 5 | H31: 71 | I31: 0.29 | J31: =VLOOKUP(A31,Clearinghouse!A:H,8,FALSE) -> All | K31: =VLOOKUP(A31,Clearinghouse!A:I,9,FALSE) -> All
A32: 230 | C32: Intersection geometry | D32: Convert intersection with minor-road stop control to modern roundabout | E32: minor stop to RAB | F32: Rural | G32: 5 | H32: 87 | I32: 0.13 | J32: =VLOOKUP(A32,Clearinghouse!A:H,8,FALSE) -> All | K32: =VLOOKUP(A32,Clearinghouse!A:I,9,FALSE) -> A (serious injury),B (minor injury),C (possible injury)
A33: 231 | C33: Intersection geometry | D33: Convert intersection with minor-road stop control to modern roundabout | E33: minor stop to RAB | F33: Urban | G33: 4 | H33: 29 | I33: 0.71 | J33: =VLOOKUP(A33,Clearinghouse!A:H,8,FALSE) -> All | K33: =VLOOKUP(A33,Clearinghouse!A:I,9,FALSE) -> All
A34: 232 | C34: Intersection geometry | D34: Convert intersection with minor-road stop control to modern roundabout | E34: minor stop to RAB | F34: Urban | G34: 4 | H34: 81 | I34: 0.19 | J34: =VLOOKUP(A34,Clearinghouse!A:H,8,FALSE) -> All | K34: =VLOOKUP(A34,Clearinghouse!A:I,9,FALSE) -> A (serious injury),B (minor injury),C (possible injury)
A35: 233 | C35: Intersection geometry | D35: Convert intersection with minor-road stop control to modern roundabout | E35: minor stop to RAB | F35: Urban | G35: 4 | H35: 39 | I35: 0.61 | J35: =VLOOKUP(A35,Clearinghouse!A:H,8,FALSE) -> All | K35: =VLOOKUP(A35,Clearinghouse!A:I,9,FALSE) -> All
A36: 234 | C36: Intersection geometry | D36: Convert intersection with minor-road stop control to modern roundabout | E36: minor stop to RAB | F36: Urban | G36: 4 | H36: 78 | I36: 0.22 | J36: =VLOOKUP(A36,Clearinghouse!A:H,8,FALSE) -> All | K36: =VLOOKUP(A36,Clearinghouse!A:I,9,FALSE) -> A (serious injury),B (minor injury),C (possible injury)
A37: 235 | C37: Intersection geometry | D37: Convert intersection with minor-road stop control to modern roundabout | E37: minor stop to RAB | F37: Urban | G37: 3 | H37: 12 | I37: 0.88 | J37: =VLOOKUP(A37,Clearinghouse!A:H,8,FALSE) -> All | K37: =VLOOKUP(A37,Clearinghouse!A:I,9,FALSE) -> All
A38: 236 | C38: Intersection geometry | D38: Convert intersection with minor-road stop control to modern roundabout | E38: minor stop to RAB | F38: Suburban | G38: 4 | H38: 32 | I38: 0.68 | J38: =VLOOKUP(A38,Clearinghouse!A:H,8,FALSE) -> All | K38: =VLOOKUP(A38,Clearinghouse!A:I,9,FALSE) -> All
A39: 237 | C39: Intersection geometry | D39: Convert intersection with minor-road stop control to modern roundabout | E39: minor stop to RAB | F39: Suburban | G39: 4 | H39: 71 | I39: 0.29 | J39: =VLOOKUP(A39,Clearinghouse!A:H,8,FALSE) -> All | K39: =VLOOKUP(A39,Clearinghouse!A:I,9,FALSE) -> A (serious injury),B (minor injury),C (possible injury)
A40: 238 | C40: Intersection geometry | D40: Convert intersection with minor-road stop control to modern roundabout | E40: minor stop to RAB | F40: Suburban | G40: 4 | H40: 78 | I40: 0.22 | J40: =VLOOKUP(A40,Clearinghouse!A:H,8,FALSE) -> All | K40: =VLOOKUP(A40,Clearinghouse!A:I,9,FALSE) -> All
A41: 239 | C41: Intersection geometry | D41: Convert intersection with minor-road stop control to modern roundabout | E41: minor stop to RAB | F41: Suburban | G41: 4 | H41: 78 | I41: 0.22 | J41: =VLOOKUP(A41,Clearinghouse!A:H,8,FALSE) -> All | K41: =VLOOKUP(A41,Clearinghouse!A:I,9,FALSE) -> A (serious injury),B (minor injury),C (possible injury)
A42: 240 | C42: Intersection geometry | D42: Convert intersection with minor-road stop control to modern roundabout | E42: minor stop to RAB | F42: Suburban | G42: 3 | H42: 19 | I42: 0.81 | J42: =VLOOKUP(A42,Clearinghouse!A:H,8,FALSE) -> All | K42: =VLOOKUP(A42,Clearinghouse!A:I,9,FALSE) -> All
A43: 241 | C43: Intersection geometry | D43: Convert intersection with minor-road stop control to modern roundabout | E43: minor stop to RAB | F43: Suburban | G43: 4 | H43: 68 | I43: 0.32 | J43: =VLOOKUP(A43,Clearinghouse!A:H,8,FALSE) -> All | K43: =VLOOKUP(A43,Clearinghouse!A:I,9,FALSE) -> A (serious injury),B (minor injury),C (possible injury)
A44: 242 | C44: Intersection geometry | D44: Convert all-way, stop-controlled intersection to roundabout | E44: stop to RAB | F44: All | G44: 3 | H44: -3 | I44: 1.03 | J44: =VLOOKUP(A44,Clearinghouse!A:H,8,FALSE) -> All | K44: =VLOOKUP(A44,Clearinghouse!A:I,9,FALSE) -> All
A45: 249 | C45: Intersection geometry | D45: Provide a channelized left-turn lane on both major- and minor-road approaches | E45: LT lanes both | F45: Rural | G45: 3 | H45: 27 | I45: 0.73 | J45: =VLOOKUP(A45,Clearinghouse!A:H,8,FALSE) -> All | K45: =VLOOKUP(A45,Clearinghouse!A:I,9,FALSE) -> A (serious injury),B (minor injury),C (possible injury)
A46: 250 | C46: Intersection geometry | D46: Provide a channelized left-turn lane on both major-road approaches | E46: LT lanes both | F46: Rural | G46: 2 | H46: -20 | I46: 1.2 | J46: =VLOOKUP(A46,Clearinghouse!A:H,8,FALSE) -> All | K46: =VLOOKUP(A46,Clearinghouse!A:I,9,FALSE) -> O (property damage only)
A47: 253 | C47: Intersection geometry | D47: Provide a left-turn lane on one major-road approach | E47: LT lane | F47: Rural | G47: 4 | H47: 44 | I47: 0.56 | J47: =VLOOKUP(A47,Clearinghouse!A:H,8,FALSE) -> All | K47: =VLOOKUP(A47,Clearinghouse!A:I,9,FALSE) -> All
A48: 254 | C48: Intersection geometry | D48: Provide a left-turn lane on one major-road approach | E48: LT lane | F48: Urban | G48: 4 | H48: 33 | I48: 0.67 | J48: =VLOOKUP(A48,Clearinghouse!A:H,8,FALSE) -> All | K48: =VLOOKUP(A48,Clearinghouse!A:I,9,FALSE) -> All
A49: 255 | C49: Intersection geometry | D49: Provide a left-turn lane on one major-road approach | E49: LT lane | F49: Rural | G49: 4 | H49: 55 | I49: 0.45 | J49: =VLOOKUP(A49,Clearinghouse!A:H,8,FALSE) -> All | K49: =VLOOKUP(A49,Clearinghouse!A:I,9,FALSE) -> K (fatal),A (serious injury),B (minor injury),C (possible injury)
A50: 256 | C50: Intersection geometry | D50: Provide a channelized left-turn lane on both major-road approaches | E50: LT lanes both | F50: Rural | G50: 3 | H50: 4 | I50: 0.96 | J50: =VLOOKUP(A50,Clearinghouse!A:H,8,FALSE) -> All | K50: =VLOOKUP(A50,Clearinghouse!A:I,9,FALSE) -> A (serious injury),B (minor injury),C (possible injury)
A51: 257 | C51: Intersection geometry | D51: Provide a channelized left-turn lane on both major-road approaches | E51: LT lanes both | F51: Rural | G51: 3 | H51: 16 | I51: 0.84 | J51: =VLOOKUP(A51,Clearinghouse!A:H,8,FALSE) -> All | K51: =VLOOKUP(A51,Clearinghouse!A:I,9,FALSE) -> O (property damage only)
A52: 260 | C52: Intersection geometry | D52: Provide a left-turn lane on one major-road approach | E52: LT lane | F52: Rural | G52: 5 | H52: 28 | I52: 0.72 | J52: =VLOOKUP(A52,Clearinghouse!A:H,8,FALSE) -> All | K52: =VLOOKUP(A52,Clearinghouse!A:I,9,FALSE) -> All
A53: 261 | C53: Intersection geometry | D53: Provide a left-turn lane on one major-road approach | E53: LT lane | F53: Urban | G53: 5 | H53: 27 | I53: 0.73 | J53: =VLOOKUP(A53,Clearinghouse!A:H,8,FALSE) -> All | K53: =VLOOKUP(A53,Clearinghouse!A:I,9,FALSE) -> All
A54: 262 | C54: Intersection geometry | D54: Provide a left-turn lane on one major-road approach | E54: LT lane | F54: Urban | G54: 3 | H54: 10 | I54: 0.9 | J54: =VLOOKUP(A54,Clearinghouse!A:H,8,FALSE) -> All | K54: =VLOOKUP(A54,Clearinghouse!A:I,9,FALSE) -> All
A55: 263 | C55: Intersection geometry | D55: Provide a left-turn lane on one major-road approach | E55: LT lane | F55: Urban | G55: 5 | H55: 24 | I55: 0.76 | J55: =VLOOKUP(A55,Clearinghouse!A:H,8,FALSE) -> All | K55: =VLOOKUP(A55,Clearinghouse!A:I,9,FALSE) -> All
A56: 264 | C56: Intersection geometry | D56: Provide a left-turn lane on one major-road approach | E56: LT lane | F56: Rural | G56: 5 | H56: 35 | I56: 0.65 | J56: =VLOOKUP(A56,Clearinghouse!A:H,8,FALSE) -> All | K56: =VLOOKUP(A56,Clearinghouse!A:I,9,FALSE) -> K (fatal),A (serious injury),B (minor injury),C (possible injury)
A57: 265 | C57: Intersection geometry | D57: Provide a left-turn lane on one major-road approach | E57: LT lane | F57: Urban | G57: 5 | H57: 29 | I57: 0.71 | J57: =VLOOKUP(A57,Clearinghouse!A:H,8,FALSE) -> All | K57: =VLOOKUP(A57,Clearinghouse!A:I,9,FALSE) -> K (fatal),A (serious injury),B (minor injury),C (possible injury)
